Workbook

Sheet 이용자편의사항
A2: 이용자의 편의 및 유의사항
A4: 1. 조사개요
A6: 1) 조사목적
A7: 주택금융 및 유동화증권(MBS∙MBB) 관련 통계의 제공을 통해 주택금융시장 동향에 관한 대국민 서비스를 제고하고 정부의 주택금융정책 수립에 기여
A10: 2) 법적근거
A11: (공사법 제22조 제13호) 주택금융에 관한 조사ㆍ연구 및 통계자료의 수집ㆍ작성과 국내외 유관 기관과의 교류ㆍ협력
A14: 3) 국가승인통계
A15: 「공사업무통계」중 보금자리론 및 MBS∙MBB, 주택금융신용보증, 주택연금, 주택구입부담지수, 주택구입물량지수는 통계법 제18조(통계작성의 승인)에 의해 국가승인통계로 지정되어 있음
A19: 2. 유의사항
A21: □ ‘보금자리론 판매실적’은 금융기관에서 대출취급 후 한국주택금융공사(“공사”)에 양도하지 않은 판매실적 포함
A24: □ 'MBS∙MBB 발행실적'은 보금자리론 이외에 공사가 금융기관으로부터 양수한 주택담보대출을 기초로 발행된 MBS∙MBB를 포함
A27: □ 'MBS∙MBB 기초자산 상환 및 연체현황'은 공사에서 채권보유 중인 대출은 제외하고 MBS∙MBB 발행의 기초자산인 주택담보대출을 대상으로 산출
A30: □ '지역별 PIR 및 LIR'은 한국주택금융공사 보금자리론 이용자를 대상으로 산출
A32: □ 주택금융신용보증기금은 1988년에 최초 설립되었으며, 2004년 3월 1일 한국주택금융공사법 제정에 따라 공사 내 설치되어 공사가 관리․운용
A35: □ '국민주택기금'은 '도시주택기금'으로 변경되었으며, 차후 반영할 예정

Sheet 목차
A1: 번호 | B1: 목차 | C1: CONTENTS
A2: 공사업무통계 | C2: HF Statistics
A3: 보금자리론 및 유동화증권(MBS∙MBB) | C3: Bogeumjari(Mortgage) Loan & MBS∙MBB(Mortgage-Backed Securities∙Bond)
A4: 1 | B4: 보금자리론 판매실적 | C4: Bogeumjari(Mortgage) Loan Origination
A5: 2 | B5: 적격대출 판매실적 | C5: Conforming Loan Origination
A6: 3 | B6: MBS 발행실적 | C6: Issuance of MBS(Mortgage-Backed Securities)
A7: =+A6+1 -> 4 | B7: MBS 기초자산 상환 및 연체현황 | C7: Prepayment and Delinquency of Mortgage Pool(MBS)
A8: =+A7+1 -> 5 | B8: MBB 발행실적 | C8: Issuance of MBB(Mortgage-Backed Bond)
A9: 6 | B9: MBB 기초자산 상환 및 연체현황 | C9: Prepayment and Delinquency of Mortgage Pool(MBB)
A10: 7 | B10: 지역별 판매실적 | C10: Bogeumjari(Mortgage) Loan Origination by Region
A11: 8 | B11: 금융기관별 판매실적 | C11: Bogeumjari(Mortgage) Loan Origination by Lenders
A12: 9 | B12: LTV수준별 대출금액 및 잔액 현황 | C12: Bogeumjari(Mortgage) Loan Origination and Outstanding by LTV
A13: 10 | B13: DTI수준별 대출금액 및 잔액 현황 | C13: Bogeumjari(Mortgage) Loan Origination and Outstanding by DTI
A14: 11 | B14: 대출기간별 대출금액 및 잔액 현황 | C14: Bogeumjari(Mortgage) Loan Origination and Outstanding by Loan Term
A15: 12 | B15: 주택유형별 대출금액 및 잔액 현황 | C15: Bogeumjari(Mortgage) Loan Origination and Outstanding by Housing Type
A16: 13 | B16: 연령구간별 대출금액 및 잔액 현황 | C16: Bogeumjari(Mortgage) Loan Origination and Outstanding by Age
A17: 14 | B17: 소득수준별 대출금액 및 잔액 현황 | C17: Bogeumjari(Mortgage) Loan Origination and Outstanding by Income
A18: 15 | B18: 지역별 PIR 및 LIR | C18: Price Income Ratio and Loan Income Ratio by Region
A19: 16 | B19: 자금용도별 대출금액 및 잔액 현황 | C19: Bogeumjari(Mortgage) Loan Origination and Outstanding by Loan Purpose
A20: 주택금융신용보증 | C20: Housing Finance Credit Guarantee
A21: =+A19+1 -> 17 | B21: 주택금융신용보증 잔액현황 | C21: Housing Finance Credit Guarantee Outstanding
A22: =+A21+1 -> 18 | B22: 금융기관별 주택금융신용보증 공급현황 | C22: Housing Finance Credit Guarantee Origination by Lenders
A23: =+A22+1 -> 19 | B23: 금융기관별 주택금융신용보증 잔액현황 | C23: Housing Finance Credit Guarantee Outstanding by Lenders
A24: 20 | B24: 지역별 주택금융신용보증 공급현황 | C24: Housing Finance Credit Guarantee Origination by Region
A25: 21 | B25: 보증종류별 주택금융신용보증 공급현황 | C25: Housing Finance Credit Guarantee Origination by Type
A26: 22 | B26: 보증종류별 주택금융신용보증 잔액현황 | C26: Housing Finance Credit Guarantee Outstanding by Type
A27: 23 | B27: 주신보기금 출연기준 주택자금대출 규모 | C27: Housing Loans Based on HFCG Fund Contribution
A28: 주택연금 | C28: JooTaekYeonKeum(Reverse Mortgage)
A29: =+A27+1 -> 24 | B29: 지급방식별 주택연금 공급현황 | C29: JooTaekYeonKeum(Reverse Mortgage) Guarantee Origination by Payment Type
A30: =+A29+1 -> 25 | B30: 지급방식별 주택연금 잔액현황 | C30: JooTaekYeonKeum(Reverse Mortgage) Guarantee Outstanding by Payment Type
A31: =+A30+1 -> 26 | B31: 지급유형별 주택연금 공급현황 | C31: JooTaekYeonKeum(Reverse Mortgage) Guarantee Origination by Payment Option
A32: 27 | B32: 지급유형별 주택연금 잔액현황 | C32: JooTaekYeonKeum(Reverse Mortgage) Guarantee Outstanding by Payment Option
A33: 28 | B33: 지역별 주택연금 공급현황 | C33: JooTaekYeonKeum(Reverse Mortgage) Guarantee Origination by Region
A34: 29 | B34: 지역별 주택연금 잔액현황 | C34: JooTaekYeonKeum(Reverse Mortgage) Guarantee Outstanding by Region
A35: 30 | B35: 금융기관별 주택연금 공급현황 | C35: JooTaekYeonKeum(Reverse Mortgage) Guarantee Origination by Lenders
A36: 31 | B36: 금융기관별 주택연금 잔액현황 | C36: JooTaekYeonKeum(Reverse Mortgage) Guarantee Outstanding by Lenders
A37: 32 | B37: 주택연금 보증잔액 현황 | C37: JooTaekYeonKeum(Reverse Mortgage) Guarantee Outstanding
A38: SLBS(Student Loan-Backed Securities) | C38: SLBS(Student Loan-Backed Securities)
A39: =A37+1 -> 33 | B39: SLBS 발행실적 | C39: Issuance of SLBS(Student Loan-Backed Securities)
A40: =+A39+1 -> 34 | B40: SLBS 기초자산 상환 및 연체현황 | C40: Prepayment and Delinquency of Student Loan Pool(SLBS)
A41: 주택구입부담지수 | C41: K-HAI(Korea-Housing Affordability Index)
A42: =+A40+1 -> 35 | B42: 지역별 주택구입부담지수 | C42: K-HAI(Korea-Housing Affordability Index) by Region
A43: =+A42+1 -> 36 | B43: 주택규모별 주택구입부담지수 | C43: K-HAI(Korea-Housing Affordability Index) by Housing Size
A44: 주택구입물량지수 | C44: K-HOI(Korea-Housing Opportunity Index)
A45: =+A43+1 -> 37 | B45: 지역별 주택구입물량지수 | C45: K-HOI(Korea-Housing Oppotunity Index) by Region
A46: 주택금융시장 | C46: Housing Finance Market
A47: =+A45+1 -> 38 | B47: 가계 및 주택담보 대출 잔액 | C47: Household & Mortgage Loan Outstanding
A48: =+A47+1 -> 39 | B48: 기업 및 가계대출 연체율 | C48: Delinquency Ratio
A49: =+A48+1 -> 40 | B49: 예금은행 가중평균 대출금리 | C49: CBs & SBs Weighted Average of Interest Rates
A50: 41 | B50: 국내은행의 대출행태지수 | C50: Diffusion Index of Banks
A51: 42 | B51: 채권수익률 | C51: Bond Yields
A52: 43 | B52: ABS 발행현황 | C52: Issuance of ABS(Asset-Backed Securities)
A53: 44 | B53: 미국의 주요 지표금리 및 모기지론 금리 | C53: Benchmark Interest Rates and Mortgage Interest Rates in US
A54: 45 | B54: 미국의 주택건설 및 주택판매현황 | C54: Housing Construction and Home Sales in US
A55: 46 | B55: 미국의 모기지대출 잔액현황 | C55: Mortgage Debt Outstanding in US
A56: 47 | B56: 미국의 주요 기관별 MBS 발행현황 | C56: MBS Issuance and Outstanding by Agency in US
A57: 주택시장 | C57: Housing Market
A58: 주택건설현황 | C58: Housing Construction
A59: =+A56+1 -> 48 | B59: 주택유형별 건축허가 및 착공현황 | C59: Permits Authorized for Building Construction by Housing Type
A60: =+A59+1 -> 49 | B60: 지역별 주택건설실적 | C60: Housing Construction by Region
A61: =+A60+1 -> 50 | B61: 공사종류별 수주액 | C61: Value of Construction Orders Received by Construction Type
A62: =+A61+1 -> 51 | B62: 건설투자 및 건설업의 부가가치 | C62: Gross Fixed Capital Formation and Value Added by Construction
A63: =+A62+1 -> 52 | B63: 지역별 미분양 주택현황 | C63: Unsold Housing by Region
A64: =+A63+1 -> 53 | B64: 건설경기 종합 BSI | C64: Construction BSI(Business Survey Index)
A65: 부동산거래현황 | C65: Real Estate Transaction
A66: =+A64+1 -> 54 | B66: 지역별 토지거래 현황 | C66: Land Transaction by Region
A67: =+A66+1 -> 55 | B67: 지역별 주택거래 현황 | C67: Housing Transaction by Region
A68: =+A67+1 -> 56 | B68: 주택유형별 주택거래 현황 | C68: Housing Transaction by Housing Type
A69: =+A68+1 -> 57 | B69: 거래규모별 주택거래 현황 | C69: Housing Transaction by Floor Area
A70: =+A69+1 -> 58 | B70: 지역별 아파트거래 현황 | C70: Apartment Transaction by Region
A71: =+A70+1 -> 59 | B71: 거래규모별 아파트거래 현황 | C71: Apartment Transaction by Floor Area
A72: 주택가격지수 | C72: Housing Price Indices
A73: =+A71+1 -> 60 | B73: 주택매매가격대비 전세가격비율 | C73: Ratio of Jeonse to Purchase Price for Apartment
A74: =+A73+1 -> 61 | B74: 주택매매가격지수 | C74: Housing Purchase Price Indices
A75: =+A74+1 -> 62 | B75: 주택전세가격지수 | C75: Housing Jeonse Price Indices
A76: =+A75+1 -> 63 | B76: 주택유형별 매매가격지수 | C76: Housing Purchase Price Indices by Housing Type
A77: =+A76+1 -> 64 | B77: 주택유형별 전세가격지수 | C77: Housing Jeonse Price Indices by Housing Type
A78: =+A77+1 -> 65 | B78: 지역별 주거지역 지가지수 | C78: Land Price Indices of Residential Area by Region
A79: 주택청약 및 보급률 | C79: Housing Subscription & Housing Supply Ratio
A80: =+A78+1 -> 66 | B80: 청약통장별 가입현황 | C80: Housing Subscription by Deposit
A81: =+A80+1 -> 67 | B81: 지역별 주택보급률 | C81: Housing Supply Ratio by Region

Sheet 1. 보금자리론 판매실적
A1: 1. 보금자리론 판매실적 Bogeumjari(Mortgage) Loan Origination
A3: 단위 : 억원 | F3: Hundred million won
A4: 연월말 | C4: 판매금액1) | D4: 누적잔액2) | E4: 적용금리3) | F4: 금리적용기준일
A6: End of | C6: Origination | D6: Outstanding | E6: Interest on a loan | F6: As of
A8: 2004 | C8: =SUM(C22:C31) -> 32,970 | D8: 28,735 | E8: - | F8: -
A9: 2005 | C9: =SUM(C33:C44) -> 42,192 | D9: 67,993 | E9: - | F9: -
A10: 2006 | C10: =SUM(C46:C57) -> 13,868 | D10: 63,537 | E10: - | F10: -
A11: 2007 | C11: =SUM(C59:C70) -> 35,952 | D11: 81,822 | E11: - | F11: -
A12: 2008 | C12: =SUM(C72:C83) -> 42,436 | D12: 107,311 | E12: - | F12: -
A13: 2009 | C13: =SUM(C85:C96) -> 59,428 | D13: 130,511 | E13: - | F13: -
A14: 2010 | C14: =SUM(C98:C109) -> 58,479 | D14: 160,104 | E14: - | F14: -
A15: 2011 | C15: =SUM(C111:C122) -> 94,144 | D15: 194,515 | E15: - | F15: -
A16: 2012 | C16: =SUM(C124:C135) -> 112,062 | D16: 220,188 | E16: - | F16: -
A17: 2013 | C17: =SUM(C137:C148) -> 119,047 | D17: 273,698 | E17: - | F17: -
A18: 2014 | C18: =SUM(C150:C161) -> 84,685 | D18: =+D161 -> 257,061 | E18: - | F18: -
A19: 2015 | C19: 147,495 | D19: =D174 -> 251,808 | E19: - | F19: -
A20: 2016 | C20: 94,192 | D20: =D183 -> 295,009 | E20: - | F20: -
A22: 2004 | B22: 3 | D22: 0 | E22: 6.50% ~ 6.70% | F22: 3. 25
B23: 4 | C23: 3,634 | D23: 0 | E23: 6.50% ~ 6.70% | F23: -
B24: 5 | C24: 4,564 | D24: 0 | E24: 6.50% ~ 6.70% | F24: -
B25: 6 | C25: 3,938 | D25: 5,420 | E25: 6.50% ~ 6.70% | F25: -
B26: 7 | C26: 3,358 | D26: 9,400 | E26: 6.50% ~ 6.70% | F26: -
B27: 8 | C27: 3,318 | D27: 14,829 | E27: 6.25% ~ 6.45% | F27: 8. 17
B28: 9 | C28: 2,894 | D28: 18,640 | E28: 6.25% ~ 6.45% | F28: -
B29: 10 | C29: 3,432 | D29: 22,012 | E29: 6.00% ~ 6.20% | F29: 10. 14
B30: 11 | C30: 3,556 | D30: 24,944 | E30: 5.75% ~ 5.95% | F30: 11. 19
B31: 12 | C31: 4,276 | D31: 28,735 | E31: 5.75% ~ 5.95% | F31: -
A33: 2005 | B33: 1 | C33: 3,413 | D33: 32,716 | E33: 5.75% ~ 5.95% | F33: -
B34: 2 | C34: 4,799 | D34: 32,395 | E34: 5.75% ~ 5.95% | F34: -
B35: 3 | C35: 6,864 | D35: 39,485 | E35: 5.75% ~ 5.95% | F35: -
B36: 4 | C36: 5,627 | D36: 49,279 | E36: 6.05% ~ 6.25% | F36: 4. 6
B37: 5 | C37: 3,934 | D37: 56,882 | E37: 6.05% ~ 6.25% | F37: -
B38: 6 | C38: 3,754 | D38: 51,465 | E38: 6.05% ~ 6.25% | F38: -
B39: 7 | C39: 3,138 | D39: 61,506 | E39: 6.05% ~ 6.25% | F39: -
B40: 8 | C40: 3,191 | D40: 62,191 | E40: 6.05% ~ 6.25% | F40: -
B41: 9 | C41: 2,656 | D41: 62,982 | E41: 6.30% ~ 6.50% | F41: 9. 21
B42: 10 | C42: 1,966 | D42: 62,248 | E42: 6.30% ~ 6.50% | F42: -
B43: 11 | C43: 1,418 | D43: 64,339 | E43: 6.30% ~ 6.50% | F43: -
B44: 12 | C44: 1,432 | D44: 67,993 | E44: 6.60% ~ 6.80% | F44: 12. 28
A46: 2006 | B46: 1 | C46: 672 | D46: 66,087 | E46: 6.60% ~ 6.80% | F46: -
B47: 2 | C47: 1,020 | D47: 63,770 | E47: 6.60% ~ 6.80% | F47: -
B48: 3 | C48: 1,014 | D48: 61,328 | E48: 6.60% ~ 6.80% | F48: -
B49: 4 | C49: 869 | D49: 63,532 | E49: 6.60% ~ 6.80% | F49: -
B50: 5 | C50: 732 | D50: 65,949 | E50: 6.60% ~ 6.85% | F50: -
B51: 6 | C51: 855 | D51: 64,696 | E51: 6.30% ~ 6.55% | F51: 6. 12
B52: 7 | C52: 1,278 | D52: 63,102 | E52: 6.30% ~ 6.55%(6.00 ~ 6.25%) | F52: -
B53: 8 | C53: 1,388 | D53: 65,080 | E53: 6.30% ~ 6.55%(6.00 ~ 6.25%) | F53: -
B54: 9 | C54: 1,872 | D54: 64,186 | E54: 6.30% ~ 6.55%(6.00 ~ 6.25%) | F54: -
B55: 10 | C55: 1,246 | D55: 64,609 | E55: 6.30% ~ 6.55%(6.00 ~ 6.25%) | F55: -
B56: 11 | C56: 1,232 | D56: 62,852 | E56: 6.15% ~ 6.40% | F56: 11. 17
B57: 12 | C57: 1,690 | D57: 63,537 | E57: 6.15% ~ 6.40%(5.85 ~ 6.10%) | F57: (12. 28)
A59: 2007 | B59: 1 | C59: 2,414 | D59: 62,407 | E59: 6.15% ~ 6.40%(5.85 ~ 6.10%) | F59: -
B60: 2 | C60: 2,782 | D60: 64,841 | E60: 6.15% ~ 6.40%(5.85 ~ 6.10%) | F60: -
B61: 3 | C61: 2,522 | D61: 65,734 | E61: 6.15% ~ 6.40%(5.95 ~ 6.20%) | F61: (3. 2)
B62: 4 | C62: 2,448 | D62: 67,420 | E62: 6.15% ~ 6.40%(5.95 ~ 6.20%) | F62: -
B63: 5 | C63: 2,501 | D63: 69,092 | E63: 6.15% ~ 6.40%(5.95 ~ 6.20%) | F63: -
B64: 6 | C64: 2,733 | D64: 70,848 | E64: 6.15% ~ 6.40%(5.95 ~ 6.20%) | F64: -
B65: 7 | C65: 3,602 | D65: 72,663 | E65: 6.50% ~ 6.75%(6.30 ~ 6.55%) | F65: 7.30 (7.30)
B66: 8 | C66: 3,229 | D66: 74,641 | E66: 6.50% ~ 6.75%(6.30 ~ 6.55%) | F66: -
B67: 9 | C67: 2,499 | D67: 76,446 | E67: 6.50% ~ 6.75%(6.30 ~ 6.55%)
B68: 10 | C68: 3,443 | D68: 78,840 | E68: 6.50% ~ 6.75%(6.30 ~ 6.55%)
B69: 11 | C69: 3,267 | D69: 80,676 | E69: 6.50% ~ 6.75%(6.30 ~ 6.55%) | F69: -
B70: 12 | C70: 4,512 | D70: 81,822 | E70: 6.50% ~ 6.75%(6.30 ~ 6.55%) | F70: -
A72: 2008 | B72: 1 | C72: 5,863 | D72: 80,946 | E72: 6.75% ~ 7.00%(6.55 ~ 6.80%) | F72: 1. 8 (1. 8)
B73: 2 | C73: 4,991 | D73: 84,008 | E73: 6.75% ~ 7.00%(6.55 ~ 6.80%) | F73: -
B74: 3 | C74: 3,929 | D74: 90,279 | E74: 6.75% ~ 7.00%(6.55 ~ 6.80%) | F74: -
B75: 4 | C75: 5,150 | D75: 88,893 | E75: 6.75% ~ 7.00%(6.55 ~ 6.80%) | F75: -
B76: 5 | C76: 4,119 | D76: 98,013 | E76: 7.00% ~ 7.25%(6.80 ~ 7.05%) | F76: 5. 1 (5. 1)
B77: 6 | C77: 3,766 | D77: 97,135 | E77: 7.00% ~ 7.25%(6.80 ~ 7.05%) | F77: -
B78: 7 | C78: 4,244 | D78: 99,625 | E78: 7.00% ~ 7.25%(6.80 ~ 7.05%) | F78: -
B79: 8 | C79: 4,342 | D79: 98,475 | E79: 7.25% ~ 7.50%(7.05 ~ 7.30%) | F79: 8.14 (8.14)
B80: 9 | C80: 2,830 | D80: 97,401 | E80: 7.25% ~ 7.50%(7.15 ~ 7.40%) | F80: (9. 11)
B81: 10 | C81: 1,880 | D81: 98,489 | E81: 7.60% ~ 7.85%(7.50 ~ 7.75%) | F81: 10.10 (10.10)
B82: 11 | C82: 870 | D82: 104,706 | E82: 7.60% ~ 7.85%(7.50 ~ 7.75%) | F82: -
B83: 12 | C83: 452 | D83: 107,311 | E83: 7.60% ~ 7.85%(7.50 ~ 7.75%) | F83: -
A85: 2009 | B85: 1 | C85: 345 | D85: 110,054 | E85: 7.10% ~ 7.35%(7.00 ~ 7.25%) | F85: 1. 7 (1. 7)
B86: 2 | C86: 947 | D86: 108,555 | E86: 6.60% ~ 6.85%(6.40 ~ 6.65%) | F86: 2. 2 (2. 2)
B87: 3 | C87: 3,017 | D87: 115,239 | E87: 6.60% ~ 6.85%(6.40 ~ 6.65%) | F87: -
B88: 4 | C88: 4,627 | D88: 111,255 | E88: 6.60% ~ 6.85%(6.40 ~ 6.65%) | F88: -
B89: 5 | C89: 4,396 | D89: 113,921 | E89: 6.10% ~ 6.35%(5.90 ~ 6.15%) | F89: 5.15 (5.15)
B90: 6 | C90: 4,871 | D90: 111,467 | E90: 6.10% ~ 6.35%(5.90 ~ 6.15%) | F90: -
B91: 7 | C91: 4,564 | D91: 112,659 | E91: 6.10% ~ 6.35%(5.90 ~ 6.15%) | F91: -
B92: 8 | C92: 4,876 | D92: 114,731 | E92: 6.10% ~ 6.35%(5.90 ~ 6.15%) | F92: -
B93: 9 | C93: 6,572 | D93: 117,535 | E93: 6.10% ~ 6.35%(5.90 ~ 6.15%) | F93: -
B94: 10 | C94: 9,463 | D94: 121,629 | E94: 6.10% ~ 6.35%(5.90 ~ 6.15%) | F94: -
B95: 11 | C95: 8,902 | D95: 126,468 | E95: 6.10% ~ 6.35%(5.90 ~ 6.15%) | F95: -
B96: 12 | C96: 6,848 | D96: 130,511 | E96: 6.10% ~ 6.35%(5.90 ~ 6.15%) | F96: -
A98: 2010 | B98: 1 | C98: 3,776 | D98: 128,779 | E98: 6.10% ~ 6.35%(5.90 ~ 6.15%) | F98: -
B99: 2 | C99: 3,992 | D99: 133,157 | E99: 6.10% ~ 6.35%(5.90 ~ 6.15%) | F99: -
B100: 3 | C100: 3,365 | D100: 135,440 | E100: 6.10% ~ 6.35%(5.90 ~ 6.15%) | F100: -
B101: 4 | C101: 2,679 | D101: 134,657 | E101: 6.10% ~ 6.35%(5.90 ~ 6.15%) | F101: -
B102: 5 | C102: 2,373 | D102: 137,922 | E102: 6.10% ~ 6.35%(5.90 ~ 6.15%) | F102: -
B103: 6 | C103: 3,702 | D103: 136,836 | E103: 5.70% ~ 5.95%(5.50 ~ 5.75%) | F103: 6. 1 (6. 1)
B104: 7 | C104: 9,838 | D104: 134,200 | E104: 5.70% ~ 5.95%(5.50 ~ 5.75%) | F104: -
B105: 8 | C105: 8,935 | D105: 140,966 | E105: 5.90% ~ 6.15%(5.70 ~ 5.95%) | F105: 8. 1 (8. 1)
B106: 9 | C106: 5,078 | D106: 148,053 | E106: 5.90% ~ 6.15%(5.70 ~ 5.95%) | F106: -
B107: 10 | C107: 4,389 | D107: 150,066 | E107: 5.90% ~ 6.15%(5.70 ~ 5.95%) | F107: -
B108: 11 | C108: 4,765 | D108: 151,792 | E108: 5.60% ~ 5.85%(5.40 ~ 5.65%) | F108: 11. 1 (11. 1)
B109: 12 | C109: 5,587 | D109: 160,104 | E109: 5.60% ~ 5.85%(5.40 ~ 5.65%) | F109: -
A111: 2011 | B111: 1 | C111: 4,491 | D111: 159,273 | E111: 5.60% ~ 5.85%(5.40 ~ 5.65%) | F111: -
B112: 2 | C112: 5,992 | D112: 159,770 | E112: 5.60% ~ 5.85%(5.40 ~ 5.65%) | F112: -
B113: 3 | C113: 7,815 | D113: 159,573 | E113: 5.60% ~ 5.85%(5.40 ~ 5.65%) | F113: -
B114: 4 | C114: 7,966 | D114: 161,435 | E114: 5.60% ~ 5.85%(5.40 ~ 5.65%) | F114: -
B115: 5 | C115: 6,577 | D115: 170,474 | E115: 5.60% ~ 5.85%(5.40% ~ 5.65%) | F115: -
B116: 6 | C116: 6,089 | D116: 170,885 | E116: 5.60% ~ 5.85%(5.40% ~ 5.65%) | F116: -
B117: 7 | C117: 6,267 | D117: 174,544 | E117: 5.20% ~ 5.45% | F117: -
B118: 8 | C118: 6,115 | D118: 177,498 | E118: 5.20% ~ 5.45% | F118: -
B119: 9 | C119: 9,669 | D119: 178,369 | E119: 5.00% ~ 5.25% | F119: 9. 1
B120: 10 | C120: 11,372 | D120: 181,912 | E120: 5.00% ~ 5.25% | F120: -
B121: 11 | C121: 10,249 | D121: 186,945 | E121: 5.00% ~ 5.25% | F121: -
B122: 12 | C122: 11,542 | D122: 194,515 | E122: 5.00% ~ 5.25% | F122: -
A124: 2012 | B124: 1 | C124: 2,703 | D124: 196,394 | E124: 5.00% ~ 5.25% | F124: -
B125: 2 | C125: 7,465 | D125: 200,105 | E125: 4.80% ~ 5.05% | F125: 2. 1
B126: 3 | C126: 9,679 | D126: 199,456 | E126: 4.80% ~ 5.05% | F126: -
B127: 4 | C127: 7,874 | D127: 204,642 | E127: 4.80% ~ 5.05% | F127: -
B128: 5 | C128: 9,587 | D128: 206,281 | E128: 4.60% ~ 4.85% | F128: 5. 1
B129: 6 | C129: 9,214 | D129: 210,001 | E129: 4.60% ~ 4.85% | F129: -
B130: 7 | C130: 8,806 | D130: 217,767 | E130: 4.60% ~ 4.85% | F130: -
B131: 8 | C131: 7,953 | D131: 221,931 | E131: 4.50% ~ 4.75% | F131: 8. 1
B132: 9 | C132: 6,615 | D132: 224,351 | E132: 4.30% ~ 4.55% | F132: 9. 1
B133: 10 | C133: 9,523 | D133: 226,326 | E133: 4.20% ~ 4.45% | F133: 10. 1
B134: 11 | C134: 13,674 | D134: 225,150 | E134: 4.10% ~ 4.35% | F134: 11. 1
B135: 12 | C135: 18,969 | D135: 220,188 | E135: 4.10% ~ 4.35% | F135: -
A137: 2013 | B137: 1 | C137: 6,953 | D137: 234,958 | E137: 4.10% ~ 4.35% | F137: -
B138: 2 | C138: 11,225 | D138: 234,307 | E138: 4.00% ~ 4.25% | F138: 2. 1
B139: 3 | C139: 10,945 | D139: 227,298 | E139: 4.00% ~ 4.25% | F139: -
B140: 4 | C140: 16,818 | D140: 243,647 | E140: 3.80% ~ 4.05% | F140: 4. 1
B141: 5 | C141: 16,660 | D141: 244,607 | E141: 3.80% ~ 4.05% | F141: -
B142: 6 | C142: 22,629 | D142: 247,257 | E142: 3.80% ~ 4.05% | F142: -
B143: 7 | C143: 10,356 | D143: 256,340 | E143: 4.00% ~ 4.25% | F143: 7.1
B144: 8 | C144: 6,478 | D144: 263,407 | E144: 4.15% ~ 4.40% | F144: 8.1
B145: 9 | C145: 4,196 | D145: 268,043 | E145: 4.30% ~ 4.55% | F145: 9.1
B146: 10 | C146: 4,834 | D146: 276,925 | E146: 4.15% ~ 4.40% | F146: 10.1
B147: 11 | C147: 4,086 | D147: 277,770 | E147: 4.15% ~ 4.40% | F147: -
B148: 12 | C148: 3,867 | D148: 273,698 | E148: 4.30% ~ 4.55% | F148: 12.1
A150: 2014 | B150: 1 | C150: 1,691 | D150: 278,295 | E150: 4.30% ~ 4.55% | F150: -
B151: 2 | C151: 1,831 | D151: 276,006 | E151: 4.30% ~ 4.55% | F151: -
B152: 3 | C152: 1,887 | D152: 272,605 | E152: 4.30% ~ 4.55% | F152: -
B153: 4 | C153: 3,486 | D153: 268,983 | E153: 4.30% ~ 4.55% | F153: -
B154: 5 | C154: 5,047 | D154: 266,309 | E154: 4.30% ~ 4.55% | F154: -
B155: 6 | C155: 7,970 | D155: 263,236 | E155: 4.05% ~ 4.30% | F155: 6.2
B156: 7 | C156: 8,108 | D156: 262,781 | E156: 3.80% ~ 4.05% | F156: 7.1
A157: 2014 | B157: 8 | C157: 8,593 | D157: 261,427 | E157: 3.55% ~ 3.80% | F157: 8.1
B158: 9 | C158: 8,083 | D158: 256,801 | E158: 3.55% ~ 3.80% | F158: -
B159: 10 | C159: 11,817 | D159: 254,134 | E159: 3.45% ~ 3.70% | F159: 10.1
B160: 11 | C160: 12,697 | D160: 254,128 | E160: 3.20% ~ 3.45% | F160: 11.3
B161: 12 | C161: 13,475 | D161: 257,061 | E161: 3.20% ~ 3.45% | F161: -
A163: 2015 | B163: 1 | C163: 7,865 | D163: 258,869 | E163: 3.20% ~ 3.45% | F163: -
B164: 2 | C164: 11,147 | D164: 257,037 | E164: 3.00% ~ 3.25% | F164: 2.2
B165: 3 | C165: 11,381 | D165: 257,926 | E165: 3.00% ~ 3.25% | F165: -
B166: 4 | C166: 19,041 | D166: 249,827 | E166: 2.85% ~ 3.10% | F166: 4.1
B167: 5 | C167: 19,063 | D167: 236,910 | E167: 3.05% ~ 3.30% | F167: 5.2
B168: 6 | C168: 23,600 | D168: 224,452 | E168: 3.15% ~ 3.40% | F168: 6.1
B169: 7 | C169: 13,122 | D169: 226,426 | E169: 3.15% ~ 3.40% | F169: -
B170: 8 | C170: 8,029 | D170: 225,651 | E170: 3.15% ~ 3.40% | F170: -
B171: 9 | C171: 5,695 | D171: 236,491 | E171: 3.15% ~ 3.40% | F171: -
B172: 10 | C172: 6,036 | D172: 242,163 | E172: 3.00% ~ 3.25% | F172: 11.2
B173: 11 | C173: 9,453 | D173: 249,807 | E173: 3.00% ~ 3.25% | F173: -
B174: 12 | C174: 13,064 | D174: 251,808 | E174: 3.00% ~ 3.25% | F174: -
A176: 2016 | B176: 1 | C176: 8,239 | D176: 265,334 | E176: 3.00% ~ 3.25% | F176: -
B177: 2 | C177: 6,693 | D177: 284,347 | E177: 2.90% ~ 3.15% | F177: 2.1
B178: 3 | C178: 8,384 | D178: 301,102 | E178: 2.70% ~ 2.95% | F178: 3.2
B179: 4 | C179: 9,554 | D179: 304,494 | E179: 2.70% ~ 2.95% | F179: -
B180: 5 | C180: 8,230 | D180: 303,426 | E180: 2.70% ~ 2.95% | F180: -
B181: 6 | C181: 12,802 | D181: 297,721 | E181: 2.50% ~ 2.75% | F181: 6.16
B182: 7 | C182: 18,873 | D182: 295,067 | E182: 2.50% ~ 2.75% | F182: -
B183: 8 | C183: 21,415 | D183: 295,009 | E183: 2.50% ~ 2.75% | F183: -
A184: 누계 Total | C184: =SUM(C8:C20) -> 936,950 | D184: =+D183 -> 295,009 | E184: - | F184: -
A185: 1) 판매금액 : 보금자리론(내집마련 디딤돌 대출 포함) 판매기관에서 판매한 실적을 집계한 수치
A186: 2) 누적잔액 : MBS 발행 기초자산과 매입보유 자산의 잔액 합계
A187: 3) 고정금리로 공사가 결정하는 동일한 대출금리 적용
A188: - u-보금자리론 기본형 기준이며, 우대형(2014년 폐지)의 경우 채무자와 배우자의 합산 소득수준에 따라 0.5~1.0%p 차감된 금리가,
A189: 디딤돌 대출의 경우 정부(국토교통부) 고시 금리가 적용
A190: - 적용금리는 '04.3월~'10.5월은 t-보금자리론, '10.6월부터는 u-보금자리론 금리
A191: - ( )는 e-보금자리론 금리
A192: ※ 보금자리론 판매기관(전월말 기준 29개 기관)
A193: - SC, 국민, 기업, 농협, 수협, 신한, KEB하나, 우리, 경남, 광주, 대구, 부산, 제주, 전북
A194: - 국제, 대명, 더케이, 동부, 드림, 비앤케이(구 비에스), 아주, 오에스비, 진주, 청주, 키움, 평택, 한국투자
A195: - 삼성생명, 롯데손해보험

Sheet 2. 적격대출 판매실적
A1: 2. 적격대출 판매실적 Conforming Loan Origination
A3: 단위 : 억원 | E3: Hundred million won
A4: 연월말 | C4: 판매금액1) | D4: 누적잔액2) | E4: 평균 대출금리3)
A6: End of | C6: Origination | D6: Outstanding | E6: Average Interest Rate
A8: 2012 | C8: 141,912 | D8: =+D23 -> 93,780 | E8: =+SUMPRODUCT(E14:E23,C14:C23)/C8 -> 4.37%
A9: 2013 | C9: 48,624 | D9: =+D36 -> 152,127 | E9: =+SUMPRODUCT(E25:E36,C25:C36)/C9 -> 4.04%
A10: 2014 | C10: 98,719 | D10: =+D49 -> 166,993 | E10: 3.46%
A11: 2015 | C11: 426,520 | D11: 512,644 | E11: 2.80%
A12: 2016 | C12: 124,755 | D12: =D72 -> 539,265 | E12: 2.92%
A14: 2012 | B14: 3 | C14: 1,336 | D14: 0 | E14: 5.00%
A15: 2012 | B15: 4 | C15: 3,204 | D15: 0 | E15: 4.97%
A16: 2012 | B16: 5 | C16: 5,046 | D16: 3,609 | E16: 4.77%
A17: 2012 | B17: 6 | C17: 11,390 | D17: 7,199 | E17: 4.62%
A18: 2012 | B18: 7 | C18: 12,563 | D18: 12,817 | E18: 4.49%
A19: 2012 | B19: 8 | C19: 21,283 | D19: 24,760 | E19: 4.38%
A20: 2012 | B20: 9 | C20: 21,403 | D20: 39,541 | E20: 4.33%
A21: 2012 | B21: 10 | C21: 22,969 | D21: 57,123 | E21: 4.27%
B22: 11 | C22: 23,159 | D22: 90,425 | E22: 4.20%
A23: 2012 | B23: 12 | C23: 19,560 | D23: 93,780 | E23: 4.22%
B25: 1 | C25: 8,096 | D25: 100,838 | E25: 4.18%
A26: 2013 | B26: 2 | C26: 7,497 | D26: 122,546 | E26: 4.10%
B27: 3 | C27: 9,590 | D27: 134,569 | E27: 3.98%
B28: 4 | C28: 10,727 | D28: 143,163 | E28: 3.92%
B29: 5 | C29: 7,475 | D29: 145,938 | E29: 3.91%
B30: 6 | C30: 2,543 | D30: 143,073 | E30: 4.12%
B31: 7 | C31: 417 | D31: 152,117 | E31: 4.47%
B32: 8 | C32: 222 | D32: 156,102 | E32: 4.59%
B33: 9 | C33: 176 | D33: 159,968 | E33: 4.49%
A34: 2013 | B34: 10 | C34: 694 | D34: 157,462 | E34: 4.38%
B35: 11 | C35: 689 | D35: 154,890 | E35: 4.47%
B36: 12 | C36: 498 | D36: 152,127 | E36: 4.56%
A38: 2014 | B38: 1 | C38: 277 | D38: 152,574 | E38: 4.53%
B39: 2 | C39: 468 | D39: 149,595 | E39: 4.43%
B40: 3 | C40: 556 | D40: 148,605 | E40: 4.36%
B41: 4 | C41: 657 | D41: 145,767 | E41: 4.34%
B42: 5 | C42: 569 | D42: 143,915 | E42: 4.28%
B43: 6 | C43: 545 | D43: 142,080 | E43: 4.16%
B44: 7 | C44: 4,211 | D44: 140,389 | E44: 3.65%
B45: 8 | C45: 38,856 | D45: 137,138 | E45: 3.37%
B46: 9 | C46: 14,469 | D46: 135,943 | E46: 3.57%
B47: 10 | C47: 9,757 | D47: 145,823 | E47: 3.57%
B48: 11 | C48: 12,739 | D48: 156,166 | E48: 3.41%
B49: 12 | C49: 15,614 | D49: 166,993 | E49: 3.38%
A51: 2015 | B51: 1 | C51: 12,899 | D51: 174,391 | E51: 3.40%
B52: 2 | C52: 18,012 | D52: 178,921 | E52: 3.26%
B53: 3 | C53: 96,319 | D53: 184,114 | E53: 2.77%
B54: 4 | C54: 270,246 | D54: 188,975 | E54: 2.70%
B55: 5 | C55: 12,331 | D55: 258,489 | E55: 3.08%
B56: 6 | C56: 2,972 | D56: 457,111 | E56: 3.47%
B57: 7 | C57: 1,923 | D57: 516,872 | E57: 3.56%
B58: 8 | C58: 1,790 | D58: 515,840 | E58: 3.45%
B59: 9 | C59: 2,057 | D59: 512,644 | E59: 3.34%
B60: 10 | C60: 2,542 | D60: 509,694 | E60: 3.27%
B61: 11 | C61: 2,700 | D61: 513,510 | E61: 3.37%
B62: 12 | C62: 2,730 | D62: 507,534 | E62: 3.41%
A64: 2016 | B64: 1 | C64: 5,549 | D64: 505,679 | E64: 3.26%
B65: 2r | C65: 7,370 | D65: 503,560 | E65: 3.06%
B66: 3 | C66: 14,886 | D66: 500,582 | E66: 2.92%
B67: 4 | C67: 19,341 | D67: 502,525 | E67: 2.86%
B68: 5 | C68: 20,622 | D68: 504,577 | E68: 2.85%
B69: 6r | C69: 29,736 | D69: 513,571 | E69: 2.75%
B70: 7r | C70: 27,275 | D70: 526,658 | E70: 2.69%
B71: 8r | C71: 24,639 | D71: 539,265 | E71: 2.72%
A72: 누계 Total | C72: 865,192 | D72: =D71 -> 539,265
A74: 1) 판매금액 : 적격대출 판매기관에서 판매한 실적을 집계한 수치(안심전환 적격대출 포함)
A75: 2) 누적잔액 : 유동화증권(MBS, MBB) 발행 기초자산과 매입보유 자산의 잔액 합계, MBS-SWAP은 제외
A76: 3) 적격대출의 금액가중 평균 대출금리
A77: 2011.6.30일자로 폐지됨
A79: ※ 적격대출 판매기관(전월말 기준 15개 기관)
A80: - 경남은행, 광주은행, 국민은행, 기업은행, 농협은행, 대구은행, 부산은행, 수협은행, 신한은행, KEB 하나은행,
A81: 우리은행, 전북은행, 제주은행, 한국씨티은행, 한국스탠다드차타드은행

Sheet 3. MBS 발행실적
A1: 3. MBS 발행실적 Issuance of MBS(Mortgage-Backed Securities)
A3: 단위 : 억원 | F3: Hundred million won
A4: MBS1) | B4: 발행일 | C4: 트랜치 | D4: 발행금액 | E4: 연·월말 MBS 잔액 | F4: 가중평균 발행금리(%)
B6: Issue date | C6: Tranche | D6: Issue amount | E6: Outstanding | F6: Coupon rate
A8: MBS 2000-1 | B8: 2000. 04. 07 | C8: 11 | D8: 3,976 | E8: 0 | F8: 9.66
A9: MBS 2000-2 | B9: 2000. 09. 01 | C9: 13 | D9: 5,000 | E9: 0 | F9: 8.68
A10: MBS 2000-3 | B10: 2000. 12. 08 | C10: 13 | D10: 3,813 | E10: 0 | F10: 8.33
A11: MBS 2001-1 | B11: 2001. 05. 18 | C11: 13 | D11: 2,377 | E11: 0 | F11: 7.78
A12: MBS 2001-2 | B12: 2001. 09. 20 | C12: 8 | D12: 5,050 | E12: 0 | F12: 6.62
A13: MBS 2002-1 | B13: 2002. 01. 23 | C13: 4 | D13: 180 | E13: 0 | F13: 7.10
A14: MBS 2002-2 | B14: 2002. 02. 21 | C14: 9 | D14: 5,102 | E14: 0 | F14: 7.36
A15: MBS 2003-1 | B15: 2003. 04. 02 | C15: 9 | D15: 3,100 | E15: 0 | F15: 5.51
A16: MBS 2003-2 | B16: 2003. 08. 04 | C16: 7 | D16: 166 | E16: 0 | F16: 5.66
A17: KoMoCo | B17: 2000~2003 | C17: - | D17: =SUM(D8:D16) -> 28,764 | E17: =SUM(E8:E16) -> 0 | F17: -
A18: MBS 2004-1 | B18: 2004. 06. 15 | C18: 10 | D18: 5,520 | E18: 0 | F18: 5.00
A19: MBS 2004-2 | B19: 2004. 07. 28 | C19: 7 | D19: 4,070 | E19: 0 | F19: 5.00
A20: MBS 2004-3 | B20: 2004. 08. 18 | C20: 7 | D20: 5,700 | E20: 0 | F20: 4.50
A21: MBS 2004-4 | B21: 2004. 09. 23 | C21: 7 | D21: 4,020 | E21: 0 | F21: 4.26
A22: MBS 2004-5 | B22: 2004. 10. 28 | C22: 7 | D22: 3,600 | E22: 0 | F22: 4.20
A23: MBS 2004-6 | B23: 2004. 11. 30 | C23: 7 | D23: 3,150 | E23: 0 | F23: 4.09
A24: MBS 2004-7 | B24: 2004. 12. 28 | C24: 7 | D24: 4,100 | E24: 0 | F24: 4.06
A25: MBS 2004-1~7 | B25: 2004 | C25: - | D25: =SUM(D18:D24) -> 30,161 | E25: =SUM(E18:E24) -> 1 | F25: -
A26: MBS 2005-1 | B26: 2005. 02. 24 | C26: 7 | D26: 4,080 | E26: 0 | F26: 5.18
A27: MBS 2005-2 | B27: 2005. 03. 23 | C27: 7 | D27: 4,050 | E27: 0 | F27: 4.84
A28: MBS 2005-3 | B28: 2005. 04. 28 | C28: 7 | D28: 4,670 | E28: 0 | F28: 4.71
A29: MBS 2005-4 | B29: 2005. 05. 25 | C29: 9 | D29: 4,530 | E29: 0 | F29: 4.41
A30: MBS 2005-5 | B30: 2005. 06. 27 | C30: 9 | D30: 4,590 | E30: 0 | F30: 4.72
A31: MBS 2005-6 | B31: 2005. 07. 27 | C31: 9 | D31: 4,540 | E31: 0 | F31: 4.89
A32: MBS 2005-7 | B32: 2005. 08. 30 | C32: 9 | D32: 4,840 | E32: 0 | F32: 5.16
A33: MBS 2005-8 | B33: 2005. 09. 29 | C33: 9 | D33: 4,000 | E33: 0 | F33: 5.56
A34: MBS 2005-9 | B34: 2005. 11. 10 | C34: 9 | D34: 3,310 | E34: 0 | F34: 5.87
A35: MBS 2005-1~9 | B35: 2005 | C35: - | D35: =SUM(D26:D34) -> 38,611 | E35: =SUM(E26:E34) -> 1 | F35: -
A36: MBS 2006-1 | B36: 2006. 01. 26 | C36: 8 | D36: 3,800 | E36: 0 | F36: 5.72
A37: MBS 2006-2 | B37: 2006. 03. 30 | C37: 9 | D37: 3,415 | E37: 0 | F37: 5.62
A38: MBS 2006-3 | B38: 2006. 07. 14 | C38: 9 | D38: 3,125 | E38: 0 | F38: 5.40
A39: MBS 2006-4 | B39: 2006. 09. 26 | C39: 9 | D39: 3,296 | E39: 4 | F39: 5.02
A40: MBS 2006-5 | B40: 2006. 12. 15 | C40: 9 | D40: 3,895 | E40: 3 | F40: 5.09
A41: MBS 2006-1~5 | B41: 2006 | C41: - | D41: =SUM(D36:D40) -> 17,531 | E41: =SUM(E36:E40) -> 7 | F41: -
A42: MBS 2007-1 | B42: 2007. 02. 21 | C42: 9 | D42: 3,489 | E42: 3 | F42: 5.17
A43: MBS 2007-2 | B43: 2007. 04. 24 | C43: 9 | D43: 3,602 | E43: 4 | F43: 5.27
A44: MBS 2007-3 | B44: 2007. 07. 11 | C44: 9 | D44: 3,578 | E44: 4 | F44: 5.70
A45: MBS 2007-4 | B45: 2007. 08. 23 | C45: 9 | D45: 3,921 | E45: 4 | F45: 5.52
A46: MBS 2007-5 | B46: 2007. 09. 20 | C46: 9 | D46: 3,374 | E46: 4 | F46: 5.73
A47: MBS 2007-6 | B47: 2007. 10. 25 | C47: 9 | D47: 3,920 | E47: 4 | F47: 5.86
A48: MBS 2007-1~6 | B48: 2007 | C48: - | D48: =SUM(D42:D47) -> 21,884 | E48: =SUM(E42:E47) -> 23 | F48: -
A49: MBS 2008-1 | B49: 2008. 02. 26 | C49: 9 | D49: 4,273 | E49: 5 | F49: 5.66
A50: MBS 2008-2 | B50: 2008. 03. 07 | C50: 9 | D50: 3,471 | E50: 10 | F50: 5.46
A51: MBS 2008-3 | B51: 2008. 03. 27 | C51: 9 | D51: 3,925 | E51: 4 | F51: 5.88
A52: MBS 2008-4 | B52: 2008. 04. 15 | C52: 9 | D52: 3,689 | E52: 7 | F52: 5.81
A53: MBS 2008-5 | B53: 2008. 05. 06 | C53: 9 | D53: 4,233 | E53: 41 | F53: 5.75
A54: MBS 2008-6 | B54: 2008. 05. 27 | C54: 9 | D54: 3,864 | E54: 0 | F54: 6.26
A55: MBS 2008-7 | B55: 2008. 06. 13 | C55: 9 | D55: 3,025 | E55: 0 | F55: 6.64
A56: MBS 2008-1~7 | B56: 2008 | C56: - | D56: =SUM(D49:D55) -> 26,480 | E56: =SUM(E49:E55) -> 67 | F56: -
A57: MBS 2009-1 | B57: 2009. 03. 20 | C57: 9 | D57: 4,936 | E57: 35 | F57: 5.71
A58: MBS 2009-22) | B58: 2009. 03. 30 | C58: 1 | D58: 3,671 | E58: 435 | F58: -
A59: MBS 2009-32) | B59: 2009. 04. 22 | C59: 1 | D59: 19,681 | E59: 1,673 | F59: -
A60: MBS 2009-4 | B60: 2009. 04. 29 | C60: 9 | D60: 3,133 | E60: 67 | F60: 5.22
A61: MBS 2009-52) | B61: 2009. 06. 30 | C61: 1 | D61: 3,292 | E61: 442 | F61: -
A62: MBS 2009-6 | B62: 2009. 07. 07 | C62: 9 | D62: 3,617 | E62: 84 | F62: 5.51
A63: MBS 2009-8 | B63: 2009. 09. 15 | C63: 9 | D63: 5,543 | E63: 2,520 | F63: 5.69
A64: MBS 2009-72) | B64: 2009. 09. 18 | C64: 1 | D64: 18,088 | E64: 128 | F64: -
A65: MBS 2009-9 | B65: 2009. 09. 29 | C65: 4 | D65: 2,103 | E65: 0 | F65: -
A66: MBS 2009-10 | B66: 2009. 10. 16 | C66: 9 | D66: 4,961 | E66: 34 | F66: 5.59
A67: MBS 2009-11 | B67: 2009. 11. 10 | C67: 9 | D67: 5,459 | E67: 111 | F67: 5.64
A68: MBS 2009-12 | B68: 2009. 11. 20 | C68: 9 | D68: 3,146 | E68: 5 | F68: 5.53
A69: MBS 2009-14 | B69: 2009. 12. 18 | C69: 9 | D69: 3,604 | E69: 425 | F69: 5.32
A70: MBS 2009-132) | B70: 2009. 12. 23 | C70: 1 | D70: 4,633 | E70: 131 | F70: -
A71: MBS 2009-1~14 | B71: 2009 | C71: - | D71: =SUM(D57:D70) -> 85,867 | E71: =SUM(E57:E70) -> 6,090 | F71: -
A72: MBS 2010-1 | B72: 2010. 01. 28 | C72: 9 | D72: 4,307 | E72: 45 | F72: 5.39
A73: MBS 2010-2 | B73: 2010. 02. 25 | C73: 9 | D73: 4,289 | E73: 27 | F73: 5.29
A74: MBS 2010-3 | B74: 2010. 03. 30 | C74: 9 | D74: 4,506 | E74: 77 | F74: 4.94
A75: MBS 2010-4 | B75: 2010. 04. 23 | C75: 9 | D75: 4,137 | E75: 56 | F75: 4.97
A76: MBS 2010-5 | B76: 2010. 06. 17 | C76: 9 | D76: 3,273 | E76: 49 | F76: 5.01
A77: MBS 2010-62) | B77: 2010. 06. 24 | C77: 1 | D77: 6,422 | E77: 624 | F77: -
A78: MBS 2010-7 | B78: 2010. 07. 08 | C78: 9 | D78: 3,964 | E78: 70 | F78: 4.98
A79: MBS 2010-9 | B79: 2010. 07. 30 | C79: 9 | D79: 3,672 | E79: 881 | F79: 4.95
A80: MBS 2010-82) | B80: 2010. 08. 26 | C80: 1 | D80: 10,019 | E80: 100 | F80: -
A81: MBS 2010-10 | B81: 2010. 08. 26 | C81: 9 | D81: 3,790 | E81: 99 | F81: 4.62
A82: MBS 2010-11 | B82: 2010. 09. 07 | C82: 3 | D82: 1,930 | E82: 0 | F82: -
A83: MBS 2010-12 | B83: 2010. 09. 29 | C83: 9 | D83: 4,147 | E83: 130 | F83: 4.36
A84: MBS 2010-13 | B84: 2010. 10. 28 | C84: 9 | D84: 3,230 | E84: 124 | F84: 4.29
A85: MBS 2010-14 | B85: 2010. 11. 19 | C85: 4 | D85: 2,193 | E85: 0 | F85: -
A86: MBS 2010-15 | B86: 2010. 11. 29 | C86: 9 | D86: 4,980 | E86: 135 | F86: 4.45
A87: MBS 2010-17 | B87: 2010. 12. 07 | C87: 9 | D87: 5,630 | E87: 115 | F87: 4.36
A88: MBS 2010-16 | B88: 2010. 12. 23 | C88: 9 | D88: 3,084 | E88: 288 | F88: 4.49
A89: MBS 2010-182) | B89: 2010. 12. 23 | C89: 1 | D89: 4,400 | E89: 468 | F89: -
A90: MBS 2010-1~18 | B90: 2010 | C90: - | D90: =SUM(D72:D89) -> 77,973 | E90: =SUM(E72:E89) -> 3,289 | F90: -
A91: MBS 2011-1 | B91: 2011. 01. 28 | C91: 9 | D91: 4,774 | E91: 236 | F91: 4.76
A92: MBS 2011-2 | B92: 2011. 02. 17 | C92: 9 | D92: 3,821 | E92: 161 | F92: 4.78
A93: MBS 2011-3 | B93: 2011. 03. 29 | C93: 9 | D93: 2,985 | E93: 100 | F93: 4.48
A94: MBS 2011-4 | B94: 2011. 04. 13 | C94: 9 | D94: 5,285 | E94: 263 | F94: 4.50
A95: MBS 2011-5 | B95: 2011. 04. 26 | C95: 4 | D95: 2,203 | E95: 0 | F95: -
A96: MBS 2011-62) | B96: 2011. 04. 28 | C96: 1 | D96: 4,321 | E96: 398 | F96: -
A97: MBS 2011-7 | B97: 2011. 05. 06 | C97: 9 | D97: 5,843 | E97: 319 | F97: 4.47
A98: MBS 2011-8 | B98: 2011. 05. 30 | C98: 9 | D98: 3,844 | E98: 274 | F98: 4.26
A99: MBS 2011-9 | B99: 2011. 06. 24 | C99: 9 | D99: 5,102 | E99: 435 | F99: 4.28
A100: MBS 2011-10 | B100: 2011. 07. 19 | C100: 9 | D100: 5,298 | E100: 444 | F100: 4.25
A101: MBS 2011-11 | B101: 2011. 07. 28 | C101: 9 | D101: 2,173 | E101: 175 | F101: 4.32
A102: MBS 2011-12 | B102: 2011. 08. 30 | C102: 9 | D102: 3,847 | E102: 403 | F102: 4.08
A103: MBS 2011-13 | B103: 2011. 09. 08 | C103: 4 | D103: 4,013 | E103: 0 | F103: 3.90
A104: MBS 2011-14 | B104: 2011. 09. 29 | C104: 9 | D104: 3,111 | E104: 307 | F104: 4.08
A105: MBS 2011-16 | B105: 2011. 10. 25 | C105: 9 | D105: 3,861 | E105: 646 | F105: 4.14
A106: MBS 2011-152) | B106: 2011. 10. 28 | C106: 1 | D106: 4,534 | E106: 379 | F106: -
A107: MBS 2011-17 | B107: 2011. 11. 14 | C107: 2 | D107: 1,096 | E107: 0 | F107: CD91일+0.09%
A108: MBS 2011-18 | B108: 2011. 11. 24 | C108: 9 | D108: 5,859 | E108: 579 | F108: 4.03
A109: MBS 2011-19 | B109: 2011. 11. 24 | C109: 9 | D109: 2,203 | E109: 211 | F109: 4.05
A110: MBS 2011-21 | B110: 2011. 12. 23 | C110: 9 | D110: 7,338 | E110: 535 | F110: 4.05
A111: MBS 2011-202) | B111: 2011. 12. 29 | C111: 1 | D111: 3,713 | E111: 842 | F111: -
A112: MBS 2011-1~21 | B112: 2011 | C112: - | D112: =SUM(D91:D111) -> 85,224 | E112: =SUM(E91:E111) -> 6,708 | F112: -
A113: MBS 2012-1 | B113: 2012. 02. 02 | C113: 9 | D113: 5,738 | E113: 635 | F113: 3.96
A114: MBS 2012-2 | B114: 2012. 02. 23 | C114: 9 | D114: 5,943 | E114: 715 | F114: 3.99
A115: MBS 2012-3 | B115: 2012. 03. 13 | C115: 9 | D115: 3,451 | E115: 450 | F115: 3.98
A116: MBS 2012-42) | B116: 2012. 03. 27 | C116: 1 | D116: 3,536 | E116: 540 | F116: -
A117: MBS 2012-5 | B117: 2012. 04. 13 | C117: 9 | D117: 3,245 | E117: 409 | F117: 3.97
A118: MBS 2012-6 | B118: 2012. 04. 23 | C118: 9 | D118: 6,777 | E118: 999 | F118: 3.90
A119: MBS 2012-7 | B119: 2012. 05. 15 | C119: 9 | D119: 4,743 | E119: 734 | F119: 3.79
A120: MBS 2012-8 | B120: 2012. 05. 22 | C120: 9 | D120: 2,284 | E120: 342 | F120: 3.78
A121: MBS 2012-93) | B121: 2012. 05. 29 | C121: 9 | D121: 3,684 | E121: 279 | F121: 3.78
A122: MBS 2012-10 | B122: 2012. 06. 12 | C122: 9 | D122: 4,280 | E122: 808 | F122: 3.68
A123: MBS 2012-14 | B123: 2012. 06. 21 | C123: 9 | D123: 3,850 | E123: 638 | F123: 3.75
A124: MBS 2012-112) | B124: 2012. 06. 22 | C124: 1 | D124: 3,563 | E124: 137 | F124: -
A125: MBS 2012-122) | B125: 2012. 06. 22 | C125: 1 | D125: 1,521 | E125: 330 | F125: -
A126: MBS 2012-133) | B126: 2012 .06. 28 | C126: 9 | D126: 3,671 | E126: 651 | F126: 3.78
A127: MBS 2012-15 | B127: 2012. 07. 05 | C127: 9 | D127: 3,041 | E127: 488 | F127: 3.83
A128: MBS 2012-17 | B128: 2012. 07. 12 | C128: 9 | D128: 5,238 | E128: 487 | F128: 3.76
A129: MBS 2012-163) | B129: 2012. 07. 19 | C129: 9 | D129: 5,744 | E129: 968 | F129: 3.50
A130: MBS 2012-18 | B130: 2012. 07. 26 | C130: 9 | D130: 3,127 | E130: 575 | F130: 3.28
A131: MBS 2012-193) | B131: 2012. 08. 02 | C131: 9 | D131: 5,554 | E131: 441 | F131: 3.27
A132: MBS 2012-20 | B132: 2012. 08. 09 | C132: 9 | D132: 8,050 | E132: 1,507 | F132: 3.17
A133: MBS 2012-213) | B133: 2012. 08 .17 | C133: 9 | D133: 6,802 | E133: 572 | F133: 3.23
A134: MBS 2012-23 | B134: 2012. 08. 30 | C134: 9 | D134: 2,862 | E134: 744 | F134: 3.18
A135: MBS 2012-223) | B135: 2012. 09. 06 | C135: 9 | D135: 6,423 | E135: 612 | F135: 3.12
A136: MBS 2012-25 | B136: 2012. 09. 13 | C136: 9 | D136: 3,338 | E136: 1,219 | F136: 3.14
A137: MBS 2012-243) | B137: 2012. 09. 20 | C137: 9 | D137: 8,843 | E137: 845 | F137: 3.22
A138: MBS 2012-262) | B138: 2012. 09. 25 | C138: 1 | D138: 1,758 | E138: 321 | F138: -
A139: MBS 2012-272) | B139: 2012. 09. 25 | C139: 1 | D139: 480 | E139: 59 | F139: -
A140: MBS 2012-28 | B140: 2012. 09. 27 | C140: 9 | D140: 3,951 | E140: 977 | F140: 3.16
A141: MBS 2012-293) | B141: 2012. 10. 11 | C141: 9 | D141: 10,188 | E141: 1,399 | F141: 3.11
A142: MBS 2012-303) | B142: 2012. 10. 18 | C142: 9 | D142: 8,220 | E142: 1,117 | F142: 3.11
A143: MBS 2012-31 | B143: 2012. 10. 25 | C143: 9 | D143: 7,848 | E143: 1,795 | F143: 3.16
A144: MBS 2012-323) | B144: 2012. 11. 01 | C144: 9 | D144: 7,020 | E144: 917 | F144: 3.12
A145: MBS 2012-333) | B145: 2012. 11. 08 | C145: 9 | D145: 8,337 | E145: 1,263 | F145: 3.11
A146: MBS 2012-34 | B146: 2012. 11. 15 | C146: 9 | D146: 5,906 | E146: 1,217 | F146: 3.08
A147: MBS 2012-353) | B147: 2012. 11. 22 | C147: 9 | D147: 9,446 | E147: 1,375 | F147: 3.11
A148: MBS 2012-362) | B148: 2012. 11. 26 | C148: 1 | D148: 2,323 | E148: 363 | F148: -
A149: MBS 2012-403) | B149: 2012. 11. 27 | C149: 9 | D149: 4,218 | E149: 731 | F149: 3.16
A150: MBS 2012-372) | B150: 2012. 11. 28 | C150: 1 | D150: 4,020 | E150: 234 | F150: -
A151: MBS 2012-382) | B151: 2012. 11. 28 | C151: 1 | D151: 1,104 | E151: 926 | F151: -
A152: MBS 2012-393) | B152: 2012. 11. 29 | C152: 9 | D152: 5,728 | E152: 611 | F152: 3.20
A153: MBS 2012-413) | B153: 2012. 12. 13 | C153: 9 | D153: 4,458 | E153: 840 | F153: 3.24
A154: MBS 2012-1~41 | B154: 2012 | C154: - | D154: =SUM(D113:D153) -> 200,313 | E154: =SUM(E113:E153) -> 30,271 | F154: -
A155: MBS 2013-01 | B155: 2013. 01. 10 | C155: 9 | D155: 7,606 | E155: 1,853 | F155: 3.15
A156: MBS 2013-02 | B156: 2013. 01. 17 | C156: 9 | D156: 7,658 | E156: 1,840 | F156: 3.08
A157: MBS 2013-033) | B157: 2013. 01. 24 | C157: 9 | D157: 7,995 | E157: 1,162 | F157: 3.09
A158: MBS 2013-04 | B158: 2013. 01. 31 | C158: 9 | D158: 9,593 | E158: 2,455 | F158: 3.08
A159: MBS 2013-053) | B159: 2013. 02. 07 | C159: 9 | D159: 10,338 | E159: 1,762 | F159: 3.16
A160: MBS 2013-06 | B160: 2013. 02. 15 | C160: 9 | D160: 6,248 | E160: 1,380 | F160: 3.12
A161: MBS 2013-073) | B161: 2013. 02. 21 | C161: 9 | D161: 6,934 | E161: 977 | F161: 3.12
A162: MBS 2013-083) | B162: 2013. 02. 28 | C162: 9 | D162: 6,030 | E162: 1,193 | F162: 3.07
A163: MBS 2013-093) | B163: 2013. 03. 14 | C163: 9 | D163: 6,472 | E163: 1,271 | F163: 3.03
A164: MBS 2013-102) | B164: 2013. 03. 20 | C164: 1 | D164: 4,068 | E164: 878 | F164: -
A165: MBS 2013-112) | B165: 2013. 03. 20 | C165: 1 | D165: 399 | E165: 96 | F165: -
A166: MBS 2013-122) | B166: 2013. 03. 22 | C166: 1 | D166: 490 | E166: 124 | F166: -
A167: MBS 2013-14 | B167: 2013. 04. 04 | C167: 9 | D167: 8,359 | E167: 430 | F167: 2.88
A168: MBS 2013-132) | B168: 2013. 04. 05 | C168: 1 | D168: 1,624 | E168: 2,175 | F168: -
A169: MBS 2013-153) | B169: 2013. 04. 11 | C169: 9 | D169: 10,757 | E169: 2,290 | F169: 2.89
A170: MBS 2013-16 | B170: 2013. 04. 18 | C170: 9 | D170: 8,750 | E170: 2,237 | F170: 3.01
A171: MBS 2013-17 | B171: 2013. 04. 25 | C171: 9 | D171: 6,222 | E171: 1,738 | F171: 2.97
A172: MBS 2013-18 | B172: 2013. 05. 09 | C172: 9 | D172: 4,430 | E172: 1,210 | F172: 2.92
A173: MBS 2013-193) | B173: 2013. 05. 16 | C173: 9 | D173: 5,107 | E173: 1,142 | F173: 2.97
A174: MBS 2013-20 | B174: 2013. 05. 30 | C174: 9 | D174: 4,279 | E174: 1,191 | F174: 3.00
A175: MBS 2013-21 | B175: 2013. 06. 13 | C175: 9 | D175: 7,281 | E175: 2,741 | F175: 3.21
A176: MBS 2013-22 | B176: 2013. 06. 20 | C176: 9 | D176: 4,250 | E176: 1,284 | F176: 3.24
A177: MBS 2013-242) | B177: 2013. 07. 04 | C177: 1 | D177: 699 | E177: 1,699 | F177: -
A178: MBS 2013-25 | B178: 2013. 07. 11 | C178: 9 | D178: 5,181 | E178: 201 | F178: 3.59
A179: MBS 2013-263) | B179: 2013. 07. 18 | C179: 9 | D179: 4,841 | E179: 1,839 | F179: 3.48
A180: MBS 2013-233) | B180: 2013. 07. 23 | C180: 9 | D180: 6,311 | E180: 1,440 | F180: 3.51
A181: MBS 2013-27 | B181: 2013. 07. 29 | C181: 9 | D181: 11,238 | E181: 3,788 | F181: 3.52
A182: MBS 2013-28 | B182: 2013. 08. 08 | C182: 9 | D182: 7,503 | E182: 2,645 | F182: 3.51
A183: MBS 2013-293) | B183: 2013. 08. 16 | C183: 9 | D183: 6,044 | E183: 1,518 | F183: 3.52
A184: MBS 2013-30 | B184: 2013. 08. 22 | C184: 9 | D184: 5,390 | E184: 1,634 | F184: 3.59
A185: MBS 2013-31 | B185: 2013. 09. 12 | C185: 9 | D185: 9,253 | E185: 4,370 | F185: 3.57
A186: MBS 2013-332) | B186: 2013. 09. 25 | C186: 9 | D186: 499 | E186: 2,244 | F186: -
A187: MBS 2013-323) | B187: 2013. 09. 27 | C187: 1 | D187: 5,909 | E187: 78 | F187: 3.41
A188: MBS 2013-34 | B188: 2013. 10. 10 | C188: 9 | D188: 3,482 | E188: 1,710 | F188: 3.42
A189: MBS 2013-35 | B189: 2013. 10. 17 | C189: 9 | D189: 8,614 | E189: 3,916 | F189: 3.52
A190: MBS 2013-36 | B190: 2013. 11. 14 | C190: 9 | D190: 6,263 | E190: 2,805 | F190: 3.55
A191: MBS 2013-382) | B191: 2013. 11. 26 | C191: 1 | D191: 808 | E191: 303 | F191: -
A192: MBS 2013-40 | B192: 2013. 11. 28 | C192: 9 | D192: 3,054 | E192: 895 | F192: 3.62
A193: MBS 2013-1~40 | B193: 2013 | C193: - | D193: =SUM(D155:D192) -> 219,979 | E193: =SUM(E155:E192) -> 62,515 | F193: -
A194: MBS 2014-1 | B194: 2014. 01. 09 | C194: 9 | D194: 4,239 | E194: 1,983 | F194: 3.60
A195: MBS 2014-23) | B195: 2014. 01. 16 | C195: 9 | D195: 2,706 | E195: 963 | F195: 3.63
A196: MBS 2014-3 | B196: 2014. 01. 23 | C196: 9 | D196: 4,773 | E196: 2,120 | F196: 3.55
A197: MBS 2014-42) | B197: 2014. 01. 24 | C197: 1 | D197: 1,350 | E197: 266 | F197: -
A198: MBS 2014-5 | B198: 2014. 02. 13 | C198: 9 | D198: 3,244 | E198: 1,404 | F198: 3.46
A199: MBS 2014-6 | B199: 2014. 03. 06 | C199: 9 | D199: 2,907 | E199: 1,226 | F199: 3.45
A200: MBS 2014-83) | B200: 2014. 03. 20 | C200: 9 | D200: 2,106 | E200: 558 | F200: 3.48
A201: MBS 2014-72) | B201: 2014. 03. 21 | C201: 1 | D201: 1,485 | E201: 773 | F201: -
A202: MBS 2014-94) | B202: 2014. 04. 24 | C202: 9 | D202: 3,088 | E202: 1,250 | F202: 3.45
A203: MBS 2014-104) | B203: 2014. 05. 22 | C203: 9 | D203: 5,191 | E203: 1,816 | F203: 3.29
... 69 more rows

Sheet 4. MBS 기초자산 상환 및 연체현황
A1: 4. MBS 기초자산 상환 및 연체현황 Prepayment and Delinquency of Mortgage Pool(MBS)
A3: 단위 : 백만원 | I3: Million won
A4: 상품명 | B4: 조기상환율 Prepayment | E4: 연체율 Delinquency
B5: 전월대출잔액 | C5: 조기상환액 | D5: 조기상환율(%) | E5: 기준월 대출잔액 | F5: 단순연체 | H5: 1개월 연체
A6: MBS | F6: 연체원리금 | G6: 연체율1(%)1) | H6: 연체금액 | I6: 연체율2(%)2)
B7: OPB of previous month | C7: Prepayment amount of current month | D7: Prepayment Ratio | E7: OPB | F7: Principal and Interest of delinquency | G7: Delinquency ratio1 | H7: Principal of delinquency | I7: Delinquency ratio2
A8: 2016-08-31
A9: KoMoCo | B9: 21 | C9: 0 | D9: =IF(B9=0,0,C9/B9)*100 -> 0.00 | E9: 20 | F9: 0 | G9: =IF(E9=0,0,F9/E9)*100 -> 0.00 | H9: 0 | I9: =IF(E9=0,0,H9/E9)*100 -> 0.00
A10: MBS 2004-1~7 | B10: =SUM(B11:B17) -> 25,019 | C10: =SUM(C11:C17) -> 802 | D10: 3.21 | E10: =SUM(E11:E17) -> 23,989 | F10: =SUM(F11:F17) -> 188 | G10: 0.78 | H10: =SUM(H11:H17) -> 690 | I10: 2.88
A11: MBS 2004-1 | B11: 0 | C11: 0 | D11: 0.00 | E11: 0 | F11: 0 | G11: 0.00 | H11: 0 | I11: 0.00
A12: MBS 2004-2 | B12: 5,805 | C12: 107 | D12: 1.85 | E12: 5,638 | F12: 37 | G12: 0.65 | H12: 165 | I12: 2.92
A13: MBS 2004-3 | B13: 4,672 | C13: 358 | D13: 7.67 | E13: 4,263 | F13: 13 | G13: 0.30 | H13: 137 | I13: 3.20
A14: MBS 2004-4 | B14: 4,158 | C14: 41 | D14: 0.98 | E14: 4,082 | F14: 44 | G14: 1.09 | H14: 120 | I14: 2.94
A15: MBS 2004-5 | B15: 3,769 | C15: 73 | D15: 1.94 | E15: 3,663 | F15: 76 | G15: 2.06 | H15: 121 | I15: 3.29
A16: MBS 2004-6 | B16: 0 | C16: 0 | D16: 0.00 | E16: 0 | F16: 0 | G16: 0.00 | H16: 0 | I16: 0.00
A17: MBS 2004-7 | B17: 6,614 | C17: 222 | D17: 3.36 | E17: 6,343 | F17: 18 | G17: 0.29 | H17: 148 | I17: 2.34
A18: MBS 2005-1~9 | B18: =SUM(B19:B27) -> 58,869 | C18: =SUM(C19:C27) -> 1,836 | D18: 3.12 | E18: =SUM(E19:E27) -> 56,543 | F18: =SUM(F19:F27) -> 3,848 | G18: 6.80 | H18: =SUM(H19:H27) -> 7,303 | I18: 12.92
A19: MBS 2005-1 | B19: 6,471 | C19: 113 | D19: 1.74 | E19: 6,249 | F19: 687 | G19: 10.99 | H19: 1,179 | I19: 18.86
A20: MBS 2005-2 | B20: 7,428 | C20: 142 | D20: 1.91 | E20: 7,237 | F20: 718 | G20: 9.92 | H20: 1,413 | I20: 19.52
A21: MBS 2005-3 | B21: 6,962 | C21: 346 | D21: 4.97 | E21: 6,536 | F21: 295 | G21: 4.52 | H21: 504 | I21: 7.70
A22: MBS 2005-4 | B22: 6,858 | C22: 109 | D22: 1.59 | E22: 6,697 | F22: 13 | G22: 0.19 | H22: 63 | I22: 0.94
A23: MBS 2005-5 | B23: 6,745 | C23: 276 | D23: 4.10 | E23: 6,423 | F23: 411 | G23: 6.40 | H23: 620 | I23: 9.65
A24: MBS 2005-6 | B24: 5,610 | C24: 163 | D24: 2.91 | E24: 5,409 | F24: 371 | G24: 6.85 | H24: 604 | I24: 11.16
A25: MBS 2005-7 | B25: 7,768 | C25: 300 | D25: 3.86 | E25: 7,420 | F25: 487 | G25: 6.56 | H25: 1,119 | I25: 15.09
A26: MBS 2005-8 | B26: 6,182 | C26: 213 | D26: 3.45 | E26: 5,936 | F26: 791 | G26: 13.32 | H26: 1,401 | I26: 23.60
A27: MBS 2005-9 | B27: 4,846 | C27: 175 | D27: 3.61 | E27: 4,638 | F27: 76 | G27: 1.64 | H27: 402 | I27: 8.66
A28: MBS 2006-1~5 | B28: =SUM(B29:B33) -> 25,726 | C28: =SUM(C29:C33) -> 795 | D28: 3.09 | E28: =SUM(E29:E33) -> 24,742 | F28: =SUM(F29:F33) -> 621 | G28: 2.51 | H28: =SUM(H29:H33) -> 1,558 | I28: 6.30
A29: MBS 2006-1 | B29: 6,190 | C29: 383 | D29: 6.19 | E29: 5,768 | F29: 96 | G29: 1.67 | H29: 457 | I29: 7.93
A30: MBS 2006-2 | B30: 5,867 | C30: 133 | D30: 2.27 | E30: 5,701 | F30: 420 | G30: 7.37 | H30: 828 | I30: 14.53
A31: MBS 2006-3 | B31: 4,864 | C31: 73 | D31: 1.50 | E31: 4,763 | F31: 71 | G31: 1.49 | H31: 123 | I31: 2.58
A32: MBS 2006-4 | B32: 3,442 | C32: 23 | D32: 0.66 | E32: 3,367 | F32: 19 | G32: 0.58 | H32: 56 | I32: 1.67
A33: MBS 2006-5 | B33: 5,363 | C33: 182 | D33: 3.40 | E33: 5,142 | F33: 14 | G33: 0.27 | H33: 93 | I33: 1.82
A34: MBS 2007-1~6 | B34: =SUM(B35:B40) -> 24,732 | C34: =SUM(C35:C40) -> 848 | D34: 3.43 | E34: =SUM(E35:E40) -> 23,707 | F34: =SUM(F35:F40) -> 155 | G34: 0.65 | H34: =SUM(H35:H40) -> 973 | I34: 4.11
A35: MBS 2007-1 | B35: 3,681 | C35: 47 | D35: 1.28 | E35: 3,610 | F35: 3 | G35: 0.09 | H35: 46 | I35: 1.26
A36: MBS 2007-2 | B36: 4,696 | C36: 53 | D36: 1.13 | E36: 4,606 | F36: 19 | G36: 0.42 | H36: 310 | I36: 6.72
A37: MBS 2007-3 | B37: 4,912 | C37: 316 | D37: 6.43 | E37: 4,562 | F37: 29 | G37: 0.63 | H37: 121 | I37: 2.65
A38: MBS 2007-4 | B38: 4,296 | C38: 103 | D38: 2.40 | E38: 4,158 | F38: 19 | G38: 0.46 | H38: 110 | I38: 2.64
A39: MBS 2007-5 | B39: 3,820 | C39: 130 | D39: 3.40 | E39: 3,669 | F39: 34 | G39: 0.93 | H39: 200 | I39: 5.46
A40: MBS 2007-6 | B40: 3,326 | C40: 199 | D40: 5.99 | E40: 3,103 | F40: 50 | G40: 1.63 | H40: 187 | I40: 6.04
A41: MBS 2008-1~7 | B41: =SUM(B42:B48) -> 24,664 | C41: =SUM(C42:C48) -> 690 | D41: 2.80 | E41: =SUM(E42:E48) -> 23,807 | F41: =SUM(F42:F48) -> 171 | G41: 0.72 | H41: =SUM(H42:H48) -> 1,207 | I41: 5.07
A42: MBS 2008-1 | B42: 4,208 | C42: 136 | D42: 3.23 | E42: 4,046 | F42: 12 | G42: 0.31 | H42: 34 | I42: 0.84
A43: MBS 2008-2 | B43: 2,711 | C43: 34 | D43: 1.27 | E43: 2,661 | F43: 2 | G43: 0.07 | H43: 26 | I43: 0.98
A44: MBS 2008-3 | B44: 4,597 | C44: 104 | D44: 2.25 | E44: 4,467 | F44: 36 | G44: 0.80 | H44: 280 | I44: 6.26
A45: MBS 2008-4 | B45: 3,537 | C45: 134 | D45: 3.77 | E45: 3,362 | F45: 3 | G45: 0.09 | H45: 0 | I45: 0.00
A46: MBS 2008-5 | B46: 4,131 | C46: 181 | D46: 4.38 | E46: 3,919 | F46: 60 | G46: 1.53 | H46: 99 | I46: 2.52
A47: MBS 2008-6 | B47: 2,996 | C47: 49 | D47: 1.62 | E47: 2,934 | F47: 32 | G47: 1.10 | H47: 394 | I47: 13.42
A48: MBS 2008-7 | B48: 2,484 | C48: 53 | D48: 2.13 | E48: 2,418 | F48: 26 | G48: 1.07 | H48: 375 | I48: 15.50
A49: MBS 2009-1~14 | B49: =+SUM(B50:B63) -> 584,734 | C49: =+SUM(C50:C63) -> 15,286 | D49: 2.61 | E49: =+SUM(E50:E63) -> 566,529 | F49: =+SUM(F50:F63) -> 891 | G49: 0.16 | H49: =+SUM(H50:H63) -> 8,732 | I49: 1.54
A50: MBS 2009-1 | B50: 3,946 | C50: 229 | D50: 5.80 | E50: 3,696 | F50: 67 | G50: 1.82 | H50: 230 | I50: 6.23
A51: MBS 2009-2 | B51: 42,451 | C51: 1,090 | D51: 2.57 | E51: 41,144 | F51: 9 | G51: 0.02 | H51: 207 | I51: 0.50
A52: MBS 2009-3 | B52: 167,266 | C52: 4,966 | D52: 2.97 | E52: 161,444 | F52: 81 | G52: 0.05 | H52: 2,626 | I52: 1.63
A53: MBS 2009-4 | B53: 3,717 | C53: 112 | D53: 3.03 | E53: 3,586 | F53: 91 | G53: 2.53 | H53: 418 | I53: 11.66
A54: MBS 2009-5 | B54: 44,780 | C54: 1,229 | D54: 2.74 | E54: 43,318 | F54: 6 | G54: 0.01 | H54: 291 | I54: 0.67
A55: MBS 2009-6 | B55: 3,786 | C55: 445 | D55: 11.74 | E55: 3,327 | F55: 142 | G55: 4.27 | H55: 160 | I55: 4.81
A56: MBS 2009-7 | B56: 245,573 | C56: 4,642 | D56: 1.89 | E56: 239,627 | F56: 149 | G56: 0.06 | H56: 2,292 | I56: 0.96
A57: MBS 2009-8 | B57: 6,681 | C57: 268 | D57: 4.01 | E57: 6,372 | F57: 54 | G57: 0.85 | H57: 376 | I57: 5.90
A58: MBS 2009-9 | B58: 0 | C58: 0 | D58: 0.00 | E58: 0 | F58: 0 | G58: 0.00 | H58: 0 | I58: 0.00
A59: MBS 2009-10 | B59: 8,901 | C59: 470 | D59: 5.28 | E59: 8,382 | F59: 66 | G59: 0.79 | H59: 358 | I59: 4.27
A60: MBS 2009-11 | B60: 8,127 | C60: 9 | D60: 0.12 | E60: 8,085 | F60: 39 | G60: 0.48 | H60: 410 | I60: 5.07
A61: MBS 2009-12 | B61: 4,625 | C61: 80 | D61: 1.73 | E61: 4,523 | F61: 15 | G61: 0.34 | H61: 135 | I61: 2.98
A62: MBS 2009-13 | B62: 40,514 | C62: 1,262 | D62: 3.11 | E62: 39,160 | F62: 35 | G62: 0.09 | H62: 591 | I62: 1.51
A63: MBS 2009-14 | B63: 4,367 | C63: 484 | D63: 11.09 | E63: 3,865 | F63: 138 | G63: 3.56 | H63: 638 | I63: 16.50
A64: MBS 2010-1~18 | B64: =+SUM(B65:B82) -> 314,561 | C64: =+SUM(C65:C82) -> 12,744 | D64: 4.05 | E64: =+SUM(E65:E82) -> 300,444 | F64: =+SUM(F65:F82) -> 1,350 | G64: 0.45 | H64: =+SUM(H65:H82) -> 7,954 | I64: 2.65
A65: MBS 2010-1 | B65: 7,562 | C65: 175 | D65: 2.32 | E65: 7,357 | F65: 52 | G65: 0.70 | H65: 414 | I65: 5.63
A66: MBS 2010-2 | B66: 5,632 | C66: 1,285 | D66: 22.82 | E66: 4,320 | F66: 35 | G66: 0.80 | H66: 707 | I66: 16.37
A67: MBS 2010-3 | B67: 7,013 | C67: 349 | D67: 4.98 | E67: 6,618 | F67: 11 | G67: 0.16 | H67: 92 | I67: 1.39
A68: MBS 2010-4 | B68: 6,855 | C68: 177 | D68: 2.59 | E68: 6,640 | F68: 126 | G68: 1.89 | H68: 252 | I68: 3.79
A69: MBS 2010-5 | B69: 4,977 | C69: 84 | D69: 1.69 | E69: 4,860 | F69: 9 | G69: 0.18 | H69: 82 | I69: 1.69
A70: MBS 2010-6 | B70: 60,230 | C70: 1,295 | D70: 2.15 | E70: 58,806 | F70: 20 | G70: 0.03 | H70: 124 | I70: 0.21
A71: MBS 2010-7 | B71: 6,443 | C71: 210 | D71: 3.26 | E71: 6,194 | F71: 3 | G71: 0.05 | H71: 42 | I71: 0.67
A72: MBS 2010-8 | B72: 83,789 | C72: 2,544 | D72: 3.04 | E72: 80,785 | F72: 42 | G72: 0.05 | H72: 836 | I72: 1.03
A73: MBS 2010-9 | B73: 9,300 | C73: 244 | D73: =IF(B73=0,0,C73/B73)*100 -> 2.62 | E73: 9,015 | F73: 27 | G73: =IF(E73=0,0,F73/E73)*100 -> 0.29 | H73: 483 | I73: =IF(E73=0,0,H73/E73)*100 -> 5.35
A74: MBS 2010-10 | B74: 8,569 | C74: 439 | D74: 5.12 | E74: 8,087 | F74: 82 | G74: 1.01 | H74: 724 | I74: 8.96
A75: MBS 2010-11 | B75: 0 | C75: 0 | D75: 0.00 | E75: 0 | F75: 0 | G75: 0.00 | H75: 0 | I75: 0.00
A76: MBS 2010-12 | B76: 11,090 | C76: 631 | D76: 5.69 | E76: 10,313 | F76: 79 | G76: 0.77 | H76: 225 | I76: 2.18
A77: MBS 2010-13 | B77: 8,829 | C77: 413 | D77: 4.68 | E77: 8,378 | F77: 132 | G77: 1.57 | H77: 553 | I77: 6.60
A78: MBS 2010-14 | B78: 0 | C78: 0 | D78: 0.00 | E78: 0 | F78: 0 | G78: 0.00 | H78: 0 | I78: 0.00
A79: MBS 2010-15 | B79: 12,165 | C79: 858 | D79: 7.06 | E79: 11,254 | F79: 78 | G79: 0.69 | H79: 710 | I79: 6.31
A80: MBS 2010-16 | B80: 11,139 | C80: 750 | D80: 6.74 | E80: 10,340 | F80: 53 | G80: 0.51 | H80: 378 | I80: 3.65
A81: MBS 2010-17 | B81: 25,586 | C81: 2,073 | D81: 8.10 | E81: 23,403 | F81: 533 | G81: 2.28 | H81: 1,144 | I81: 4.89
A82: MBS 2010-18 | B82: 45,382 | C82: 1,214 | D82: 2.68 | E82: 44,074 | F82: 70 | G82: 0.16 | H82: 1,189 | I82: 2.70
A83: MBS 2011-1~21 | B83: =SUM(B84:B104) -> 627,809 | C83: =+SUM(C84:C104) -> 33,863 | D83: 5.39 | E83: =+SUM(E84:E104) -> 591,002 | F83: =+SUM(F84:F104) -> 9,698 | G83: 1.64 | H83: =+SUM(H84:H104) -> 25,395 | I83: 4.30
A84: MBS 2011-1 | B84: 25,480 | C84: 1,454 | D84: 5.71 | E84: 23,923 | F84: 863 | G84: 3.61 | H84: 1,255 | I84: 5.25
A85: MBS 2011-2 | B85: 17,550 | C85: 890 | D85: 5.07 | E85: 16,605 | F85: 151 | G85: 0.91 | H85: 1,299 | I85: 7.82
A86: MBS 2011-3 | B86: 8,746 | C86: 769 | D86: 8.80 | E86: 7,940 | F86: 28 | G86: 0.35 | H86: 486 | I86: 6.12
A87: MBS 2011-4 | B87: 25,557 | C87: 2,458 | D87: 9.62 | E87: 22,992 | F87: 348 | G87: 1.51 | H87: 693 | I87: 3.01
A88: MBS 2011-5 | B88: 0 | C88: 0 | D88: 0.00 | E88: 0 | F88: 0 | G88: 0.00 | H88: 0 | I88: 0.00
A89: MBS 2011-6 | B89: 38,485 | C89: 1,027 | D89: 2.67 | E89: 37,386 | F89: 14 | G89: 0.04 | H89: 346 | I89: 0.92
A90: MBS 2011-7 | B90: 33,685 | C90: 2,549 | D90: 7.57 | E90: 31,004 | F90: 50 | G90: 0.16 | H90: 1,648 | I90: 5.32
A91: MBS 2011-8 | B91: 25,772 | C91: 1,741 | D91: 6.76 | E91: 23,819 | F91: 227 | G91: 0.95 | H91: 2,179 | I91: 9.15
A92: MBS 2011-9 | B92: 33,633 | C92: 2,880 | D92: 8.56 | E92: 30,632 | F92: 773 | G92: 2.52 | H92: 1,136 | I92: 3.71
A93: MBS 2011-10 | B93: 38,614 | C93: 3,048 | D93: 7.89 | E93: 34,941 | F93: 935 | G93: 2.67 | H93: 1,369 | I93: 3.92
A94: MBS 2011-11 | B94: 15,380 | C94: 529 | D94: 3.44 | E94: 14,678 | F94: 76 | G94: 0.51 | H94: 865 | I94: 5.89
A95: MBS 2011-12 | B95: 37,916 | C95: 3,651 | D95: 9.63 | E95: 34,128 | F95: 1,705 | G95: 5.00 | H95: 2,986 | I95: 8.75
A96: MBS 2011-13 | B96: 0 | C96: 0 | D96: 0.00 | E96: 0 | F96: 0 | G96: 0.00 | H96: 0 | I96: 0.00
A97: MBS 2011-14 | B97: 26,583 | C97: 2,759 | D97: 10.38 | E97: 23,637 | F97: 507 | G97: 2.15 | H97: 1,588 | I97: 6.72
A98: MBS 2011-15 | B98: 63,233 | C98: 2,291 | D98: 3.62 | E98: 60,839 | F98: 24 | G98: 0.04 | H98: 366 | I98: 0.60
A99: MBS 2011-16 | B99: 35,200 | C99: 1,791 | D99: 5.09 | E99: 33,274 | F99: 1,231 | G99: 3.70 | H99: 1,593 | I99: 4.79
A100: MBS 2011-17 | B100: 0 | C100: 0 | D100: 0.00 | E100: 0 | F100: 0 | G100: 0.00 | H100: 0 | I100: 0.00
A101: MBS 2011-18 | B101: 55,269 | C101: 1,223 | D101: 2.21 | E101: 53,829 | F101: 726 | G101: 1.35 | H101: 2,427 | I101: 4.51
A102: MBS 2011-19 | B102: 19,616 | C102: 913 | D102: 4.66 | E102: 18,590 | F102: 139 | G102: 0.75 | H102: 1,285 | I102: 6.91
A103: MBS 2011-20 | B103: 52,339 | C103: 1,245 | D103: 2.38 | E103: 51,014 | F103: 23 | G103: 0.05 | H103: 192 | I103: 0.38
A104: MBS 2011-21 | B104: 74,751 | C104: 2,645 | D104: 3.54 | E104: 71,770 | F104: 1,880 | G104: 2.62 | H104: 3,684 | I104: 5.13
A105: MBS 2012-1~41 | B105: =SUM(B106:B146) -> 2,807,778 | C105: =+SUM(C106:C146) -> 173,767 | D105: 6.19 | E105: =+SUM(E106:E146) -> 2,623,373 | F105: =+SUM(F106:F146) -> 21,942 | G105: 0.84 | H105: =+SUM(H106:H146) -> 57,436 | I105: 2.19
A106: MBS 2012-1 | B106: 59,089 | C106: 2,035 | D106: 3.44 | E106: 56,729 | F106: 1,784 | G106: 3.14 | H106: 2,742 | I106: 4.83
A107: MBS 2012-2 | B107: 68,800 | C107: 2,884 | D107: 4.19 | E107: 65,620 | F107: 712 | G107: 1.09 | H107: 1,522 | I107: 2.32
A108: MBS 2012-3 | B108: 38,520 | C108: 1,165 | D108: 3.02 | E108: 37,226 | F108: 298 | G108: 0.80 | H108: 1,272 | I108: 3.42
A109: MBS 2012-4 | B109: 52,850 | C109: 2,185 | D109: 4.13 | E109: 50,587 | F109: 21 | G109: 0.04 | H109: 490 | I109: 0.97
A110: MBS 2012-5 | B110: 36,711 | C110: 595 | D110: 1.62 | E110: 36,022 | F110: 226 | G110: 0.63 | H110: 1,915 | I110: 5.31
A111: MBS 2012-6 | B111: 92,625 | C111: 3,352 | D111: 3.62 | E111: 88,972 | F111: 2,018 | G111: 2.27 | H111: 3,393 | I111: 3.81
A112: MBS 2012-7 | B112: 70,349 | C112: 3,173 | D112: 4.51 | E112: 66,461 | F112: 1,017 | G112: 1.53 | H112: 2,068 | I112: 3.11
A113: MBS 2012-8 | B113: 31,821 | C113: 1,314 | D113: 4.13 | E113: 30,397 | F113: 313 | G113: 1.03 | H113: 969 | I113: 3.19
A114: MBS 2012-9 | B114: 25,980 | C114: 1,868 | D114: 7.19 | E114: 24,045 | F114: 21 | G114: 0.09 | H114: 570 | I114: 2.37
A115: MBS 2012-10 | B115: 68,910 | C115: 3,870 | D115: 5.62 | E115: 64,808 | F115: 1,793 | G115: 2.77 | H115: 2,964 | I115: 4.57
A116: MBS 2012-11 | B116: 62,616 | C116: 2,019 | D116: 3.22 | E116: 60,504 | F116: 14 | G116: 0.02 | H116: 231 | I116: 0.38
A117: MBS 2012-12 | B117: 13,298 | C117: 595 | D117: 4.47 | E117: 12,677 | F117: 4 | G117: 0.03 | H117: 234 | I117: 1.85
A118: MBS 2012-13 | B118: 28,984 | C118: 1,599 | D118: 5.52 | E118: 27,164 | F118: 36 | G118: 0.13 | H118: 449 | I118: 1.65
A119: MBS 2012-14 | B119: 58,016 | C119: 2,753 | D119: 4.75 | E119: 55,074 | F119: 1,421 | G119: 2.58 | H119: 1,917 | I119: 3.48
A120: MBS 2012-15 | B120: 44,309 | C120: 1,970 | D120: 4.45 | E120: 42,190 | F120: 388 | G120: 0.92 | H120: 1,062 | I120: 2.52
A121: MBS 2012-16 | B121: 45,446 | C121: 2,984 | D121: 6.57 | E121: 42,355 | F121: 38 | G121: 0.09 | H121: 1,099 | I121: 2.59
A122: MBS 2012-17 | B122: 91,298 | C122: 3,966 | D122: 4.34 | E122: 87,010 | F122: 2,107 | G122: 2.42 | H122: 4,217 | I122: 4.85
A123: MBS 2012-18 | B123: 52,828 | C123: 2,100 | D123: 3.98 | E123: 50,461 | F123: 309 | G123: 0.61 | H123: 1,002 | I123: 1.99
A124: MBS 2012-19 | B124: 38,453 | C124: 1,877 | D124: 4.88 | E124: 36,487 | F124: 12 | G124: 0.03 | H124: 710 | I124: 1.95
A125: MBS 2012-20 | B125: 141,242 | C125: 5,595 | D125: 3.96 | E125: 135,204 | F125: 1,803 | G125: 1.33 | H125: 4,108 | I125: 3.04
A126: MBS 2012-21 | B126: 53,463 | C126: 3,333 | D126: 6.23 | E126: 49,997 | F126: 44 | G126: 0.09 | H126: 656 | I126: 1.31
A127: MBS 2012-22 | B127: 63,000 | C127: 4,103 | D127: 6.51 | E127: 58,712 | F127: 14 | G127: 0.02 | H127: 102 | I127: 0.17
A128: MBS 2012-23 | B128: 57,334 | C128: 3,227 | D128: 5.63 | E128: 53,937 | F128: 1,362 | G128: 2.52 | H128: 2,109 | I128: 3.91
A129: MBS 2012-24 | B129: 107,152 | C129: 11,228 | D129: 10.48 | E129: 95,534 | F129: 63 | G129: 0.07 | H129: 1,482 | I129: 1.55
A130: MBS 2012-25 | B130: 75,354 | C130: 3,049 | D130: 4.05 | E130: 72,084 | F130: 525 | G130: 0.73 | H130: 1,504 | I130: 2.09
A131: MBS 2012-26 | B131: 31,642 | C131: 964 | D131: 3.05 | E131: 30,544 | F131: 78 | G131: 0.26 | H131: 665 | I131: 2.18
A132: MBS 2012-27 | B132: 5,833 | C132: 121 | D132: 2.08 | E132: 5,699 | F132: 30 | G132: 0.53 | H132: 552 | I132: 9.68
A133: MBS 2012-28 | B133: 86,266 | C133: 3,935 | D133: 4.56 | E133: 82,101 | F133: 1,997 | G133: 2.43 | H133: 3,306 | I133: 4.03
A134: MBS 2012-29 | B134: 122,617 | C134: 14,256 | D134: 11.63 | E134: 107,649 | F134: 80 | G134: 0.07 | H134: 1,888 | I134: 1.75
A135: MBS 2012-30 | B135: 104,365 | C135: 7,781 | D135: 7.46 | E135: 96,199 | F135: 43 | G135: 0.04 | H135: 985 | I135: 1.02
A136: MBS 2012-31 | B136: 164,062 | C136: 8,814 | D136: 5.37 | E136: 154,636 | F136: 1,652 | G136: 1.07 | H136: 3,592 | I136: 2.32
A137: MBS 2012-32 | B137: 83,600 | C137: 10,301 | D137: =IF(B137=0,0,C137/B137)*100 -> 12.32 | E137: 72,858 | F137: 64 | G137: =IF(E137=0,0,F137/E137)*100 -> 0.09 | H137: 1,324 | I137: =IF(E137=0,0,H137/E137)*100 -> 1.82
A138: MBS 2012-33 | B138: 119,969 | C138: 5,880 | D138: 4.90 | E138: 113,721 | F138: 50 | G138: 0.04 | H138: 884 | I138: 0.78
A139: MBS 2012-34 | B139: 119,555 | C139: 6,559 | D139: 5.49 | E139: 112,540 | F139: 1,430 | G139: 1.27 | H139: 2,629 | I139: 2.34
A140: MBS 2012-35 | B140: 134,011 | C140: 16,594 | D140: 12.38 | E140: 116,675 | F140: 68 | G140: 0.06 | H140: 1,196 | I140: 1.03
A141: MBS 2012-36 | B141: 35,787 | C141: 1,342 | D141: 3.75 | E141: 34,366 | F141: 22 | G141: 0.06 | H141: 468 | I141: 1.36
A142: MBS 2012-37 | B142: 71,922 | C142: 1,879 | D142: 2.61 | E142: 69,920 | F142: 19 | G142: 0.03 | H142: 230 | I142: 0.33
A143: MBS 2012-38 | B143: 23,097 | C143: 579 | D143: 2.51 | E143: 22,465 | F143: 19 | G143: 0.08 | H143: 270 | I143: 1.20
A144: MBS 2012-39 | B144: 93,504 | C144: 7,609 | D144: 8.14 | E144: 85,633 | F144: 11 | G144: 0.01 | H144: 316 | I144: 0.37
A145: MBS 2012-40 | B145: 60,052 | C145: 8,856 | D145: 14.75 | E145: 50,823 | F145: 31 | G145: 0.06 | H145: 323 | I145: 0.63
A146: MBS 2012-41 | B146: 73,048 | C146: 5,455 | D146: 7.47 | E146: 67,288 | F146: 5 | G146: 0.01 | H146: 21 | I146: 0.03
A147: MBS 2013-1~40 | B147: =SUM(B148:B185) -> 5,620,615 | C147: =SUM(C148:C185) -> 398,551 | D147: 7.09 | E147: =SUM(E148:E185) -> 5,199,896 | F147: =SUM(F148:F185) -> 27,383 | G147: 0.53 | H147: =SUM(H148:H185) -> 72,407 | I147: 1.39
A148: MBS 2013-1 | B148: 170,622 | C148: 10,810 | D148: 6.34 | E148: 159,276 | F148: 1,403 | G148: 0.88 | H148: 2,573 | I148: 1.62
A149: MBS 2013-2 | B149: 170,028 | C149: 8,872 | D149: 5.22 | E149: 160,436 | F149: 3,229 | G149: 2.01 | H149: 4,919 | I149: 3.07
A150: MBS 2013-3 | B150: 109,365 | C150: 4,941 | D150: 4.52 | E150: 104,047 | F150: 51 | G150: 0.05 | H150: 1,494 | I150: 1.44
A151: MBS 2013-4 | B151: 230,419 | C151: 16,027 | D151: 6.96 | E151: 213,530 | F151: 2,691 | G151: 1.26 | H151: 4,937 | I151: 2.31
A152: MBS 2013-5 | B152: 170,717 | C152: 17,494 | D152: 10.25 | E152: 152,164 | F152: 76 | G152: 0.05 | H152: 1,161 | I152: 0.76
A153: MBS 2013-6 | B153: 142,976 | C153: 9,190 | D153: 6.43 | E153: 133,044 | F153: 1,144 | G153: 0.86 | H153: 2,106 | I153: 1.58
A154: MBS 2013-7 | B154: 97,740 | C154: 5,871 | D154: 6.01 | E154: 91,479 | F154: 19 | G154: 0.02 | H154: 360 | I154: 0.39
A155: MBS 2013-8 | B155: 120,028 | C155: 8,905 | D155: 7.42 | E155: 110,534 | F155: 41 | G155: 0.04 | H155: 965 | I155: 0.87
A156: MBS 2013-9 | B156: 112,718 | C156: 8,695 | D156: 7.71 | E156: 103,521 | F156: 44 | G156: 0.04 | H156: 989 | I156: 0.96
A157: MBS 2013-10 | B157: 86,682 | C157: 2,697 | D157: 3.11 | E157: 83,849 | F157: 11 | G157: 0.01 | H157: 477 | I157: 0.57
A158: MBS 2013-11 | B158: 9,421 | C158: 331 | D158: 3.51 | E158: 9,047 | F158: 3 | G158: 0.03 | H158: 0 | I158: 0.00
A159: MBS 2013-12 | B159: 12,402 | C159: 825 | D159: 6.66 | E159: 11,562 | F159: 42 | G159: 0.37 | H159: 1,411 | I159: 12.20
A160: MBS 2013-13 | B160: 42,544 | C160: 1,002 | D160: 2.35 | E160: 41,466 | F160: 10 | G160: 0.02 | H160: 466 | I160: 1.12
A161: MBS 2013-14 | B161: 193,824 | C161: 14,649 | D161: 7.56 | E161: 178,530 | F161: 1,443 | G161: 0.81 | H161: 3,949 | I161: 2.21
A162: MBS 2013-15 | B162: 211,768 | C162: 15,239 | D162: 7.20 | E162: 195,645 | F162: 54 | G162: 0.03 | H162: 1,428 | I162: 0.73
A163: MBS 2013-16 | B163: 202,310 | C163: 14,911 | D163: 7.37 | E163: 186,654 | F163: 1,429 | G163: 0.77 | H163: 2,510 | I163: 1.34
A164: MBS 2013-17 | B164: 164,656 | C164: 11,121 | D164: 6.75 | E164: 152,971 | F164: 890 | G164: 0.58 | H164: 2,535 | I164: 1.66
A165: MBS 2013-18 | B165: 118,497 | C165: 8,675 | D165: 7.32 | E165: 109,352 | F165: 1,116 | G165: 1.02 | H165: 2,899 | I165: 2.65
A166: MBS 2013-19 | B166: 114,163 | C166: 7,265 | D166: 6.36 | E166: 106,462 | F166: 13 | G166: 0.01 | H166: 266 | I166: 0.25
A167: MBS 2013-20 | B167: 117,301 | C167: 9,690 | D167: 8.26 | E167: 107,113 | F167: 973 | G167: 0.91 | H167: 2,125 | I167: 1.98
A168: MBS 2013-21 | B168: 234,883 | C168: 17,304 | D168: 7.37 | E168: 216,454 | F168: 1,596 | G168: 0.74 | H168: 3,436 | I168: 1.59
A169: MBS 2013-22 | B169: 115,011 | C169: 10,237 | D169: 8.90 | E169: 104,289 | F169: 1,846 | G169: 1.77 | H169: 2,596 | I169: 2.49
A170: MBS 2013-23 | B170: 164,363 | C170: 10,068 | D170: 6.13 | E170: 153,639 | F170: 40 | G170: 0.03 | H170: 952 | I170: 0.62
A171: MBS 2013-24 | B171: 19,975 | C171: 662 | D171: 3.31 | E171: 19,255 | F171: 9 | G171: 0.04 | H171: 17 | I171: 0.09
A172: MBS 2013-25 | B172: 176,658 | C172: 12,745 | D172: 7.21 | E172: 163,408 | F172: 566 | G172: 0.35 | H172: 1,929 | I172: 1.18
A173: MBS 2013-26 | B173: 140,639 | C173: 10,549 | D173: 7.50 | E173: 129,274 | F173: 25 | G173: 0.02 | H173: 501 | I173: 0.39
A174: MBS 2013-27 | B174: 371,188 | C174: 28,357 | D174: 7.64 | E174: 341,174 | F174: 2,054 | G174: 0.60 | H174: 6,423 | I174: 1.88
A175: MBS 2013-28 | B175: 274,580 | C175: 18,960 | D175: 6.91 | E175: 254,848 | F175: 1,113 | G175: 0.44 | H175: 2,855 | I175: 1.12
A176: MBS 2013-29 | B176: 150,040 | C176: 9,971 | D176: 6.65 | E176: 139,267 | F176: 27 | G176: 0.02 | H176: 876 | I176: 0.63
A177: MBS 2013-30 | B177: 177,177 | C177: 13,165 | D177: 7.43 | E177: 163,450 | F177: 456 | G177: 0.28 | H177: 1,254 | I177: 0.77
A178: MBS 2013-31 | B178: 314,402 | C178: 25,761 | D178: 8.19 | E178: 287,394 | F178: 2,339 | G178: 0.81 | H178: 3,596 | I178: 1.25
A179: MBS 2013-32 | B179: 147,796 | C179: 9,818 | D179: 6.64 | E179: 137,339 | F179: 36 | G179: 0.03 | H179: 869 | I179: 0.63
A180: MBS 2013-33 | B180: 7,648 | C180: 209 | D180: 2.73 | E180: 7,424 | F180: 3 | G180: 0.04 | H180: 197 | I180: 2.65
A181: MBS 2013-34 | B181: 134,389 | C181: 11,629 | D181: 8.65 | E181: 122,142 | F181: 29 | G181: 0.02 | H181: 410 | I181: 0.34
A182: MBS 2013-35 | B182: 292,549 | C182: 19,512 | D182: 6.67 | E182: 272,113 | F182: 1,055 | G182: 0.39 | H182: 2,679 | I182: 0.98
A183: MBS 2013-36 | B183: 207,018 | C183: 17,342 | D183: 8.38 | E183: 188,953 | F183: 1,259 | G183: 0.67 | H183: 2,068 | I183: 1.09
A184: MBS 2013-38 | B184: 30,025 | C184: 1,372 | D184: 4.57 | E184: 28,571 | F184: 1 | G184: 0.00 | H184: 58 | I184: 0.20
A185: MBS 2013-40 | B185: 64,091 | C185: 3,676 | D185: 5.74 | E185: 60,219 | F185: 246 | G185: 0.41 | H185: 4,121 | I185: 6.84
A186: MBS 2014-1~22 | B186: =SUM(B187:B208) -> 8,153,098 | C186: =SUM(C187:C208) -> 371,994 | D186: 4.56 | E186: =SUM(E187:E208) -> 7,749,209 | F186: =SUM(F187:F208) -> 6,177 | G186: 0.08 | H186: =SUM(H187:H208) -> 31,176 | I186: 0.40
A187: MBS 2014-1 | B187: 152,909 | C187: 10,292 | D187: 6.73 | E187: 141,718 | F187: 566 | G187: 0.40 | H187: 1,217 | I187: 0.86
A188: MBS 2014-2 | B188: 75,412 | C188: 5,439 | D188: 7.21 | E188: 69,618 | F188: 42 | G188: 0.06 | H188: 763 | I188: 1.10
A189: MBS 2014-3 | B189: 166,975 | C189: 11,168 | D189: 6.69 | E189: 155,077 | F189: 164 | G189: 0.11 | H189: 763 | I189: 0.49
A190: MBS 2014-4 | B190: 26,213 | C190: 753 | D190: 2.87 | E190: 25,403 | F190: 6 | G190: 0.03 | H190: 0 | I190: 0.00
A191: MBS 2014-5 | B191: 117,240 | C191: 8,396 | D191: 7.16 | E191: 108,441 | F191: 996 | G191: 0.92 | H191: 1,074 | I191: 0.99
A192: MBS 2014-6 | B192: 100,748 | C192: 8,219 | D192: 8.16 | E192: 92,194 | F192: 159 | G192: 0.17 | H192: 1,190 | I192: 1.29
A193: MBS 2014-7 | B193: 55,244 | C193: 1,891 | D193: 3.42 | E193: 53,206 | F193: 30 | G193: 0.06 | H193: 524 | I193: 0.98
A194: MBS 2014-8 | B194: 63,094 | C194: 1,950 | D194: 3.09 | E194: 60,931 | F194: 20 | G194: 0.03 | H194: 839 | I194: 1.38
A195: MBS 2014-9 | B195: 106,334 | C195: 6,385 | D195: 6.00 | E195: 99,603 | F195: 510 | G195: 0.51 | H195: 1,089 | I195: 1.09
A196: MBS 2014-10 | B196: 165,585 | C196: 12,111 | D196: 7.31 | E196: 152,821 | F196: 572 | G196: 0.37 | H196: 1,466 | I196: 0.96
A197: MBS 2014-11 | B197: 140,088 | C197: 10,602 | D197: 7.57 | E197: 128,861 | F197: 340 | G197: 0.26 | H197: 1,388 | I197: 1.08
A198: MBS 2014-12 | B198: 290,763 | C198: 14,905 | D198: 5.13 | E198: 274,737 | F198: 364 | G198: 0.13 | H198: 1,887 | I198: 0.69
A199: MBS 2014-13 | B199: 602,519 | C199: 25,773 | D199: 4.28 | E199: 574,118 | F199: 394 | G199: 0.07 | H199: 1,651 | I199: 0.29
A200: MBS 2014-14 | B200: 70,271 | C200: 1,996 | D200: 2.84 | E200: 68,123 | F200: 12 | G200: 0.02 | H200: 427 | I200: 0.63
A201: MBS 2014-15 | B201: 448,256 | C201: 19,852 | D201: =IF(B201=0,0,C201/B201)*100 -> 4.43 | E201: 426,575 | F201: 300 | G201: 0.07 | H201: 1,501 | I201: 0.35
... 57 more rows

Sheet 5. MBB 발행실적
A1: 5. MBB 발행실적 Issuance of MBB(Mortgage-Backed Bond)
A3: 단위 : 억원 | C3: Hundred million won
A4: MBB1) | B4: 발행일 | C4: 발행금액 | D4: 연·월말 MBB 잔액 | E4: 가중평균 발행금리(%) | F4: 발행통화
B6: Issue date | C6: Issue amount | D6: Outstanding | E6: Coupon rate | F6: Denominated currency
A8: MBB 2010-1 | B8: 2010. 07. 15 | C8: 6,075 | D8: 0 | E8: - | F8: 외화
A11: MBB 2011-1 | B11: 2011. 04. 28 | C11: 2,172 | D11: 0 | E11: - | F11: 외화
A14: MBB 2011-2 | B14: 2011. 06. 17 | C14: 2,500 | D14: 0 | E14: 4.05 | F14: 원화
A17: MBB 2011-3 | B17: 2011. 07. 25 | C17: 5,307 | D17: 5,307 | E17: - | F17: 외화
A20: MBB 2011-4 | B20: 2011. 12. 08 | C20: 2,900 | D20: 0 | E20: 3.78 | F20: 원화
A23: MBB 2011-5 | B23: 2011. 12. 29 | C23: 2,500 | D23: 0 | E23: 3.87 | F23: 원화
A26: MBB 2012-1 | B26: 2012. 03. 30 | C26: 2,500 | D26: 0 | E26: 3.91 | F26: 원화
A29: MBB 2013-1 | B29: 2013. 03. 07 | C29: 5,450 | D29: 5,450 | E29: 1.63 | F29: 외화
A32: MBB 2013-1 | B32: 2013. 03. 07 | C32: 1,500 | D32: 1,500 | E32: 2.94 | F32: 원화
A35: MBB 2015-1 | B35: 2015. 11. 19 | C35: 5,765 | D35: 5,765 | E35: 2.50 | F35: 외화
A36: 누계 | C36: =SUM(C8:C35) -> 36,668 | D36: 18,021
A38: 1) MBB(Mortgage-Backed Bond) : 주택법 제2조 제1호 규정에 의한 주택에 설정된 저당권에 의하여 담보된 대출채권을 주택저당채권이라 하며, MBB는 공사가 금융기관으로부터 양수한 주택저당채권을 기초로 발행하는 채권을 말함

Sheet 6. MBB 기초자산 상환 및 연체현황
A1: 6. MBB 기초자산 상환 및 연체현황 Prepayment and Delinquency of Mortgage Pool(MBB)
A3: 단위 : 백만원 | I3: Million won
A4: 상품명 | B4: 조기상환율 Prepayment | E4: 연체율 Delinquency
B5: 전월대출잔액 | C5: 조기상환액 | D5: 조기상환율(%) | E5: 기준월 대출잔액 | F5: 단순연체 | H5: 1개월 연체
A6: MBB | F6: 연체원리금 | G6: 연체율1(%)1) | H6: 연체금액 | I6: 연체율2(%)2)
B7: OPB of previous month | C7: Prepayment amount of current month | D7: Prepayment Ratio | E7: OPB | F7: Principal and Interest of delinquency | G7: Delinquency ratio1 | H7: Principal of delinquency | I7: Delinquency ratio2
A8: 2016-08-31
A9: MBB 2010-1 | B9: 0 | C9: 0 | D9: =IF(B9=0,0,C9/B9)*100 -> 0.00 | E9: 0 | F9: 0 | G9: =IF(E9=0,0,F9/E9)*100 -> 0.00 | H9: 0 | I9: =IF(E9=0,0,H9/E9)*100 -> 0.00
A12: MBB 2011-1 | B12: 0 | C12: 0 | D12: =IF(B12=0,0,C12/B12)*100 -> 0.00 | E12: 0 | F12: 0 | G12: =IF(E12=0,0,F12/E12)*100 -> 0.00 | H12: 0 | I12: =IF(E12=0,0,H12/E12)*100 -> 0.00
A15: MBB 2011-2 | B15: 0 | C15: 0 | D15: =IF(B15=0,0,C15/B15)*100 -> 0.00 | E15: 0 | F15: 0 | G15: =IF(E15=0,0,F15/E15)*100 -> 0.00 | H15: 0 | I15: =IF(E15=0,0,H15/E15)*100 -> 0.00
A18: MBB 2011-3 | B18: 116,931 | C18: 7,356 | D18: =IF(B18=0,0,C18/B18)*100 -> 6.29 | E18: 109,074 | F18: 434 | G18: =IF(E18=0,0,F18/E18)*100 -> 0.40 | H18: 2,150 | I18: =IF(E18=0,0,H18/E18)*100 -> 1.97
A21: MBB 2011-4 | B21: 0 | C21: 0 | D21: =IF(B21=0,0,C21/B21)*100 -> 0.00 | E21: 0 | F21: 0 | G21: =IF(E21=0,0,F21/E21)*100 -> 0.00 | H21: 0 | I21: =IF(E21=0,0,H21/E21)*100 -> 0.00
A24: MBB 2011-5 | B24: 0 | C24: 0 | D24: =IF(B24=0,0,C24/B24)*100 -> 0.00 | E24: 0 | F24: 0 | G24: =IF(E24=0,0,F24/E24)*100 -> 0.00 | H24: 0 | I24: =IF(E24=0,0,H24/E24)*100 -> 0.00
A27: MBB 2012-1 | B27: 0 | C27: 0 | D27: =IF(B27=0,0,C27/B27)*100 -> 0.00 | E27: 0 | F27: 0 | G27: =IF(E27=0,0,F27/E27)*100 -> 0.00 | H27: 0 | I27: =IF(E27=0,0,H27/E27)*100 -> 0.00
A30: MBB 2013-1 | B30: 836,387 | C30: 31,894 | D30: =IF(B30=0,0,C30/B30)*100 -> 3.81 | E30: 919,494 | F30: 489 | G30: =IF(E30=0,0,F30/E30)*100 -> 0.05 | H30: 2,480 | I30: =IF(E30=0,0,H30/E30)*100 -> 0.27
A33: MBB 2015-1 | B33: 696,573 | C33: 10,377 | D33: =IF(B33=0,0,C33/B33)*100 -> 1.49 | E33: 683,863 | F33: 68 | G33: =IF(E33=0,0,F33/E33)*100 -> 0.01 | H33: 898 | I33: =IF(E33=0,0,H33/E33)*100 -> 0.13
A36: 합계 | B36: =SUM(B9,B12,B15,B18,B21,B24,B27,B30,B33) -> 1,649,890 | C36: =SUM(C9,C12,C15,C18,C21,C24,C27,C30,C33) -> 49,627 | D36: =IF(B36=0,0,C36/B36)*100 -> 3.01 | E36: =SUM(E9,E12,E15,E18,E21,E24,E27,E30,E33) -> 1,712,432 | F36: =SUM(F9,F12,F15,F18,F21,F24,F27,F30,F33) -> 990 | G36: =IF(E36=0,0,F36/E36)*100 -> 0.06 | H36: =SUM(H9,H12,H15,H18,H21,H24,H27,H30,H33) -> 5,527 | I36: =IF(E36=0,0,H36/E36)*100 -> 0.32
A38: 1) 단순연체율 = 연체원리금 / 당월말 대출잔액
A39: 2) 1개월 이상 연체율 = 1개월 이상 연체대출잔액 / 당월말 대출잔액

Sheet 7. 지역별 판매실적
A1: 7. 지역별 판매실적 | M1: Bogeumjari(Mortgage) Loan Origination by Region
A3: 단위 : 억원, 건 | W3: Hundred million won, #
A4: 연월중 | C4: 전국 | D4: 서울 | E4: 부산 | F4: 대구 | G4: 인천 | H4: 광주 | I4: 대전 | J4: 울산 | K4: 세종 | L4: 경기 | M4: 강원 | N4: 충북 | O4: 충남 | P4: 전북 | Q4: 전남 | R4: 경북 | S4: 경남 | T4: 제주 | U4: 기타 | V4: 연월중
A6: During | C6: Total | D6: Seoul | E6: Busan | F6: Daegu | G6: Incheon | H6: Gwangju | I6: Daejeon | J6: Ulsan | K6: Sejong | L6: Gyeonggi | M6: Gangwon | N6: Chungbuk | O6: Chungnam | P6: Jeonbuk | Q6: Jeonnam | R6: Gyeongbuk | S6: Gyeongnam | T6: Jeju | U6: Others | V6: During
A8: 대출금액1) | M8: Loan Amount
A9: 2004 | C9: =SUM(D9:U9) -> 33,320 | D9: 7,529 | E9: 2,834 | F9: 1,241 | G9: 2,317 | H9: 927 | I9: 1,170 | J9: 708 | K9: 0 | L9: 11,738 | M9: 386 | N9: 641 | O9: 683 | P9: 624 | Q9: 322 | R9: 555 | S9: 1,559 | T9: 85 | U9: 0 | V9: 2004
A10: 2005 | C10: 42,190 | D10: =SUM(D23:D34) -> 8,757 | E10: 3,297 | F10: 1,590 | G10: 2,987 | H10: 1,152 | I10: 1,533 | J10: 929 | K10: 0 | L10: 14,821 | M10: 432 | N10: 842 | O10: 1,002 | P10: 721 | Q10: 339 | R10: 703 | S10: 2,113 | T10: 91 | U10: 881 | V10: 2005
A11: 2006 | C11: 13,869 | D11: =SUM(D36:D47) -> 2,743 | E11: 943 | F11: 520 | G11: 1,010 | H11: 391 | I11: 372 | J11: 425 | K11: 0 | L11: 5,020 | M11: 185 | N11: 361 | O11: 480 | P11: 272 | Q11: 121 | R11: 307 | S11: 700 | T11: 19 | U11: 0 | V11: 2006
A12: 2007 | C12: 35,949 | D12: =SUM(D49:D60) -> 8,773 | E12: 1,900 | F12: 1,109 | G12: 3,572 | H12: 522 | I12: 749 | J12: 918 | K12: 0 | L12: 14,327 | M12: 237 | N12: 478 | O12: 1,113 | P12: 471 | Q12: 180 | R12: 398 | S12: 1,148 | T12: 49 | U12: 5 | V12: 2007
A13: 2008 | C13: 42,432 | D13: =SUM(D62:D73) -> 9,760 | E13: 2,057 | F13: 1,294 | G13: 6,048 | H13: 500 | I13: 609 | J13: 1,118 | K13: 0 | L13: 17,244 | M13: 268 | N13: 340 | O13: 815 | P13: 548 | Q13: 106 | R13: 382 | S13: 1,308 | T13: 35 | U13: 0 | V13: 2008
A14: 2009 | C14: 59,421 | D14: =SUM(D75:D86) -> 12,505 | E14: 3,411 | F14: 1,250 | G14: 4,953 | H14: 1,252 | I14: 1,308 | J14: 1,487 | K14: 0 | L14: 25,867 | M14: 343 | N14: 1,056 | O14: 2,152 | P14: 779 | Q14: 258 | R14: 567 | S14: 2,189 | T14: 35 | U14: 9 | V14: 2009
A15: 2010 | C15: 58,484 | D15: =SUM(D88:D99) -> 11,197 | E15: 4,251 | F15: 1,570 | G15: 5,481 | H15: 1,796 | I15: 2,005 | J15: 1,530 | K15: 0 | L15: 22,252 | M15: 561 | N15: 913 | O15: 2,147 | P15: 890 | Q15: 334 | R15: 718 | S15: 2,739 | T15: 100 | U15: 0 | V15: 2010
A16: 2011 | C16: 94,146 | D16: =SUM(D101:D112) -> 14,945 | E16: 6,358 | F16: 3,143 | G16: 7,561 | H16: 3,549 | I16: 3,397 | J16: 1,698 | K16: 0 | L16: 38,162 | M16: 1,170 | N16: 2,070 | O16: 3,650 | P16: 1,787 | Q16: 701 | R16: 1,214 | S16: 4,396 | T16: 345 | U16: 0 | V16: 2011
A17: 2012 | C17: 112,065 | D17: =SUM(D114:D125) -> 15,268 | E17: 6,713 | F17: 5,875 | G17: 10,285 | H17: 4,629 | I17: 3,322 | J17: 2,526 | K17: 147 | L17: 42,858 | M17: 1,420 | N17: 2,685 | O17: 4,797 | P17: 2,224 | Q17: 1,206 | R17: 2,360 | S17: 5,233 | T17: 516 | U17: 1 | V17: 2012
A18: 2013 | C18: =SUM(D18:U18) -> 119,054 | D18: =SUM(D127:D138) -> 15,458 | E18: =SUM(E127:E138) -> 8,188 | F18: 6,709 | G18: 11,399 | H18: 4,126 | I18: 3,761 | J18: 2,405 | K18: 213 | L18: 43,635 | M18: 1,659 | N18: 3,100 | O18: 4,578 | P18: 1,870 | Q18: 1,091 | R18: 2,777 | S18: 7,451 | T18: 618 | U18: 16 | V18: 2013
A19: 2014 | C19: =SUM(D19:U19) -> 84,693 | D19: =SUM(D140:D151) -> 12,096 | E19: =SUM(E140:E151) -> 7,416 | F19: 4,477 | G19: 4,596 | H19: 3,193 | I19: 2,792 | J19: 2,459 | K19: 1,151 | L19: 23,258 | M19: 2,071 | N19: 2,386 | O19: 3,522 | P19: 1,881 | Q19: 1,489 | R19: 2,607 | S19: 8,550 | T19: 722 | U19: 27 | V19: 2014
A20: 2015 | C20: =SUM(D20:U20) -> 147,410 | D20: =SUM(D153:D164) -> 23,233 | E20: =SUM(E153:E164) -> 12,050 | F20: 8,057 | G20: 10,642 | H20: 5,156 | I20: 4,716 | J20: 4,135 | K20: 1,517 | L20: 44,713 | M20: 2,427 | N20: =SUM(N153:N164) -> 3,847 | O20: 5,784 | P20: 3,030 | Q20: 2,621 | R20: 4,554 | S20: 9,984 | T20: 942 | U20: 2 | V20: 2015
A21: 2016 | C21: =SUM(C166:C173) -> 94,184 | D21: =SUM(D166:D173) -> 15,357 | E21: 6,617 | F21: 5,897 | G21: 7,151 | H21: 3,990 | I21: 2,822 | J21: 2,321 | K21: 818 | L21: 27,713 | M21: 1,237 | N21: 2,578 | O21: 3,867 | P21: 2,152 | Q21: 1,822 | R21: 3,122 | S21: 5,919 | T21: 760 | U21: 41 | V21: 2016
A23: 2005 | B23: 1 | C23: =SUM(D23:U23) -> 3,412 | D23: 673 | E23: 292 | F23: 160 | G23: 237 | H23: 123 | I23: 125 | J23: 86 | K23: 0 | L23: 1,186 | M23: 37 | N23: 52 | O23: 78 | P23: 58 | Q23: 30 | R23: 70 | S23: 192 | T23: 13 | U23: 0 | V23: J | W23: 2005
B24: 2 | C24: 4,797 | D24: 1,009 | E24: 365 | F24: 184 | G24: 314 | H24: 128 | I24: 175 | J24: 103 | K24: 0 | L24: 1,790 | M24: 45 | N24: 90 | O24: 122 | P24: 78 | Q24: 37 | R24: 79 | S24: 261 | T24: 17 | U24: 0 | V24: F
B25: 3 | C25: 6,864 | D25: 1,478 | E25: 509 | F25: 218 | G25: 509 | H25: 153 | I25: 283 | J25: 135 | K25: 0 | L25: 2,686 | M25: 68 | N25: 122 | O25: 152 | P25: 91 | Q25: 43 | R25: 101 | S25: 309 | T25: 7 | U25: 0 | V25: M
B26: 4 | C26: 5,626 | D26: 1,204 | E26: 445 | F26: 189 | G26: 416 | H26: 129 | I26: 216 | J26: 127 | K26: 0 | L26: 2,081 | M26: 44 | N26: 111 | O26: 130 | P26: 80 | Q26: 44 | R26: 83 | S26: 319 | T26: 8 | U26: 0 | V26: A
B27: 5 | C27: 3,935 | D27: 840 | E27: 304 | F27: 167 | G27: 274 | H27: 116 | I27: 154 | J27: 84 | K27: 0 | L27: 1,431 | M27: 42 | N27: 69 | O27: 85 | P27: 60 | Q27: 35 | R27: 71 | S27: 193 | T27: 10 | U27: 0 | V27: M
B28: 6 | C28: 3,756 | D28: 913 | E28: 317 | F28: 168 | G28: 241 | H28: 121 | I28: 140 | J28: 76 | K28: 0 | L28: 1,179 | M28: 39 | N28: 66 | O28: 99 | P28: 75 | Q28: 29 | R28: 65 | S28: 219 | T28: 9 | U28: 0 | V28: J
B29: 7 | C29: 3,138 | D29: 635 | E29: 220 | F29: 119 | G29: 243 | H29: 96 | I29: 103 | J29: 65 | K29: 0 | L29: 1,186 | M29: 35 | N29: 61 | O29: 76 | P29: 71 | Q29: 24 | R29: 44 | S29: 152 | T29: 8 | U29: 0 | V29: J
B30: 8 | C30: 3,190 | D30: 681 | E30: 239 | F30: 93 | G30: 215 | H30: 84 | I30: 95 | J30: 57 | K30: 0 | L30: 1,105 | M30: 29 | N30: 58 | O30: 72 | P30: 61 | Q30: 22 | R30: 41 | S30: 121 | T30: 4 | U30: 213 | V30: A
B31: 9 | C31: 2,655 | D31: 533 | E31: 209 | F31: 88 | G31: 204 | H31: 64 | I31: 75 | J31: 56 | K31: 0 | L31: 854 | M31: 29 | N31: 53 | O31: 41 | P31: 45 | Q31: 25 | R31: 37 | S31: 110 | T31: 1 | U31: 231 | V31: S
B32: 10 | C32: 1,965 | D32: 372 | E32: 158 | F32: 85 | G32: 142 | H32: 61 | I32: 73 | J32: 74 | K32: 0 | L32: 574 | M32: 25 | N32: 59 | O32: 63 | P32: 33 | Q32: 18 | R32: 36 | S32: 98 | T32: 5 | U32: 89 | V32: O
B33: 11 | C33: 1,420 | D33: 212 | E33: 123 | F33: 47 | G33: 91 | H33: 34 | I33: 38 | J33: 35 | K33: 0 | L33: 384 | M33: 17 | N33: 51 | O33: 37 | P33: 37 | Q33: 15 | R33: 33 | S33: 72 | T33: 5 | U33: 189 | V33: N
B34: 12 | C34: 1,432 | D34: 207 | E34: 116 | F34: 72 | G34: 101 | H34: 43 | I34: 56 | J34: 31 | K34: 0 | L34: 365 | M34: 22 | N34: 50 | O34: 47 | P34: 32 | Q34: 17 | R34: 43 | S34: 67 | T34: 4 | U34: 159 | V34: D
A36: 2006 | B36: 1 | C36: =SUM(D36:U36) -> 672 | D36: 136 | E36: 75 | F36: 21 | G36: 49 | H36: 23 | I36: 22 | J36: 18 | K36: 0 | L36: 187 | M36: 6 | N36: 23 | O36: 32 | P36: 11 | Q36: 6 | R36: 18 | S36: 43 | T36: 2 | U36: 0 | V36: J | W36: 2006
B37: 2 | C37: 1,022 | D37: 176 | E37: 90 | F37: 45 | G37: 84 | H37: 34 | I37: 37 | J37: 43 | K37: 0 | L37: 299 | M37: 24 | N37: 44 | O37: 34 | P37: 23 | Q37: 12 | R37: 24 | S37: 52 | T37: 1 | U37: 0 | V37: F
B38: 3 | C38: 1,015 | D38: 165 | E38: 78 | F38: 37 | G38: 71 | H38: 31 | I38: 35 | J38: 29 | K38: 0 | L38: 349 | M38: 13 | N38: 39 | O38: 38 | P38: 23 | Q38: 14 | R38: 28 | S38: 64 | T38: 1 | U38: 0 | V38: M
B39: 4 | C39: 870 | D39: 132 | E39: 75 | F39: 45 | G39: 75 | H39: 20 | I39: 29 | J39: 23 | K39: 0 | L39: 289 | M39: 6 | N39: 25 | O39: 33 | P39: 15 | Q39: 11 | R39: 36 | S39: 54 | T39: 2 | U39: 0 | V39: A
B40: 5 | C40: 733 | D40: 123 | E40: 50 | F40: 23 | G40: 55 | H40: 26 | I40: 19 | J40: 37 | K40: 0 | L40: 255 | M40: 9 | N40: 23 | O40: 24 | P40: 12 | Q40: 10 | R40: 22 | S40: 44 | T40: 1 | U40: 0 | V40: M
B41: 6 | C41: 855 | D41: 124 | E41: 54 | F41: 31 | G41: 56 | H41: 27 | I41: 22 | J41: 39 | K41: 0 | L41: 309 | M41: 24 | N41: 26 | O41: 32 | P41: 16 | Q41: 10 | R41: 26 | S41: 57 | T41: 2 | U41: 0 | V41: J
B42: 7 | C42: 1,278 | D42: 253 | E42: 73 | F42: 39 | G42: 64 | H42: 34 | I42: 32 | J42: 45 | K42: 0 | L42: 498 | M42: 18 | N42: 40 | O42: 52 | P42: 28 | Q42: 9 | R42: 25 | S42: 67 | T42: 1 | U42: 0 | V42: J
B43: 8 | C43: 1,388 | D43: 328 | E43: 64 | F43: 54 | G43: 74 | H43: 32 | I43: 37 | J43: 39 | K43: 0 | L43: 532 | M43: 22 | N43: 26 | O43: 45 | P43: 24 | Q43: 9 | R43: 34 | S43: 66 | T43: 2 | U43: 0 | V43: A
B44: 9 | C44: 1,870 | D44: 378 | E44: 132 | F44: 89 | G44: 106 | H44: 56 | I44: 40 | J44: 50 | K44: 0 | L44: 709 | M44: 16 | N44: 50 | O44: 71 | P44: 43 | Q44: 12 | R44: 27 | S44: 90 | T44: 1 | U44: 0 | V44: S
B45: 10 | C45: 1,244 | D45: 276 | E45: 79 | F45: 40 | G45: 129 | H45: 28 | I45: 31 | J45: 29 | K45: 0 | L45: 451 | M45: 9 | N45: 23 | O45: 38 | P45: 29 | Q45: 12 | R45: 20 | S45: 49 | T45: 1 | U45: 0 | V45: O
B46: 11 | C46: 1,231 | D46: 244 | E46: 67 | F46: 38 | G46: 98 | H46: 36 | I46: 27 | J46: 36 | K46: 0 | L46: 503 | M46: 13 | N46: 17 | O46: 37 | P46: 22 | Q46: 6 | R46: 24 | S46: 60 | T46: 3 | U46: 0 | V46: N
B47: 12 | C47: 1,691 | D47: 408 | E47: 106 | F47: 58 | G47: 149 | H47: 44 | I47: 41 | J47: 37 | K47: 0 | L47: 639 | M47: 25 | N47: 25 | O47: 44 | P47: 26 | Q47: 10 | R47: 23 | S47: 54 | T47: 2 | U47: 0 | V47: D | W47: 2006
A49: 2007 | B49: 1 | C49: =SUM(D49:U49) -> 2,412 | D49: 617 | E49: 152 | F49: 99 | G49: 176 | H49: 43 | I49: 57 | J49: 55 | K49: 0 | L49: 905 | M49: 17 | N49: 35 | O49: 69 | P49: 39 | Q49: 11 | R49: 43 | S49: 84 | T49: 9 | U49: 1 | V49: J | W49: 2007
B50: 2 | C50: 2,782 | D50: 712 | E50: 136 | F50: 107 | G50: 193 | H50: 55 | I50: 88 | J50: 62 | K50: 0 | L50: 1,087 | M50: 22 | N50: 42 | O50: 83 | P50: 42 | Q50: 17 | R50: 39 | S50: 92 | T50: 4 | U50: 1 | V50: F
B51: 3 | C51: 2,522 | D51: 667 | E51: 133 | F51: 77 | G51: 180 | H51: 58 | I51: 82 | J51: 75 | K51: 0 | L51: 921 | M51: 15 | N51: 34 | O51: 88 | P51: 43 | Q51: 14 | R51: 36 | S51: 93 | T51: 5 | U51: 1 | V51: M
B52: 4 | C52: 2,448 | D52: 599 | E52: 127 | F52: 79 | G52: 213 | H52: 41 | I52: 56 | J52: 60 | K52: 0 | L52: 939 | M52: 13 | N52: 38 | O52: 111 | P52: 29 | Q52: 15 | R52: 33 | S52: 88 | T52: 7 | U52: 0 | V52: A
B53: 5 | C53: 2,502 | D53: 643 | E53: 118 | F53: 69 | G53: 237 | H53: 41 | I53: 53 | J53: 65 | K53: 0 | L53: 962 | M53: 17 | N53: 42 | O53: 94 | P53: 29 | Q53: 12 | R53: 29 | S53: 89 | T53: 2 | U53: 0 | V53: M
B54: 6 | C54: 2,732 | D54: 660 | E54: 159 | F54: 73 | G54: 291 | H54: 32 | I54: 52 | J54: 88 | K54: 0 | L54: 1,068 | M54: 14 | N54: 37 | O54: 104 | P54: 21 | Q54: 12 | R54: 30 | S54: 90 | T54: 1 | U54: 0 | V54: J
B55: 7 | C55: 3,603 | D55: 890 | E55: 182 | F55: 113 | G55: 305 | H55: 52 | I55: 76 | J55: 87 | K55: 0 | L55: 1,502 | M55: 19 | N55: 50 | O55: 113 | P55: 41 | Q55: 17 | R55: 41 | S55: 112 | T55: 3 | U55: 0 | V55: J
B56: 8 | C56: 3,228 | D56: 811 | E56: 156 | F56: 81 | G56: 352 | H56: 32 | I56: 58 | J56: 78 | K56: 0 | L56: 1,379 | M56: 15 | N56: 44 | O56: 72 | P56: 25 | Q56: 28 | R56: 23 | S56: 73 | T56: 1 | U56: 0 | V56: A
B57: 9 | C57: 2,500 | D57: 601 | E57: 90 | F57: 63 | G57: 270 | H57: 25 | I57: 50 | J57: 77 | K57: 0 | L57: 1,069 | M57: 21 | N57: 33 | O57: 70 | P57: 25 | Q57: 5 | R57: 24 | S57: 73 | T57: 4 | U57: 0 | V57: S
B58: 10 | C58: 3,443 | D58: 828 | E58: 147 | F58: 78 | G58: 399 | H58: 46 | I58: 47 | J58: 74 | K58: 0 | L58: 1,467 | M58: 26 | N58: 28 | O58: 114 | P58: 38 | Q58: 18 | R58: 28 | S58: 103 | T58: 1 | U58: 1 | V58: O
B59: 11 | C59: 3,267 | D59: 724 | E59: 210 | F59: 100 | G59: 423 | H59: 45 | I59: 43 | J59: 86 | K59: 0 | L59: 1,294 | M59: 29 | N59: 35 | O59: 94 | P59: 41 | Q59: 15 | R59: 28 | S59: 95 | T59: 4 | U59: 1 | V59: N | W59: 2007
B60: 12 | C60: 4,510 | D60: 1,021 | E60: 290 | F60: 170 | G60: 533 | H60: 52 | I60: 87 | J60: 111 | K60: 0 | L60: 1,734 | M60: 29 | N60: 60 | O60: 101 | P60: 98 | Q60: 16 | R60: 44 | S60: 156 | T60: 8 | U60: 0 | V60: D
A62: 2008 | B62: 1 | C62: =SUM(D62:U62) -> 5,863 | D62: 1,278 | E62: 356 | F62: 305 | G62: 617 | H62: 80 | I62: 141 | J62: 171 | K62: 0 | L62: 2,188 | M62: 75 | N62: 56 | O62: 159 | P62: 146 | Q62: 22 | R62: 60 | S62: 199 | T62: 10 | U62: 0 | V62: J | W62: 2008
B63: 2 | C63: 4,991 | D63: 1,206 | E63: 245 | F63: 171 | G63: 563 | H63: 51 | I63: 129 | J63: 155 | K63: 0 | L63: 2,014 | M63: 29 | N63: 51 | O63: 110 | P63: 66 | Q63: 17 | R63: 32 | S63: 144 | T63: 8 | U63: 0 | V63: F
B64: 3 | C64: 3,929 | D64: 966 | E64: 206 | F64: 126 | G64: 523 | H64: 52 | I64: 45 | J64: 122 | K64: 0 | L64: 1,545 | M64: 26 | N64: 36 | O64: 75 | P64: 47 | Q64: 10 | R64: 41 | S64: 109 | T64: 0 | U64: 0 | V64: M
B65: 4 | C65: 5,149 | D65: 1,215 | E65: 381 | F65: 122 | G65: 747 | H65: 58 | I65: 71 | J65: 144 | K65: 0 | L65: 1,999 | M65: 30 | N65: 27 | O65: 88 | P65: 37 | Q65: 8 | R65: 30 | S65: 191 | T65: 1 | U65: 0 | V65: A
B66: 5 | C66: 4,119 | D66: 1,124 | E66: 167 | F66: 76 | G66: 621 | H66: 33 | I66: 24 | J66: 78 | K66: 0 | L66: 1,701 | M66: 19 | N66: 25 | O66: 56 | P66: 36 | Q66: 6 | R66: 24 | S66: 127 | T66: 2 | U66: 0 | V66: M
B67: 6 | C67: 3,765 | D67: 988 | E67: 125 | F67: 67 | G67: 645 | H67: 19 | I67: 22 | J67: 93 | K67: 0 | L67: 1,597 | M67: 11 | N67: 15 | O67: 35 | P67: 29 | Q67: 13 | R67: 19 | S67: 84 | T67: 3 | U67: 0 | V67: J
B68: 7 | C68: 4,244 | D68: 1,023 | E68: 120 | F68: 76 | G68: 717 | H68: 28 | I68: 23 | J68: 82 | K68: 0 | L68: 1,926 | M68: 12 | N68: 17 | O68: 38 | P68: 47 | Q68: 8 | R68: 19 | S68: 106 | T68: 2 | U68: 0 | V68: J
B69: 8 | C69: 4,341 | D69: 917 | E69: 155 | F69: 107 | G69: 765 | H69: 29 | I69: 41 | J69: 78 | K69: 0 | L69: 1,949 | M69: 14 | N69: 33 | O69: 55 | P69: 37 | Q69: 4 | R69: 52 | S69: 104 | T69: 1 | U69: 0 | V69: A
B70: 9 | C70: 2,830 | D70: 575 | E70: 97 | F70: 91 | G70: 455 | H70: 41 | I70: 44 | J70: 73 | K70: 0 | L70: 1,186 | M70: 13 | N70: 25 | O70: 75 | P70: 40 | Q70: 4 | R70: 30 | S70: 79 | T70: 2 | U70: 0 | V70: S | W70: 2008
B71: 10 | C71: 1,879 | D71: 317 | E71: 90 | F71: 71 | G71: 254 | H71: 68 | I71: 43 | J71: 54 | K71: 0 | L71: 725 | M71: 22 | N71: 31 | O71: 57 | P71: 27 | Q71: 7 | R71: 34 | S71: 75 | T71: 4 | U71: 0 | V71: O
B72: 11 | C72: 870 | D72: 98 | E72: 64 | F72: 63 | G72: 102 | H72: 22 | I72: 13 | J72: 36 | K72: 0 | L72: 299 | M72: 12 | N72: 18 | O72: 38 | P72: 22 | Q72: 4 | R72: 26 | S72: 52 | T72: 1 | U72: 0 | V72: N
B73: 12 | C73: 452 | D73: 53 | E73: 51 | F73: 19 | G73: 39 | H73: 19 | I73: 13 | J73: 32 | K73: 0 | L73: 115 | M73: 5 | N73: 6 | O73: 29 | P73: 14 | Q73: 3 | R73: 15 | S73: 38 | T73: 1 | U73: 0 | V73: D
A75: 2009 | B75: 1 | C75: =SUM(D75:U75) -> 343 | D75: 36 | E75: 29 | F75: 14 | G75: 42 | H75: 10 | I75: 7 | J75: 26 | K75: 0 | L75: 119 | M75: 0 | N75: 2 | O75: 9 | P75: 13 | Q75: 3 | R75: 8 | S75: 24 | T75: 1 | U75: 0 | V75: J | W75: 2009
B76: 2 | C76: 946 | D76: 158 | E76: 62 | F76: 36 | G76: 63 | H76: 29 | I76: 26 | J76: 83 | K76: 0 | L76: 336 | M76: 2 | N76: 19 | O76: 36 | P76: 25 | Q76: 4 | R76: 14 | S76: 52 | T76: 1 | U76: 0 | V76: F
B77: 3 | C77: 3,015 | D77: 487 | E77: 88 | F77: 79 | G77: 209 | H77: 47 | I77: 59 | J77: 122 | K77: 0 | L77: 1,517 | M77: 7 | N77: 144 | O77: 53 | P77: 30 | Q77: 6 | R77: 32 | S77: 132 | T77: 1 | U77: 2 | V77: M
B78: 4 | C78: 4,627 | D78: 743 | E78: 238 | F78: 56 | G78: 425 | H78: 51 | I78: 58 | J78: 167 | K78: 0 | L78: 2,397 | M78: 28 | N78: 86 | O78: 131 | P78: 36 | Q78: 4 | R78: 20 | S78: 185 | T78: 0 | U78: 2 | V78: A
B79: 5 | C79: 4,396 | D79: 813 | E79: 320 | F79: 49 | G79: 310 | H79: 57 | I79: 55 | J79: 190 | K79: 0 | L79: 2,112 | M79: 21 | N79: 103 | O79: 136 | P79: 29 | Q79: 6 | R79: 24 | S79: 166 | T79: 2 | U79: 3 | V79: M
B80: 6 | C80: 4,872 | D80: 1,061 | E80: 287 | F80: 91 | G80: 363 | H80: 92 | I80: 64 | J80: 167 | K80: 0 | L80: 2,163 | M80: 11 | N80: 100 | O80: 144 | P80: 66 | Q80: 12 | R80: 42 | S80: 208 | T80: 1 | U80: 0 | V80: J
B81: 7 | C81: 4,563 | D81: 1,046 | E81: 294 | F81: 121 | G81: 338 | H81: 150 | I81: 113 | J81: 140 | K81: 0 | L81: 1,742 | M81: 39 | N81: 77 | O81: 172 | P81: 83 | Q81: 11 | R81: 40 | S81: 195 | T81: 2 | U81: 0 | V81: J
B82: 8 | C82: 4,875 | D82: 1,197 | E82: 265 | F82: 105 | G82: 366 | H82: 133 | I82: 154 | J82: 160 | K82: 0 | L82: 1,917 | M82: 29 | N82: 57 | O82: 177 | P82: 64 | Q82: 12 | R82: 78 | S82: 157 | T82: 4 | U82: 0 | V82: A
B83: 9 | C83: 6,570 | D83: 1,501 | E83: 400 | F83: 160 | G83: 549 | H83: 150 | I83: 199 | J83: 125 | K83: 0 | L83: 2,724 | M83: 44 | N83: 89 | O83: 220 | P83: 94 | Q83: 26 | R83: 78 | S83: 208 | T83: 3 | U83: 0 | V83: S
B84: 10 | C84: 9,464 | D84: 2,206 | E84: 519 | F84: 201 | G84: 903 | H84: 191 | I84: 204 | J84: 106 | K84: 0 | L84: 4,048 | M84: 75 | N84: 91 | O84: 393 | P84: 136 | Q84: 83 | R84: 70 | S84: 235 | T84: 3 | U84: 0 | V84: O
B85: 11 | C85: 8,901 | D85: 2,062 | E85: 455 | F85: 179 | G85: 881 | H85: 171 | I85: 185 | J85: 97 | K85: 0 | L85: 3,847 | M85: 47 | N85: 148 | O85: 321 | P85: 100 | Q85: 62 | R85: 84 | S85: 253 | T85: 7 | U85: 2 | V85: N
B86: 12 | C86: 6,849 | D86: 1,195 | E86: 454 | F86: 159 | G86: 504 | H86: 171 | I86: 184 | J86: 104 | K86: 0 | L86: 2,945 | M86: 40 | N86: 140 | O86: 360 | P86: 103 | Q86: 29 | R86: 77 | S86: 374 | T86: 10 | U86: 0 | V86: D
A88: 2010 | B88: 1 | C88: =SUM(D88:U88) -> 3,778 | D88: 617 | E88: 308 | F88: 119 | G88: 272 | H88: 150 | I88: 163 | J88: 82 | K88: 0 | L88: 1,452 | M88: 29 | N88: 46 | O88: 160 | P88: 72 | Q88: 22 | R88: 40 | S88: 237 | T88: 9 | U88: 0 | V88: J
B89: 2 | C89: 3,992 | D89: 679 | E89: 320 | F89: 140 | G89: 310 | H89: 180 | I89: 213 | J89: 72 | K89: 0 | L89: 1,419 | M89: 28 | N89: 65 | O89: 176 | P89: 83 | Q89: 15 | R89: 69 | S89: 214 | T89: 9 | U89: 0 | V89: F
B90: 3 | C90: 3,364 | D90: 587 | E90: 246 | F90: 123 | G90: 238 | H90: 141 | I90: 171 | J90: 91 | K90: 0 | L90: 1,221 | M90: 36 | N90: 43 | O90: 154 | P90: 61 | Q90: 12 | R90: 47 | S90: 184 | T90: 9 | U90: 0 | V90: M
B91: 4 | C91: 2,678 | D91: 481 | E91: 235 | F91: 80 | G91: 212 | H91: 114 | I91: 106 | J91: 100 | K91: 0 | L91: 923 | M91: 22 | N91: 47 | O91: 123 | P91: 36 | Q91: 9 | R91: 41 | S91: 147 | T91: 2 | U91: 0 | V91: A
B92: 5 | C92: 2,376 | D92: 381 | E92: 220 | F92: 64 | G92: 228 | H92: 76 | I92: 76 | J92: 88 | K92: 0 | L92: 838 | M92: 30 | N92: 44 | O92: 162 | P92: 38 | Q92: 5 | R92: 26 | S92: 99 | T92: 1 | U92: 0 | V92: M
B93: 6 | C93: 3,702 | D93: 751 | E93: 338 | F93: 77 | G93: 423 | H93: 119 | I93: 102 | J93: 129 | K93: 0 | L93: 1,270 | M93: 42 | N93: 59 | O93: 152 | P93: 45 | Q93: 7 | R93: 45 | S93: 140 | T93: 3 | U93: 0 | V93: J
B94: 7 | C94: 9,838 | D94: 2,320 | E94: 630 | F94: 182 | G94: 929 | H94: 246 | I94: 257 | J94: 209 | K94: 0 | L94: 4,011 | M94: 72 | N94: 89 | O94: 275 | P94: 119 | Q94: 57 | R94: 87 | S94: 339 | T94: 16 | U94: 0 | V94: J
B95: 8 | C95: 8,935 | D95: 1,932 | E95: 515 | F95: 163 | G95: 857 | H95: 215 | I95: 273 | J95: 165 | K95: 0 | L95: 3,848 | M95: 82 | N95: 103 | O95: 207 | P95: 102 | Q95: 45 | R95: 64 | S95: 351 | T95: 13 | U95: 0 | V95: A
B96: 9 | C96: 5,077 | D96: 1,044 | E96: 309 | F96: 126 | G96: 578 | H96: 152 | I96: 149 | J96: 88 | K96: 0 | L96: 1,988 | M96: 53 | N96: 78 | O96: 163 | P96: 65 | Q96: 51 | R96: 61 | S96: 165 | T96: 7 | U96: 0 | V96: S
B97: 10 | C97: 4,389 | D97: 753 | E97: 298 | F97: 117 | G97: 506 | H97: 120 | I97: 144 | J97: 67 | K97: 0 | L97: 1,627 | M97: 54 | N97: 93 | O97: 199 | P97: 60 | Q97: 37 | R97: 56 | S97: 248 | T97: 10 | U97: 0 | V97: O
B98: 11 | C98: 4,768 | D98: 770 | E98: 367 | F98: 171 | G98: 421 | H98: 144 | I98: 168 | J98: 122 | K98: 0 | L98: 1,758 | M98: 61 | N98: 119 | O98: 166 | P98: 94 | Q98: 29 | R98: 89 | S98: 278 | T98: 11 | U98: 0 | V98: N
B99: 12 | C99: 5,587 | D99: 882 | E99: 465 | F99: 208 | G99: 507 | H99: 139 | I99: 183 | J99: 317 | K99: 0 | L99: 1,897 | M99: 52 | N99: 127 | O99: 210 | P99: 115 | Q99: 45 | R99: 93 | S99: 337 | T99: 10 | U99: 0 | V99: D | W99: 2010
A101: 2011 | B101: 1 | C101: =SUM(D101:U101) -> 4,489 | D101: 752 | E101: 391 | F101: 161 | G101: 382 | H101: 133 | I101: 164 | J101: 158 | K101: 0 | L101: 1,464 | M101: 43 | N101: 117 | O101: 192 | P101: 66 | Q101: 25 | R101: 74 | S101: 309 | T101: 58 | U101: 0 | V101: J
B102: 2 | C102: 5,991 | D102: 1,050 | E102: 533 | F102: 216 | G102: 466 | H102: 164 | I102: 280 | J102: 113 | K102: 0 | L102: 2,071 | M102: 56 | N102: 155 | O102: 259 | P102: 95 | Q102: 37 | R102: 113 | S102: 357 | T102: 26 | U102: 0 | V102: F
B103: 3 | C103: 7,816 | D103: 1,464 | E103: 517 | F103: 259 | G103: 633 | H103: 198 | I103: 252 | J103: 153 | K103: 0 | L103: 3,014 | M103: 78 | N103: 179 | O103: 294 | P103: 180 | Q103: 80 | R103: 106 | S103: 387 | T103: 22 | U103: 0 | V103: M
B104: 4 | C104: 7,967 | D104: 1,340 | E104: 645 | F104: 268 | G104: 575 | H104: 261 | I104: 191 | J104: 140 | K104: 0 | L104: 3,164 | M104: 89 | N104: 193 | O104: 310 | P104: 177 | Q104: 43 | R104: 106 | S104: 452 | T104: 13 | U104: 0 | V104: A
B105: 5 | C105: 6,578 | D105: 1,038 | E105: 504 | F105: 209 | G105: 537 | H105: 162 | I105: 164 | J105: 120 | K105: 0 | L105: 2,677 | M105: 73 | N105: 137 | O105: 246 | P105: 110 | Q105: 43 | R105: 76 | S105: 471 | T105: 11 | U105: 0 | V105: M
B106: 6 | C106: 6,089 | D106: 955 | E106: 480 | F106: 196 | G106: 542 | H106: 229 | I106: 192 | J106: 122 | K106: 0 | L106: 2,445 | M106: 83 | N106: 144 | O106: 181 | P106: 92 | Q106: 35 | R106: 84 | S106: 295 | T106: 14 | U106: 0 | V106: J
B107: 7 | C107: 6,266 | D107: 991 | E107: 425 | F107: 230 | G107: 445 | H107: 272 | I107: 263 | J107: 105 | K107: 0 | L107: 2,547 | M107: 83 | N107: 116 | O107: 262 | P107: 107 | Q107: 67 | R107: 78 | S107: 265 | T107: 10 | U107: 0 | V107: J
B108: 8 | C108: 6,116 | D108: 1,035 | E108: 375 | F108: 182 | G108: 460 | H108: 282 | I108: 317 | J108: 123 | K108: 0 | L108: 2,387 | M108: 77 | N108: 142 | O108: 264 | P108: 88 | Q108: 58 | R108: 59 | S108: 252 | T108: 15 | U108: 0 | V108: A
B109: 9 | C109: 9,668 | D109: 1,509 | E109: 588 | F109: 308 | G109: 871 | H109: 357 | I109: 386 | J109: 171 | K109: 0 | L109: 3,949 | M109: 139 | N109: 204 | O109: 409 | P109: 184 | Q109: 98 | R109: 100 | S109: 368 | T109: 27 | U109: 0 | V109: S
B110: 10 | C110: 11,372 | D110: 1,734 | E110: 652 | F110: 308 | G110: 1,056 | H110: 348 | I110: 376 | J110: 156 | K110: 0 | L110: 5,002 | M110: 210 | N110: 210 | O110: 458 | P110: 208 | Q110: 64 | R110: 102 | S110: 470 | T110: 18 | U110: 0 | V110: O
B111: 11 | C111: 10,250 | D111: 1,587 | E111: 536 | F111: 358 | G111: 823 | H111: 364 | I111: 391 | J111: 142 | K111: 0 | L111: 4,614 | M111: 129 | N111: 202 | O111: 355 | P111: 199 | Q111: 66 | R111: 128 | S111: 343 | T111: 13 | U111: 0 | V111: N
B112: 12 | C112: 11,544 | D112: 1,490 | E112: 712 | F112: 448 | G112: 771 | H112: 779 | I112: 421 | J112: 195 | K112: 0 | L112: 4,828 | M112: 110 | N112: 271 | O112: 420 | P112: 281 | Q112: 85 | R112: 188 | S112: 427 | T112: 118 | U112: 0 | V112: D | W112: 2011
A114: 2012 | B114: 1 | C114: =SUM(D114:U114) -> 2,701 | D114: 408 | E114: 180 | F114: 110 | G114: 170 | H114: 95 | I114: 247 | J114: 71 | K114: 0 | L114: 948 | M114: 42 | N114: 61 | O114: 123 | P114: 58 | Q114: 18 | R114: 42 | S114: 99 | T114: 29 | U114: 0 | V114: J | W114: 2012
B115: 2 | C115: 7,468 | D115: 1,076 | E115: 418 | F115: 351 | G115: 642 | H115: 322 | I115: 314 | J115: 166 | K115: 0 | L115: 2,804 | M115: 117 | N115: 193 | O115: 335 | P115: 157 | Q115: 74 | R115: 149 | S115: 309 | T115: 41 | U115: 0 | V115: F
B116: 3 | C116: 9,680 | D116: 1,316 | E116: 488 | F116: 424 | G116: 861 | H116: 339 | I116: 301 | J116: 261 | K116: 0 | L116: 4,031 | M116: 148 | N116: 218 | O116: 406 | P116: 158 | Q116: 112 | R116: 194 | S116: 386 | T116: 37 | U116: 0 | V116: M
B117: 4 | C117: 7,872 | D117: 1,038 | E117: 477 | F117: 357 | G117: 833 | H117: 268 | I117: 191 | J117: 210 | K117: 0 | L117: 3,068 | M117: 122 | N117: 175 | O117: 358 | P117: 143 | Q117: 55 | R117: 142 | S117: 404 | T117: 31 | U117: 0 | V117: A
B118: 5 | C118: 9,588 | D118: 1,400 | E118: 581 | F118: 453 | G118: 904 | H118: 359 | I118: 282 | J118: 244 | K118: 0 | L118: 3,730 | M118: 117 | N118: 222 | O118: 380 | P118: 186 | Q118: 78 | R118: 195 | S118: 432 | T118: 25 | U118: 0 | V118: M
B119: 6 | C119: 9,215 | D119: 1,402 | E119: 538 | F119: 383 | G119: 803 | H119: 352 | I119: 242 | J119: 223 | K119: 0 | L119: 3,691 | M119: 91 | N119: 225 | O119: 336 | P119: 138 | Q119: 189 | R119: 168 | S119: 404 | T119: 30 | U119: 0 | V119: J
B120: 7 | C120: 8,804 | D120: 1,103 | E120: 553 | F120: 404 | G120: 813 | H120: 273 | I120: 256 | J120: 209 | K120: 0 | L120: 3,515 | M120: 117 | N120: 272 | O120: 438 | P120: 196 | Q120: 92 | R120: 177 | S120: 368 | T120: 18 | U120: 0 | V120: J
B121: 8 | C121: 7,952 | D121: 1,079 | E121: 504 | F121: 418 | G121: 755 | H121: 398 | I121: 203 | J121: 277 | K121: 34 | L121: 2,949 | M121: 98 | N121: 184 | O121: 354 | P121: 139 | Q121: 61 | R121: 149 | S121: 329 | T121: 21 | U121: 0 | V121: A
B122: 9 | C122: 6,618 | D122: 940 | E122: 383 | F122: 342 | G122: 616 | H122: 296 | I122: 202 | J122: 137 | K122: 20 | L122: 2,537 | M122: 77 | N122: 169 | O122: 270 | P122: 132 | Q122: 60 | R122: 132 | S122: 282 | T122: 22 | U122: 1 | V122: S
B123: 10 | C123: 9,523 | D123: 1,295 | E123: 535 | F123: 656 | G123: 904 | H123: 416 | I123: 262 | J123: 180 | K123: 35 | L123: 3,597 | M123: 121 | N123: 232 | O123: 357 | P123: 153 | Q123: 101 | R123: 233 | S123: 400 | T123: 46 | U123: 0 | V123: O
B124: 11 | C124: 13,675 | D124: 1,941 | E124: 776 | F124: 852 | G124: 1,356 | H124: 533 | I124: 330 | J124: 232 | K124: 34 | L124: 5,154 | M124: 146 | N124: 331 | O124: 626 | P124: 204 | Q124: 172 | R124: 260 | S124: 659 | T124: 69 | U124: 0 | V124: N
B125: 12 | C125: 18,969 | D125: 2,270 | E125: 1,280 | F125: 1,125 | G125: 1,628 | H125: 978 | I125: 492 | J125: 316 | K125: 24 | L125: 6,834 | M125: 224 | N125: 403 | O125: 814 | P125: 560 | Q125: 194 | R125: 519 | S125: 1,161 | T125: 147 | U125: 0 | V125: D
A127: 2013 | B127: 1 | C127: =SUM(D127:U127) -> 6,956 | D127: 972 | E127: 393 | F127: 336 | G127: 637 | H127: 214 | I127: 223 | J127: 160 | K127: 14 | L127: 2,488 | M127: 86 | N127: 134 | O127: 285 | P127: 116 | Q127: 63 | R127: 208 | S127: 559 | T127: 68 | U127: 0 | V127: J | W127: 2013
B128: 2 | C128: 11,225 | D128: 1,522 | E128: 677 | F128: 625 | G128: 954 | H128: 434 | I128: 343 | J128: 209 | K128: 48 | L128: 4,157 | M128: 144 | N128: 373 | O128: 450 | P128: 226 | Q128: 129 | R128: 267 | S128: 589 | T128: 78 | U128: 0 | V128: F
B129: 3 | C129: 10,944 | D129: 1,386 | E129: 631 | F129: 516 | G129: 1,091 | H129: 352 | I129: 326 | J129: 206 | K129: 13 | L129: 4,292 | M129: 138 | N129: 375 | O129: 448 | P129: 194 | Q129: 102 | R129: 232 | S129: 593 | T129: 49 | U129: 0 | V129: M
B130: 4 | C130: 16,819 | D130: 2,121 | E130: 1,153 | F130: 922 | G130: 1,617 | H130: 531 | I130: 460 | J130: 333 | K130: 24 | L130: 6,652 | M130: 185 | N130: 417 | O130: 638 | P130: 261 | Q130: 155 | R130: 353 | S130: 942 | T130: 55 | U130: 0 | V130: A
B131: 5 | C131: 16,660 | D131: 2,164 | E131: 1,239 | F131: 1,026 | G131: 1,789 | H131: 510 | I131: 483 | J131: 321 | K131: 22 | L131: 6,471 | M131: 186 | N131: 355 | O131: 569 | P131: 220 | Q131: 149 | R131: 324 | S131: 764 | T131: 68 | U131: 0 | V131: M
B132: 6 | C132: 22,629 | D132: 2,672 | E132: 1,684 | F132: 1,334 | G132: 2,262 | H132: 854 | I132: 675 | J132: 401 | K132: 25 | L132: 7,989 | M132: 424 | N132: 603 | O132: 861 | P132: 305 | Q132: 162 | R132: 514 | S132: 1,763 | T132: 101 | U132: 0 | V132: J
B133: 7 | C133: 10,357 | D133: 1,778 | E133: 758 | F133: 526 | G133: 879 | H133: 333 | I133: 345 | J133: 223 | K133: 25 | L133: 3,632 | M133: 140 | N133: 239 | O133: 414 | P133: 151 | Q133: 96 | R133: 241 | S133: 530 | T133: 47 | U133: 0 | V133: J
B134: 8 | C134: 6,477 | D134: 944 | E134: 398 | F134: 412 | G134: 548 | H134: 237 | I134: 262 | J134: 140 | K134: 19 | L134: 2,274 | M134: 97 | N134: 162 | O134: 278 | P134: 102 | Q134: 54 | R134: 177 | S134: 338 | T134: 35 | U134: 0 | V134: A
B135: 9 | C135: 4,197 | D135: 455 | E135: 342 | F135: 253 | G135: 361 | H135: 156 | I135: 164 | J135: 85 | K135: 2 | L135: 1,421 | M135: 59 | N135: 126 | O135: 167 | P135: 58 | Q135: 34 | R135: 130 | S135: 355 | T135: 16 | U135: 13 | V135: S
B136: 10 | C136: 4,835 | D136: 575 | E136: 369 | F136: 323 | G136: 452 | H136: 185 | I136: 182 | J136: 105 | K136: 6 | L136: 1,627 | M136: 73 | N136: 129 | O136: 163 | P136: 76 | Q136: 51 | R136: 125 | S136: 354 | T136: 37 | U136: 3 | V136: O
B137: 11 | C137: 4,087 | D137: 444 | E137: 254 | F137: 215 | G137: 481 | H137: 165 | I137: 155 | J137: 115 | K137: 2 | L137: 1,336 | M137: 59 | N137: 107 | O137: 156 | P137: 86 | Q137: 46 | R137: 102 | S137: 345 | T137: 19 | U137: 0 | V137: N
B138: 12 | C138: 3,868 | D138: 425 | E138: 290 | F138: 221 | G138: 328 | H138: 155 | I138: 143 | J138: 107 | K138: 13 | L138: 1,296 | M138: 68 | N138: 80 | O138: 149 | P138: 75 | Q138: 50 | R138: 104 | S138: 319 | T138: 45 | U138: 0 | V138: D
A140: 2014 | B140: 1 | C140: =SUM(D140:U140) -> 1,694 | D140: 171 | E140: 114 | F140: 137 | G140: 108 | H140: 109 | I140: 60 | J140: 37 | K140: 2 | L140: 539 | M140: 17 | N140: 45 | O140: 78 | P140: 38 | Q140: 24 | R140: 45 | S140: 144 | T140: 26 | U140: 0 | V140: J | W140: 2014
B141: 2 | C141: 1,831 | D141: 211 | E141: 133 | F141: 109 | G141: 99 | H141: 81 | I141: 56 | J141: 47 | K141: 4 | L141: 583 | M141: 65 | N141: 61 | O141: 75 | P141: 38 | Q141: 23 | R141: 58 | S141: 171 | T141: 17 | U141: 0 | V141: F
B142: 3 | C142: 1,889 | D142: 253 | E142: 115 | F142: 110 | G142: 128 | H142: 71 | I142: 45 | J142: 45 | K142: 2 | L142: 563 | M142: 74 | N142: 55 | O142: 79 | P142: 29 | Q142: 35 | R142: 56 | S142: 212 | T142: 17 | U142: 0 | V142: M
B143: 4 | C143: 3,487 | D143: 374 | E143: 298 | F143: 178 | G143: 219 | H143: 167 | I143: 100 | J143: 137 | K143: 12 | L143: 1,010 | M143: 58 | N143: 119 | O143: 144 | P143: 58 | Q143: 37 | R143: 92 | S143: 468 | T143: 16 | U143: 0 | V143: A
B144: 5 | C144: 5,047 | D144: 742 | E144: 424 | F144: 270 | G144: 301 | H144: 168 | I144: 135 | J144: 172 | K144: 35 | L144: 1,564 | M144: 73 | N144: 124 | O144: 224 | P144: 95 | Q144: 39 | R144: 81 | S144: 575 | T144: 25 | U144: 0 | V144: M
B145: 6 | C145: 7,970 | D145: 1,181 | E145: 715 | F145: 331 | G145: 314 | H145: 460 | I145: 263 | J145: 272 | K145: 58 | L145: 2,399 | M145: 92 | N145: 246 | O145: 249 | P145: 105 | Q145: 131 | R145: 300 | S145: 800 | T145: 48 | U145: 6 | V145: J
B146: 7 | C146: 8,108 | D146: 1,131 | E146: 680 | F146: 383 | G146: 369 | H146: 349 | I146: 321 | J146: 297 | K146: 40 | L146: 2,178 | M146: 140 | N146: 262 | O146: 304 | P146: 149 | Q146: 178 | R146: 345 | S146: 907 | T146: 66 | U146: 9 | V146: J
B147: 8 | C147: 8,592 | D147: 1,202 | E147: 715 | F147: 480 | G147: 373 | H147: 373 | I147: 320 | J147: 241 | K147: 144 | L147: 2,156 | M147: 304 | N147: 272 | O147: 316 | P147: 234 | Q147: 313 | R147: 262 | S147: 805 | T147: 74 | U147: 8 | V147: A
B148: 9 | C148: 8,085 | D148: 1,325 | E148: 626 | F148: 395 | G148: 428 | H148: 347 | I148: 306 | J148: 204 | K148: 153 | L148: 1,936 | M148: 339 | N148: 180 | O148: 395 | P148: 212 | Q148: 118 | R148: 236 | S148: 797 | T148: 85 | U148: 3 | V148: S
B149: 10 | C149: 11,816 | D149: 1,748 | E149: 927 | F149: 698 | G149: 718 | H149: 379 | I149: 319 | J149: 242 | K149: 263 | L149: 3,120 | M149: 471 | N149: 352 | O149: 621 | P149: 269 | Q149: 207 | R149: 372 | S149: 969 | T149: 140 | U149: 1 | V149: O
B150: 11 | C150: 12,697 | D150: 1,983 | E150: 1,015 | F150: 691 | G150: 811 | H150: 324 | I150: 415 | J150: 388 | K150: 220 | L150: 3,427 | M150: 281 | N150: 331 | O150: 546 | P150: 359 | Q150: 234 | R150: 315 | S150: 1,253 | T150: 104 | U150: 0 | V150: N
B151: 12 | C151: 13,477 | D151: 1,775 | E151: 1,654 | F151: 695 | G151: 728 | H151: 365 | I151: 452 | J151: 377 | K151: 218 | L151: 3,783 | M151: 157 | N151: 339 | O151: 491 | P151: 295 | Q151: 150 | R151: 445 | S151: 1,449 | T151: 104 | U151: 0 | V151: D
A153: 2015 | B153: 1 | C153: =SUM(D153:U153) -> 7,864 | D153: 894 | E153: 903 | F153: 557 | G153: 446 | H153: 398 | I153: 372 | J153: 171 | K153: 66 | L153: 2,181 | M153: 107 | N153: 207 | O153: 388 | P153: 160 | Q153: 91 | R153: 212 | S153: 652 | T153: 58 | U153: 1 | V153: J | W153: 2015
B154: 2 | C154: 11,147 | D154: 1,435 | E154: 824 | F154: 722 | G154: 642 | H154: 469 | I154: 450 | J154: 206 | K154: 149 | L154: 3,682 | M154: 133 | N154: 212 | O154: 436 | P154: 267 | Q154: 181 | R154: 314 | S154: 945 | T154: 80 | U154: 0 | V154: F
B155: 3 | C155: 11,380 | D155: 1,566 | E155: 686 | F155: 569 | G155: 727 | H155: 535 | I155: 376 | J155: 442 | K155: 111 | L155: 3,648 | M155: 136 | N155: 383 | O155: 667 | P155: 230 | Q155: 161 | R155: 313 | S155: 765 | T155: 64 | U155: 1 | V155: M
B156: 4 | C156: 19,028 | D156: 2,768 | E156: 1,192 | F156: 1,024 | G156: 1,736 | H156: 779 | I156: 610 | J156: 701 | K156: 162 | L156: 5,656 | M156: 259 | N156: 522 | O156: 929 | P156: 448 | Q156: 331 | R156: 454 | S156: 1,351 | T156: 106 | U156: 0 | V156: A
B157: 5 | C157: 19,053 | D157: 3,301 | E157: 1,506 | F157: 1,010 | G157: 1,586 | H157: 692 | I157: 574 | J157: 620 | K157: 163 | L157: 5,809 | M157: 394 | N157: 448 | O157: 715 | P157: 346 | Q157: 250 | R157: 519 | S157: 1,024 | T157: 96 | U157: 0 | V157: M
B158: 6 | C158: 23,552 | D158: 4,036 | E158: 1,970 | F158: 1,476 | G158: 1,835 | H158: 567 | I158: 683 | J158: 676 | K158: 237 | L158: 6,875 | M158: 409 | N158: 856 | O158: 770 | P158: 361 | Q158: 452 | R158: 1,019 | S158: 1,186 | T158: 144 | U158: 0 | V158: J
A159: 2015 | B159: 7 | C159: 13,114 | D159: 2,285 | E159: 1,392 | F159: 665 | G159: 927 | H159: 331 | I159: 428 | J159: 286 | K159: 160 | L159: 4,099 | M159: 170 | N159: 369 | O159: 367 | P159: 251 | Q159: 351 | R159: 328 | S159: 642 | T159: 63 | U159: 0 | V159: J | W159: 2015
B160: 8 | C160: 8,027 | D160: 1,300 | E160: 658 | F160: 389 | G160: 631 | H160: 271 | I160: 244 | J160: 186 | K160: 87 | L160: 2,763 | M160: 114 | N160: 169 | O160: 259 | P160: 185 | Q160: 167 | R160: 239 | S160: 334 | T160: 31 | U160: 0 | V160: A
B161: 9 | C161: 5,695 | D161: 931 | E161: 397 | F161: 277 | G161: 489 | H161: 214 | I161: 172 | J161: 114 | K161: 38 | L161: 1,858 | M161: 105 | N161: 105 | O161: 200 | P161: 126 | Q161: 127 | R161: 135 | S161: 373 | T161: 34 | U161: 0 | V161: S
B162: 10 | C162: 6,034 | D162: 972 | E162: 457 | F162: 276 | G162: 390 | H162: 166 | I162: 190 | J162: 163 | K162: 86 | L162: 1,854 | M162: 105 | N162: 91 | O162: 240 | P162: 129 | Q162: 115 | R162: 181 | S162: 574 | T162: 45 | U162: 0 | V162: O
B163: 11 | C163: 9,450 | D163: 1,600 | E163: 788 | F163: 401 | G163: 494 | H163: 306 | I163: 250 | J163: 201 | K163: 95 | L163: 2,740 | M163: 210 | N163: 187 | O163: 285 | P163: 248 | Q163: 189 | R163: 330 | S163: 1,055 | T163: 74 | U163: 0 | V163: N
B164: 12 | C164: 13,064 | D164: 2,145 | E164: 1,277 | F164: 691 | G164: 739 | H164: 428 | I164: 367 | J164: 369 | K164: 163 | L164: 3,548 | M164: 285 | N164: 298 | O164: 528 | P164: 279 | Q164: 206 | R164: 510 | S164: 1,083 | T164: 147 | U164: 0 | V164: D
A166: 2016 | B166: 1 | C166: 8,239 | D166: 1,178 | E166: 854 | F166: 344 | G166: 429 | H166: 352 | I166: 290 | J166: 266 | K166: 86 | L166: 2,200 | M166: 150 | N166: 225 | O166: 643 | P166: 197 | Q166: 134 | R166: 281 | S166: 557 | T166: 51 | U166: 3 | V166: J | W166: 2016
B167: 2 | C167: 6,693 | D167: 1,142 | E167: 511 | F167: 308 | G167: 327 | H167: 200 | I167: 281 | J167: 158 | K167: 83 | L167: 1,760 | M167: 144 | N167: 245 | O167: 475 | P167: 155 | Q167: 147 | R167: 251 | S167: 445 | T167: 52 | U167: 6 | V167: F
B168: 3 | C168: 8,384 | D168: 1,383 | E168: 540 | F168: 420 | G168: 538 | H168: 352 | I168: 254 | J168: 199 | K168: 64 | L168: 2,124 | M168: 139 | N168: 325 | O168: 387 | P168: 231 | Q168: 195 | R168: 473 | S168: 675 | T168: 85 | U168: 0 | V168: M
B169: 4 | C169: 9,550 | D169: 1,508 | E169: 590 | F169: 454 | G169: 687 | H169: 874 | I169: 225 | J169: 368 | K169: 50 | L169: 2,573 | M169: 139 | N169: 296 | O169: 450 | P169: 214 | Q169: 163 | R169: 248 | S169: 642 | T169: 64 | U169: 4 | V169: A
B170: 5 | C170: 8,230 | D170: 1,435 | E170: 603 | F170: 329 | G170: 697 | H170: 461 | I170: 224 | J170: 345 | K170: 46 | L170: 2,244 | M170: 116 | N170: 224 | O170: 313 | P170: 141 | Q170: 140 | R170: 329 | S170: 529 | T170: 48 | U170: 7 | V170: M
B171: 6 | C171: 12,800 | D171: 2,230 | E171: 1,094 | F171: 935 | G171: 1,097 | H171: 463 | I171: 420 | J171: 227 | K171: 59 | L171: 3,858 | M171: 130 | N171: 327 | O171: 324 | P171: 381 | Q171: 187 | R171: 319 | S171: 608 | T171: 134 | U171: 8 | V171: J
B172: 7 | C172: 18,873 | D172: 2,900 | E172: 1,174 | F172: 1,748 | G172: 1,898 | H172: 567 | I172: 587 | J172: 256 | K172: 77 | L172: 6,137 | M172: 185 | N172: 483 | O172: 440 | P172: 390 | Q172: 404 | R172: 494 | S172: 951 | T172: 175 | U172: 8 | V172: J
B173: 8 | C173: 21,415 | D173: 3,581 | E173: 1,251 | F173: 1,359 | G173: 1,478 | H173: 721 | I173: 541 | J173: 502 | K173: 353 | L173: 6,817 | M173: 234 | N173: 453 | O173: 835 | P173: 443 | Q173: 452 | R173: 727 | S173: 1,512 | T173: 151 | U173: 5 | V173: A
A174: 누계 | C174: =SUM(C9:C21) -> 937,217 | D174: =SUM(D9:D21) -> 157,621 | E174: 66,035 | F174: 42,732 | G174: 78,002 | H174: 31,183 | I174: 28,556 | J174: 22,659 | K174: 3,846 | L174: =SUM(L9:L21) -> 331,608 | M174: 12,396 | N174: 21,297 | O174: 34,590 | P174: 17,249 | Q174: 10,590 | R174: 20,264 | S174: 53,289 | T174: 4,317 | U174: 982 | V174: Total
A175: 대출건수1) | M175: # of loans
A176: 2004 | C176: 47,841 | D176: 7,617 | E176: 4,414 | F176: 2,043 | G176: 3,517 | H176: 2,278 | I176: 1,720 | J176: 1,424 | K176: 0 | L176: 14,204 | M176: 903 | N176: 1,524 | O176: 1,153 | P176: 1,520 | Q176: 921 | R176: 1,300 | S176: 3,147 | T176: 156 | U176: 0 | V176: 2004
A177: 2005 | C177: =SUM(C190:C201) -> 51,037 | D177: 7,290 | E177: 4,416 | F177: 2,212 | G177: 3,882 | H177: 2,326 | I177: 1,942 | J177: 1,541 | K177: 0 | L177: 15,110 | M177: 818 | N177: 1,557 | O177: 1,416 | P177: 1,538 | Q177: 826 | R177: 1,419 | S177: 3,467 | T177: 108 | U177: 1,169 | V177: 2005
A178: 2006 | C178: =SUM(C203:C214) -> 18,590 | D178: 2,346 | E178: 1,464 | F178: 757 | G178: 1,387 | H178: 796 | I178: 518 | J178: 864 | K178: 0 | L178: 5,695 | M178: 363 | N178: 715 | O178: 716 | P178: 618 | Q178: 340 | R178: 641 | S178: 1,342 | T178: 28 | U178: 0 | V178: 2006
A179: 2007 | C179: =SUM(C216:C227) -> 42,179 | D179: 7,467 | E179: 2,796 | F179: 1,625 | G179: 4,220 | H179: 1,099 | I179: 1,031 | J179: 1,558 | K179: 0 | L179: 15,196 | M179: 421 | N179: 815 | O179: 1,714 | P179: 923 | Q179: 372 | R179: 760 | S179: 2,098 | T179: 74 | U179: 10 | V179: 2007
A180: 2008 | C180: =SUM(C229:C240) -> 45,839 | D180: 7,531 | E180: 2,944 | F180: 1,837 | G180: 6,598 | H180: 1,075 | I180: 897 | J180: 1,812 | K180: 0 | L180: 16,602 | M180: 451 | N180: 612 | O180: 1,264 | P180: 1,011 | Q180: 209 | R180: 698 | S180: 2,243 | T180: 55 | U180: 0 | V180: 2008
A181: 2009 | C181: =SUM(C242:C253) -> 59,982 | D181: 8,529 | E181: 4,814 | F181: 1,842 | G181: 4,948 | H181: 2,135 | I181: 1,960 | J181: 2,211 | K181: 0 | L181: 23,024 | M181: 493 | N181: 1,480 | O181: 2,571 | P181: 1,361 | Q181: 366 | R181: 946 | S181: 3,237 | T181: 54 | U181: 11 | V181: 2009
A182: 2010 | C182: =SUM(C255:C266) -> 58,190 | D182: 7,283 | E182: 5,567 | F182: 2,232 | G182: 4,901 | H182: 2,880 | I182: 2,653 | J182: 1,991 | K182: 0 | L182: 18,505 | M182: 796 | N182: 1,349 | O182: 2,832 | P182: 1,479 | Q182: 598 | R182: 1,186 | S182: 3,783 | T182: 155 | U182: 0 | V182: 2010
A183: 2011 | C183: =+SUM(C268:C279) -> 90,717 | D183: =SUM(D268:D279) -> 9,653 | E183: 6,892 | F183: 3,882 | G183: 6,625 | H183: 5,122 | I183: 3,854 | J183: 2,179 | K183: 0 | L183: 31,905 | M183: 1,586 | N183: 2,781 | O183: 4,483 | P183: 2,778 | Q183: 1,072 | R183: 1,920 | S183: 5,486 | T183: 499 | U183: =+SUM(U268:U279) -> 0 | V183: 2011
A184: 2012 | C184: =+SUM(C281:C292) -> 104,527 | D184: =+SUM(D281:D292) -> 9,462 | E184: 6,849 | F184: 6,731 | G184: 8,644 | H184: 6,196 | I184: 3,447 | J184: 2,858 | K184: 118 | L184: 33,902 | M184: 1,911 | N184: 3,270 | O184: 5,342 | P184: 3,253 | Q184: 1,916 | R184: 3,377 | S184: 6,536 | T184: 714 | U184: 1 | V184: 2012
A185: 2013 | C185: =SUM(D185:U185) -> 110,025 | D185: =SUM(D294:D305) -> 9,597 | E185: =SUM(E294:E305) -> 8,123 | F185: 7,299 | G185: 10,087 | H185: 5,403 | I185: 3,836 | J185: 2,544 | K185: 212 | L185: 34,808 | M185: 2,283 | N185: 3,557 | O185: 4,972 | P185: 2,569 | Q185: 1,515 | R185: 3,785 | S185: 8,595 | T185: 824 | U185: 16 | V185: 2013
A186: 2014 | C186: 100,843 | D186: =SUM(D307:D318) -> 10,627 | E186: =SUM(E307:E318) -> 8,745 | F186: =SUM(F307:F318) -> 5,734 | G186: 5,598 | H186: 5,101 | I186: 3,359 | J186: 3,124 | K186: 1,054 | L186: 25,055 | M186: 3,004 | N186: 3,468 | O186: 4,818 | P186: 2,985 | Q186: 2,389 | R186: 4,150 | S186: 10,562 | T186: 1,034 | U186: 36 | V186: 2014
A187: 2015 | C187: =SUM(C320:C331) -> 143,723 | D187: =SUM(D320:D331) -> 16,366 | E187: 12,123 | F187: 8,227 | G187: 10,114 | H187: 6,475 | I187: 4,989 | J187: 4,467 | K187: 1,320 | L187: 39,118 | M187: 3,303 | N187: 4,246 | O187: 6,436 | P187: 4,270 | Q187: 3,681 | R187: 5,955 | S187: 11,513 | T187: 1,116 | U187: 4 | V187: 2015
A188: 2016 | C188: =SUM(C333:C340) -> 82,234 | D188: =SUM(D333:D340) -> 10,014 | E188: 5,992 | F188: 5,108 | G188: 5,972 | H188: 4,035 | I188: 2,783 | J188: 2,199 | K188: 632 | L188: 21,957 | M188: 1,592 | N188: 2,805 | O188: 3,947 | P188: 2,670 | Q188: 2,688 | R188: 3,522 | S188: 6,095 | T188: 672 | U188: 27 | V188: 2016
A190: 2005 | B190: 1 | V190: J | W190: 2005
B191: 2 | C191: =SUM(D191:U191) -> 6,086 | D191: 876 | E191: 523 | F191: 283 | G191: 420 | H191: 286 | I191: 233 | J191: 187 | K191: 0 | L191: 1,908 | M191: 94 | N191: 170 | O191: 183 | P191: 186 | Q191: 97 | R191: 174 | S191: 443 | T191: 23 | U191: 0 | V191: F
B192: 3 | C192: 8,788 | D192: 1,312 | E192: 726 | F192: 366 | G192: 704 | H192: 369 | I192: 355 | J192: 238 | K192: 0 | L192: 2,927 | M192: 136 | N192: 238 | O192: 243 | P192: 233 | Q192: 120 | R192: 241 | S192: 568 | T192: 12 | U192: 0 | V192: M
B193: 4 | C193: 7,192 | D193: 1,227 | E193: 608 | F193: 290 | G193: 566 | H193: 269 | I193: 301 | J193: 197 | K193: 0 | L193: 2,369 | M193: 85 | N193: 204 | O193: 180 | P193: 156 | Q193: 92 | R193: 154 | S193: 485 | T193: 9 | U193: 0 | V193: A
B194: 5 | C194: 5,219 | D194: 787 | E194: 430 | F194: 255 | G194: 388 | H194: 264 | I194: 219 | J194: 150 | K194: 0 | L194: 1,620 | M194: 88 | N194: 135 | O194: 130 | P194: 137 | Q194: 94 | R194: 152 | S194: 357 | T194: 13 | U194: 0 | V194: M
B195: 6 | C195: 4,984 | D195: 799 | E195: 472 | F195: 241 | G195: 355 | H195: 272 | I195: 199 | J195: 141 | K195: 0 | L195: 1,308 | M195: 83 | N195: 123 | O195: 159 | P195: 177 | Q195: 84 | R195: 155 | S195: 403 | T195: 13 | U195: 0 | V195: J
B196: 7 | C196: 4,097 | D196: 540 | E196: 334 | F196: 181 | G196: 358 | H196: 225 | I196: 152 | J196: 123 | K196: 0 | L196: 1,236 | M196: 77 | N196: 119 | O196: 117 | P196: 162 | Q196: 66 | R196: 104 | S196: 291 | T196: 12 | U196: 0 | V196: J
B197: 8 | C197: 4,149 | D197: 573 | E197: 365 | F197: 153 | G197: 307 | H197: 196 | I197: 139 | J197: 109 | K197: 0 | L197: 1,202 | M197: 56 | N197: 125 | O197: 107 | P197: 142 | Q197: 67 | R197: 93 | S197: 244 | T197: 5 | U197: 266 | V197: A
B198: 9 | C198: 3,633 | D198: 485 | E198: 326 | F198: 139 | G198: 290 | H198: 139 | I198: 112 | J198: 101 | K198: 0 | L198: 1,002 | M198: 58 | N198: 110 | O198: 69 | P198: 112 | Q198: 69 | R198: 99 | S198: 202 | T198: 2 | U198: 318 | V198: S
B199: 10 | C199: 2,827 | D199: 333 | E199: 247 | F199: 133 | G199: 217 | H199: 138 | I199: 101 | J199: 144 | K199: 0 | L199: 711 | M199: 59 | N199: 124 | O199: 98 | P199: 88 | Q199: 51 | R199: 82 | S199: 194 | T199: 7 | U199: 100 | V199: O
B200: 11 | C200: 2,082 | D200: 195 | E200: 197 | F200: 67 | G200: 145 | H200: 79 | I200: 59 | J200: 82 | K200: 0 | L200: 422 | M200: 37 | N200: 114 | O200: 60 | P200: 83 | Q200: 40 | R200: 73 | S200: 145 | T200: 5 | U200: 279 | V200: N
B201: 12 | C201: 1,980 | D201: 163 | E201: 188 | F201: 104 | G201: 132 | H201: 89 | I201: 72 | J201: 69 | K201: 0 | L201: 405 | M201: 45 | N201: 95 | O201: 70 | P201: 62 | Q201: 46 | R201: 92 | S201: 135 | T201: 7 | U201: 206 | V201: D
A203: 2006 | B203: 1 | C203: =SUM(D203:U203) -> 907 | D203: 99 | E203: 114 | F203: 29 | G203: 65 | H203: 49 | I203: 27 | J203: 36 | K203: 0 | L203: 194 | M203: 15 | N203: 48 | O203: 46 | P203: 30 | Q203: 22 | R203: 39 | S203: 90 | T203: 4 | U203: 0 | V203: J | W203: 2006
B204: 2 | C204: 1,457 | D204: 146 | E204: 143 | F204: 67 | G204: 112 | H204: 76 | I204: 53 | J204: 85 | K204: 0 | L204: 334 | M204: 42 | N204: 91 | O204: 48 | P204: 54 | Q204: 34 | R204: 58 | S204: 111 | T204: 3 | U204: 0 | V204: F
B205: 3 | C205: 1,466 | D205: 155 | E205: 121 | F205: 58 | G205: 112 | H205: 65 | I205: 49 | J205: 57 | K205: 0 | L205: 392 | M205: 25 | N205: 85 | O205: 62 | P205: 58 | Q205: 41 | R205: 62 | S205: 122 | T205: 2 | U205: 0 | V205: M
B206: 4 | C206: 1,287 | D206: 125 | E206: 118 | F206: 63 | G206: 112 | H206: 45 | I206: 42 | J206: 47 | K206: 0 | L206: 355 | M206: 12 | N206: 47 | O206: 53 | P206: 41 | Q206: 33 | R206: 73 | S206: 120 | T206: 1 | U206: 0 | V206: A
B207: 5 | C207: 1,078 | D207: 110 | E207: 81 | F207: 34 | G207: 85 | H207: 57 | I207: 32 | J207: 68 | K207: 0 | L207: 298 | M207: 21 | N207: 50 | O207: 37 | P207: 29 | Q207: 29 | R207: 50 | S207: 95 | T207: 2 | U207: 0 | V207: M
B208: 6 | C208: 1,243 | D208: 104 | E208: 93 | F208: 40 | G208: 75 | H208: 55 | I208: 34 | J208: 85 | K208: 0 | L208: 363 | M208: 55 | N208: 54 | O208: 56 | P208: 32 | Q208: 28 | R208: 57 | S208: 110 | T208: 2 | U208: 0 | V208: J
B209: 7 | C209: 1,669 | D209: 225 | E209: 112 | F209: 55 | G209: 98 | H209: 66 | I209: 42 | J209: 103 | K209: 0 | L209: 514 | M209: 43 | N209: 78 | O209: 75 | P209: 57 | Q209: 25 | R209: 52 | S209: 123 | T209: 1 | U209: 0 | V209: J
B210: 8 | C210: 1,747 | D210: 266 | E210: 107 | F210: 80 | G210: 101 | H210: 65 | I210: 55 | J210: 73 | K210: 0 | L210: 593 | M210: 40 | N210: 41 | O210: 64 | P210: 60 | Q210: 28 | R210: 59 | S210: 111 | T210: 4 | U210: 0 | V210: A
B211: 9 | C211: 2,415 | D211: 327 | E211: 199 | F211: 128 | G211: 148 | H211: 101 | I211: 52 | J211: 100 | K211: 0 | L211: 811 | M211: 29 | N211: 82 | O211: 104 | P211: 93 | Q211: 29 | R211: 51 | S211: 160 | T211: 1 | U211: 0 | V211: S
B212: 10 | C212: 1,605 | D212: 231 | E212: 118 | F212: 63 | G212: 164 | H212: 58 | I212: 37 | J212: 67 | K212: 0 | L212: 520 | M212: 17 | N212: 49 | O212: 52 | P212: 58 | Q212: 29 | R212: 42 | S212: 98 | T212: 2 | U212: 0 | V212: O
B213: 11 | C213: 1,606 | D213: 215 | E213: 105 | F213: 53 | G213: 128 | H213: 67 | I213: 35 | J213: 73 | K213: 0 | L213: 588 | M213: 23 | N213: 40 | O213: 55 | P213: 50 | Q213: 19 | R213: 49 | S213: 104 | T213: 2 | U213: 0 | V213: N
B214: 12 | C214: 2,110 | D214: 343 | E214: 153 | F214: 87 | G214: 187 | H214: 92 | I214: 60 | J214: 70 | K214: 0 | L214: 733 | M214: 41 | N214: 50 | O214: 64 | P214: 56 | Q214: 23 | R214: 49 | S214: 98 | T214: 4 | U214: 0 | V214: D
A216: 2007 | B216: 1 | C216: =SUM(D216:U216) -> 2,956 | D216: 579 | E216: 209 | F216: 139 | G216: 222 | H216: 85 | I216: 76 | J216: 86 | K216: 0 | L216: 997 | M216: 34 | N216: 66 | O216: 109 | P216: 81 | Q216: 25 | R216: 81 | S216: 150 | T216: 16 | U216: 1 | V216: J | W216: 2007
B217: 2 | C217: 3,414 | D217: 621 | E217: 203 | F217: 156 | G217: 251 | H217: 108 | I217: 118 | J217: 113 | K217: 0 | L217: 1,202 | M217: 41 | N217: 76 | O217: 152 | P217: 87 | Q217: 35 | R217: 72 | S217: 171 | T217: 6 | U217: 2 | V217: F
B218: 3 | C218: 3,162 | D218: 578 | E218: 194 | F218: 117 | G218: 250 | H218: 129 | I218: 111 | J218: 122 | K218: 0 | L218: 1,075 | M218: 30 | N218: 64 | O218: 128 | P218: 87 | Q218: 34 | R218: 68 | S218: 167 | T218: 6 | U218: 2 | V218: M
... 115 more rows

Sheet 8. 금융기관별 판매실적
A1: 8. 금융기관별 판매실적 | N1: Bogeumjari(Mortgage) Loan Origination by Lenders
A3: 단위 : 억원, 건 | Z3: Hundred million won, #
A4: 연월중 | C4: 합계 | D4: 하나은행 | E4: 외환은행1) | F4: 국민은행 | G4: 우리은행 | H4: 한국스탠다드 차타드은행 | I4: 삼성생명 | J4: 기업은행 | K4: 한화생명 | L4: 농협은행 | M4: 삼성화재 | N4: 신한은행 | O4: 대구은행 | P4: 수협은행 | Q4: 한국 씨티은행 | R4: 경남은행 | S4: 광주은행 | T4: 부산은행 | U4: 제주은행 | V4: 흥국생명 | W4: 전북은행 | X4: 기타3) | Y4: 연월중
A6: During | C6: Total | D6: Hana Bank | E6: Korea Exchange Bank | F6: Kookmin Bank | G6: Woori Bank | H6: Standard Chartered Bank | I6: Samsung Life Insurance Co. | J6: Industrial Bank of Korea | K6: Hanwha Life Insurance Co. | L6: Nong Hyup Bank | M6: Samsung Fire&Marine Insurance Co. | N6: Shinhan Bank | O6: Daegu Bank | P6: Suhyup Bank | Q6: Citi Bank Korea | R6: Kyongnam Bank | S6: KwangJu Bank | T6: Busan Bank | U6: Jeju Bank | V6: Heungkuk Life Insurance | W6: Jeonbuk Bank | X6: Others | Y6: During
A8: 대출금액2) | N8: Loan Amount
A9: 2004 | C9: =SUM(D9:X9) -> 33,312 | D9: =+SUM(D23:D32) -> 12,536 | E9: 5,423 | F9: 2,848 | G9: 2,130 | H9: 3,197 | I9: 1,935 | J9: 1,220 | K9: 980 | L9: 1,100 | M9: 467 | N9: 513 | O9: 140 | P9: 86 | Q9: 165 | R9: 137 | S9: 28 | T9: 26 | U9: 2 | V9: 0 | W9: 3 | X9: 376 | Y9: 2004
A10: 2005 | C10: 42,189 | D10: =SUM(D34:D45) -> 13,285 | E10: 7,523 | F10: 3,321 | G10: 3,683 | H10: 3,328 | I10: 3,371 | J10: 943 | K10: 643 | L10: 846 | M10: 448 | N10: 1,863 | O10: 218 | P10: 80 | Q10: 1,079 | R10: 439 | S10: 80 | T10: 65 | U10: 2 | V10: 0 | W10: 9 | X10: 963 | Y10: 2005
A11: 2006 | C11: 13,854 | D11: =SUM(D47:D58) -> 2,847 | E11: 1,093 | F11: 1,372 | G11: 1,374 | H11: 1,015 | I11: 1,005 | J11: 324 | K11: 305 | L11: 540 | M11: 116 | N11: 284 | O11: 91 | P11: 26 | Q11: 165 | R11: 284 | S11: 112 | T11: 4 | U11: 2 | V11: 0 | W11: 0 | X11: 2,895 | Y11: 2006
A12: 2007 | C12: 35,954 | D12: =SUM(D60:D71) -> 16,662 | E12: =+SUM(E60:E71) -> 1,106 | F12: 5,195 | G12: 3,160 | H12: 1,676 | I12: 2,579 | J12: 805 | K12: 574 | L12: 1,848 | M12: 129 | N12: 402 | O12: 99 | P12: 28 | Q12: 545 | R12: 756 | S12: 186 | T12: 75 | U12: 9 | V12: 27 | W12: 0 | X12: 93 | Y12: 2007
A13: 2008 | C13: 42,440 | D13: =+SUM(D73:D84) -> 11,990 | E13: 1,662 | F13: 8,421 | G13: 4,797 | H13: 4,408 | I13: 1,404 | J13: 1,705 | K13: 175 | L13: 2,524 | M13: 146 | N13: 1,244 | O13: 431 | P13: 20 | Q13: 1,523 | R13: 1,034 | S13: 232 | T13: 487 | U13: 5 | V13: 170 | W13: 0 | X13: 62 | Y13: 2008
A14: 2009 | C14: 59,423 | D14: =SUM(D86:D97) -> 9,366 | E14: 5,275 | F14: 4,666 | G14: 11,260 | H14: 8,214 | I14: 1,254 | J14: 2,054 | K14: 0 | L14: 2,602 | M14: 119 | N14: 11,210 | O14: 336 | P14: 11 | Q14: 1,124 | R14: 1,257 | S14: 384 | T14: 233 | U14: 3 | V14: 55 | W14: 0 | X14: 0 | Y14: 2009
A15: 2010 | C15: 58,480 | D15: =SUM(D99:D110) -> 6,838 | E15: 2,186 | F15: 3,918 | G15: 4,051 | H15: 1,777 | I15: 2,645 | J15: 27,805 | K15: 0 | L15: 2,037 | M15: 196 | N15: 3,692 | O15: 167 | P15: 5 | Q15: 2,213 | R15: 395 | S15: 273 | T15: 161 | U15: 4 | V15: 117 | W15: 0 | X15: 0 | Y15: 2010
A16: 2011 | C16: 94,149 | D16: =SUM(D112:D123) -> 10,030 | E16: 686 | F16: 8,724 | G16: 5,830 | H16: 1,852 | I16: 7,070 | J16: 46,024 | K16: 0 | L16: 651 | M16: 511 | N16: 8,776 | O16: 226 | P16: 0 | Q16: 1,157 | R16: 380 | S16: 466 | T16: 452 | U16: 3 | V16: 677 | W16: 0 | X16: 634 | Y16: 2011
A17: 2012 | C17: 112,070 | D17: =SUM(D125:D136) -> 12,788 | E17: 3,055 | F17: 22,783 | G17: 12,552 | H17: 2,079 | I17: 4,869 | J17: 24,844 | K17: 0 | L17: 2,133 | M17: 893 | N17: 15,561 | O17: 1,348 | P17: 81 | Q17: 1,047 | R17: 1,587 | S17: 841 | T17: 1,256 | U17: 2 | V17: 831 | W17: 74 | X17: 3,446 | Y17: 2012
A18: 2013 | C18: 119,054 | D18: =SUM(D138:D149) -> 12,443 | E18: 6,222 | F18: 23,158 | G18: 16,262 | H18: 3,795 | I18: 4,855 | J18: 17,709 | K18: 0 | L18: 7,731 | M18: 185 | N18: 16,835 | O18: 1,683 | P18: 259 | Q18: 1,164 | R18: 1,432 | S18: 282 | T18: 2,071 | U18: 4 | V18: 539 | W18: 98 | X18: 2,327 | Y18: 2013
A19: 2014 | C19: 84,680 | D19: =SUM(D151:D162) -> 14,656 | E19: 2,044 | F19: 17,050 | G19: 15,954 | H19: 215 | I19: 433 | J19: 7,665 | K19: 0 | L19: 9,986 | M19: 3 | N19: 11,464 | O19: 363 | P19: 68 | Q19: 235 | R19: 1,698 | S19: 174 | T19: 2,152 | U19: 3 | V19: 73 | W19: 90 | X19: 354 | Y19: 2014
A20: 2015 | C20: 147,411 | D20: =SUM(D164:D175) -> 75,874 | E20: 4,358 | F20: 15,460 | G20: 14,271 | H20: 182 | I20: 273 | J20: 10,450 | K20: 0 | L20: 10,005 | M20: 0 | N20: 11,356 | O20: 629 | P20: 144 | Q20: 104 | R20: 2,220 | S20: 163 | T20: 1,610 | U20: 19 | V20: 14 | W20: 50 | X20: 229 | Y20: 2015
A21: 2016 | C21: =SUM(C177:C184) -> 94,183 | D21: =SUM(D177:D184) -> 47,803 | E21: 1,660 | F21: 7,506 | G21: 8,185 | H21: 115 | I21: 10 | J21: 5,610 | K21: 0 | L21: 5,943 | M21: 0 | N21: 15,258 | O21: 349 | P21: 32 | Q21: 12 | R21: 1,062 | S21: 70 | T21: 506 | U21: 9 | V21: 0 | W21: 26 | X21: 24 | Y21: 2016
A23: 2004 | B23: 3 | C23: =SUM(D23:X23) -> 351 | D23: 259 | E23: 11 | F23: 14 | G23: 37 | H23: 16 | I23: 0 | J23: 6 | K23: 1 | L23: 7 | M23: 0 | N23: 0 | O23: 0 | P23: 0 | Q23: 0 | R23: 0 | S23: 0 | T23: 0 | U23: 0 | V23: 0 | W23: 0 | X23: 0 | Y23: M | Z23: 2004
B24: 4 | C24: 3,633 | D24: 1,644 | E24: 259 | F24: 452 | G24: 354 | H24: 388 | I24: 213 | J24: 91 | K24: 129 | L24: 103 | M24: 0 | N24: 0 | O24: 0 | P24: 0 | Q24: 0 | R24: 0 | S24: 0 | T24: 0 | U24: 0 | V24: 0 | W24: 0 | X24: 0 | Y24: A
B25: 5 | C25: 4,565 | D25: 1,979 | E25: 363 | F25: 433 | G25: 404 | H25: 393 | I25: 294 | J25: 321 | K25: 205 | L25: 173 | M25: 0 | N25: 0 | O25: 0 | P25: 0 | Q25: 0 | R25: 0 | S25: 0 | T25: 0 | U25: 0 | V25: 0 | W25: 0 | X25: 0 | Y25: M
B26: 6 | C26: 3,936 | D26: 1,614 | E26: 473 | F26: 350 | G26: 299 | H26: 450 | I26: 230 | J26: 196 | K26: 157 | L26: 167 | M26: 0 | N26: 0 | O26: 0 | P26: 0 | Q26: 0 | R26: 0 | S26: 0 | T26: 0 | U26: 0 | V26: 0 | W26: 0 | X26: 0 | Y26: J
B27: 7 | C27: 3,358 | D27: 1,278 | E27: 686 | F27: 274 | G27: 168 | H27: 351 | I27: 194 | J27: 173 | K27: 116 | L27: 118 | M27: 0 | N27: 0 | O27: 0 | P27: 0 | Q27: 0 | R27: 0 | S27: 0 | T27: 0 | U27: 0 | V27: 0 | W27: 0 | X27: 0 | Y27: J
B28: 8 | C28: 3,317 | D28: 1,166 | E28: 805 | F28: 211 | G28: 196 | H28: 281 | I28: 167 | J28: 129 | K28: 77 | L28: 98 | M28: 40 | N28: 61 | O28: 16 | P28: 4 | Q28: 8 | R28: 3 | S28: 2 | T28: 4 | U28: 0 | V28: 0 | W28: 0 | X28: 49 | Y28: A
B29: 9 | C29: 2,892 | D29: 920 | E29: 553 | F29: 185 | G29: 169 | H29: 255 | I29: 146 | J29: 84 | K29: 89 | L29: 87 | M29: 120 | N29: 68 | O29: 41 | P29: 40 | Q29: 22 | R29: 21 | S29: 7 | T29: 4 | U29: 0 | V29: 0 | W29: 2 | X29: 79 | Y29: S
B30: 10 | C30: 3,430 | D30: 1,196 | E30: 599 | F30: 263 | G30: 147 | H30: 351 | I30: 191 | J30: 87 | K30: 58 | L30: 118 | M30: 118 | N30: 116 | O30: 26 | P30: 18 | Q30: 35 | R30: 28 | S30: 1 | T30: 5 | U30: 1 | V30: 0 | W30: 1 | X30: 71 | Y30: O
B31: 11 | C31: 3,555 | D31: 1,157 | E31: 679 | F31: 308 | G31: 152 | H31: 325 | I31: 227 | J31: 64 | K31: 59 | L31: 125 | M31: 97 | N31: 124 | O31: 35 | P31: 12 | Q31: 44 | R31: 46 | S31: 6 | T31: 5 | U31: 1 | V31: 0 | W31: 0 | X31: 89 | Y31: N
B32: 12 | C32: 4,275 | D32: 1,323 | E32: 995 | F32: 358 | G32: 204 | H32: 387 | I32: 273 | J32: 69 | K32: 89 | L32: 104 | M32: 92 | N32: 144 | O32: 22 | P32: 12 | Q32: 56 | R32: 39 | S32: 12 | T32: 8 | U32: 0 | V32: 0 | W32: 0 | X32: 88 | Y32: D
A34: 2005 | B34: 1 | C34: =SUM(D34:X34) -> 3,414 | D34: 1,061 | E34: 786 | F34: 274 | G34: 187 | H34: 282 | I34: 260 | J34: 53 | K34: 57 | L34: 99 | M34: 34 | N34: 132 | O34: 19 | P34: 11 | Q34: 43 | R34: 34 | S34: 8 | T34: 7 | U34: 2 | V34: 0 | W34: 0 | X34: 65 | Y34: J | Z34: 2005
B35: 2 | C35: 4,799 | D35: 1,668 | E35: 807 | F35: 384 | G35: 344 | H35: 407 | I35: 349 | J35: 100 | K35: 86 | L35: 103 | M35: 47 | N35: 213 | O35: 20 | P35: 7 | Q35: 101 | R35: 47 | S35: 4 | T35: 15 | U35: 0 | V35: 0 | W35: 2 | X35: 95 | Y35: F
B36: 3 | C36: 6,863 | D36: 2,398 | E36: 1,112 | F36: 489 | G36: 437 | H36: 635 | I36: 577 | J36: 110 | K36: 142 | L36: 130 | M36: 54 | N36: 337 | O36: 26 | P36: 12 | Q36: 193 | R36: 55 | S36: 9 | T36: 15 | U36: 0 | V36: 0 | W36: 1 | X36: 131 | Y36: M
B37: 4 | C37: 5,627 | D37: 1,884 | E37: 925 | F37: 352 | G37: 492 | H37: 566 | I37: 446 | J37: 114 | K37: 66 | L37: 95 | M37: 44 | N37: 306 | O37: 4 | P37: 11 | Q37: 144 | R37: 56 | S37: 5 | T37: 6 | U37: 0 | V37: 0 | W37: 0 | X37: 111 | Y37: A
B38: 5 | C38: 3,935 | D38: 1,171 | E38: 856 | F38: 265 | G38: 352 | H38: 356 | I38: 283 | J38: 85 | K38: 33 | L38: 63 | M38: 46 | N38: 162 | O38: 45 | P38: 12 | Q38: 118 | R38: 31 | S38: 6 | T38: 6 | U38: 0 | V38: 0 | W38: 3 | X38: 42 | Y38: M
B39: 6 | C39: 3,753 | D39: 1,100 | E39: 857 | F39: 313 | G39: 330 | H39: 296 | I39: 274 | J39: 78 | K39: 35 | L39: 66 | M39: 33 | N39: 133 | O39: 22 | P39: 2 | Q39: 109 | R39: 35 | S39: 9 | T39: 3 | U39: 0 | V39: 0 | W39: 0 | X39: 58 | Y39: J
B40: 7 | C40: 3,137 | D40: 950 | E40: 521 | F40: 232 | G40: 338 | H40: 202 | I40: 276 | J40: 110 | K40: 33 | L40: 49 | M40: 37 | N40: 129 | O40: 21 | P40: 7 | Q40: 102 | R40: 30 | S40: 6 | T40: 1 | U40: 0 | V40: 0 | W40: 0 | X40: 93 | Y40: J
B41: 8 | C41: 3,189 | D41: 1,013 | E41: 523 | F41: 257 | G41: 399 | H41: 151 | I41: 254 | J41: 82 | K41: 45 | L41: 45 | M41: 30 | N41: 148 | O41: 12 | P41: 5 | Q41: 96 | R41: 32 | S41: 1 | T41: 4 | U41: 0 | V41: 0 | W41: 0 | X41: 92 | Y41: A
B42: 9 | C42: 2,655 | D42: 867 | E42: 405 | F42: 273 | G42: 293 | H42: 135 | I42: 182 | J42: 58 | K42: 39 | L42: 40 | M42: 44 | N42: 106 | O42: 17 | P42: 6 | Q42: 92 | R42: 36 | S42: 1 | T42: 3 | U42: 0 | V42: 0 | W42: 0 | X42: 58 | Y42: S
B43: 10 | C43: 1,965 | D43: 578 | E43: 296 | F43: 200 | G43: 202 | H43: 106 | I43: 156 | J43: 64 | K43: 32 | L43: 49 | M43: 29 | N43: 78 | O43: 14 | P43: 4 | Q43: 68 | R43: 24 | S43: 13 | T43: 2 | U43: 0 | V43: 0 | W43: 0 | X43: 50 | Y43: O
B44: 11 | C44: 1,419 | D44: 292 | E44: 224 | F44: 136 | G44: 142 | H44: 98 | I44: 179 | J44: 46 | K44: 40 | L44: 49 | M44: 35 | N44: 58 | O44: 4 | P44: 2 | Q44: 13 | R44: 30 | S44: 8 | T44: 3 | U44: 0 | V44: 0 | W44: 1 | X44: 59 | Y44: N
B45: 12 | C45: 1,433 | D45: 303 | E45: 211 | F45: 146 | G45: 167 | H45: 94 | I45: 135 | J45: 43 | K45: 35 | L45: 58 | M45: 15 | N45: 61 | O45: 14 | P45: 1 | Q45: 0 | R45: 29 | S45: 10 | T45: 0 | U45: 0 | V45: 0 | W45: 2 | X45: 109 | Y45: D
A47: 2006 | B47: 1 | C47: =SUM(D47:X47) -> 671 | D47: 122 | E47: 108 | F47: 52 | G47: 56 | H47: 39 | I47: 59 | J47: 21 | K47: 19 | L47: 21 | M47: 11 | N47: 16 | O47: 1 | P47: 5 | Q47: 0 | R47: 16 | S47: 4 | T47: 0 | U47: 0 | V47: 0 | W47: 0 | X47: 121 | Y47: J | Z47: 2006
B48: 2 | C48: 1,019 | D48: 229 | E48: 116 | F48: 98 | G48: 91 | H48: 90 | I48: 94 | J48: 30 | K48: 17 | L48: 37 | M48: 12 | N48: 35 | O48: 11 | P48: 1 | Q48: 0 | R48: 36 | S48: 7 | T48: 0 | U48: 0 | V48: 0 | W48: 0 | X48: 115 | Y48: F
B49: 3 | C49: 1,014 | D49: 207 | E49: 132 | F49: 85 | G49: 85 | H49: 145 | I49: 100 | J49: 13 | K49: 28 | L49: 45 | M49: 12 | N49: 26 | O49: 8 | P49: 3 | Q49: 2 | R49: 18 | S49: 6 | T49: 0 | U49: 0 | V49: 0 | W49: 0 | X49: 99 | Y49: M
B50: 4 | C50: 869 | D50: 171 | E50: 110 | F50: 74 | G50: 69 | H50: 116 | I50: 86 | J50: 2 | K50: 17 | L50: 30 | M50: 4 | N50: 16 | O50: 9 | P50: 1 | Q50: 7 | R50: 13 | S50: 3 | T50: 0 | U50: 0 | V50: 0 | W50: 0 | X50: 141 | Y50: A
B51: 5 | C51: 731 | D51: 152 | E51: 76 | F51: 58 | G51: 62 | H51: 57 | I51: 70 | J51: 7 | K51: 22 | L51: 20 | M51: 8 | N51: 29 | O51: 2 | P51: 2 | Q51: 8 | R51: 21 | S51: 4 | T51: 0 | U51: 0 | V51: 0 | W51: 0 | X51: 133 | Y51: M
B52: 6 | C52: 855 | D52: 179 | E52: 79 | F52: 78 | G52: 89 | H52: 64 | I52: 58 | J52: 68 | K52: 32 | L52: 14 | M52: 6 | N52: 18 | O52: 7 | P52: 1 | Q52: 11 | R52: 24 | S52: 8 | T52: 0 | U52: 0 | V52: 0 | W52: 0 | X52: 119 | Y52: J
B53: 7 | C53: 1,280 | D53: 233 | E53: 70 | F53: 102 | G53: 112 | H53: 60 | I53: 67 | J53: 19 | K53: 21 | L53: 23 | M53: 10 | N53: 19 | O53: 10 | P53: 1 | Q53: 17 | R53: 26 | S53: 8 | T53: 0 | U53: 0 | V53: 0 | W53: 0 | X53: 482 | Y53: J
B54: 8 | C54: 1,387 | D54: 185 | E54: 46 | F54: 93 | G54: 127 | H54: 54 | I54: 87 | J54: 15 | K54: 29 | L54: 34 | M54: 13 | N54: 15 | O54: 6 | P54: 2 | Q54: 28 | R54: 28 | S54: 7 | T54: 1 | U54: 1 | V54: 0 | W54: 0 | X54: 616 | Y54: A
B55: 9 | C55: 1,874 | D55: 304 | E55: 81 | F55: 130 | G55: 156 | H55: 101 | I55: 104 | J55: 40 | K55: 30 | L55: 62 | M55: 7 | N55: 24 | O55: 11 | P55: 0 | Q55: 28 | R55: 32 | S55: 19 | T55: 0 | U55: 0 | V55: 0 | W55: 0 | X55: 745 | Y55: S
B56: 10 | C56: 1,246 | D56: 235 | E56: 64 | F56: 154 | G56: 132 | H56: 62 | I56: 86 | J56: 30 | K56: 22 | L56: 66 | M56: 10 | N56: 20 | O56: 5 | P56: 1 | Q56: 19 | R56: 17 | S56: 13 | T56: 0 | U56: 0 | V56: 0 | W56: 0 | X56: 310 | Y56: O
B57: 11 | C57: 1,232 | D57: 356 | E57: 88 | F57: 191 | G57: 138 | H57: 88 | I57: 108 | J57: 31 | K57: 31 | L57: 71 | M57: 12 | N57: 34 | O57: 9 | P57: 4 | Q57: 17 | R57: 26 | S57: 13 | T57: 1 | U57: 0 | V57: 0 | W57: 0 | X57: 14 | Y57: N
B58: 12 | C58: 1,676 | D58: 474 | E58: 123 | F58: 257 | G58: 257 | H58: 139 | I58: 86 | J58: 48 | K58: 37 | L58: 117 | M58: 11 | N58: 32 | O58: 12 | P58: 5 | Q58: 28 | R58: 27 | S58: 20 | T58: 2 | U58: 1 | V58: 0 | W58: 0 | X58: 0 | Y58: D
A60: 2007 | B60: 1 | C60: =SUM(D60:X60) -> 2,414 | D60: 1,319 | E60: 100 | F60: 195 | G60: 244 | H60: 76 | I60: 226 | J60: 27 | K60: 23 | L60: 112 | M60: 8 | N60: 14 | O60: 8 | P60: 1 | Q60: 9 | R60: 29 | S60: 9 | T60: 4 | U60: 1 | V60: 0 | W60: 0 | X60: 9 | Y60: J | Z60: 2007
B61: 2 | C61: 2,782 | D61: 1,655 | E61: 68 | F61: 198 | G61: 268 | H61: 72 | I61: 191 | J61: 28 | K61: 24 | L61: 137 | M61: 10 | N61: 22 | O61: 6 | P61: 2 | Q61: 20 | R61: 45 | S61: 21 | T61: 5 | U61: 0 | V61: 0 | W61: 0 | X61: 10 | Y61: F
B62: 3 | C62: 2,521 | D62: 1,347 | E62: 61 | F62: 238 | G62: 266 | H62: 77 | I62: 164 | J62: 35 | K62: 54 | L62: 133 | M62: 9 | N62: 26 | O62: 7 | P62: 2 | Q62: 15 | R62: 54 | S62: 14 | T62: 4 | U62: 1 | V62: 0 | W62: 0 | X62: 14 | Y62: M
B63: 4 | C63: 2,446 | D63: 1,187 | E63: 73 | F63: 295 | G63: 268 | H63: 115 | I63: 126 | J63: 54 | K63: 36 | L63: 143 | M63: 3 | N63: 43 | O63: 11 | P63: 2 | Q63: 15 | R63: 56 | S63: 12 | T63: 3 | U63: 1 | V63: 0 | W63: 0 | X63: 3 | Y63: A
B64: 5 | C64: 2,502 | D64: 1,223 | E64: 86 | F64: 332 | G64: 217 | H64: 137 | I64: 136 | J64: 45 | K64: 38 | L64: 115 | M64: 5 | N64: 40 | O64: 7 | P64: 4 | Q64: 35 | R64: 55 | S64: 13 | T64: 8 | U64: 0 | V64: 0 | W64: 0 | X64: 6 | Y64: M
B65: 6 | C65: 2,734 | D65: 1,219 | E65: 93 | F65: 371 | G65: 224 | H65: 130 | I65: 314 | J65: 49 | K65: 61 | L65: 113 | M65: 3 | N65: 41 | O65: 7 | P65: 3 | Q65: 30 | R65: 51 | S65: 12 | T65: 4 | U65: 0 | V65: 0 | W65: 0 | X65: 9 | Y65: J
B66: 7 | C66: 3,605 | D66: 1,639 | E66: 87 | F66: 499 | G66: 239 | H66: 171 | I66: 446 | J66: 89 | K66: 76 | L66: 142 | M66: 5 | N66: 61 | O66: 10 | P66: 3 | Q66: 41 | R66: 72 | S66: 10 | T66: 12 | U66: 0 | V66: 0 | W66: 0 | X66: 3 | Y66: J
B67: 8 | C67: 3,229 | D67: 1,514 | E67: 75 | F67: 560 | G67: 258 | H67: 151 | I67: 240 | J67: 60 | K67: 54 | L67: 114 | M67: 3 | N67: 46 | O67: 4 | P67: 1 | Q67: 56 | R67: 69 | S67: 13 | T67: 6 | U67: 0 | V67: 0 | W67: 0 | X67: 5 | Y67: A
B68: 9 | C68: 2,499 | D68: 1,096 | E68: 61 | F68: 470 | G68: 162 | H68: 140 | I68: 157 | J68: 63 | K68: 41 | L68: 122 | M68: 12 | N68: 52 | O68: 6 | P68: 0 | Q68: 34 | R68: 56 | S68: 11 | T68: 2 | U68: 2 | V68: 0 | W68: 0 | X68: 12 | Y68: S
B69: 10 | C69: 3,444 | D69: 1,396 | E69: 120 | F69: 615 | G69: 305 | H69: 175 | I69: 201 | J69: 107 | K69: 58 | L69: 201 | M69: 13 | N69: 22 | O69: 8 | P69: 5 | Q69: 98 | R69: 78 | S69: 18 | T69: 9 | U69: 0 | V69: 6 | W69: 0 | X69: 9 | Y69: O
B70: 11 | C70: 3,264 | D70: 1,282 | E70: 122 | F70: 596 | G70: 303 | H70: 154 | I70: 204 | J70: 96 | K70: 47 | L70: 210 | M70: 20 | N70: 12 | O70: 6 | P70: 1 | Q70: 83 | R70: 75 | S70: 27 | T70: 9 | U70: 1 | V70: 8 | W70: 0 | X70: 8 | Y70: N
B71: 12 | C71: 4,514 | D71: 1,785 | E71: 160 | F71: 826 | G71: 406 | H71: 278 | I71: 174 | J71: 152 | K71: 62 | L71: 306 | M71: 38 | N71: 23 | O71: 19 | P71: 4 | Q71: 109 | R71: 116 | S71: 26 | T71: 9 | U71: 3 | V71: 13 | W71: 0 | X71: 5 | Y71: D
A73: 2008 | B73: 1 | C73: =SUM(D73:X73) -> 5,864 | D73: 2,316 | E73: 132 | F73: 1,126 | G73: 477 | H73: 362 | I73: 256 | J73: 152 | K73: 83 | L73: 366 | M73: 24 | N73: 185 | O73: 12 | P73: 2 | Q73: 98 | R73: 156 | S73: 32 | T73: 15 | U73: 1 | V73: 61 | W73: 0 | X73: 8 | Y73: J | Z73: 2008
B74: 2 | C74: 4,993 | D74: 1,926 | E74: 163 | F74: 896 | G74: 409 | H74: 469 | I74: 243 | J74: 120 | K74: 54 | L74: 212 | M74: 19 | N74: 103 | O74: 29 | P74: 3 | Q74: 128 | R74: 119 | S74: 23 | T74: 53 | U74: 0 | V74: 20 | W74: 0 | X74: 4 | Y74: F
B75: 3 | C75: 3,929 | D75: 1,257 | E75: 202 | F75: 653 | G75: 259 | H75: 566 | I75: 140 | J75: 118 | K75: 30 | L75: 180 | M75: 11 | N75: 78 | O75: 50 | P75: 1 | Q75: 143 | R75: 79 | S75: 28 | T75: 103 | U75: 2 | V75: 17 | W75: 0 | X75: 12 | Y75: M
B76: 4 | C76: 5,153 | D76: 1,418 | E76: 282 | F76: 877 | G76: 366 | H76: 855 | I76: 137 | J76: 159 | K76: 8 | L76: 252 | M76: 7 | N76: 65 | O76: 44 | P76: 7 | Q76: 260 | R76: 156 | S76: 31 | T76: 201 | U76: 0 | V76: 18 | W76: 0 | X76: 10 | Y76: A
B77: 5 | C77: 4,118 | D77: 1,124 | E77: 196 | F77: 801 | G77: 460 | H77: 641 | I77: 100 | J77: 156 | K77: 0 | L77: 211 | M77: 9 | N77: 51 | O77: 26 | P77: 0 | Q77: 197 | R77: 98 | S77: 13 | T77: 18 | U77: 2 | V77: 12 | W77: 0 | X77: 3 | Y77: M
B78: 6 | C78: 3,766 | D78: 915 | E78: 129 | F78: 852 | G78: 461 | H78: 487 | I78: 86 | J78: 211 | K78: 0 | L78: 195 | M78: 13 | N78: 45 | O78: 22 | P78: 3 | Q78: 195 | R78: 99 | S78: 6 | T78: 26 | U78: 0 | V78: 9 | W78: 0 | X78: 12 | Y78: J
B79: 7 | C79: 4,244 | D79: 1,049 | E79: 147 | F79: 1,077 | G79: 630 | H79: 357 | I79: 120 | J79: 228 | K79: 0 | L79: 215 | M79: 22 | N79: 64 | O79: 36 | P79: 1 | Q79: 164 | R79: 78 | S79: 17 | T79: 26 | U79: 0 | V79: 9 | W79: 0 | X79: 4 | Y79: J
B80: 8 | C80: 4,342 | D80: 978 | E80: 178 | F80: 1,012 | G80: 722 | H80: 328 | I80: 134 | J80: 205 | K80: 0 | L80: 313 | M80: 9 | N80: 118 | O80: 69 | P80: 2 | Q80: 153 | R80: 67 | S80: 17 | T80: 19 | U80: 0 | V80: 14 | W80: 0 | X80: 4 | Y80: A
B81: 9 | C81: 2,829 | D81: 608 | E81: 84 | F81: 587 | G81: 456 | H81: 209 | I81: 61 | J81: 157 | K81: 0 | L81: 216 | M81: 22 | N81: 168 | O81: 58 | P81: 0 | Q81: 95 | R81: 62 | S81: 18 | T81: 13 | U81: 0 | V81: 10 | W81: 0 | X81: 5 | Y81: S
B82: 10 | C82: 1,881 | D82: 303 | E82: 82 | F82: 377 | G82: 318 | H82: 83 | I82: 53 | J82: 102 | K82: 0 | L82: 175 | M82: 10 | N82: 211 | O82: 29 | P82: 0 | Q82: 53 | R82: 53 | S82: 26 | T82: 6 | U82: 0 | V82: 0 | W82: 0 | X82: 0 | Y82: O
B83: 11 | C83: 869 | D83: 34 | E83: 50 | F83: 128 | G83: 164 | H83: 22 | I83: 46 | J83: 65 | K83: 0 | L83: 122 | M83: 0 | N83: 124 | O83: 45 | P83: 1 | Q83: 25 | R83: 32 | S83: 8 | T83: 3 | U83: 0 | V83: 0 | W83: 0 | X83: 0 | Y83: N
B84: 12 | C84: 452 | D84: 62 | E84: 17 | F84: 35 | G84: 75 | H84: 29 | I84: 28 | J84: 32 | K84: 0 | L84: 67 | M84: 0 | N84: 32 | O84: 11 | P84: 0 | Q84: 12 | R84: 35 | S84: 13 | T84: 4 | U84: 0 | V84: 0 | W84: 0 | X84: 0 | Y84: D
A86: 2009 | B86: 1 | C86: =SUM(D86:X86) -> 344 | D86: 81 | E86: 20 | F86: 24 | G86: 33 | H86: 52 | I86: 33 | J86: 19 | K86: 0 | L86: 16 | M86: 1 | N86: 18 | O86: 5 | P86: 0 | Q86: 6 | R86: 32 | S86: 2 | T86: 1 | U86: 1 | V86: 0 | W86: 0 | X86: 0 | Y86: J | Z86: 2009
B87: 2 | C87: 947 | D87: 165 | E87: 81 | F87: 37 | G87: 106 | H87: 236 | I87: 82 | J87: 40 | K87: 0 | L87: 40 | M87: 2 | N87: 39 | O87: 5 | P87: 0 | Q87: 16 | R87: 73 | S87: 19 | T87: 6 | U87: 0 | V87: 0 | W87: 0 | X87: 0 | Y87: F
B88: 3 | C88: 3,018 | D88: 244 | E88: 467 | F88: 24 | G88: 327 | H88: 1,391 | I88: 85 | J88: 43 | K88: 0 | L88: 55 | M88: 6 | N88: 173 | O88: 19 | P88: 1 | Q88: 24 | R88: 138 | S88: 19 | T88: 2 | U88: 0 | V88: 0 | W88: 0 | X88: 0 | Y88: M
B89: 4 | C89: 4,628 | D89: 220 | E89: 676 | F89: 33 | G89: 891 | H89: 1,647 | I89: 69 | J89: 85 | K89: 0 | L89: 49 | M89: 8 | N89: 739 | O89: 9 | P89: 2 | Q89: 17 | R89: 163 | S89: 16 | T89: 4 | U89: 0 | V89: 0 | W89: 0 | X89: 0 | Y89: A
B90: 5 | C90: 4,396 | D90: 191 | E90: 635 | F90: 18 | G90: 1,076 | H90: 994 | I90: 158 | J90: 159 | K90: 0 | L90: 73 | M90: 5 | N90: 866 | O90: 11 | P90: 0 | Q90: 20 | R90: 180 | S90: 9 | T90: 1 | U90: 0 | V90: 0 | W90: 0 | X90: 0 | Y90: M
B91: 6 | C91: 4,870 | D91: 378 | E91: 524 | F91: 58 | G91: 1,253 | H91: 726 | I91: 201 | J91: 173 | K91: 0 | L91: 155 | M91: 4 | N91: 1,150 | O91: 21 | P91: 3 | Q91: 28 | R91: 160 | S91: 22 | T91: 11 | U91: 0 | V91: 3 | W91: 0 | X91: 0 | Y91: J
B92: 7 | C92: 4,564 | D92: 683 | E92: 455 | F92: 118 | G92: 1,081 | H92: 480 | I92: 152 | J92: 191 | K92: 0 | L92: 254 | M92: 3 | N92: 860 | O92: 28 | P92: 1 | Q92: 75 | R92: 132 | S92: 37 | T92: 11 | U92: 0 | V92: 3 | W92: 0 | X92: 0 | Y92: J
B93: 8 | C93: 4,874 | D93: 955 | E93: 422 | F93: 156 | G93: 1,048 | H93: 454 | I93: 106 | J93: 156 | K93: 0 | L93: 262 | M93: 5 | N93: 967 | O93: 31 | P93: 1 | Q93: 98 | R93: 131 | S93: 47 | T93: 30 | U93: 0 | V93: 5 | W93: 0 | X93: 0 | Y93: A
B94: 9 | C94: 6,572 | D94: 1,270 | E94: 446 | F94: 513 | G94: 1,308 | H94: 631 | I94: 98 | J94: 246 | K94: 0 | L94: 332 | M94: 11 | N94: 1,340 | O94: 44 | P94: 0 | Q94: 142 | R94: 99 | S94: 46 | T94: 35 | U94: 0 | V94: 11 | W94: 0 | X94: 0 | Y94: S
B95: 10 | C95: 9,462 | D95: 1,885 | E95: 532 | F95: 1,340 | G95: 1,719 | H95: 645 | I95: 107 | J95: 367 | K95: 0 | L95: 429 | M95: 12 | N95: 1,924 | O95: 56 | P95: 0 | Q95: 266 | R95: 53 | S95: 61 | T95: 49 | U95: 0 | V95: 17 | W95: 0 | X95: 0 | Y95: O
B96: 11 | C96: 8,900 | D96: 1,868 | E96: 482 | F96: 1,504 | G96: 1,433 | H96: 520 | I96: 92 | J96: 286 | K96: 0 | L96: 454 | M96: 30 | N96: 1,734 | O96: 61 | P96: 2 | Q96: 280 | R96: 48 | S96: 59 | T96: 39 | U96: 1 | V96: 7 | W96: 0 | X96: 0 | Y96: N
B97: 12 | C97: 6,848 | D97: 1,426 | E97: 535 | F97: 841 | G97: 985 | H97: 438 | I97: 71 | J97: 289 | K97: 0 | L97: 483 | M97: 32 | N97: 1,400 | O97: 46 | P97: 1 | Q97: 152 | R97: 48 | S97: 47 | T97: 44 | U97: 1 | V97: 9 | W97: 0 | X97: 0 | Y97: D
A99: 2010 | B99: 1 | C99: =SUM(D99:X99) -> 3,778 | D99: 843 | E99: 251 | F99: 383 | G99: 618 | H99: 207 | I99: 34 | J99: 176 | K99: 0 | L99: 303 | M99: 5 | N99: 691 | O99: 31 | P99: 1 | Q99: 126 | R99: 36 | S99: 48 | T99: 23 | U99: 0 | V99: 2 | W99: 0 | X99: 0 | Y99: J | Z99: 2010
B100: 2 | C100: 3,989 | D100: 989 | E100: 240 | F100: 347 | G100: 651 | H100: 209 | I100: 59 | J100: 219 | K100: 0 | L100: 315 | M100: 12 | N100: 649 | O100: 45 | P100: 2 | Q100: 149 | R100: 19 | S100: 56 | T100: 25 | U100: 0 | V100: 3 | W100: 0 | X100: 0 | Y100: F
B101: 3 | C101: 3,364 | D101: 804 | E101: 217 | F101: 259 | G101: 510 | H101: 138 | I101: 43 | J101: 230 | K101: 0 | L101: 291 | M101: 6 | N101: 587 | O101: 33 | P101: 1 | Q101: 150 | R101: 26 | S101: 42 | T101: 19 | U101: 2 | V101: 6 | W101: 0 | X101: 0 | Y101: M
B102: 4 | C102: 2,679 | D102: 600 | E102: 231 | F102: 244 | G102: 419 | H102: 91 | I102: 55 | J102: 178 | K102: 0 | L102: 206 | M102: 12 | N102: 393 | O102: 19 | P102: 0 | Q102: 137 | R102: 31 | S102: 34 | T102: 19 | U102: 0 | V102: 10 | W102: 0 | X102: 0 | Y102: A
B103: 5 | C103: 2,374 | D103: 560 | E103: 218 | F103: 295 | G103: 372 | H103: 51 | I103: 48 | J103: 130 | K103: 0 | L103: 171 | M103: 4 | N103: 352 | O103: 6 | P103: 0 | Q103: 103 | R103: 39 | S103: 11 | T103: 11 | U103: 0 | V103: 3 | W103: 0 | X103: 0 | Y103: M
B104: 6 | C104: 3,701 | D104: 652 | E104: 314 | F104: 428 | G104: 422 | H104: 90 | I104: 96 | J104: 842 | K104: 0 | L104: 200 | M104: 8 | N104: 318 | O104: 13 | P104: 0 | Q104: 224 | R104: 56 | S104: 10 | T104: 17 | U104: 1 | V104: 10 | W104: 0 | X104: 0 | Y104: J
B105: 7 | C105: 9,838 | D105: 601 | E105: 276 | F105: 668 | G105: 347 | H105: 154 | I105: 315 | J105: 6,320 | K105: 0 | L105: 184 | M105: 25 | N105: 290 | O105: 8 | P105: 0 | Q105: 546 | R105: 73 | S105: 11 | T105: 15 | U105: 0 | V105: 5 | W105: 0 | X105: 0 | Y105: J
B106: 8 | C106: 8,935 | D106: 444 | E106: 132 | F106: 495 | G106: 224 | H106: 193 | I106: 424 | J106: 6,344 | K106: 0 | L106: 131 | M106: 13 | N106: 164 | O106: 3 | P106: 0 | Q106: 302 | R106: 47 | S106: 9 | T106: 2 | U106: 1 | V106: 7 | W106: 0 | X106: 0 | Y106: A
B107: 9 | C107: 5,081 | D107: 313 | E107: 62 | F107: 228 | G107: 113 | H107: 133 | I107: 295 | J107: 3,616 | K107: 0 | L107: 55 | M107: 18 | N107: 68 | O107: 1 | P107: 0 | Q107: 135 | R107: 20 | S107: 13 | T107: 5 | U107: 0 | V107: 6 | W107: 0 | X107: 0 | Y107: S
B108: 10 | C108: 4,389 | D108: 320 | E108: 72 | F108: 197 | G108: 127 | H108: 151 | I108: 258 | J108: 2,984 | K108: 0 | L108: 62 | M108: 23 | N108: 61 | O108: 1 | P108: 1 | Q108: 85 | R108: 14 | S108: 12 | T108: 4 | U108: 0 | V108: 17 | W108: 0 | X108: 0 | Y108: O
B109: 11 | C109: 4,765 | D109: 327 | E109: 60 | F109: 189 | G109: 98 | H109: 168 | I109: 456 | J109: 3,146 | K109: 0 | L109: 55 | M109: 36 | N109: 52 | O109: 3 | P109: 0 | Q109: 118 | R109: 17 | S109: 9 | T109: 7 | U109: 0 | V109: 24 | W109: 0 | X109: 0 | Y109: N
B110: 12 | C110: 5,587 | D110: 385 | E110: 113 | F110: 185 | G110: 150 | H110: 192 | I110: 562 | J110: 3,620 | K110: 0 | L110: 64 | M110: 34 | N110: 67 | O110: 4 | P110: 0 | Q110: 138 | R110: 17 | S110: 18 | T110: 14 | U110: 0 | V110: 24 | W110: 0 | X110: 0 | Y110: D
A112: 2011 | B112: 1 | C112: =SUM(D112:X112) -> 4,492 | D112: 295 | E112: 70 | F112: 169 | G112: 117 | H112: 149 | I112: 529 | J112: 2,901 | K112: 0 | L112: 51 | M112: 36 | N112: 53 | O112: 4 | P112: 0 | Q112: 83 | R112: 5 | S112: 8 | T112: 10 | U112: 2 | V112: 10 | W112: 0 | X112: 0 | Y112: J | Z112: 2011
B113: 2 | C113: 5,991 | D113: 398 | E113: 105 | F113: 191 | G113: 144 | H113: 166 | I113: 762 | J113: 3,869 | K113: 0 | L113: 63 | M113: 38 | N113: 69 | O113: 4 | P113: 0 | Q113: 117 | R113: 12 | S113: 12 | T113: 12 | U113: 0 | V113: 29 | W113: 0 | X113: 0 | Y113: F
B114: 3 | C114: 7,816 | D114: 413 | E114: 136 | F114: 204 | G114: 163 | H114: 250 | I114: 1,074 | J114: 5,105 | K114: 0 | L114: 80 | M114: 51 | N114: 80 | O114: 5 | P114: 0 | Q114: 158 | R114: 11 | S114: 14 | T114: 11 | U114: 0 | V114: 61 | W114: 0 | X114: 0 | Y114: M
B115: 4 | C115: 7,969 | D115: 416 | E115: 41 | F115: 163 | G115: 161 | H115: 232 | I115: 1,143 | J115: 5,365 | K115: 0 | L115: 88 | M115: 31 | N115: 88 | O115: 1 | P115: 0 | Q115: 135 | R115: 16 | S115: 24 | T115: 10 | U115: 0 | V115: 55 | W115: 0 | X115: 0 | Y115: A
B116: 5 | C116: 6,580 | D116: 303 | E116: 42 | F116: 140 | G116: 118 | H116: 178 | I116: 811 | J116: 4,596 | K116: 0 | L116: 56 | M116: 43 | N116: 64 | O116: 4 | P116: 0 | Q116: 108 | R116: 13 | S116: 12 | T116: 4 | U116: 0 | V116: 88 | W116: 0 | X116: 0 | Y116: M
B117: 6 | C117: 6,090 | D117: 558 | E117: 44 | F117: 340 | G117: 218 | H117: 141 | I117: 585 | J117: 3,729 | K117: 0 | L117: 53 | M117: 43 | N117: 185 | O117: 8 | P117: 0 | Q117: 87 | R117: 6 | S117: 13 | T117: 10 | U117: 0 | V117: 70 | W117: 0 | X117: 0 | Y117: J
B118: 7 | C118: 6,268 | D118: 1,034 | E118: 39 | F118: 730 | G118: 468 | H118: 85 | I118: 383 | J118: 2,753 | K118: 0 | L118: 55 | M118: 20 | N118: 560 | O118: 0 | P118: 0 | Q118: 53 | R118: 9 | S118: 23 | T118: 16 | U118: 0 | V118: 40 | W118: 0 | X118: 0 | Y118: J
B119: 8 | C119: 6,115 | D119: 1,030 | E119: 58 | F119: 802 | G119: 491 | H119: 82 | I119: 283 | J119: 2,214 | K119: 0 | L119: 19 | M119: 30 | N119: 788 | O119: 23 | P119: 0 | Q119: 53 | R119: 36 | S119: 60 | T119: 42 | U119: 0 | V119: 61 | W119: 0 | X119: 43 | Y119: A
B120: 9 | C120: 9,668 | D120: 1,417 | E120: 53 | F120: 1,198 | G120: 863 | H120: 100 | I120: 308 | J120: 3,713 | K120: 0 | L120: 32 | M120: 36 | N120: 1,457 | O120: 39 | P120: 0 | Q120: 79 | R120: 58 | S120: 74 | T120: 100 | U120: 0 | V120: 39 | W120: 0 | X120: 102 | Y120: S
B121: 10 | C121: 11,372 | D121: 1,408 | E121: 30 | F121: 1,558 | G121: 1,017 | H121: 146 | I121: 425 | J121: 4,281 | K121: 0 | L121: 46 | M121: 56 | N121: 1,799 | O121: 36 | P121: 0 | Q121: 91 | R121: 77 | S121: 87 | T121: 93 | U121: 0 | V121: 70 | W121: 0 | X121: 152 | Y121: O
B122: 11 | C122: 10,248 | D122: 1,272 | E122: 33 | F122: 1,492 | G122: 922 | H122: 127 | I122: 354 | J122: 3,701 | K122: 0 | L122: 45 | M122: 57 | N122: 1,691 | O122: 44 | P122: 0 | Q122: 94 | R122: 63 | S122: 61 | T122: 57 | U122: 0 | V122: 78 | W122: 0 | X122: 157 | Y122: N
B123: 12 | C123: 11,540 | D123: 1,486 | E123: 35 | F123: 1,737 | G123: 1,148 | H123: 196 | I123: 413 | J123: 3,797 | K123: 0 | L123: 63 | M123: 70 | N123: 1,942 | O123: 58 | P123: 0 | Q123: 99 | R123: 74 | S123: 78 | T123: 87 | U123: 1 | V123: 76 | W123: 0 | X123: 180 | Y123: D
A125: 2012 | B125: 1 | C125: =SUM(D125:X125) -> 2,702 | D125: 289 | E125: 12 | F125: 395 | G125: 265 | H125: 80 | I125: 114 | J125: 946 | K125: 0 | L125: 20 | M125: 50 | N125: 322 | O125: 14 | P125: 0 | Q125: 42 | R125: 21 | S125: 16 | T125: 18 | U125: 0 | V125: 31 | W125: 0 | X125: 67 | Y125: J | Z125: 2012
B126: 2 | C126: 7,467 | D126: 972 | E126: 24 | F126: 1,243 | G126: 725 | H126: 115 | I126: 293 | J126: 2,430 | K126: 0 | L126: 46 | M126: 83 | N126: 953 | O126: 38 | P126: 0 | Q126: 78 | R126: 80 | S126: 62 | T126: 51 | U126: 0 | V126: 95 | W126: 0 | X126: 179 | Y126: F
B127: 3 | C127: 9,679 | D127: 1,224 | E127: 27 | F127: 1,860 | G127: 885 | H127: 130 | I127: 341 | J127: 2,772 | K127: 0 | L127: 34 | M127: 66 | N127: 1,494 | O127: 56 | P127: 0 | Q127: 103 | R127: 145 | S127: 82 | T127: 74 | U127: 0 | V127: 129 | W127: 0 | X127: 257 | Y127: M
B128: 4 | C128: 7,875 | D128: 777 | E128: 28 | F128: 1,437 | G128: 888 | H128: 113 | I128: 403 | J128: 2,349 | K128: 0 | L128: 47 | M128: 123 | N128: 1,054 | O128: 47 | P128: 0 | Q128: 86 | R128: 115 | S128: 61 | T128: 67 | U128: 0 | V128: 82 | W128: 0 | X128: 198 | Y128: A
B129: 5 | C129: 9,587 | D129: 965 | E129: 44 | F129: 1,652 | G129: 1,055 | H129: 108 | I129: 414 | J129: 3,021 | K129: 0 | L129: 45 | M129: 104 | N129: 1,233 | O129: 55 | P129: 0 | Q129: 112 | R129: 165 | S129: 63 | T129: 132 | U129: 0 | V129: 96 | W129: 0 | X129: 323 | Y129: M
B130: 6 | C130: 9,213 | D130: 933 | E130: 33 | F130: 1,703 | G130: 969 | H130: 119 | I130: 376 | J130: 2,720 | K130: 0 | L130: 52 | M130: 88 | N130: 1,295 | O130: 87 | P130: 0 | Q130: 108 | R130: 147 | S130: 65 | T130: 116 | U130: 0 | V130: 72 | W130: 3 | X130: 327 | Y130: J
B131: 7 | C131: 8,806 | D131: 991 | E131: 235 | F131: 1,630 | G131: 898 | H131: 139 | I131: 395 | J131: 2,239 | K131: 0 | L131: 142 | M131: 75 | N131: 1,218 | O131: 91 | P131: 2 | Q131: 65 | R131: 147 | S131: 57 | T131: 92 | U131: 0 | V131: 57 | W131: 5 | X131: 328 | Y131: J
B132: 8 | C132: 7,954 | D132: 901 | E132: 231 | F132: 1,677 | G132: 793 | H132: 144 | I132: 315 | J132: 1,841 | K132: 0 | L132: 208 | M132: 44 | N132: 960 | O132: 96 | P132: 5 | Q132: 57 | R132: 176 | S132: 49 | T132: 89 | U132: 0 | V132: 37 | W132: 8 | X132: 323 | Y132: A
B133: 9 | C133: 6,616 | D133: 656 | E133: 207 | F133: 1,337 | G133: 697 | H133: 113 | I133: 296 | J133: 1,518 | K133: 0 | L133: 199 | M133: 53 | N133: 782 | O133: 74 | P133: 3 | Q133: 79 | R133: 77 | S133: 46 | T133: 70 | U133: 0 | V133: 39 | W133: 11 | X133: 359 | Y133: S
B134: 10 | C134: 9,526 | D134: 976 | E134: 337 | F134: 2,151 | G134: 1,161 | H134: 253 | I134: 433 | J134: 1,700 | K134: 0 | L134: 274 | M134: 69 | N134: 1,249 | O134: 205 | P134: 4 | Q134: 72 | R134: 124 | S134: 58 | T134: 100 | U134: 1 | V134: 52 | W134: 11 | X134: 296 | Y134: O
B135: 11 | C135: 13,675 | D135: 1,537 | E135: 544 | F135: 3,142 | G135: 1,644 | H135: 309 | I135: 637 | J135: 2,157 | K135: 0 | L135: 431 | M135: 82 | N135: 1,961 | O135: 199 | P135: 12 | Q135: 120 | R135: 115 | S135: 104 | T135: 139 | U135: 1 | V135: 77 | W135: 18 | X135: 446 | Y135: N
B136: 12 | C136: 18,970 | D136: 2,567 | E136: 1,333 | F136: 4,556 | G136: 2,572 | H136: 456 | I136: 852 | J136: 1,151 | K136: 0 | L136: 635 | M136: 56 | N136: 3,040 | O136: 386 | P136: 55 | Q136: 125 | R136: 275 | S136: 178 | T136: 308 | U136: 0 | V136: 64 | W136: 18 | X136: 343 | Y136: D
C137: 0
A138: 2013 | B138: 1 | C138: 6,954 | D138: 724 | E138: 431 | F138: 1,355 | G138: 852 | H138: 203 | I138: 338 | J138: 1,086 | K138: 0 | L138: 324 | M138: 31 | N138: 891 | O138: 115 | P138: 22 | Q138: 46 | R138: 78 | S138: 20 | T138: 72 | U138: 0 | V138: 69 | W138: 18 | X138: 279 | Y138: J | Z138: 2013
B139: 2 | C139: 11,225 | D139: 1,318 | E139: 497 | F139: 2,270 | G139: 1,436 | H139: 282 | I139: 579 | J139: 1,699 | K139: 0 | L139: 534 | M139: 35 | N139: 1,567 | O139: 187 | P139: 27 | Q139: 80 | R139: 124 | S139: 24 | T139: 132 | U139: 0 | V139: 92 | W139: 12 | X139: 330 | Y139: F
B140: 3 | C140: 10,947 | D140: 1,155 | E140: 561 | F140: 2,322 | G140: 1,450 | H140: 296 | I140: 453 | J140: 1,588 | K140: 0 | L140: 613 | M140: 33 | N140: 1,632 | O140: 128 | P140: 14 | Q140: 115 | R140: 126 | S140: 24 | T140: 123 | U140: 0 | V140: 72 | W140: 8 | X140: 234 | Y140: M
B141: 4 | C141: 16,820 | D141: 1,678 | E141: 815 | F141: 3,371 | G141: 2,139 | H141: 490 | I141: 711 | J141: 2,743 | K141: 0 | L141: 969 | M141: 28 | N141: 2,501 | O141: 218 | P141: 47 | Q141: 145 | R141: 179 | S141: 43 | T141: 253 | U141: 0 | V141: 101 | W141: 15 | X141: 374 | Y141: A
B142: 5 | C142: 16,660 | D142: 1,655 | E142: 859 | F142: 3,392 | G142: 2,247 | H142: 569 | I142: 663 | J142: 2,381 | K142: 0 | L142: 1,100 | M142: 18 | N142: 2,531 | O142: 273 | P142: 35 | Q142: 145 | R142: 131 | S142: 38 | T142: 258 | U142: 0 | V142: 75 | W142: 7 | X142: 283 | Y142: M
B143: 6 | C143: 22,629 | D143: 2,364 | E143: 1,490 | F143: 3,954 | G143: 3,329 | H143: 745 | I143: 897 | J143: 3,027 | K143: 0 | L143: 1,684 | M143: 19 | N143: 3,372 | O143: 348 | P143: 50 | Q143: 190 | R143: 248 | S143: 46 | T143: 510 | U143: 1 | V143: 41 | W143: 13 | X143: 301 | Y143: J
B144: 7 | C144: 10,356 | D144: 971 | E144: 460 | F144: 1,682 | G144: 1,582 | H144: 430 | I144: 320 | J144: 1,906 | K144: 0 | L144: 781 | M144: 8 | N144: 1,407 | O144: 145 | P144: 21 | Q144: 90 | R144: 89 | S144: 30 | T144: 206 | U144: 0 | V144: 31 | W144: 8 | X144: 189 | Y144: J
B145: 8 | C145: 6,480 | D145: 729 | E145: 217 | F145: 1,229 | G145: 971 | H145: 267 | I145: 226 | J145: 1,061 | K145: 0 | L145: 513 | M145: 3 | N145: 753 | O145: 89 | P145: 14 | Q145: 81 | R145: 66 | S145: 19 | T145: 100 | U145: 1 | V145: 20 | W145: 5 | X145: 116 | Y145: A
B146: 9 | C146: 4,196 | D146: 425 | E146: 232 | F146: 833 | G146: 599 | H146: 142 | I146: 175 | J146: 520 | K146: 0 | L146: 304 | M146: 2 | N146: 520 | O146: 55 | P146: 4 | Q146: 72 | R146: 144 | S146: 11 | T146: 91 | U146: 1 | V146: 11 | W146: 3 | X146: 52 | Y146: S
B147: 10 | C147: 4,834 | D147: 546 | E147: 214 | F147: 983 | G147: 654 | H147: 187 | I147: 211 | J147: 638 | K147: 0 | L147: 333 | M147: 4 | N147: 630 | O147: 44 | P147: 17 | Q147: 66 | R147: 104 | S147: 9 | T147: 105 | U147: 0 | V147: 17 | W147: 3 | X147: 69 | Y147: O
B148: 11 | C148: 4,086 | D148: 424 | E148: 203 | F148: 921 | G148: 540 | H148: 121 | I148: 155 | J148: 495 | K148: 0 | L148: 322 | M148: 3 | N148: 511 | O148: 41 | P148: 4 | Q148: 73 | R148: 91 | S148: 11 | T148: 107 | U148: 0 | V148: 7 | W148: 4 | X148: 53 | Y148: N
B149: 12 | C149: 3,867 | D149: 454 | E149: 243 | F149: 846 | G149: 463 | H149: 63 | I149: 127 | J149: 565 | K149: 0 | L149: 254 | M149: 1 | N149: 520 | O149: 40 | P149: 4 | Q149: 61 | R149: 52 | S149: 7 | T149: 114 | U149: 1 | V149: 3 | W149: 2 | X149: 47 | Y149: D
C150: 0
A151: 2014 | B151: 1 | C151: 1,691 | D151: 199 | E151: 65 | F151: 331 | G151: 251 | H151: 29 | I151: 81 | J151: 252 | K151: 0 | L151: 122 | M151: 2 | N151: 196 | O151: 18 | P151: 9 | Q151: 31 | R151: 20 | S151: 8 | T151: 43 | U151: 0 | V151: 1 | W151: 2 | X151: 31 | Y151: J | Z151: 2014
B152: 2 | C152: 1,832 | D152: 151 | E152: 59 | F152: 332 | G152: 262 | H152: 14 | I152: 31 | J152: 311 | K152: 0 | L152: 196 | M152: 0 | N152: 273 | O152: 16 | P152: 1 | Q152: 42 | R152: 75 | S152: 8 | T152: 15 | U152: 1 | V152: 7 | W152: 8 | X152: 30 | Y152: F
B153: 3 | C153: 1,888 | D153: 149 | E153: 70 | F153: 345 | G153: 254 | H153: 24 | I153: 27 | J153: 369 | K153: 0 | L153: 170 | M153: 1 | N153: 249 | O153: 25 | P153: 10 | Q153: 35 | R153: 54 | S153: 11 | T153: 57 | U153: 0 | V153: 10 | W153: 4 | X153: 24 | Y153: M
B154: 4 | C154: 3,485 | D154: 385 | E154: 226 | F154: 641 | G154: 484 | H154: 32 | I154: 19 | J154: 593 | K154: 0 | L154: 320 | M154: 0 | N154: 492 | O154: 27 | P154: 5 | Q154: 34 | R154: 97 | S154: 9 | T154: 87 | U154: 0 | V154: 2 | W154: 4 | X154: 28 | Y154: A
B155: 5 | C155: 5,046 | D155: 506 | E155: 136 | F155: 1,046 | G155: 1,276 | H155: 21 | I155: 23 | J155: 593 | K155: 0 | L155: 441 | M155: 0 | N155: 710 | O155: 14 | P155: 1 | Q155: 21 | R155: 151 | S155: 9 | T155: 70 | U155: 0 | V155: 5 | W155: 3 | X155: 20 | Y155: M
B156: 6 | C156: 7,969 | D156: 787 | E156: 231 | F156: 1,865 | G156: 1,760 | H156: 17 | I156: 22 | J156: 654 | K156: 0 | L156: 854 | M156: 0 | N156: 1,370 | O156: 18 | P156: 2 | Q156: 18 | R156: 126 | S156: 31 | T156: 183 | U156: 0 | V156: 11 | W156: 2 | X156: 18 | Y156: J
B157: 7 | C157: 8,107 | D157: 1,028 | E157: 206 | F157: 1,832 | G157: 1,644 | H157: 44 | I157: 38 | J157: 600 | K157: 0 | L157: 985 | M157: 0 | N157: 1,180 | O157: 38 | P157: 7 | Q157: 28 | R157: 158 | S157: 13 | T157: 234 | U157: 0 | V157: 16 | W157: 1 | X157: 55 | Y157: J
B158: 8 | C158: 8,592 | D158: 1,241 | E158: 187 | F158: 1,653 | G158: 1,828 | H158: 6 | I158: 43 | J158: 781 | K158: 0 | L158: 1,146 | M158: 0 | N158: 1,230 | O158: 21 | P158: 1 | Q158: 8 | R158: 176 | S158: 18 | T158: 183 | U158: 0 | V158: 11 | W158: 21 | X158: 38 | Y158: A
B159: 9 | C159: 8,086 | D159: 1,491 | E159: 123 | F159: 1,651 | G159: 1,640 | H159: 5 | I159: 24 | J159: 675 | K159: 0 | L159: 1,085 | M159: 0 | N159: 1,045 | O159: 25 | P159: 2 | Q159: 2 | R159: 149 | S159: 13 | T159: 115 | U159: 0 | V159: 2 | W159: 15 | X159: 24 | Y159: S
A160: 2014 | B160: 10 | C160: 11,816 | D160: 1,836 | E160: 147 | F160: 2,608 | G160: 2,364 | H160: 5 | I160: 42 | J160: 928 | K160: 0 | L160: 1,836 | M160: 0 | N160: 1,650 | O160: 26 | P160: 8 | Q160: 9 | R160: 156 | S160: 10 | T160: 154 | U160: 0 | V160: 3 | W160: 8 | X160: 26 | Y160: O | Z160: 2014
A161: 2014 | B161: 11 | C161: 12,695 | D161: 3,050 | E161: 205 | F161: 2,477 | G161: 2,156 | H161: 6 | I161: 46 | J161: 1,002 | K161: 0 | L161: 1,585 | M161: 0 | N161: 1,486 | O161: 48 | P161: 8 | Q161: 6 | R161: 185 | S161: 34 | T161: 371 | U161: 1 | V161: 2 | W161: 13 | X161: 14 | Y161: N | Z161: 2014
A162: 2014 | B162: 12 | C162: =SUM(D162:X162) -> 13,473 | D162: 3,833 | E162: 389 | F162: 2,269 | G162: 2,035 | H162: 12 | I162: 37 | J162: 907 | K162: 0 | L162: 1,246 | M162: 0 | N162: 1,583 | O162: 87 | P162: 14 | Q162: 1 | R162: 351 | S162: 10 | T162: 640 | U162: 1 | V162: 3 | W162: 9 | X162: 46 | Y162: D | Z162: 2014
A164: 2015 | B164: 1 | C164: 7,865 | D164: 3,120 | E164: 234 | F164: 1,234 | G164: 829 | H164: 5 | I164: 30 | J164: 648 | K164: 0 | L164: 552 | M164: 0 | N164: 711 | O164: 50 | P164: 10 | Q164: 2 | R164: 120 | S164: 11 | T164: 281 | U164: 1 | V164: 2 | W164: 4 | X164: 21 | Y164: J | Z164: 2015
B165: 2 | C165: 11,147 | D165: 5,662 | E165: 220 | F165: 1,129 | G165: 786 | H165: 9 | I165: 36 | J165: 831 | K165: 0 | L165: 1,051 | M165: 0 | N165: 854 | O165: 44 | P165: 7 | Q165: 17 | R165: 257 | S165: 15 | T165: 192 | U165: 2 | V165: 3 | W165: 6 | X165: 26 | Y165: F
B166: 3 | C166: 11,380 | D166: 5,900 | E166: 465 | F166: 1,149 | G166: 747 | H166: 9 | I166: 30 | J166: 879 | K166: 0 | L166: 885 | M166: 0 | N166: 789 | O166: 47 | P166: 7 | Q166: 11 | R166: 291 | S166: 24 | T166: 113 | U166: 1 | V166: 1 | W166: 2 | X166: 30 | Y166: M
B167: 4 | C167: 19,028 | D167: 11,934 | E167: 727 | F167: 1,331 | G167: 845 | H167: 8 | I167: 68 | J167: 1,316 | K167: 0 | L167: 1,145 | M167: 0 | N167: 1,024 | O167: 65 | P167: 10 | Q167: 12 | R167: 285 | S167: 24 | T167: 146 | U167: 3 | V167: 2 | W167: 9 | X167: 74 | Y167: A
B168: 5 | C168: 19,052 | D168: 11,325 | E168: 880 | F168: 1,624 | G168: 1,306 | H168: 24 | I168: 39 | J168: 1,287 | K168: 0 | L168: 914 | M168: 0 | N168: 1,176 | O168: 51 | P168: 1 | Q168: 16 | R168: 192 | S168: 19 | T168: 158 | U168: 2 | V168: 2 | W168: 2 | X168: 34 | Y168: M
B169: 6 | C169: 23,551 | D169: 11,389 | E169: 772 | F169: 2,787 | G169: 3,060 | H169: 33 | I169: 41 | J169: 1,477 | K169: 0 | L169: 1,571 | M169: 0 | N169: 1,771 | O169: 115 | P169: 61 | Q169: 10 | R169: 234 | S169: 15 | T169: 177 | U169: 4 | V169: 4 | W169: 6 | X169: 24 | Y169: J
B170: 7 | C170: 13,114 | D170: 7,024 | E170: 376 | F170: 1,332 | G170: 1,398 | H170: 11 | I170: 14 | J170: 873 | K170: 0 | L170: 648 | M170: 0 | N170: 1,004 | O170: 53 | P170: 13 | Q170: 15 | R170: 199 | S170: 12 | T170: 131 | U170: 0 | V170: 0 | W170: 3 | X170: 8 | Y170: J
A171: 2015 | B171: 8 | C171: 8,026 | D171: 4,666 | E171: 182 | F171: 667 | G171: 525 | H171: 9 | I171: 6 | J171: 638 | K171: 0 | L171: 408 | M171: 0 | N171: 703 | O171: 49 | P171: 11 | Q171: 2 | R171: 67 | S171: 9 | T171: 76 | U171: 3 | V171: 0 | W171: 4 | X171: 1 | Y171: A | Z171: 2015
B172: 9 | C172: 5,695 | D172: 3,177 | E172: 105 | F172: 463 | G172: 385 | H172: 0 | I172: 5 | J172: 494 | K172: 0 | L172: 289 | M172: 0 | N172: 519 | O172: 34 | P172: 10 | Q172: 7 | R172: 140 | S172: 9 | T172: 48 | U172: 0 | V172: 0 | W172: 7 | X172: 1 | Y172: S
B173: 10 | C173: 6,036 | D173: 2,518 | E173: 107 | F173: 667 | G173: 826 | H173: 5 | I173: 2 | J173: 522 | K173: 0 | L173: 435 | M173: 0 | N173: 699 | O173: 38 | P173: 2 | Q173: 2 | R173: 126 | S173: 10 | T173: 67 | U173: 1 | V173: 0 | W173: 2 | X173: 6 | Y173: O
B174: 11 | C174: 9,453 | D174: 3,404 | E174: 103 | F174: 1,328 | G174: 1,741 | H174: 9 | I174: 0 | J174: 669 | K174: 0 | L174: 962 | M174: 0 | N174: 966 | O174: 22 | P174: 5 | Q174: 3 | R174: 162 | S174: 3 | T174: 74 | U174: 2 | V174: 0 | W174: 1 | X174: 0 | Y174: N
B175: 12 | C175: 13,064 | D175: 5,755 | E175: 187 | F175: 1,749 | G175: 1,823 | H175: 60 | I175: 2 | J175: 816 | K175: 0 | L175: 1,145 | M175: 0 | N175: 1,140 | O175: 61 | P175: 7 | Q175: 7 | R175: 147 | S175: 12 | T175: 147 | U175: 0 | V175: 0 | W175: 4 | X175: 4 | Y175: D
A177: 2016 | B177: 1 | C177: 8,239 | D177: 4,791 | E177: 195 | F177: 799 | G177: 572 | H177: 34 | I177: 1 | J177: 515 | K177: 0 | L177: 443 | M177: 0 | N177: 581 | O177: 29 | P177: 10 | Q177: 6 | R177: 142 | S177: 11 | T177: 103 | U177: 0 | V177: 0 | W177: 8 | X177: 2 | Y177: J | Z177: 2016
B178: 2 | C178: 6,693 | D178: 3,924 | E178: 195 | F178: 561 | G178: 304 | H178: 11 | I178: 0 | J178: 553 | K178: 0 | L178: 384 | M178: 0 | N178: 523 | O178: 39 | P178: 4 | Q178: 0 | R178: 131 | S178: 3 | T178: 54 | U178: 0 | V178: 0 | W178: 2 | X178: 4 | Y178: F
B179: 3 | C179: 8,383 | D179: 5,183 | E179: 518 | F179: 512 | G179: 271 | H179: 30 | I179: 1 | J179: 690 | K179: 0 | L179: 374 | M179: 0 | N179: 456 | O179: 51 | P179: 5 | Q179: 2 | R179: 214 | S179: 10 | T179: 52 | U179: 4 | V179: 0 | W179: 5 | X179: 6 | Y179: M
B180: 4 | C180: 9,550 | D180: 6,438 | E180: 473 | F180: 523 | G180: 265 | H180: 7 | I180: 3 | J180: 577 | K180: 0 | L180: 580 | M180: 0 | N180: 406 | O180: 46 | P180: 7 | Q180: 4 | R180: 159 | S180: 4 | T180: 52 | U180: 0 | V180: 0 | W180: 1 | X180: 5 | Y180: A
B181: 5 | C181: 8,230 | D181: 5,350 | E181: 233 | F181: 476 | G181: 212 | H181: 8 | I181: 0 | J181: 457 | K181: 0 | L181: 413 | M181: 0 | N181: 864 | O181: 29 | P181: 0 | Q181: 0 | R181: 128 | S181: 8 | T181: 44 | U181: 0 | V181: 0 | W181: 2 | X181: 6 | Y181: M
B182: 6 | C182: 12,800 | D182: 5,939 | E182: 46 | F182: 1,065 | G182: 1,337 | H182: 13 | I182: 2 | J182: 650 | K182: 0 | L182: 804 | M182: 0 | N182: 2,754 | O182: 35 | P182: 3 | Q182: 0 | R182: 66 | S182: 16 | T182: 59 | U182: 3 | V182: 0 | W182: 1 | X182: 0 | Y182: J
B183: 7 | C183: 18,873 | D183: 7,677 | E183: 0 | F183: 1,754 | G183: 2,366 | H183: 7 | I183: 0 | J183: 1,039 | K183: 0 | L183: 1,350 | M183: 0 | N183: 4,425 | O183: 57 | P183: 1 | Q183: 0 | R183: 115 | S183: 11 | T183: 67 | U183: 2 | V183: 0 | W183: 2 | X183: 0 | Y183: J
B184: 8 | C184: 21,415 | D184: 8,501 | E184: 0 | F184: 1,816 | G184: 2,858 | H184: 5 | I184: 3 | J184: 1,129 | K184: 0 | L184: 1,595 | M184: 0 | N184: 5,249 | O184: 63 | P184: 2 | Q184: 0 | R184: 107 | S184: 7 | T184: 75 | U184: 0 | V184: 0 | W184: 5 | X184: 1
A185: 누계 | C185: =SUM(C9:C21) -> 937,199 | D185: =SUM(D9:D21) -> 247,118 | E185: 42,293 | F185: 124,422 | G185: 103,509 | H185: 31,853 | I185: 31,703 | J185: 147,158 | K185: 2,677 | L185: 47,946 | M185: 3,213 | N185: 98,458 | O185: 6,080 | P185: 840 | Q185: 10,533 | R185: 12,681 | S185: 3,291 | T185: 9,098 | U185: 67 | V185: 2,503 | W185: 350 | X185: 11,403 | Y185: Total
A186: 대출건수2) | N186: # of loans
A187: 2004 | C187: =+SUM(C201:C210) -> 47,841 | D187: 17,455 | E187: 7,389 | F187: 4,716 | G187: 3,173 | H187: 4,342 | I187: 2,697 | J187: 1,677 | K187: 1,682 | L187: 1,989 | M187: 640 | N187: 739 | O187: 235 | P187: 129 | Q187: 220 | R187: 227 | S187: 57 | T187: 35 | U187: 5 | V187: 0 | W187: 9 | X187: 425 | Y187: 2004
A188: 2005 | C188: =SUM(D188:X188) -> 55,758 | D188: =SUM(D212:D223) -> 17,992 | E188: 9,604 | F188: 5,029 | G188: 4,408 | H188: 3,976 | I188: 4,610 | J188: 1,035 | K188: 1,146 | L188: 1,286 | M188: 569 | N188: 2,395 | O188: 340 | P188: 102 | Q188: 1,288 | R188: 751 | S188: 172 | T188: 85 | U188: 3 | V188: 0 | W188: 14 | X188: 953 | Y188: 2005
A189: 2006 | C189: 18,590 | D189: =SUM(D225:D236) -> 3,923 | E189: 1,617 | F189: 1,912 | G189: 1,829 | H189: 1,333 | I189: 1,427 | J189: 369 | K189: 530 | L189: 826 | M189: 162 | N189: 410 | O189: 121 | P189: 24 | Q189: 214 | R189: 531 | S189: 259 | T189: 7 | U189: 5 | V189: 0 | W189: 2 | X189: 3,089 | Y189: 2006
A190: 2007 | C190: 42,179 | D190: =SUM(D238:D249) -> 18,068 | E190: 1,458 | F190: 5,760 | G190: 4,046 | H190: 1,854 | I190: 2,926 | J190: 947 | K190: 808 | L190: 2,904 | M190: 125 | N190: 504 | O190: 119 | P190: 30 | Q190: 621 | R190: 1,338 | S190: 443 | T190: 115 | U190: 14 | V190: 26 | W190: 0 | X190: 73 | Y190: 2007
A191: 2008 | C191: 45,839 | D191: =+SUM(D251:D262) -> 12,327 | E191: 1,808 | F191: 8,121 | G191: 5,090 | H191: 4,251 | I191: 1,520 | J191: 1,911 | K191: 200 | L191: 3,676 | M191: 119 | N191: 1,412 | O191: 576 | P191: 23 | Q191: 1,600 | R191: 1,787 | S191: 577 | T191: 647 | U191: 7 | V191: 143 | W191: 0 | X191: 44 | Y191: 2008
A192: 2009 | C192: 59,982 | D192: =+SUM(D264:D275) -> 9,921 | E192: 4,557 | F192: 4,773 | G192: 11,430 | H192: 7,430 | I192: 1,528 | J192: 2,227 | K192: 0 | L192: 3,226 | M192: 112 | N192: 10,344 | O192: 445 | P192: 9 | Q192: 990 | R192: 1,778 | S192: 829 | T192: 326 | U192: 5 | V192: 52 | W192: 0 | X192: 0 | Y192: 2009
A193: 2010 | C193: 58,190 | D193: =SUM(D277:D288) -> 8,029 | E193: 1,874 | F193: 3,707 | G193: 4,596 | H193: 1,930 | I193: 2,657 | J193: 25,142 | K193: 0 | L193: 2,703 | M193: 213 | N193: 3,631 | O193: 214 | P193: 7 | Q193: 1,964 | R193: 660 | S193: 560 | T193: 227 | U193: 5 | V193: 71 | W193: 0 | X193: 0 | Y193: 2010
A194: 2011 | C194: 90,717 | D194: =SUM(D290:D301) -> 10,805 | E194: 603 | F194: 7,964 | G194: 5,615 | H194: 1,974 | I194: 6,734 | J194: 43,441 | K194: 0 | L194: 835 | M194: 522 | N194: 8,237 | O194: 282 | P194: 2 | Q194: 982 | R194: 505 | S194: 787 | T194: 486 | U194: 3 | V194: 443 | W194: 0 | X194: 497 | Y194: 2011
A195: 2012 | C195: 104,527 | D195: =SUM(D303:D314) -> 11,979 | E195: =SUM(E303:E314) -> 2,425 | F195: 21,766 | G195: 11,729 | H195: 1,609 | I195: 4,192 | J195: 22,717 | K195: 0 | L195: 2,595 | M195: 751 | N195: 14,459 | O195: 1,678 | P195: 73 | Q195: 741 | R195: 1,823 | S195: 1,344 | T195: 1,374 | U195: 2 | V195: 519 | W195: 93 | X195: 2,658 | Y195: 2012
A196: 2013 | C196: 110,025 | D196: =SUM(D316:D327) -> 11,225 | E196: 5,268 | F196: 22,227 | G196: 14,781 | H196: 2,798 | I196: 4,076 | J196: 16,660 | K196: 0 | L196: 8,220 | M196: 155 | N196: 15,331 | O196: 2,017 | P196: 196 | Q196: 773 | R196: 1,586 | S196: 429 | T196: 2,125 | U196: 5 | V196: 356 | W196: 151 | X196: 1,646 | Y196: 2013
A197: 2014 | C197: 100,843 | D197: =SUM(D329:D340) -> 14,916 | E197: =SUM(E329:E340) -> 2,298 | F197: 22,159 | G197: 19,170 | H197: 187 | I197: 504 | J197: 9,799 | K197: 0 | L197: 12,731 | M197: 2 | N197: 13,460 | O197: 531 | P197: 70 | Q197: 169 | R197: 1,845 | S197: 272 | T197: 2,279 | U197: 5 | V197: 51 | W197: 115 | X197: 280 | Y197: 2014
A198: 2015 | C198: =SUM(D198:X198) -> 143,726 | D198: =SUM(D342:D353) -> 64,330 | E198: =SUM(E342:E353) -> 3,992 | F198: 17,478 | G198: 15,746 | H198: 149 | I198: 236 | J198: 11,742 | K198: 0 | L198: 11,831 | M198: 0 | N198: 12,464 | O198: 827 | P198: 137 | Q198: 75 | R198: 2,470 | S198: 236 | T198: 1,729 | U198: 23 | V198: 11 | W198: 84 | X198: 166 | Y198: 2015
A199: 2016 | C199: =SUM(C355:C362) -> 82,236 | D199: =SUM(D355:D362) -> 38,453 | E199: 1,417 | F199: 7,535 | G199: 7,591 | H199: 91 | I199: 9 | J199: 5,631 | K199: 0 | L199: 6,036 | M199: 0 | N199: 13,288 | O199: 389 | P199: 29 | Q199: 9 | R199: 1,059 | S199: 86 | T199: 550 | U199: 7 | V199: 0 | W199: 34 | X199: 21 | Y199: 2016
A201: 2004 | B201: 3 | C201: =SUM(D201:X201) -> 453 | D201: 337 | E201: 12 | F201: 17 | G201: 50 | H201: 18 | I201: 0 | J201: 8 | K201: 2 | L201: 9 | M201: 0 | N201: 0 | O201: 0 | P201: 0 | Q201: 0 | R201: 0 | S201: 0 | T201: 0 | U201: 0 | V201: 0 | W201: 0 | X201: 0 | Y201: M | Z201: 2004
B202: 4 | C202: 5,357 | D202: 2,278 | E202: 374 | F202: 793 | G202: 538 | H202: 531 | I202: 315 | J202: 135 | K202: 213 | L202: 180 | M202: 0 | N202: 0 | O202: 0 | P202: 0 | Q202: 0 | R202: 0 | S202: 0 | T202: 0 | U202: 0 | V202: 0 | W202: 0 | X202: 0 | Y202: A
B203: 5 | C203: 6,493 | D203: 2,659 | E203: 538 | F203: 709 | G203: 616 | H203: 534 | I203: 385 | J203: 446 | K203: 332 | L203: 274 | M203: 0 | N203: 0 | O203: 0 | P203: 0 | Q203: 0 | R203: 0 | S203: 0 | T203: 0 | U203: 0 | V203: 0 | W203: 0 | X203: 0 | Y203: M
B204: 6 | C204: 5,662 | D204: 2,144 | E204: 676 | F204: 585 | G204: 456 | H204: 643 | I204: 322 | J204: 265 | K204: 265 | L204: 306 | M204: 0 | N204: 0 | O204: 0 | P204: 0 | Q204: 0 | R204: 0 | S204: 0 | T204: 0 | U204: 0 | V204: 0 | W204: 0 | X204: 0 | Y204: J
B205: 7 | C205: 4,861 | D205: 1,807 | E205: 958 | F205: 426 | G205: 268 | H205: 482 | I205: 277 | J205: 232 | K205: 196 | L205: 215 | M205: 0 | N205: 0 | O205: 0 | P205: 0 | Q205: 0 | R205: 0 | S205: 0 | T205: 0 | U205: 0 | V205: 0 | W205: 0 | X205: 0 | Y205: J
B206: 8 | C206: 4,787 | D206: 1,636 | E206: 1,104 | F206: 352 | G206: 283 | H206: 395 | I206: 241 | J206: 184 | K206: 152 | L206: 172 | M206: 64 | N206: 85 | O206: 28 | P206: 5 | Q206: 9 | R206: 5 | S206: 4 | T206: 8 | U206: 0 | V206: 0 | W206: 1 | X206: 59 | Y206: A
B207: 9 | C207: 4,245 | D207: 1,310 | E207: 762 | F207: 328 | G207: 251 | H207: 362 | I207: 213 | J207: 99 | K207: 151 | L207: 177 | M207: 168 | N207: 102 | O207: 74 | P207: 64 | Q207: 31 | R207: 35 | S207: 15 | T207: 4 | U207: 1 | V207: 0 | W207: 4 | X207: 94 | Y207: S
B208: 10 | C208: 5,051 | D208: 1,760 | E208: 835 | F208: 432 | G208: 205 | H208: 468 | I208: 265 | J208: 131 | K208: 100 | L208: 261 | M208: 165 | N208: 172 | O208: 43 | P208: 24 | Q208: 45 | R208: 51 | S208: 4 | T208: 8 | U208: 3 | V208: 0 | W208: 2 | X208: 77 | Y208: O
B209: 11 | C209: 5,199 | D209: 1,716 | E209: 913 | F209: 506 | G209: 246 | H209: 442 | I209: 308 | J209: 97 | K209: 121 | L209: 227 | M209: 125 | N209: 176 | O209: 54 | P209: 17 | Q209: 60 | R209: 74 | S209: 13 | T209: 7 | U209: 1 | V209: 0 | W209: 1 | X209: 95 | Y209: N
B210: 12 | C210: 5,733 | D210: 1,808 | E210: 1,217 | F210: 568 | G210: 260 | H210: 467 | I210: 371 | J210: 80 | K210: 150 | L210: 168 | M210: 118 | N210: 204 | O210: 36 | P210: 19 | Q210: 75 | R210: 62 | S210: 21 | T210: 8 | U210: 0 | V210: 0 | W210: 1 | X210: 100 | Y210: D
A212: 2005 | B212: 1 | C212: =SUM(D212:X212) -> 4,721 | D212: 1,491 | E212: 1,019 | F212: 425 | G212: 256 | H212: 376 | I212: 372 | J212: 64 | K212: 108 | L212: 150 | M212: 47 | N212: 174 | O212: 32 | P212: 12 | Q212: 58 | R212: 46 | S212: 16 | T212: 7 | U212: 3 | V212: 0 | W212: 1 | X212: 64 | Y212: J | Z212: 2005
B213: 2 | C213: 6,086 | D213: 2,150 | E213: 956 | F213: 585 | G213: 424 | H213: 474 | I213: 445 | J213: 95 | K213: 140 | L213: 144 | M213: 58 | N213: 263 | O213: 37 | P213: 8 | Q213: 121 | R213: 72 | S213: 8 | T213: 19 | U213: 0 | V213: 0 | W213: 2 | X213: 85 | Y213: F
B214: 3 | C214: 8,788 | D214: 3,135 | E214: 1,358 | F214: 724 | G214: 533 | H214: 713 | I214: 698 | J214: 129 | K214: 236 | L214: 200 | M214: 79 | N214: 414 | O214: 48 | P214: 21 | Q214: 242 | R214: 100 | S214: 19 | T214: 22 | U214: 0 | V214: 0 | W214: 1 | X214: 116 | Y214: M
B215: 4 | C215: 7,192 | D215: 2,520 | E215: 1,134 | F215: 517 | G215: 549 | H215: 624 | I215: 584 | J215: 118 | K215: 123 | L215: 150 | M215: 56 | N215: 380 | O215: 7 | P215: 12 | Q215: 198 | R215: 87 | S215: 11 | T215: 8 | U215: 0 | V215: 0 | W215: 0 | X215: 114 | Y215: A
B216: 5 | C216: 5,219 | D216: 1,649 | E216: 1,039 | F216: 407 | G216: 405 | H216: 435 | I216: 387 | J216: 99 | K216: 72 | L216: 98 | M216: 61 | N216: 198 | O216: 69 | P216: 14 | Q216: 157 | R216: 55 | S216: 12 | T216: 9 | U216: 0 | V216: 0 | W216: 3 | X216: 50 | Y216: M
... 151 more rows

Sheet 9. LTV 수준별 대출금액 및 잔액 현황
A1: 9. LTV 수준별 대출금액 및 잔액 현황 | K1: Bogeumjari(Mortgage) Loan Origination and Outstanding by LTV
A3: 단위 : 억원 | V3: Hundred million won
A4: 연월중1) | C4: 합계 Total | E4: LTV2) 35% 이하 | G4: 35%초과 ~ 40%이하 | I4: 40%초과 ~ 45%이하 | K4: 45%초과 ~ 50%이하 | M4: 50%초과 ~ 55%이하 | O4: 55%초과 ~ 60%이하 | Q4: 60%초과 ~ 65%이하 | S4: 65%초과 | U4: 연월중
E5: 35% or less | G5: Over 35% ~ 40% or less | I5: Over 40% ~ 45% or less | K5: Over 45% ~ 50% or less | M5: Over 50% ~ 55% or less | O5: Over 55% ~ 60% or less | Q5: Over 60% ~ 65% or less | S5: Over 65%
A6: During | C6: 대출금액 | D6: 대출잔액 | E6: 대출금액 | F6: 대출잔액 | G6: 대출금액 | H6: 대출잔액 | I6: 대출금액 | J6: 대출잔액 | K6: 대출금액 | L6: 대출잔액 | M6: 대출금액 | N6: 대출잔액 | O6: 대출금액 | P6: 대출잔액 | Q6: 대출금액 | R6: 대출잔액 | S6: 대출금액 | T6: 대출잔액 | U6: During
C7: Origination | D7: Outstanding | E7: Origination | F7: Outstanding | G7: Origination | H7: Outstanding | I7: Origination | J7: Outstanding | K7: Origination | L7: Outstanding | M7: Origination | N7: Outstanding | O7: Origination | P7: Outstanding | Q7: Origination | R7: Outstanding | S7: Origination | T7: Outstanding
A8: 2004 | C8: =E8+G8+I8+K8+M8+O8+Q8+S8 -> 33,315 | D8: 372 | E8: =SUM(E22:E31) -> 918 | F8: 15 | G8: 481 | H8: 6 | I8: 630 | J8: 11 | K8: 1,183 | L8: 18 | M8: 1,807 | N8: 24 | O8: 12,400 | P8: 120 | Q8: 3,015 | R8: 46 | S8: 12,882 | T8: 133 | U8: 2004
A9: 2005 | C9: 42,304 | D9: 608 | E9: =SUM(E33:E44) -> 1,053 | F9: 17 | G9: 467 | H9: 10 | I9: 619 | J9: 10 | K9: 1,166 | L9: 22 | M9: 1,927 | N9: 26 | O9: 13,820 | P9: 213 | Q9: 3,868 | R9: 79 | S9: 19,384 | T9: 232 | U9: 2005
A10: 2006 | C10: 13,761 | D10: 178 | E10: =SUM(E46:E57) -> 392 | F10: 5 | G10: 216 | H10: 2 | I10: 312 | J10: 4 | K10: 393 | L10: 4 | M10: 527 | N10: 6 | O10: 2,320 | P10: 32 | Q10: 1,135 | R10: 20 | S10: 8,466 | T10: 106 | U10: 2006
A11: 2007 | C11: 35,684 | D11: 367 | E11: =SUM(E59:E70) -> 3,063 | F11: 27 | G11: 1,479 | H11: 9 | I11: 1,564 | J11: 12 | K11: 2,441 | L11: 27 | M11: 2,714 | N11: 17 | O11: 8,882 | P11: 73 | Q11: 2,282 | R11: 31 | S11: 13,259 | T11: 171 | U11: 2007
A12: 2008 | C12: 41,919 | D12: 386 | E12: =SUM(E72:E83) -> 3,773 | F12: 26 | G12: 1,970 | H12: 12 | I12: 2,237 | J12: 15 | K12: 3,642 | L12: 25 | M12: 3,448 | N12: 23 | O12: 11,823 | P12: 83 | Q12: 2,457 | R12: 28 | S12: 12,568 | T12: 174 | U12: 2008
A13: 2009 | C13: 59,100 | D13: 847 | E13: =SUM(E85:E96) -> 6,835 | F13: 79 | G13: 3,337 | H13: 34 | I13: 3,769 | J13: 39 | K13: 6,276 | L13: 74 | M13: 4,826 | N13: 45 | O13: 21,232 | P13: 275 | Q13: 1,833 | R13: 40 | S13: 10,992 | T13: 260 | U13: 2009
A14: 2010 | C14: 57,879 | D14: 2,938 | E14: =SUM(E98:E109) -> 5,560 | F14: 241 | G14: 2,801 | H14: 116 | I14: 3,068 | J14: 142 | K14: 4,596 | L14: 194 | M14: 4,570 | N14: 199 | O14: 20,542 | P14: 1,265 | Q14: 2,026 | R14: 82 | S14: 14,715 | T14: 699 | U14: 2010
A15: 2011 | C15: 93,504 | D15: 10,685 | E15: =SUM(E111:E122) -> 7,127 | F15: 746 | G15: 3,503 | H15: 347 | I15: 4,422 | J15: 503 | K15: 5,598 | L15: 606 | M15: 6,518 | N15: 768 | O15: 27,577 | P15: 3,875 | Q15: 4,149 | R15: 347 | S15: 34,609 | T15: 3,493 | U15: =A15 -> 2011
A16: 2012 | C16: 110,950 | D16: 21,227 | E16: =SUM(E124:E135) -> 6,183 | F16: 1,092 | G16: 3,322 | H16: 597 | I16: 3,836 | J16: 727 | K16: 5,025 | L16: 919 | M16: 5,528 | N16: 982 | O16: 23,022 | P16: 4,119 | Q16: 6,489 | R16: 1,272 | S16: 57,545 | T16: 11,518 | U16: =A16 -> 2012
A17: 2013 | C17: 117,367 | D17: 35,082 | E17: =+SUM(E137:E148) -> 5,941 | F17: 1,807 | G17: 3,377 | H17: 1,033 | I17: 3,907 | J17: 1,252 | K17: 4,976 | L17: 1,575 | M17: 5,387 | N17: 1,631 | O17: 19,295 | P17: 5,556 | Q17: 7,788 | R17: 2,462 | S17: 66,696 | T17: 19,766 | U17: =A17 -> 2013
A18: 2014 | C18: 83,697 | D18: 58,742 | E18: =+SUM(E150:E161) -> 3,780 | F18: =+SUM(F150:F161) -> 2,436 | G18: 2,508 | H18: 1,695 | I18: 3,296 | J18: 2,273 | K18: 4,305 | L18: 3,003 | M18: 5,432 | N18: 3,822 | O18: 13,996 | P18: 9,864 | Q18: 6,882 | R18: 4,929 | S18: 43,498 | T18: 30,720 | U18: 2014
A19: 2015 | C19: 145,495 | D19: 127,758 | E19: =+SUM(E163:E174) -> 12,456 | F19: =+SUM(F163:F174) -> 10,288 | G19: 6,124 | H19: 5,187 | I19: 7,200 | J19: 6,171 | K19: 9,313 | L19: 8,032 | M19: 10,553 | N19: 9,202 | O19: 19,180 | P19: 16,785 | Q19: 15,348 | R19: 13,510 | S19: 65,323 | T19: 58,581 | U19: 2015
A20: 2016 | C20: =E20+G20+I20+K20+M20+O20+Q20+S20 -> 37,119 | D20: 35,820 | E20: =+SUM(E176:E182) -> 3,317 | F20: =+SUM(F176:F182) -> 3,144 | G20: 1,536 | H20: 1,467 | I20: 1,882 | J20: 1,805 | K20: 2,468 | L20: 2,371 | M20: 2,819 | N20: 2,709 | O20: 4,952 | P20: 4,788 | Q20: 4,089 | R20: 3,937 | S20: 16,057 | T20: 15,599 | U20: 2016
A22: 2004 | B22: 3 | C22: =E22+G22+I22+K22+M22+O22+Q22+S22 -> 351 | D22: 3 | E22: 13 | F22: 0 | G22: 5 | H22: 0 | I22: 14 | J22: 1 | K22: 13 | L22: 0 | M22: 26 | N22: 0 | O22: 102 | P22: 1 | Q22: 35 | R22: 0 | S22: 144 | T22: 1 | U22: M | V22: 2004
B23: 4 | C23: 3,611 | D23: 30 | E23: 104 | F23: 2 | G23: 64 | H23: 1 | I23: 64 | J23: 0 | K23: 144 | L23: 1 | M23: 195 | N23: 2 | O23: 1,184 | P23: 10 | Q23: 310 | R23: 4 | S23: 1,546 | T23: 11 | U23: A
B24: 5 | C24: 4,558 | D24: 43 | E24: 148 | F24: 2 | G24: 84 | H24: 1 | I24: 111 | J24: 1 | K24: 158 | L24: 2 | M24: 254 | N24: 3 | O24: 1,558 | P24: 13 | Q24: 417 | R24: 4 | S24: 1,828 | T24: 17 | U24: A
B25: 6 | C25: 3,944 | D25: 42 | E25: 123 | F25: 2 | G25: 64 | H25: 0 | I25: 77 | J25: 2 | K25: 154 | L25: 3 | M25: 222 | N25: 4 | O25: 1,421 | P25: 14 | Q25: 344 | R25: 4 | S25: 1,539 | T25: 14 | U25: J
B26: 7 | C26: 3,380 | D26: 31 | E26: 109 | F26: 2 | G26: 55 | H26: 1 | I26: 68 | J26: 1 | K26: 136 | L26: 2 | M26: 187 | N26: 2 | O26: 1,277 | P26: 9 | Q26: 335 | R26: 5 | S26: 1,213 | T26: 9 | U26: J
B27: 8 | C27: 3,282 | D27: 33 | E27: 117 | F27: 1 | G27: 46 | H27: 0 | I27: 64 | J27: 2 | K27: 108 | L27: 1 | M27: 184 | N27: 4 | O27: 1,265 | P27: 9 | Q27: 306 | R27: 4 | S27: 1,192 | T27: 12 | U27: A
B28: 9 | C28: 2,891 | D28: 33 | E28: 69 | F28: 2 | G28: 36 | H28: 1 | I28: 48 | J28: 1 | K28: 97 | L28: 1 | M28: 152 | N28: 3 | O28: 1,166 | P28: 10 | Q28: 258 | R28: 4 | S28: 1,065 | T28: 12 | U28: S
B29: 10 | C29: 3,446 | D29: 40 | E29: 75 | F29: 2 | G29: 38 | H29: 0 | I29: 45 | J29: 0 | K29: 115 | L29: 2 | M29: 195 | N29: 3 | O29: 1,342 | P29: 13 | Q29: 342 | R29: 4 | S29: 1,295 | T29: 15 | U29: O
B30: 11 | C30: 3,566 | D30: 52 | E30: 64 | F30: 0 | G30: 42 | H30: 1 | I30: 62 | J30: 3 | K30: 122 | L30: 3 | M30: 190 | N30: 1 | O30: 1,394 | P30: 19 | Q30: 310 | R30: 7 | S30: 1,382 | T30: 18 | U30: N
B31: 12 | C31: 4,286 | D31: 65 | E31: 96 | F31: 1 | G31: 47 | H31: 1 | I31: 76 | J31: 1 | K31: 137 | L31: 4 | M31: 203 | N31: 2 | O31: 1,691 | P31: 22 | Q31: 360 | R31: 10 | S31: 1,676 | T31: 23 | U31: D
A33: 2005 | B33: 1 | C33: =E33+G33+I33+K33+M33+O33+Q33+S33 -> 3,443 | D33: 60 | E33: 74 | F33: 1 | G33: 47 | H33: 1 | I33: 57 | J33: 1 | K33: 114 | L33: 3 | M33: 173 | N33: 2 | O33: 1,345 | P33: 27 | Q33: 293 | R33: 4 | S33: 1,340 | T33: 21 | U33: J | V33: 2005
B34: 2 | C34: 4,840 | D34: 75 | E34: 142 | F34: 2 | G34: 60 | H34: 1 | I34: 108 | J34: 3 | K34: 170 | L34: 2 | M34: 280 | N34: 2 | O34: 1,743 | P34: 30 | Q34: 430 | R34: 10 | S34: 1,908 | T34: 25 | U34: F
B35: 3 | C35: 6,923 | D35: 98 | E35: 199 | F35: 5 | G35: 91 | H35: 2 | I35: 119 | J35: 1 | K35: 223 | L35: 6 | M35: 374 | N35: 4 | O35: 2,468 | P35: 28 | Q35: 643 | R35: 14 | S35: 2,806 | T35: 39 | U35: M
B36: 4 | C36: 5,707 | D36: 74 | E36: 132 | F36: 3 | G36: 66 | H36: 3 | I36: 93 | J36: 2 | K36: 178 | L36: 3 | M36: 305 | N36: 5 | O36: 1,941 | P36: 29 | Q36: 549 | R36: 8 | S36: 2,443 | T36: 22 | U36: A
B37: 5 | C37: 3,927 | D37: 46 | E37: 71 | F37: 1 | G37: 44 | H37: 1 | I37: 51 | J37: 1 | K37: 88 | L37: 1 | M37: 176 | N37: 1 | O37: 1,318 | P37: 19 | Q37: 368 | R37: 6 | S37: 1,810 | T37: 16 | U37: M
B38: 6 | C38: 3,713 | D38: 60 | E38: 63 | F38: 0 | G38: 32 | H38: 0 | I38: 45 | J38: 1 | K38: 90 | L38: 2 | M38: 154 | N38: 2 | O38: 1,286 | P38: 23 | Q38: 378 | R38: 8 | S38: 1,665 | T38: 24 | U38: J
B39: 7 | C39: 3,087 | D39: 48 | E39: 55 | F39: 1 | G39: 26 | H39: 0 | I39: 32 | J39: 0 | K39: 78 | L39: 2 | M39: 116 | N39: 5 | O39: 1,023 | P39: 22 | Q39: 265 | R39: 2 | S39: 1,492 | T39: 16 | U39: J
B40: 8 | C40: 3,165 | D40: 35 | E40: 126 | F40: 2 | G40: 22 | H40: 0 | I40: 33 | J40: 0 | K40: 67 | L40: 1 | M40: 108 | N40: 2 | O40: 953 | P40: 7 | Q40: 291 | R40: 6 | S40: 1,566 | T40: 17 | U40: A
B41: 9 | C41: 2,649 | D41: 40 | E41: 109 | F41: 1 | G41: 28 | H41: 0 | I41: 32 | J41: 1 | K41: 62 | L41: 0 | M41: 96 | N41: 2 | O41: 716 | P41: 9 | Q41: 248 | R41: 9 | S41: 1,358 | T41: 18 | U41: S
B42: 10 | C42: 1,928 | D42: 28 | E42: 49 | F42: 1 | G42: 20 | H42: 1 | I42: 22 | J42: 0 | K42: 39 | L42: 1 | M42: 72 | N42: 1 | O42: 478 | P42: 9 | Q42: 179 | R42: 4 | S42: 1,070 | T42: 11 | U42: O
B43: 11 | C43: 1,436 | D43: 25 | E43: 11 | F43: 0 | G43: 17 | H43: 1 | I43: 15 | J43: 0 | K43: 34 | L43: 1 | M43: 28 | N43: 1 | O43: 279 | P43: 7 | Q43: 122 | R43: 5 | S43: 930 | T43: 10 | U43: N
B44: 12 | C44: 1,485 | D44: 19 | E44: 23 | F44: 0 | G44: 13 | H44: 0 | I44: 13 | J44: 0 | K44: 23 | L44: 0 | M44: 43 | N44: 0 | O44: 270 | P44: 3 | Q44: 102 | R44: 3 | S44: 997 | T44: 12 | U44: D
A46: 2006 | B46: 1 | C46: =E46+G46+I46+K46+M46+O46+Q46+S46 -> 656 | D46: 15 | E46: 6 | F46: 0 | G46: 3 | H46: 0 | I46: 5 | J46: 0 | K46: 9 | L46: 0 | M46: 16 | N46: 0 | O46: 147 | P46: 4 | Q46: 48 | R46: 1 | S46: 424 | T46: 9 | U46: J | V46: 2006
B47: 2 | C47: 1,005 | D47: 16 | E47: 17 | F47: 0 | G47: 7 | H47: 0 | I47: 11 | J47: 0 | K47: 12 | L47: 0 | M47: 20 | N47: 0 | O47: 180 | P47: 4 | Q47: 80 | R47: 3 | S47: 678 | T47: 9 | U47: F
B48: 3 | C48: 1,010 | D48: 16 | E48: 11 | F48: 0 | G48: 4 | H48: 0 | I48: 4 | J48: 0 | K48: 14 | L48: 0 | M48: 25 | N48: 1 | O48: 156 | P48: 3 | Q48: 73 | R48: 2 | S48: 722 | T48: 9 | U48: M
B49: 4 | C49: 881 | D49: 12 | E49: 8 | F49: 0 | G49: 4 | H49: 0 | I49: 13 | J49: 0 | K49: 7 | L49: 0 | M49: 20 | N49: 1 | O49: 125 | P49: 2 | Q49: 60 | R49: 1 | S49: 644 | T49: 8 | U49: A
B50: 5 | C50: 736 | D50: 8 | E50: 9 | F50: 0 | G50: 4 | H50: 0 | I50: 10 | J50: 1 | K50: 6 | L50: 0 | M50: 15 | N50: 0 | O50: 102 | P50: 1 | Q50: 61 | R50: 2 | S50: 529 | T50: 4 | U50: M
B51: 6 | C51: 811 | D51: 17 | E51: 15 | F51: 0 | G51: 10 | H51: 0 | I51: 12 | J51: 0 | K51: 19 | L51: 0 | M51: 29 | N51: 1 | O51: 129 | P51: 3 | Q51: 50 | R51: 1 | S51: 548 | T51: 11 | U51: J
B52: 7 | C52: 1,276 | D52: 10 | E52: 64 | F52: 1 | G52: 25 | H52: 0 | I52: 37 | J52: 0 | K52: 59 | L52: 1 | M52: 76 | N52: 1 | O52: 251 | P52: 1 | Q52: 106 | R52: 1 | S52: 658 | T52: 6 | U52: J
B53: 8 | C53: 1,379 | D53: 16 | E53: 59 | F53: 1 | G53: 31 | H53: 0 | I53: 63 | J53: 0 | K53: 41 | L53: 0 | M53: 68 | N53: 1 | O53: 285 | P53: 2 | Q53: 116 | R53: 2 | S53: 716 | T53: 9 | U53: A
B54: 9 | C54: 1,861 | D54: 24 | E54: 67 | F54: 1 | G54: 31 | H54: 0 | I54: 46 | J54: 2 | K54: 68 | L54: 0 | M54: 87 | N54: 0 | O54: 316 | P54: 5 | Q54: 151 | R54: 3 | S54: 1,094 | T54: 13 | U54: S
B55: 10 | C55: 1,245 | D55: 15 | E55: 31 | F55: 1 | G55: 20 | H55: 0 | I55: 33 | J55: 0 | K55: 46 | L55: 0 | M55: 45 | N55: 1 | O55: 164 | P55: 1 | Q55: 97 | R55: 0 | S55: 810 | T55: 11 | U55: O
B56: 11 | C56: 1,207 | D56: 17 | E56: 24 | F56: 0 | G56: 19 | H56: 0 | I56: 18 | J56: 1 | K56: 23 | L56: 0 | M56: 45 | N56: 1 | O56: 164 | P56: 2 | Q56: 137 | R56: 3 | S56: 778 | T56: 10 | U56: N
B57: 12 | C57: 1,694 | D57: 14 | E57: 82 | F57: 1 | G57: 57 | H57: 0 | I57: 60 | J57: 0 | K57: 90 | L57: 1 | M57: 82 | N57: 0 | O57: 301 | P57: 3 | Q57: 158 | R57: 2 | S57: 865 | T57: 6 | U57: D
A59: 2007 | B59: 1 | C59: =E59+G59+I59+K59+M59+O59+Q59+S59 -> 2,408 | D59: 24 | E59: 254 | F59: 3 | G59: 118 | H59: 1 | I59: 124 | J59: 1 | K59: 179 | L59: 3 | M59: 193 | N59: 1 | O59: 588 | P59: 3 | Q59: 159 | R59: 4 | S59: 793 | T59: 9 | U59: J | V59: 2007
B60: 2 | C60: 2,762 | D60: 35 | E60: 248 | F60: 2 | G60: 130 | H60: 1 | I60: 134 | J60: 2 | K60: 214 | L60: 2 | M60: 201 | N60: 4 | O60: 626 | P60: 4 | Q60: 203 | R60: 3 | S60: 1,006 | T60: 18 | U60: F
B61: 3 | C61: 2,496 | D61: 25 | E61: 215 | F61: 3 | G61: 89 | H61: 0 | I61: 112 | J61: 0 | K61: 181 | L61: 0 | M61: 208 | N61: 1 | O61: 527 | P61: 3 | Q61: 207 | R61: 5 | S61: 957 | T61: 12 | U61: M
B62: 4 | C62: 2,415 | D62: 29 | E62: 181 | F62: 1 | G62: 82 | H62: 1 | I62: 102 | J62: 0 | K62: 153 | L62: 3 | M62: 166 | N62: 2 | O62: 516 | P62: 5 | Q62: 161 | R62: 1 | S62: 1,054 | T62: 15 | U62: A
B63: 5 | C63: 2,489 | D63: 36 | E63: 201 | F63: 3 | G63: 79 | H63: 1 | I63: 95 | J63: 1 | K63: 132 | L63: 1 | M63: 164 | N63: 1 | O63: 600 | P63: 8 | Q63: 174 | R63: 4 | S63: 1,045 | T63: 18 | U63: M
B64: 6 | C64: 2,711 | D64: 27 | E64: 236 | F64: 2 | G64: 113 | H64: 1 | I64: 127 | J64: 2 | K64: 159 | L64: 2 | M64: 202 | N64: 1 | O64: 616 | P64: 4 | Q64: 182 | R64: 2 | S64: 1,077 | T64: 13 | U64: J
B65: 7 | C65: 3,588 | D65: 43 | E65: 327 | F65: 2 | G65: 159 | H65: 0 | I65: 147 | J65: 2 | K65: 244 | L65: 2 | M65: 270 | N65: 5 | O65: 972 | P65: 7 | Q65: 217 | R65: 3 | S65: 1,250 | T65: 23 | U65: J
B66: 8 | C66: 3,198 | D66: 19 | E66: 301 | F66: 2 | G66: 142 | H66: 2 | I66: 119 | J66: 1 | K66: 217 | L66: 1 | M66: 252 | N66: 1 | O66: 784 | P66: 1 | Q66: 186 | R66: 1 | S66: 1,197 | T66: 10 | U66: A
B67: 9 | C67: 2,482 | D67: 16 | E67: 224 | F67: 2 | G67: 109 | H67: 0 | I67: 88 | J67: 1 | K67: 173 | L67: 1 | M67: 182 | N67: 0 | O67: 577 | P67: 3 | Q67: 175 | R67: 1 | S67: 954 | T67: 8 | U67: S
B68: 10 | C68: 3,407 | D68: 29 | E68: 235 | F68: 2 | G68: 139 | H68: 1 | I68: 144 | J68: 1 | K68: 249 | L68: 5 | M68: 247 | N68: 0 | O68: 890 | P68: 6 | Q68: 207 | R68: 4 | S68: 1,295 | T68: 11 | U68: O
B69: 11 | C69: 3,244 | D69: 39 | E69: 227 | F69: 3 | G69: 95 | H69: 1 | I69: 124 | J69: 1 | K69: 200 | L69: 3 | M69: 214 | N69: 0 | O69: 873 | P69: 10 | Q69: 194 | R69: 3 | S69: 1,319 | T69: 19 | U69: N
B70: 12 | C70: 4,483 | D70: 45 | E70: 414 | F70: 2 | G70: 224 | H70: 1 | I70: 248 | J70: 0 | K70: 340 | L70: 4 | M70: 415 | N70: 1 | O70: 1,313 | P70: 21 | Q70: 218 | R70: 1 | S70: 1,311 | T70: 16 | U70: D
A72: 2008 | B72: 1 | C72: =E72+G72+I72+K72+M72+O72+Q72+S72 -> 5,863 | D72: 38 | E72: 667 | F72: 6 | G72: 300 | H72: 1 | I72: 328 | J72: 1 | K72: 457 | L72: 2 | M72: 569 | N72: 1 | O72: 1,664 | P72: 6 | Q72: 328 | R72: 6 | S72: 1,550 | T72: 15 | U72: J | V72: 2008
B73: 2 | C73: 4,947 | D73: 33 | E73: 489 | F73: 4 | G73: 225 | H73: 1 | I73: 257 | J73: 1 | K73: 350 | L73: 2 | M73: 401 | N73: 3 | O73: 1,416 | P73: 7 | Q73: 282 | R73: 2 | S73: 1,529 | T73: 12 | U73: F
B74: 3 | C74: 3,891 | D74: 36 | E74: 277 | F74: 1 | G74: 161 | H74: 1 | I74: 169 | J74: 1 | K74: 284 | L74: 3 | M74: 292 | N74: 5 | O74: 1,110 | P74: 9 | Q74: 262 | R74: 0 | S74: 1,336 | T74: 16 | U74: M
B75: 4 | C75: 5,071 | D75: 56 | E75: 388 | F75: 3 | G75: 222 | H75: 3 | I75: 223 | J75: 3 | K75: 381 | L75: 1 | M75: 405 | N75: 3 | O75: 1,429 | P75: 16 | Q75: 332 | R75: 3 | S75: 1,691 | T75: 25 | U75: A
B76: 5 | C76: 4,062 | D76: 45 | E76: 292 | F76: 3 | G76: 163 | H76: 1 | I76: 183 | J76: 2 | K76: 301 | L76: 3 | M76: 334 | N76: 3 | O76: 1,254 | P76: 15 | Q76: 251 | R76: 3 | S76: 1,284 | T76: 15 | U76: M
B77: 6 | C77: 3,726 | D77: 44 | E77: 276 | F77: 2 | G77: 143 | H77: 2 | I77: 199 | J77: 4 | K77: 316 | L77: 1 | M77: 289 | N77: 3 | O77: 1,085 | P77: 9 | Q77: 245 | R77: 3 | S77: 1,172 | T77: 19 | U77: J
B78: 7 | C78: 4,208 | D78: 35 | E78: 367 | F78: 1 | G78: 221 | H78: 1 | I78: 242 | J78: 0 | K78: 449 | L78: 2 | M78: 347 | N78: 0 | O78: 1,127 | P78: 5 | Q78: 252 | R78: 3 | S78: 1,204 | T78: 22 | U78: J
B79: 8 | C79: 4,297 | D79: 36 | E79: 472 | F79: 2 | G79: 249 | H79: 0 | I79: 282 | J79: 1 | K79: 491 | L79: 5 | M79: 376 | N79: 3 | O79: 1,167 | P79: 7 | Q79: 198 | R79: 1 | S79: 1,062 | T79: 16 | U79: A
B80: 9 | C80: 2,748 | D80: 33 | E80: 304 | F80: 2 | G80: 153 | H80: 2 | I80: 188 | J80: 0 | K80: 298 | L80: 1 | M80: 228 | N80: 1 | O80: 757 | P80: 6 | Q80: 127 | R80: 3 | S80: 692 | T80: 18 | U80: S
B81: 10 | C81: 1,836 | D81: 16 | E81: 163 | F81: 2 | G81: 91 | H81: 0 | I81: 99 | J81: 0 | K81: 206 | L81: 3 | M81: 133 | N81: 1 | O81: 501 | P81: 2 | Q81: 103 | R81: 1 | S81: 540 | T81: 8 | U81: O
B82: 11 | C82: 835 | D82: 8 | E82: 55 | F82: 0 | G82: 32 | H82: 0 | I82: 51 | J82: 1 | K82: 74 | L82: 1 | M82: 53 | N82: 0 | O82: 215 | P82: 1 | Q82: 61 | R82: 1 | S82: 295 | T82: 5 | U82: N
B83: 12 | C83: 435 | D83: 6 | E83: 23 | F83: 0 | G83: 9 | H83: 0 | I83: 17 | J83: 0 | K83: 35 | L83: 0 | M83: 21 | N83: 0 | O83: 100 | P83: 0 | Q83: 18 | R83: 1 | S83: 212 | T83: 4 | U83: D
A85: 2009 | B85: 1 | C85: =E85+G85+I85+K85+M85+O85+Q85+S85 -> 351 | D85: 2 | E85: 15 | F85: 0 | G85: 5 | H85: 0 | I85: 10 | J85: 0 | K85: 24 | L85: 0 | M85: 27 | N85: 0 | O85: 109 | P85: 1 | Q85: 13 | R85: 0 | S85: 147 | T85: 2 | U85: J | V85: 2009
B86: 2 | C86: 933 | D86: 18 | E86: 41 | F86: 0 | G86: 34 | H86: 0 | I86: 34 | J86: 0 | K86: 70 | L86: 0 | M86: 49 | N86: 0 | O86: 328 | P86: 4 | Q86: 44 | R86: 5 | S86: 333 | T86: 9 | U86: F
B87: 3 | C87: 2,976 | D87: 34 | E87: 278 | F87: 3 | G87: 164 | H87: 1 | I87: 173 | J87: 1 | K87: 342 | L87: 5 | M87: 221 | N87: 3 | O87: 1,296 | P87: 13 | Q87: 53 | R87: 0 | S87: 450 | T87: 9 | U87: M
B88: 4 | C88: 4,551 | D88: 69 | E88: 434 | F88: 8 | G88: 232 | H88: 1 | I88: 324 | J88: 5 | K88: 553 | L88: 9 | M88: 394 | N88: 2 | O88: 2,143 | P88: 32 | Q88: 57 | R88: 1 | S88: 415 | T88: 12 | U88: A
B89: 5 | C89: 4,359 | D89: 79 | E89: 470 | F89: 9 | G89: 224 | H89: 5 | I89: 236 | J89: 4 | K89: 495 | L89: 4 | M89: 346 | N89: 11 | O89: 2,083 | P89: 31 | Q89: 40 | R89: 1 | S89: 465 | T89: 13 | U89: M
B90: 6 | C90: 4,845 | D90: 69 | E90: 521 | F90: 9 | G90: 264 | H90: 2 | I90: 297 | J90: 6 | K90: 506 | L90: 7 | M90: 394 | N90: 2 | O90: 2,015 | P90: 20 | Q90: 93 | R90: 0 | S90: 756 | T90: 22 | U90: J
B91: 7 | C91: 4,509 | D91: 48 | E91: 447 | F91: 4 | G91: 218 | H91: 3 | I91: 267 | J91: 5 | K91: 412 | L91: 5 | M91: 373 | N91: 1 | O91: 1,612 | P91: 13 | Q91: 140 | R91: 2 | S91: 1,041 | T91: 15 | U91: J
B92: 8 | C92: 4,848 | D92: 68 | E92: 469 | F92: 5 | G92: 271 | H92: 2 | I92: 265 | J92: 2 | K92: 462 | L92: 5 | M92: 410 | N92: 3 | O92: 1,647 | P92: 19 | Q92: 175 | R92: 5 | S92: 1,148 | T92: 26 | U92: A
B93: 9 | C93: 6,591 | D93: 99 | E93: 768 | F93: 5 | G93: 373 | H93: 5 | I93: 455 | J93: 3 | K93: 741 | L93: 9 | M93: 594 | N93: 5 | O93: 2,003 | P93: 25 | Q93: 279 | R93: 10 | S93: 1,378 | T93: 38 | U93: S
B94: 10 | C94: 9,478 | D94: 121 | E94: 1,270 | F94: 13 | G94: 615 | H94: 4 | I94: 687 | J94: 3 | K94: 1,033 | L94: 13 | M94: 811 | N94: 8 | O94: 2,962 | P94: 36 | Q94: 360 | R94: 6 | S94: 1,740 | T94: 38 | U94: O
B95: 11 | C95: 8,775 | D95: 130 | E95: 1,247 | F95: 11 | G95: 544 | H95: 3 | I95: 577 | J95: 5 | K95: 962 | L95: 10 | M95: 704 | N95: 7 | O95: 2,769 | P95: 45 | Q95: 314 | R95: 6 | S95: 1,657 | T95: 43 | U95: N
B96: 12 | C96: 6,883 | D96: 109 | E96: 877 | F96: 12 | G96: 393 | H96: 7 | I96: 444 | J96: 5 | K96: 676 | L96: 9 | M96: 502 | N96: 3 | O96: 2,263 | P96: 35 | Q96: 265 | R96: 4 | S96: 1,464 | T96: 34 | U96: D
A98: 2010 | B98: 1 | C98: =E98+G98+I98+K98+M98+O98+Q98+S98 -> 3,768 | D98: 54 | E98: 483 | F98: 6 | G98: 200 | H98: 4 | I98: 195 | J98: 2 | K98: 374 | L98: 3 | M98: 305 | N98: 3 | O98: 1,200 | P98: 19 | Q98: 152 | R98: 2 | S98: 859 | T98: 15 | U98: J | V98: 2010
B99: 2 | C99: 3,904 | D99: 71 | E99: 452 | F99: 6 | G99: 225 | H99: 3 | I99: 246 | J99: 2 | K99: 361 | L99: 6 | M99: 307 | N99: 3 | O99: 1,118 | P99: 17 | Q99: 186 | R99: 3 | S99: 1,007 | T99: 32 | U99: F
B100: 3 | C100: 3,293 | D100: 93 | E100: 323 | F100: 5 | G100: 173 | H100: 2 | I100: 167 | J100: 4 | K100: 311 | L100: 8 | M100: 196 | N100: 3 | O100: 914 | P100: 23 | Q100: 169 | R100: 3 | S100: 1,040 | T100: 45 | U100: M
B101: 4 | C101: 2,631 | D101: 112 | E101: 245 | F101: 14 | G101: 115 | H101: 3 | I101: 148 | J101: 6 | K101: 216 | L101: 10 | M101: 198 | N101: 8 | O101: 872 | P101: 50 | Q101: 97 | R101: 2 | S101: 740 | T101: 19 | U101: A
B102: 5 | C102: 2,339 | D102: 117 | E102: 218 | F102: 12 | G102: 108 | H102: 7 | I102: 114 | J102: 8 | K102: 222 | L102: 11 | M102: 177 | N102: 4 | O102: 924 | P102: 59 | Q102: 81 | R102: 3 | S102: 495 | T102: 13 | U102: M
B103: 6 | C103: 3,671 | D103: 264 | E103: 342 | F103: 25 | G103: 174 | H103: 7 | I103: 218 | J103: 16 | K103: 356 | L103: 25 | M103: 312 | N103: 18 | O103: 1,627 | P103: 136 | Q103: 46 | R103: 1 | S103: 596 | T103: 36 | U103: J
B104: 7 | C104: 9,792 | D104: 597 | E104: 1,079 | F104: 57 | G104: 539 | H104: 26 | I104: 601 | J104: 33 | K104: 920 | L104: 40 | M104: 981 | N104: 56 | O104: 4,134 | P104: 333 | Q104: 259 | R104: 5 | S104: 1,278 | T104: 46 | U104: J
B105: 8 | C105: 8,864 | D105: 517 | E105: 912 | F105: 44 | G105: 509 | H105: 29 | I105: 484 | J105: 28 | K105: 706 | L105: 41 | M105: 792 | N105: 47 | O105: 3,665 | P105: 246 | Q105: 221 | R105: 8 | S105: 1,574 | T105: 73 | U105: A
B106: 9 | C106: 5,043 | D106: 263 | E106: 457 | F106: 18 | G106: 241 | H106: 10 | I106: 272 | J106: 14 | K106: 297 | L106: 12 | M106: 364 | N106: 22 | O106: 1,863 | P106: 94 | Q106: 170 | R106: 16 | S106: 1,379 | T106: 76 | U106: S
B107: 10 | C107: 4,338 | D107: 243 | E107: 353 | F107: 17 | G107: 163 | H107: 12 | I107: 214 | J107: 14 | K107: 248 | L107: 11 | M107: 312 | N107: 15 | O107: 1,337 | P107: 91 | Q107: 144 | R107: 12 | S107: 1,568 | T107: 71 | U107: O
B108: 11 | C108: 4,717 | D108: 273 | E108: 327 | F108: 19 | G108: 175 | H108: 8 | I108: 194 | J108: 9 | K108: 267 | L108: 13 | M108: 288 | N108: 9 | O108: 1,318 | P108: 78 | Q108: 225 | R108: 9 | S108: 1,924 | T108: 128 | U108: N
B109: 12 | C109: 5,518 | D109: 333 | E109: 368 | F109: 18 | G109: 179 | H109: 5 | I109: 214 | J109: 7 | K109: 316 | L109: 13 | M109: 338 | N109: 10 | O109: 1,569 | P109: 118 | Q109: 278 | R109: 18 | S109: 2,256 | T109: 144 | U109: D
A111: 2011 | B111: 1 | C111: =E111+G111+I111+K111+M111+O111+Q111+S111 -> 4,454 | D111: 238 | E111: 323 | F111: 11 | G111: 155 | H111: 6 | I111: 216 | J111: 8 | K111: 250 | L111: 7 | M111: 270 | N111: 13 | O111: 1,181 | P111: 77 | Q111: 232 | R111: 10 | S111: 1,827 | T111: 107 | U111: J | V111: 2011
B112: 2 | C112: 5,953 | D112: 323 | E112: 488 | F112: 19 | G112: 257 | H112: 7 | I112: 279 | J112: 9 | K112: 334 | L112: 17 | M112: 398 | N112: 12 | O112: 1,535 | P112: 96 | Q112: 291 | R112: 19 | S112: 2,371 | T112: 144 | U112: F
B113: 3 | C113: 7,742 | D113: 515 | E113: 644 | F113: 32 | G113: 285 | H113: 16 | I113: 355 | J113: 11 | K113: 473 | L113: 22 | M113: 547 | N113: 31 | O113: 2,101 | P113: 138 | Q113: 356 | R113: 32 | S113: 2,981 | T113: 232 | U113: M
B114: 4 | C114: 7,909 | D114: 558 | E114: 654 | F114: 36 | G114: 322 | H114: 13 | I114: 361 | J114: 22 | K114: 438 | L114: 25 | M114: 578 | N114: 42 | O114: 2,271 | P114: 173 | Q114: 364 | R114: 26 | S114: 2,921 | T114: 221 | U114: A
B115: 5 | C115: 6,571 | D115: 572 | E115: 486 | F115: 31 | G115: 275 | H115: 26 | I115: 304 | J115: 22 | K115: 379 | L115: 19 | M115: 425 | N115: 27 | O115: 1,682 | P115: 159 | Q115: 348 | R115: 27 | S115: 2,672 | T115: 261 | U115: M
B116: 6 | C116: 6,017 | D116: 517 | E116: 436 | F116: 40 | G116: 194 | H116: 9 | I116: 243 | J116: 15 | K116: 374 | L116: 34 | M116: 404 | N116: 32 | O116: 1,619 | P116: 159 | Q116: 287 | R116: 25 | S116: 2,459 | T116: 202 | U116: J
B117: 7 | C117: 6,222 | D117: 702 | E117: 459 | F117: 41 | G117: 239 | H117: 23 | I117: 269 | J117: 23 | K117: 385 | L117: 40 | M117: 485 | N117: 59 | O117: 1,687 | P117: 217 | Q117: 272 | R117: 24 | S117: 2,426 | T117: 275 | U117: J
B118: 8 | C118: 6,088 | D118: 699 | E118: 440 | F118: 38 | G118: 232 | H118: 24 | I118: 322 | J118: 31 | K118: 349 | L118: 45 | M118: 444 | N118: 76 | O118: 1,730 | P118: 242 | Q118: 279 | R118: 26 | S118: 2,291 | T118: 215 | U118: A
B119: 9 | C119: 9,633 | D119: 1,432 | E119: 829 | F119: 126 | G119: 374 | H119: 44 | I119: 501 | J119: 78 | K119: 646 | L119: 99 | M119: 752 | N119: 118 | O119: 3,220 | P119: 603 | Q119: 356 | R119: 29 | S119: 2,956 | T119: 334 | U119: S
B120: 10 | C120: 11,331 | D120: 1,967 | E120: 988 | F120: 169 | G120: 443 | H120: 76 | I120: 565 | J120: 97 | K120: 747 | L120: 111 | M120: 821 | N120: 144 | O120: 3,929 | P120: 882 | Q120: 414 | R120: 38 | S120: 3,422 | T120: 450 | U120: O
B121: 11 | C121: 10,188 | D121: 1,686 | E121: 747 | F121: 120 | G121: 381 | H121: 58 | I121: 450 | J121: 85 | K121: 587 | L121: 109 | M121: 669 | N121: 117 | O121: 3,355 | P121: 687 | Q121: 418 | R121: 46 | S121: 3,581 | T121: 464 | U121: N
B122: 12 | C122: 11,397 | D122: 1,476 | E122: 633 | F122: 83 | G122: 346 | H122: 43 | I122: 555 | J122: 100 | K122: 636 | L122: 77 | M122: 726 | N122: 97 | O122: 3,268 | P122: 441 | Q122: 532 | R122: 47 | S122: 4,701 | T122: 588 | U122: D
A124: 2012 | B124: 1 | C124: =E124+G124+I124+K124+M124+O124+Q124+S124 -> 2,665 | D124: 341 | E124: 135 | F124: 11 | G124: 76 | H124: 7 | I124: 115 | J124: 12 | K124: 110 | L124: 12 | M124: 128 | N124: 14 | O124: 666 | P124: 76 | Q124: 135 | R124: 17 | S124: 1,300 | T124: 191 | U124: J | V124: 2012
B125: 2 | C125: 7,393 | D125: 1,020 | E125: 460 | F125: 52 | G125: 235 | H125: 21 | I125: 298 | J125: 35 | K125: 364 | L125: 41 | M125: 437 | N125: 52 | O125: 1,764 | P125: 234 | Q125: 426 | R125: 73 | S125: 3,409 | T125: 512 | U125: F
B126: 3 | C126: 9,605 | D126: 1,443 | E126: 655 | F126: 85 | G126: 301 | H126: 38 | I126: 372 | J126: 51 | K126: 545 | L126: 61 | M126: 585 | N126: 76 | O126: 2,312 | P126: 299 | Q126: 533 | R126: 81 | S126: 4,302 | T126: 751 | U126: M
B127: 4 | C127: 7,795 | D127: 1,146 | E127: 449 | F127: 51 | G127: 248 | H127: 31 | I127: 254 | J127: 39 | K127: 351 | L127: 42 | M127: 429 | N127: 45 | O127: 1,676 | P127: 230 | Q127: 483 | R127: 79 | S127: 3,906 | T127: 629 | U127: A
B128: 5 | C128: 9,506 | D128: 1,575 | E128: 547 | F128: 79 | G128: 283 | H128: 37 | I128: 301 | J128: 43 | K128: 465 | L128: 64 | M128: 488 | N128: 73 | O128: 2,128 | P128: 349 | Q128: 563 | R128: 94 | S128: 4,731 | T128: 837 | U128: M
B129: 6 | C129: 9,148 | D129: 1,687 | E129: 510 | F129: 92 | G129: 275 | H129: 45 | I129: 304 | J129: 49 | K129: 410 | L129: 66 | M129: 429 | N129: 74 | O129: 1,899 | P129: 334 | Q129: 535 | R129: 97 | S129: 4,788 | T129: 930 | U129: J
B130: 7 | C130: 8,754 | D130: 1,745 | E130: 435 | F130: 72 | G130: 262 | H130: 54 | I130: 281 | J130: 48 | K130: 406 | L130: 78 | M130: 408 | N130: 89 | O130: 1,813 | P130: 343 | Q130: 530 | R130: 103 | S130: 4,620 | T130: 958 | U130: J
B131: 8 | C131: 7,886 | D131: 1,675 | E131: 415 | F131: 87 | G131: 255 | H131: 52 | I131: 242 | J131: 48 | K131: 333 | L131: 68 | M131: 385 | N131: 65 | O131: 1,508 | P131: 326 | Q131: 407 | R131: 93 | S131: 4,343 | T131: 936 | U131: A
B132: 9 | C132: 6,517 | D132: 1,512 | E132: 306 | F132: 65 | G132: 152 | H132: 39 | I132: 192 | J132: 47 | K132: 227 | L132: 60 | M132: 277 | N132: 55 | O132: 1,175 | P132: 257 | Q132: 341 | R132: 74 | S132: 3,847 | T132: 914 | U132: S
B133: 10 | C133: 9,410 | D133: 2,041 | E133: 455 | F133: 96 | G133: 248 | H133: 62 | I133: 306 | J133: 80 | K133: 336 | L133: 70 | M133: 381 | N133: 77 | O133: 1,779 | P133: 345 | Q133: 554 | R133: 124 | S133: 5,351 | T133: 1,187 | U133: O
B134: 11 | C134: 13,525 | D134: 2,917 | E134: 731 | F134: 151 | G134: 368 | H134: 71 | I134: 471 | J134: 105 | K134: 585 | L134: 137 | M134: 627 | N134: 128 | O134: 2,547 | P134: 526 | Q134: 801 | R134: 168 | S134: 7,395 | T134: 1,630 | U134: N
B135: 12 | C135: 18,746 | D135: 4,125 | E135: 1,087 | F135: 251 | G135: 617 | H135: 140 | I135: 702 | J135: 169 | K135: 894 | L135: 220 | M135: 955 | N135: 233 | O135: 3,756 | P135: 800 | Q135: 1,182 | R135: 269 | S135: 9,553 | T135: 2,043 | U135: D
A137: 2013 | B137: 1 | C137: =E137+G137+I137+K137+M137+O137+Q137+S137 -> 6,851 | D137: 1,398 | E137: 469 | F137: 103 | G137: 226 | H137: 37 | I137: 275 | J137: 48 | K137: 328 | L137: 68 | M137: 360 | N137: 82 | O137: 1,349 | P137: 276 | Q137: 438 | R137: 86 | S137: 3,406 | T137: 697 | U137: J | V137: 2013
B138: 2 | C138: 11,085 | D138: 2,545 | E138: 621 | F138: 138 | G138: 359 | H138: 86 | I138: 410 | J138: 106 | K138: 492 | L138: 124 | M138: 615 | N138: 134 | O138: 1,984 | P138: 418 | Q138: 710 | R138: 181 | S138: 5,893 | T138: 1,357 | U138: F
B139: 3 | C139: 10,810 | D139: 2,841 | E139: 520 | F139: 135 | G139: 328 | H139: 92 | I139: 349 | J139: 95 | K139: 445 | L139: 116 | M139: 500 | N139: 135 | O139: 1,946 | P139: 456 | Q139: 727 | R139: 225 | S139: 5,995 | T139: 1,588 | U139: M
B140: 4 | C140: 16,644 | D140: 5,080 | E140: 839 | F140: 279 | G140: 508 | H140: 167 | I140: 596 | J140: 197 | K140: 704 | L140: 226 | M140: 772 | N140: 248 | O140: 2,878 | P140: 893 | Q140: 1,157 | R140: 360 | S140: 9,191 | T140: 2,710 | U140: A
B141: 5 | C141: 16,470 | D141: 5,512 | E141: 808 | F141: 286 | G141: 419 | H141: 162 | I141: 519 | J141: 205 | K141: 669 | L141: 253 | M141: 739 | N141: 284 | O141: 2,684 | P141: 815 | Q141: 1,080 | R141: 370 | S141: 9,553 | T141: 3,137 | U141: M
B142: 6 | C142: 22,400 | D142: 7,434 | E142: 1,065 | F142: 374 | G142: 644 | H142: 218 | I142: 741 | J142: 296 | K142: 966 | L142: 365 | M142: 959 | N142: 319 | O142: 3,439 | P142: 1,148 | Q142: 1,580 | R142: 543 | S142: 13,006 | T142: 4,172 | U142: J
B143: 7 | C143: 10,202 | D143: 2,960 | E143: 606 | F143: 166 | G143: 310 | H143: 85 | I143: 369 | J143: 98 | K143: 506 | L143: 144 | M143: 520 | N143: 149 | O143: 1,640 | P143: 459 | Q143: 789 | R143: 255 | S143: 5,461 | T143: 1,604 | U143: J
B144: 8 | C144: 6,365 | D144: 1,949 | E144: 313 | F144: 97 | G144: 170 | H144: 48 | I144: 197 | J144: 61 | K144: 253 | L144: 65 | M144: 264 | N144: 80 | O144: 991 | P144: 317 | Q144: 438 | R144: 132 | S144: 3,738 | T144: 1,150 | U144: A
B145: 9 | C145: 4,101 | D145: 1,244 | E145: 170 | F145: 48 | G145: 93 | H145: 25 | I145: 101 | J145: 38 | K145: 155 | L145: 48 | M145: 164 | N145: 52 | O145: 557 | P145: 170 | Q145: 223 | R145: 78 | S145: 2,637 | T145: 785 | U145: S
B146: 10 | C146: 4,716 | D146: 1,518 | E146: 181 | F146: 67 | G146: 100 | H146: 38 | I146: 114 | J146: 31 | K146: 163 | L146: 56 | M146: 160 | N146: 51 | O146: 584 | P146: 193 | Q146: 238 | R146: 83 | S146: 3,176 | T146: 999 | U146: O
B147: 11 | C147: 3,987 | D147: 1,317 | E147: 179 | F147: 55 | G147: 116 | H147: 44 | I147: 124 | J147: 43 | K147: 139 | L147: 53 | M147: 148 | N147: 38 | O147: 598 | P147: 199 | Q147: 212 | R147: 78 | S147: 2,471 | T147: 807 | U147: N
B148: 12 | C148: 3,736 | D148: 1,283 | E148: 169 | F148: 60 | G148: 103 | H148: 30 | I148: 113 | J148: 34 | K148: 155 | L148: 57 | M148: 187 | N148: 59 | O148: 647 | P148: 211 | Q148: 195 | R148: 72 | S148: 2,168 | T148: 761 | U148: D
A150: 2014 | B150: 1 | C150: =E150+G150+I150+K150+M150+O150+Q150+S150 -> 1,639 | D150: 557 | E150: 80 | F150: 31 | G150: 53 | H150: 17 | I150: 43 | J150: 16 | K150: 80 | L150: 25 | M150: 78 | N150: 23 | O150: 248 | P150: 90 | Q150: 90 | R150: 30 | S150: 967 | T150: 326 | U150: J | V150: 2014
B151: 2 | C151: 1,775 | D151: 756 | E151: 59 | F151: 26 | G151: 32 | H151: 13 | I151: 40 | J151: 11 | K151: 54 | L151: 18 | M151: 83 | N151: 30 | O151: 281 | P151: 127 | Q151: 112 | R151: 50 | S151: 1,115 | T151: 481 | U151: F
B152: 3 | C152: 1,825 | D152: 856 | E152: 53 | F152: 21 | G152: 34 | H152: 18 | I152: 43 | J152: 25 | K152: 56 | L152: 27 | M152: 79 | N152: 41 | O152: 248 | P152: 103 | Q152: 94 | R152: 52 | S152: 1,219 | T152: 569 | U152: M
B153: 4 | C153: 3,394 | D153: 1,922 | E153: 80 | F153: 39 | G153: 59 | H153: 36 | I153: 88 | J153: 44 | K153: 123 | L153: 78 | M153: 149 | N153: 88 | O153: 594 | P153: 362 | Q153: 221 | R153: 136 | S153: 2,081 | T153: 1,139 | U153: A
B154: 5 | C154: 4,974 | D154: 3,249 | E154: 145 | F154: 84 | G154: 109 | H154: 64 | I154: 157 | J154: 95 | K154: 217 | L154: 147 | M154: 301 | N154: 200 | O154: 949 | P154: 633 | Q154: 334 | R154: 233 | S154: 2,761 | T154: 1,793 | U154: M
B155: 6 | C155: 7,878 | D155: 5,257 | E155: 274 | F155: 164 | G155: 192 | H155: 116 | I155: 279 | J155: 181 | K155: 375 | L155: 249 | M155: 492 | N155: 326 | O155: 1,540 | P155: 1,070 | Q155: 564 | R155: 389 | S155: 4,162 | T155: 2,762 | U155: J
A156: 2014 | B156: 7 | C156: 7,984 | D156: 5,345 | E156: 275 | F156: 163 | G156: 210 | H156: 134 | I156: 246 | J156: 157 | K156: 371 | L156: 242 | M156: 521 | N156: 364 | O156: 1,462 | P156: 992 | Q156: 515 | R156: 343 | S156: 4,384 | T156: 2,951 | U156: J | V156: 2014
B157: 8 | C157: 8,507 | D157: 5,941 | E157: 365 | F157: 232 | G157: 257 | H157: 166 | I157: 307 | J157: 200 | K157: 410 | L157: 287 | M157: 546 | N157: 374 | O157: 1,583 | P157: 1,110 | Q157: 644 | R157: 459 | S157: 4,397 | T157: 3,113 | U157: A
B158: 9 | C158: 8,022 | D158: 5,728 | E158: 378 | F158: 233 | G158: 244 | H158: 171 | I158: 370 | J158: 257 | K158: 426 | L158: 298 | M158: 567 | N158: 412 | O158: 1,543 | P158: 1,118 | Q158: 699 | R158: 485 | S158: 3,795 | T158: 2,753 | U158: S
B159: 10 | C159: 11,736 | D159: 8,904 | E159: 513 | F159: 346 | G159: 388 | H159: 267 | I159: 529 | J159: 373 | K159: 676 | L159: 487 | M159: 861 | N159: 621 | O159: 1,809 | P159: 1,356 | Q159: 1,098 | R159: 848 | S159: 5,861 | T159: 4,606 | U159: O
B160: 11 | C160: =E160+G160+I160+K160+M160+O160+Q160+S160 -> 12,603 | D160: 9,730 | E160: 724 | F160: 506 | G160: 431 | H160: 313 | I160: 604 | J160: 462 | K160: 757 | L160: 559 | M160: 865 | N160: 659 | O160: 1,852 | P160: 1,429 | Q160: 1,222 | R160: 924 | S160: 6,149 | T160: 4,880 | U160: N
B161: 12 | C161: =E161+G161+I161+K161+M161+O161+Q161+S161 -> 13,360 | D161: =F161+H161+J161+L161+N161+P161+R161+T161 -> 10,497 | E161: 836 | F161: 591 | G161: 498 | H161: 382 | I161: 591 | J161: 452 | K161: 761 | L161: 585 | M161: 890 | N161: 684 | O161: 1,887 | P161: 1,474 | Q161: 1,289 | R161: 982 | S161: 6,608 | T161: 5,348 | U161: D
A163: 2015 | B163: 1 | C163: =E163+G163+I163+K163+M163+O163+Q163+S163 -> 7,802 | D163: 6,181 | E163: 616 | F163: 429 | G163: 302 | H163: 227 | I163: 340 | J163: 254 | K163: 445 | L163: 340 | M163: 511 | N163: 398 | O163: 1,018 | P163: 805 | Q163: 756 | R163: 601 | S163: 3,812 | T163: 3,127 | U163: J | V163: 2015
B164: 2 | C164: 11,032 | D164: 9,127 | E164: 1,002 | F164: 761 | G164: 486 | H164: 385 | I164: 569 | J164: 455 | K164: 674 | L164: 542 | M164: 787 | N164: 640 | O164: 1,324 | P164: 1,093 | Q164: 1,060 | R164: 876 | S164: 5,129 | T164: 4,374 | U164: F
B165: 3 | C165: 11,130 | D165: 9,252 | E165: 919 | F165: 712 | G165: 450 | H165: 355 | I165: 538 | J165: 435 | K165: 732 | L165: 597 | M165: 770 | N165: 640 | O165: 1,502 | P165: 1,268 | Q165: 1,125 | R165: 932 | S165: 5,094 | T165: 4,313 | U165: M
B166: 4 | C166: 18,789 | D166: 16,223 | E166: 1,932 | F166: 1,570 | G166: 869 | H166: 722 | I166: 980 | J166: 826 | K166: 1,306 | L166: 1,107 | M166: 1,397 | N166: 1,197 | O166: 2,510 | P166: 2,162 | Q166: 2,021 | R166: 1,753 | S166: 7,774 | T166: 6,886 | U166: A
B167: 5 | C167: 18,800 | D167: 16,426 | E167: 1,988 | F167: 1,654 | G167: 872 | H167: 738 | I167: 971 | J167: 843 | K167: 1,345 | L167: 1,153 | M167: 1,477 | N167: 1,299 | O167: 2,517 | P167: 2,186 | Q167: 2,136 | R167: 1,880 | S167: 7,495 | T167: 6,674 | U167: M
B168: 6 | C168: 23,312 | D168: 20,692 | E168: 2,103 | F168: 1,789 | G168: 1,059 | H168: 904 | I168: 1,287 | J168: 1,127 | K168: 1,614 | L168: 1,402 | M168: 1,811 | N168: 1,618 | O168: 3,305 | P168: 2,916 | Q168: 2,452 | R168: 2,187 | S168: 9,681 | T168: 8,748 | U168: J
B169: 7 | C169: 12,940 | D169: 11,453 | E169: 1,035 | F169: 873 | G169: 516 | H169: 447 | I169: 585 | J169: 500 | K169: 753 | L169: 663 | M169: 924 | N169: 805 | O169: 1,687 | P169: 1,473 | Q169: 1,435 | R169: 1,266 | S169: 6,005 | T169: 5,427 | U169: J
B170: 8 | C170: 7,951 | D170: 7,051 | E170: 641 | F170: 525 | G170: 317 | H170: 269 | I170: 382 | J170: 326 | K170: 456 | L170: 406 | M170: 492 | N170: 420 | O170: 944 | P170: 832 | Q170: 856 | R170: 762 | S170: 3,863 | T170: 3,511 | U170: A
B171: 9 | C171: 5,624 | D171: 5,061 | E171: 402 | F171: 349 | G171: 199 | H171: 170 | I171: 256 | J171: 220 | K171: 345 | L171: 308 | M171: 373 | N171: 328 | O171: 744 | P171: 665 | Q171: 569 | R171: 509 | S171: 2,737 | T171: 2,512 | U171: S
B172: 10 | C172: 5,984 | D172: 5,490 | E172: 318 | F172: 273 | G172: 197 | H172: 177 | I172: 246 | J172: 218 | K172: 253 | L172: 227 | M172: 363 | N172: 327 | O172: 708 | P172: 638 | Q172: 569 | R172: 511 | S172: 3,329 | T172: 3,119 | U172: O
B173: 11 | C173: 9,316 | D173: 8,739 | E173: 585 | F173: 530 | G173: 357 | H173: 328 | I173: 434 | J173: 403 | K173: 559 | L173: 517 | M173: 661 | N173: 610 | O173: 1,259 | P173: 1,176 | Q173: 980 | R173: 923 | S173: 4,480 | T173: 4,251 | U173: N
B174: 12 | C174: 12,817 | D174: 12,062 | E174: 914 | F174: 822 | G174: 498 | H174: 465 | I174: 610 | J174: 565 | K174: 831 | L174: 772 | M174: 986 | N174: 919 | O174: 1,664 | P174: 1,570 | Q174: 1,389 | R174: 1,309 | S174: 5,925 | T174: 5,640 | U174: D
A176: 2016 | B176: 1 | C176: =E176+G176+I176+K176+M176+O176+Q176+S176 -> 7,807 | D176: 7,359 | E176: 693 | F176: 633 | G176: 317 | H176: 291 | I176: 366 | J176: 346 | K176: 509 | L176: 470 | M176: 523 | N176: 483 | O176: 895 | P176: 845 | Q176: 820 | R176: 774 | S176: 3,683 | T176: 3,516 | U176: J | V176: 2016
B177: 2 | C177: 6,329 | D177: 6,025 | E177: 568 | F177: 528 | G177: 239 | H177: 227 | I177: 321 | J177: 299 | K177: 414 | L177: 391 | M177: 409 | N177: 390 | O177: 788 | P177: 751 | Q177: 644 | R177: 609 | S177: 2,947 | T177: 2,830 | U177: F
B178: 3 | C178: 7,447 | D178: 7,202 | E178: 692 | F178: 659 | G178: 329 | H178: 312 | I178: 394 | J178: 381 | K178: 495 | L178: 479 | M178: 541 | N178: 517 | O178: 930 | P178: 903 | Q178: 880 | R178: 847 | S178: 3,187 | T178: 3,103 | U178: M
B179: 4 | C179: 7,617 | D179: 7,438 | E179: 733 | F179: 708 | G179: 339 | H179: 330 | I179: 436 | J179: 420 | K179: 507 | L179: 495 | M179: 580 | N179: 564 | O179: 1,076 | P179: 1,044 | Q179: 846 | R179: 827 | S179: 3,101 | T179: 3,051 | U179: A
B180: 5 | C180: 3,494 | D180: 3,421 | E180: 302 | F180: 294 | G180: 143 | H180: 140 | I180: 156 | J180: 152 | K180: 215 | L180: 210 | M180: 251 | N180: 245 | O180: 487 | P180: 476 | Q180: 375 | R180: 367 | S180: 1,563 | T180: 1,536 | U180: M
B181: 6 | C181: 3,512 | D181: 3,468 | E181: 267 | F181: 262 | G181: 129 | H181: 127 | I181: 155 | J181: 154 | K181: 248 | L181: 245 | M181: 374 | N181: 368 | O181: 569 | P181: 563 | Q181: 377 | R181: 368 | S181: 1,394 | T181: 1,382 | U181: J
B182: 73) | C182: 913 | D182: 907 | E182: 62 | F182: 61 | G182: 40 | H182: 40 | I182: 54 | J182: 53 | K182: 81 | L182: 81 | M182: 142 | N182: 141 | O182: 208 | P182: 205 | Q182: 146 | R182: 145 | S182: 181 | T182: 181 | U182: J
A183: 합계 | C183: 872,093 | D183: 295,009 | E183: 60,400 | F183: 19,925 | G183: 31,120 | H183: 10,515 | I183: 36,741 | J183: 12,963 | K183: 51,381 | L183: 16,872 | M183: 56,055 | N183: 19,453 | O183: 199,043 | P183: 47,048 | Q183: 61,362 | R183: 26,782 | S183: 375,992 | T183: 141,450 | U183: Total
A185: 1) 대출취급일 기준
A186: 2) LTV (담보대출비율) = (대출금액 + 선순위채권 + 임차보증금 및 최우선변제 소액임차보증금) / 주택의 담보가치 *100
A187: 3) 평균 LTV(Loan to Value) : 56.6% ('16.7월말 기준)
A189: ※ 자료 : 공사가 금융기관으로부터 양수한 자산

Sheet 10. DTI 수준별 대출금액 및 잔액 현황
A1: 10. DTI 수준별 대출금액 및 잔액 현황 | I1: Bogeumjari(Mortgage) Loan Origination and Outstanding by DTI
A3: 단위 : 억원 | R3: Hundred million won
A4: 연월중1) | C4: 합계 Total | E4: DTI2) 10% 이하 | G4: 10%초과 ~ 20%이하 | I4: 20%초과 ~ 30%이하 | K4: 30%초과 ~ 40%이하 | M4: 40%초과 ~ 50%이하 | O4: 50%초과 | Q4: 연월중
E5: 10% or less | G5: Over 10% ~ 20% or less | I5: Over 20% ~ 30% or less | K5: Over 30% ~ 40% or less | M5: Over 40% ~ 50% or less | O5: Over 50%
A6: During | C6: 대출금액 | D6: 대출잔액 | E6: 대출금액 | F6: 대출잔액 | G6: 대출금액 | H6: 대출잔액 | I6: 대출금액 | J6: 대출잔액 | K6: 대출금액 | L6: 대출잔액 | M6: 대출금액 | N6: 대출잔액 | O6: 대출금액 | P6: 대출잔액 | Q6: During
C7: Origination | D7: Outstanding | E7: Origination | F7: Outstanding | G7: Origination | H7: Outstanding | I7: Origination | J7: Outstanding | K7: Origination | L7: Outstanding | M7: Origination | N7: Outstanding | O7: Origination | P7: Outstanding
A8: 2004 | C8: =E8+G8+I8+K8+M8+O8 -> 33,315 | D8: =F8+H8+J8+L8+N8+P8 -> 372 | E8: =SUM(E22:E31) -> 2,589 | F8: 49 | G8: 7,675 | H8: 118 | I8: 9,600 | J8: 89 | K8: 5,253 | L8: 50 | M8: 1,701 | N8: 16 | O8: 6,498 | P8: 50 | Q8: 2004
A9: 2005 | C9: =E9+G9+I9+K9+M9+O9 -> 42,304 | D9: =F9+H9+J9+L9+N9+P9 -> 608 | E9: =SUM(E33:E44) -> 2,219 | F9: 60 | G9: 10,777 | H9: 183 | I9: 13,199 | J9: 134 | K9: 7,209 | L9: 94 | M9: 1,869 | N9: 28 | O9: 7,032 | P9: 109 | Q9: 2005
A10: 2006 | C10: =E10+G10+I10+K10+M10+O10 -> 13,761 | D10: 1,102 | E10: =SUM(E46:E57) -> 552 | F10: 13 | G10: 3,543 | H10: 55 | I10: 5,113 | J10: 54 | K10: 2,999 | L10: 38 | M10: 436 | N10: 3 | O10: 1,118 | P10: 15 | Q10: 2006
A11: 2007 | C11: =E11+G11+I11+K11+M11+O11 -> 35,684 | D11: =F11+H11+J11+L11+N11+P11 -> 367 | E11: =SUM(E59:E70) -> 1,048 | F11: 23 | G11: 7,545 | H11: 110 | I11: 11,908 | J11: 120 | K11: 8,132 | L11: 65 | M11: 2,334 | N11: 12 | O11: 4,718 | P11: 37 | Q11: 2007
A12: 2008 | C12: 41,917 | D12: 386 | E12: =SUM(E72:E83) -> 879 | F12: 21 | G12: 6,472 | H12: 75 | I12: 12,189 | J12: 136 | K12: 10,536 | L12: 81 | M12: 3,456 | N12: 26 | O12: 8,387 | P12: 47 | Q12: 2008
A13: 2009 | C13: =E13+G13+I13+K13+M13+O13 -> 59,100 | D13: 847 | E13: =SUM(E85:E96) -> 1,952 | F13: 54 | G13: 11,853 | H13: 207 | I13: 17,489 | J13: 267 | K13: 12,576 | L13: 163 | M13: 5,716 | N13: 61 | O13: 9,513 | P13: 95 | Q13: 2009
A14: 2010 | C14: 57,879 | D14: 2,938 | E14: =SUM(E98:E109) -> 3,200 | F14: 210 | G14: 12,024 | H14: 675 | I14: 16,959 | J14: 768 | K14: 12,166 | L14: 617 | M14: 4,892 | N14: 225 | O14: 8,637 | P14: 443 | Q14: 2010
A15: 2011 | C15: 93,504 | D15: 10,685 | E15: =SUM(E111:E122) -> 3,143 | F15: 383 | G15: 19,142 | H15: 2,047 | I15: 27,781 | J15: 2,852 | K15: 20,310 | L15: 2,230 | M15: 6,873 | N15: 933 | O15: 16,254 | P15: 2,239 | Q15: =A15 -> 2011
A16: 2012 | C16: 110,950 | D16: 21,227 | E16: =SUM(E124:E135) -> 36,099 | F16: 6,917 | G16: 22,928 | H16: 4,559 | I16: 25,808 | J16: 4,902 | K16: 15,368 | L16: 2,829 | M16: 3,522 | N16: 665 | O16: 7,224 | P16: 1,354 | Q16: 2012
A17: 2013 | C17: 117,367 | D17: 35,081 | E17: =+SUM(E137:E148) -> 27,270 | F17: 8,342 | G17: 33,977 | H17: 10,476 | I17: 31,006 | J17: 8,816 | K17: 16,220 | L17: 4,652 | M17: 3,311 | N17: 1,002 | O17: 5,583 | P17: 1,794 | Q17: 2013
A18: 2014 | C18: 83,697 | D18: 58,742 | E18: =+SUM(E150:E161) -> 10,240 | F18: =+SUM(F150:F161) -> 6,619 | G18: 26,921 | H18: 19,239 | I18: 22,360 | J18: 15,710 | K18: 12,221 | L18: 8,548 | M18: 4,395 | N18: 3,206 | O18: 7,561 | P18: 5,420 | Q18: 2014
A19: 2015 | C19: 145,496 | D19: 127,758 | E19: =+SUM(E163:E174) -> 14,509 | F19: =+SUM(F163:F174) -> 12,697 | G19: 52,226 | H19: 46,187 | I19: 38,927 | J19: 34,145 | K19: 19,465 | L19: 16,956 | M19: 10,587 | N19: 9,270 | O19: 9,782 | P19: 8,502 | Q19: 2015
A20: 2016 | C20: 37,119 | D20: 35,820 | E20: =+SUM(E176:E182) -> 6,043 | F20: =+SUM(F176:F182) -> 5,829 | G20: 13,759 | H20: 13,330 | I20: 9,025 | J20: 8,713 | K20: 4,200 | L20: 4,029 | M20: 2,177 | N20: 2,085 | O20: 1,915 | P20: 1,833 | Q20: 2016
A22: 2004 | B22: 3 | C22: =E22+G22+I22+K22+M22+O22 -> 351 | D22: 3 | E22: 26 | F22: 0 | G22: 95 | H22: 1 | I22: 123 | J22: 1 | K22: 44 | L22: 0 | M22: 17 | N22: 0 | O22: 46 | P22: 1 | Q22: M | R22: 2004
B23: 4 | C23: 3,611 | D23: 30 | E23: 595 | F23: 7 | G23: 829 | H23: 8 | I23: 965 | J23: 9 | K23: 555 | L23: 3 | M23: 148 | N23: 1 | O23: 519 | P23: 2 | Q23: A
B24: 5 | C24: 4,558 | D24: 43 | E24: 643 | F24: 10 | G24: 989 | H24: 11 | I24: 1,296 | J24: 9 | K24: 660 | L24: 7 | M24: 235 | N24: 2 | O24: 736 | P24: 4 | Q24: A
B25: 6 | C25: 3,944 | D25: 42 | E25: 342 | F25: 6 | G25: 893 | H25: 13 | I25: 1,167 | J25: 10 | K25: 648 | L25: 7 | M25: 208 | N25: 4 | O25: 686 | P25: 3 | Q25: J
B26: 7 | C26: 3,380 | D26: 31 | E26: 168 | F26: 3 | G26: 782 | H26: 12 | I26: 998 | J26: 6 | K26: 537 | L26: 4 | M26: 180 | N26: 1 | O26: 715 | P26: 5 | Q26: J
B27: 8 | C27: 3,282 | D27: 33 | E27: 149 | F27: 4 | G27: 747 | H27: 9 | I27: 980 | J27: 9 | K27: 530 | L27: 4 | M27: 167 | N27: 1 | O27: 709 | P27: 5 | Q27: A
B28: 9 | C28: 2,891 | D28: 33 | E28: 145 | F28: 3 | G28: 664 | H28: 12 | I28: 804 | J28: 8 | K28: 464 | L28: 4 | M28: 157 | N28: 0 | O28: 656 | P28: 6 | Q28: S
B29: 10 | C29: 3,446 | D29: 40 | E29: 163 | F29: 4 | G29: 820 | H29: 15 | I29: 992 | J29: 9 | K29: 545 | L29: 8 | M29: 172 | N29: 1 | O29: 754 | P29: 4 | Q29: O
B30: 11 | C30: 3,566 | D30: 52 | E30: 169 | F30: 5 | G30: 884 | H30: 16 | I30: 1,029 | J30: 15 | K30: 572 | L30: 4 | M30: 179 | N30: 2 | O30: 733 | P30: 8 | Q30: N
B31: 12 | C31: 4,286 | D31: 65 | E31: 189 | F31: 7 | G31: 972 | H31: 21 | I31: 1,247 | J31: 13 | K31: 698 | L31: 9 | M31: 238 | N31: 3 | O31: 943 | P31: 12 | Q31: D
A33: 2005 | B33: 1 | C33: =E33+G33+I33+K33+M33+O33 -> 3,443 | D33: 60 | E33: 175 | F33: 5 | G33: 914 | H33: 16 | I33: 976 | J33: 13 | K33: 500 | L33: 7 | M33: 182 | N33: 3 | O33: 697 | P33: 16 | Q33: J | R33: 2005
B34: 2 | C34: 4,840 | D34: 75 | E34: 269 | F34: 7 | G34: 1,253 | H34: 19 | I34: 1,391 | J34: 21 | K34: 772 | L34: 10 | M34: 244 | N34: 3 | O34: 912 | P34: 15 | Q34: F
B35: 3 | C35: 6,923 | D35: 98 | E35: 358 | F35: 9 | G35: 1,817 | H35: 33 | I35: 2,076 | J35: 22 | K35: 1,126 | L35: 17 | M35: 316 | N35: 4 | O35: 1,230 | P35: 13 | Q35: M
B36: 4 | C36: 5,707 | D36: 74 | E36: 286 | F36: 9 | G36: 1,465 | H36: 21 | I36: 1,746 | J36: 17 | K36: 950 | L36: 8 | M36: 279 | N36: 5 | O36: 982 | P36: 15 | Q36: A
B37: 5 | C37: 3,927 | D37: 46 | E37: 190 | F37: 3 | G37: 956 | H37: 14 | I37: 1,230 | J37: 10 | K37: 655 | L37: 6 | M37: 164 | N37: 1 | O37: 734 | P37: 12 | Q37: M
B38: 6 | C38: 3,713 | D38: 60 | E38: 173 | F38: 7 | G38: 945 | H38: 21 | I38: 1,122 | J38: 13 | K38: 633 | L38: 6 | M38: 198 | N38: 3 | O38: 643 | P38: 10 | Q38: J
B39: 7 | C39: 3,087 | D39: 48 | E39: 137 | F39: 4 | G39: 773 | H39: 8 | I39: 998 | J39: 7 | K39: 564 | L39: 10 | M39: 130 | N39: 6 | O39: 485 | P39: 13 | Q39: J
B40: 8 | C40: 3,165 | D40: 35 | E40: 187 | F40: 3 | G40: 765 | H40: 12 | I40: 1,046 | J40: 10 | K40: 572 | L40: 5 | M40: 134 | N40: 1 | O40: 460 | P40: 4 | Q40: A
B41: 9 | C41: 2,649 | D41: 40 | E41: 160 | F41: 6 | G41: 613 | H41: 15 | I41: 914 | J41: 6 | K41: 501 | L41: 10 | M41: 96 | N41: 1 | O41: 366 | P41: 3 | Q41: S
B42: 10 | C42: 1,928 | D42: 28 | E42: 123 | F42: 2 | G42: 490 | H42: 12 | I42: 649 | J42: 5 | K42: 379 | L42: 5 | M42: 69 | N42: 1 | O42: 218 | P42: 3 | Q42: O
B43: 11 | C43: 1,436 | D43: 25 | E43: 93 | F43: 2 | G43: 391 | H43: 9 | I43: 520 | J43: 5 | K43: 269 | L43: 5 | M43: 23 | N43: 0 | O43: 139 | P43: 4 | Q43: N
B44: 12 | C44: 1,485 | D44: 19 | E44: 66 | F44: 2 | G44: 395 | H44: 4 | I44: 532 | J44: 6 | K44: 290 | L44: 5 | M44: 35 | N44: 0 | O44: 167 | P44: 2 | Q44: D
A46: 2006 | B46: 1 | C46: =E46+G46+I46+K46+M46+O46 -> 656 | D46: 15 | E46: 27 | F46: 0 | G46: 136 | H46: 3 | I46: 227 | J46: 2 | K46: 142 | L46: 5 | M46: 15 | N46: 1 | O46: 110 | P46: 3 | Q46: J | R46: 2006
B47: 2 | C47: 1,005 | D47: 16 | E47: 47 | F47: 1 | G47: 284 | H47: 6 | I47: 350 | J47: 5 | K47: 189 | L47: 2 | M47: 20 | N47: 0 | O47: 114 | P47: 3 | Q47: F
B48: 3 | C48: 1,010 | D48: 16 | E48: 43 | F48: 1 | G48: 263 | H48: 4 | I48: 390 | J48: 6 | K48: 214 | L48: 2 | M48: 23 | N48: 0 | O48: 77 | P48: 2 | Q48: M
B49: 4 | C49: 881 | D49: 12 | E49: 41 | F49: 1 | G49: 270 | H49: 4 | I49: 282 | J49: 5 | K49: 214 | L49: 1 | M49: 21 | N49: 0 | O49: 52 | P49: 1 | Q49: A
B50: 5 | C50: 736 | D50: 8 | E50: 31 | F50: 1 | G50: 205 | H50: 3 | I50: 292 | J50: 2 | K50: 147 | L50: 2 | M50: 24 | N50: 0 | O50: 36 | P50: 0 | Q50: M
B51: 6 | C51: 811 | D51: 17 | E51: 34 | F51: 2 | G51: 238 | H51: 3 | I51: 290 | J51: 5 | K51: 159 | L51: 5 | M51: 20 | N51: 0 | O51: 70 | P51: 2 | Q51: J
B52: 7 | C52: 1,276 | D52: 10 | E52: 49 | F52: 2 | G52: 341 | H52: 4 | I52: 458 | J52: 2 | K52: 238 | L52: 3 | M52: 56 | N52: 0 | O52: 133 | P52: 0 | Q52: J
B53: 8 | C53: 1,379 | D53: 16 | E53: 53 | F53: 2 | G53: 338 | H53: 6 | I53: 510 | J53: 3 | K53: 274 | L53: 4 | M53: 59 | N53: 1 | O53: 145 | P53: 1 | Q53: A
B54: 9 | C54: 1,861 | D54: 24 | E54: 57 | F54: 1 | G54: 460 | H54: 7 | I54: 687 | J54: 11 | K54: 439 | L54: 3 | M54: 70 | N54: 1 | O54: 149 | P54: 1 | Q54: S
B55: 10 | C55: 1,245 | D55: 15 | E55: 34 | F55: 0 | G55: 287 | H55: 7 | I55: 501 | J55: 5 | K55: 295 | L55: 2 | M55: 44 | N55: 1 | O55: 85 | P55: 0 | Q55: O
B56: 11 | C56: 1,207 | D56: 17 | E56: 51 | F56: 2 | G56: 299 | H56: 4 | I56: 506 | J56: 5 | K56: 278 | L56: 5 | M56: 23 | N56: 0 | O56: 50 | P56: 1 | Q56: N
B57: 12 | C57: 1,694 | D57: 14 | E57: 84 | F57: 1 | G57: 422 | H57: 5 | I57: 620 | J57: 3 | K57: 411 | L57: 4 | M57: 62 | N57: 0 | O57: 96 | P57: 0 | Q57: D
A59: 2007 | B59: 1 | C59: =E59+G59+I59+K59+M59+O59 -> 2,408 | D59: 24 | E59: 122 | F59: 1 | G59: 634 | H59: 9 | I59: 778 | J59: 9 | K59: 483 | L59: 3 | M59: 176 | N59: 0 | O59: 215 | P59: 2 | Q59: J | R59: 2007
B60: 2 | C60: 2,762 | D60: 35 | E60: 104 | F60: 2 | G60: 704 | H60: 11 | I60: 1,003 | J60: 6 | K60: 587 | L60: 11 | M60: 147 | N60: 1 | O60: 217 | P60: 4 | Q60: F
B61: 3 | C61: 2,496 | D61: 25 | E61: 95 | F61: 2 | G61: 616 | H61: 8 | I61: 906 | J61: 9 | K61: 506 | L61: 4 | M61: 151 | N61: 0 | O61: 223 | P61: 1 | Q61: M
B62: 4 | C62: 2,415 | D62: 29 | E62: 86 | F62: 2 | G62: 623 | H62: 10 | I62: 840 | J62: 10 | K62: 524 | L62: 4 | M62: 117 | N62: 3 | O62: 226 | P62: 0 | Q62: A
B63: 5 | C63: 2,489 | D63: 36 | E63: 89 | F63: 2 | G63: 584 | H63: 10 | I63: 890 | J63: 11 | K63: 545 | L63: 9 | M63: 119 | N63: 0 | O63: 262 | P63: 3 | Q63: M
B64: 6 | C64: 2,711 | D64: 27 | E64: 96 | F64: 2 | G64: 617 | H64: 8 | I64: 898 | J64: 13 | K64: 597 | L64: 1 | M64: 147 | N64: 1 | O64: 357 | P64: 2 | Q64: J
B65: 7 | C65: 3,588 | D65: 43 | E65: 105 | F65: 2 | G65: 732 | H65: 12 | I65: 1,141 | J65: 13 | K65: 822 | L65: 10 | M65: 270 | N65: 3 | O65: 518 | P65: 3 | Q65: J
B66: 8 | C66: 3,198 | D66: 19 | E66: 69 | F66: 1 | G66: 630 | H66: 5 | I66: 1,101 | J66: 9 | K66: 761 | L66: 2 | M66: 225 | N66: 1 | O66: 411 | P66: 0 | Q66: A
B67: 9 | C67: 2,482 | D67: 16 | E67: 57 | F67: 1 | G67: 481 | H67: 4 | I67: 804 | J67: 5 | K67: 619 | L67: 4 | M67: 164 | N67: 0 | O67: 357 | P67: 2 | Q67: S
B68: 10 | C68: 3,407 | D68: 29 | E68: 55 | F68: 1 | G68: 573 | H68: 11 | I68: 1,115 | J68: 10 | K68: 876 | L68: 4 | M68: 231 | N68: 0 | O68: 557 | P68: 4 | Q68: O
B69: 11 | C69: 3,244 | D69: 39 | E69: 63 | F69: 3 | G69: 585 | H69: 14 | I69: 1,056 | J69: 9 | K69: 775 | L69: 5 | M69: 211 | N69: 1 | O69: 554 | P69: 9 | Q69: N
B70: 12 | C70: 4,483 | D70: 45 | E70: 108 | F70: 2 | G70: 767 | H70: 9 | I70: 1,376 | J70: 17 | K70: 1,039 | L70: 8 | M70: 375 | N70: 2 | O70: 820 | P70: 7 | Q70: D
A72: 2008 | B72: 1 | C72: =E72+G72+I72+K72+M72+O72 -> 5,863 | D72: 38 | E72: 161 | F72: 4 | G72: 1,078 | H72: 7 | I72: 1,698 | J72: 14 | K72: 1,381 | L72: 8 | M72: 475 | N72: 1 | O72: 1,071 | P72: 4 | Q72: J | R72: 2008
B73: 2 | C73: 4,947 | D73: 33 | E73: 134 | F73: 3 | G73: 892 | H73: 8 | I73: 1,446 | J73: 9 | K73: 1,237 | L73: 7 | M73: 374 | N73: 2 | O73: 865 | P73: 3 | Q73: F
B74: 3 | C74: 3,891 | D74: 36 | E74: 93 | F74: 1 | G74: 666 | H74: 8 | I74: 1,214 | J74: 12 | K74: 917 | L74: 7 | M74: 258 | N74: 4 | O74: 743 | P74: 2 | Q74: M
B75: 4 | C75: 5,071 | D75: 56 | E75: 115 | F75: 3 | G75: 824 | H75: 14 | I75: 1,515 | J75: 16 | K75: 1,272 | L75: 10 | M75: 365 | N75: 6 | O75: 980 | P75: 9 | Q75: A
B76: 5 | C76: 4,062 | D76: 45 | E76: 64 | F76: 2 | G76: 541 | H76: 6 | I76: 1,214 | J76: 9 | K76: 992 | L76: 17 | M76: 310 | N76: 4 | O76: 941 | P76: 6 | Q76: M
B77: 6 | C77: 3,726 | D77: 44 | E77: 58 | F77: 1 | G77: 471 | H77: 6 | I77: 1,066 | J77: 21 | K77: 975 | L77: 5 | M77: 327 | N77: 5 | O77: 828 | P77: 7 | Q77: J
B78: 7 | C78: 4,208 | D78: 35 | E78: 78 | F78: 0 | G78: 520 | H78: 4 | I78: 1,291 | J78: 22 | K78: 1,065 | L78: 5 | M78: 374 | N78: 2 | O78: 880 | P78: 2 | Q78: J
B79: 8 | C79: 4,297 | D79: 36 | E79: 66 | F79: 2 | G79: 582 | H79: 6 | I79: 1,132 | J79: 12 | K79: 1,150 | L79: 7 | M79: 444 | N79: 2 | O79: 922 | P79: 9 | Q79: A
B80: 9 | C80: 2,748 | D80: 33 | E80: 46 | F80: 2 | G80: 398 | H80: 7 | I80: 733 | J80: 12 | K80: 708 | L80: 10 | M80: 279 | N80: 0 | O80: 583 | P80: 2 | Q80: S
B81: 10 | C81: 1,836 | D81: 16 | E81: 32 | F81: 1 | G81: 273 | H81: 4 | I81: 501 | J81: 6 | K81: 489 | L81: 3 | M81: 171 | N81: 0 | O81: 370 | P81: 2 | Q81: O
B82: 11 | C82: 835 | D82: 8 | E82: 17 | F82: 1 | G82: 134 | H82: 1 | I82: 251 | J82: 3 | K82: 233 | L82: 2 | M82: 62 | N82: 0 | O82: 138 | P82: 1 | Q82: N
B83: 12 | C83: 435 | D83: 6 | E83: 16 | F83: 0 | G83: 93 | H83: 3 | I83: 127 | J83: 1 | K83: 118 | L83: 1 | M83: 16 | N83: 0 | O83: 65 | P83: 0 | Q83: D
A85: 2009 | B85: 1 | C85: =E85+G85+I85+K85+M85+O85 -> 351 | D85: 2 | E85: 12 | F85: 0 | G85: 67 | H85: 1 | I85: 116 | J85: 0 | K85: 64 | L85: 0 | M85: 21 | N85: 0 | O85: 70 | P85: 1 | Q85: J | R85: 2009
B86: 2 | C86: 933 | D86: 18 | E86: 42 | F86: 1 | G86: 194 | H86: 2 | I86: 320 | J86: 12 | K86: 200 | L86: 3 | M86: 64 | N86: 0 | O86: 114 | P86: 0 | Q86: F
B87: 3 | C87: 2,976 | D87: 34 | E87: 116 | F87: 3 | G87: 668 | H87: 9 | I87: 914 | J87: 12 | K87: 582 | L87: 6 | M87: 283 | N87: 0 | O87: 412 | P87: 5 | Q87: M
B88: 4 | C88: 4,551 | D88: 69 | E88: 172 | F88: 5 | G88: 1,052 | H88: 17 | I88: 1,324 | J88: 23 | K88: 849 | L88: 14 | M88: 446 | N88: 4 | O88: 708 | P88: 7 | Q88: A
B89: 5 | C89: 4,359 | D89: 79 | E89: 175 | F89: 5 | G89: 862 | H89: 14 | I89: 1,298 | J89: 24 | K89: 856 | L89: 13 | M89: 471 | N89: 13 | O89: 696 | P89: 10 | Q89: M
B90: 6 | C90: 4,845 | D90: 69 | E90: 251 | F90: 5 | G90: 1,146 | H90: 18 | I90: 1,345 | J90: 19 | K90: 1,004 | L90: 17 | M90: 421 | N90: 4 | O90: 678 | P90: 6 | Q90: J
B91: 7 | C91: 4,509 | D91: 48 | E91: 179 | F91: 3 | G91: 1,076 | H91: 13 | I91: 1,340 | J91: 17 | K91: 969 | L91: 9 | M91: 351 | N91: 4 | O91: 595 | P91: 2 | Q91: J
B92: 8 | C92: 4,848 | D92: 68 | E92: 162 | F92: 6 | G92: 960 | H92: 23 | I92: 1,448 | J92: 23 | K92: 1,080 | L92: 8 | M92: 427 | N92: 1 | O92: 771 | P92: 6 | Q92: A
B93: 9 | C93: 6,591 | D93: 99 | E93: 201 | F93: 6 | G93: 1,269 | H93: 15 | I93: 1,992 | J93: 36 | K93: 1,445 | L93: 20 | M93: 626 | N93: 10 | O93: 1,058 | P93: 11 | Q93: S
B94: 10 | C94: 9,478 | D94: 121 | E94: 229 | F94: 5 | G94: 1,690 | H94: 35 | I94: 2,737 | J94: 37 | K94: 2,159 | L94: 22 | M94: 977 | N94: 3 | O94: 1,686 | P94: 20 | Q94: O
B95: 11 | C95: 8,775 | D95: 130 | E95: 229 | F95: 8 | G95: 1,531 | H95: 27 | I95: 2,538 | J95: 32 | K95: 1,927 | L95: 34 | M95: 931 | N95: 9 | O95: 1,618 | P95: 19 | Q95: N
B96: 12 | C96: 6,883 | D96: 109 | E96: 183 | F96: 7 | G96: 1,336 | H96: 32 | I96: 2,118 | J96: 33 | K96: 1,442 | L96: 17 | M96: 697 | N96: 13 | O96: 1,107 | P96: 8 | Q96: D
A98: 2010 | B98: 1 | C98: =E98+G98+I98+K98+M98+O98 -> 3,768 | D98: 54 | E98: 111 | F98: 2 | G98: 743 | H98: 15 | I98: 1,212 | J98: 12 | K98: 870 | L98: 14 | M98: 357 | N98: 4 | O98: 475 | P98: 6 | Q98: J | R98: 2010
B99: 2 | C99: 3,904 | D99: 71 | E99: 121 | F99: 6 | G99: 834 | H99: 18 | I99: 1,279 | J99: 23 | K99: 849 | L99: 17 | M99: 329 | N99: 3 | O99: 491 | P99: 3 | Q99: F
B100: 3 | C100: 3,293 | D100: 93 | E100: 113 | F100: 3 | G100: 722 | H100: 29 | I100: 1,097 | J100: 33 | K100: 674 | L100: 19 | M100: 253 | N100: 6 | O100: 433 | P100: 5 | Q100: M
B101: 4 | C101: 2,631 | D101: 112 | E101: 91 | F101: 5 | G101: 613 | H101: 24 | I101: 812 | J101: 30 | K101: 558 | L101: 24 | M101: 178 | N101: 8 | O101: 379 | P101: 22 | Q101: A
B102: 5 | C102: 2,339 | D102: 117 | E102: 107 | F102: 4 | G102: 513 | H102: 25 | I102: 726 | J102: 44 | K102: 461 | L102: 21 | M102: 220 | N102: 12 | O102: 312 | P102: 11 | Q102: M
B103: 6 | C103: 3,671 | D103: 264 | E103: 217 | F103: 17 | G103: 804 | H103: 59 | I103: 1,015 | J103: 74 | K103: 739 | L103: 52 | M103: 330 | N103: 27 | O103: 566 | P103: 34 | Q103: J
B104: 7 | C104: 9,792 | D104: 597 | E104: 736 | F104: 51 | G104: 2,157 | H104: 150 | I104: 2,657 | J104: 145 | K104: 1,786 | L104: 106 | M104: 935 | N104: 48 | O104: 1,521 | P104: 96 | Q104: J
B105: 8 | C105: 8,864 | D105: 517 | E105: 699 | F105: 40 | G105: 1,666 | H105: 119 | I105: 2,261 | J105: 101 | K105: 1,754 | L105: 109 | M105: 895 | N105: 53 | O105: 1,589 | P105: 95 | Q105: A
B106: 9 | C106: 5,043 | D106: 263 | E106: 198 | F106: 17 | G106: 966 | H106: 57 | I106: 1,423 | J106: 65 | K106: 1,106 | L106: 58 | M106: 454 | N106: 23 | O106: 895 | P106: 42 | Q106: S
B107: 10 | C107: 4,338 | D107: 243 | E107: 326 | F107: 24 | G107: 820 | H107: 41 | I107: 1,286 | J107: 70 | K107: 958 | L107: 51 | M107: 311 | N107: 11 | O107: 638 | P107: 45 | Q107: O
B108: 11 | C108: 4,717 | D108: 273 | E108: 313 | F108: 25 | G108: 1,047 | H108: 63 | I108: 1,416 | J108: 66 | K108: 1,085 | L108: 70 | M108: 281 | N108: 14 | O108: 575 | P108: 35 | Q108: N
B109: 12 | C109: 5,518 | D109: 333 | E109: 166 | F109: 15 | G109: 1,141 | H109: 74 | I109: 1,775 | J109: 105 | K109: 1,327 | L109: 76 | M109: 349 | N109: 15 | O109: 761 | P109: 49 | Q109: D
A111: 2011 | B111: 1 | C111: =E111+G111+I111+K111+M111+O111 -> 4,454 | D111: 238 | E111: 114 | F111: 12 | G111: 1,027 | H111: 53 | I111: 1,463 | J111: 83 | K111: 991 | L111: 48 | M111: 313 | N111: 17 | O111: 546 | P111: 27 | Q111: J | R111: 2011
B112: 2 | C112: 5,953 | D112: 323 | E112: 192 | F112: 8 | G112: 1,300 | H112: 66 | I112: 1,863 | J112: 91 | K112: 1,427 | L112: 84 | M112: 423 | N112: 25 | O112: 748 | P112: 49 | Q112: F
B113: 3 | C113: 7,742 | D113: 515 | E113: 238 | F113: 19 | G113: 1,648 | H113: 112 | I113: 2,365 | J113: 157 | K113: 1,760 | L113: 112 | M113: 557 | N113: 33 | O113: 1,173 | P113: 81 | Q113: M
B114: 4 | C114: 7,909 | D114: 558 | E114: 229 | F114: 24 | G114: 1,732 | H114: 127 | I114: 2,416 | J114: 153 | K114: 1,735 | L114: 135 | M114: 578 | N114: 28 | O114: 1,218 | P114: 90 | Q114: A
B115: 5 | C115: 6,571 | D115: 572 | E115: 207 | F115: 17 | G115: 1,376 | H115: 130 | I115: 1,980 | J115: 164 | K115: 1,548 | L115: 133 | M115: 449 | N115: 42 | O115: 1,011 | P115: 86 | Q115: M
B116: 6 | C116: 6,017 | D116: 517 | E116: 196 | F116: 17 | G116: 1,252 | H116: 105 | I116: 1,844 | J116: 152 | K116: 1,308 | L116: 116 | M116: 439 | N116: 31 | O116: 978 | P116: 95 | Q116: J
B117: 7 | C117: 6,222 | D117: 702 | E117: 175 | F117: 19 | G117: 1,328 | H117: 146 | I117: 1,856 | J117: 180 | K117: 1,418 | L117: 184 | M117: 382 | N117: 49 | O117: 1,062 | P117: 124 | Q117: J
B118: 8 | C118: 6,088 | D118: 699 | E118: 170 | F118: 16 | G118: 1,237 | H118: 128 | I118: 1,768 | J118: 155 | K118: 1,327 | L118: 163 | M118: 467 | N118: 75 | O118: 1,119 | P118: 161 | Q118: A
B119: 9 | C119: 9,633 | D119: 1,432 | E119: 319 | F119: 55 | G119: 1,924 | H119: 267 | I119: 2,723 | J119: 367 | K119: 1,870 | L119: 233 | M119: 767 | N119: 140 | O119: 2,031 | P119: 370 | Q119: S
B120: 10 | C120: 11,331 | D120: 1,967 | E120: 305 | F120: 53 | G120: 2,208 | H120: 326 | I120: 3,339 | J120: 525 | K120: 2,263 | L120: 403 | M120: 880 | N120: 198 | O120: 2,336 | P120: 463 | Q120: O
B121: 11 | C121: 10,188 | D121: 1,686 | E121: 376 | F121: 61 | G121: 1,977 | H121: 302 | I121: 2,857 | J121: 440 | K121: 2,219 | L121: 343 | M121: 849 | N121: 165 | O121: 1,910 | P121: 375 | Q121: N
B122: 12 | C122: 11,397 | D122: 1,475 | E122: 621 | F122: 83 | G122: 2,134 | H122: 284 | I122: 3,307 | J122: 385 | K122: 2,444 | L122: 276 | M122: 770 | N122: 129 | O122: 2,122 | P122: 319 | Q122: D
A124: 2012 | B124: 1 | C124: =E124+G124+I124+K124+M124+O124 -> 2,665 | D124: 341 | E124: 601 | F124: 70 | G124: 515 | H124: 72 | I124: 689 | J124: 90 | K124: 452 | L124: 68 | M124: 113 | N124: 7 | O124: 295 | P124: 33 | Q124: J | R124: 2012
B125: 2 | C125: 7,393 | D125: 1,020 | E125: 2,829 | F125: 402 | G125: 1,203 | H125: 167 | I125: 1,537 | J125: 207 | K125: 966 | L125: 141 | M125: 265 | N125: 28 | O125: 592 | P125: 75 | Q125: F
B126: 3 | C126: 9,605 | D126: 1,443 | E126: 3,290 | F126: 464 | G126: 1,558 | H126: 260 | I126: 2,038 | J126: 327 | K126: 1,389 | L126: 215 | M126: 383 | N126: 56 | O126: 946 | P126: 121 | Q126: M
B127: 4 | C127: 7,795 | D127: 1,146 | E127: 2,022 | F127: 316 | G127: 1,600 | H127: 239 | I127: 1,933 | J127: 271 | K127: 1,264 | L127: 187 | M127: 292 | N127: 43 | O127: 684 | P127: 90 | Q127: A
B128: 5 | C128: 9,506 | D128: 1,575 | E128: 5,152 | F128: 947 | G128: 1,232 | H128: 186 | I128: 1,480 | J128: 202 | K128: 997 | L128: 138 | M128: 218 | N128: 38 | O128: 427 | P128: 63 | Q128: M
B129: 6 | C129: 9,148 | D129: 1,687 | E129: 6,292 | F129: 1,143 | G129: 787 | H129: 143 | I129: 959 | J129: 179 | K129: 654 | L129: 123 | M129: 162 | N129: 42 | O129: 294 | P129: 58 | Q129: J
B130: 7 | C130: 8,754 | D130: 1,745 | E130: 1,576 | F130: 330 | G130: 1,995 | H130: 410 | I130: 2,500 | J130: 473 | K130: 1,560 | L130: 296 | M130: 375 | N130: 73 | O130: 748 | P130: 163 | Q130: J
B131: 8 | C131: 7,886 | D131: 1,676 | E131: 912 | F131: 206 | G131: 2,094 | H131: 447 | I131: 2,473 | J131: 511 | K131: 1,462 | L131: 309 | M131: 299 | N131: 56 | O131: 647 | P131: 146 | Q131: A
B132: 9 | C132: 6,517 | D132: 1,512 | E132: 990 | F132: 239 | G132: 1,802 | H132: 459 | I132: 2,039 | J132: 437 | K132: 1,080 | L132: 246 | M132: 193 | N132: 38 | O132: 414 | P132: 94 | Q132: S
B133: 10 | C133: 9,410 | D133: 2,041 | E133: 1,520 | F133: 347 | G133: 2,733 | H133: 589 | I133: 2,792 | J133: 604 | K133: 1,512 | L133: 316 | M133: 321 | N133: 62 | O133: 532 | P133: 123 | Q133: O
B134: 11 | C134: 13,525 | D134: 2,917 | E134: 4,449 | F134: 939 | G134: 3,225 | H134: 696 | I134: 3,155 | J134: 675 | K134: 1,722 | L134: 356 | M134: 316 | N134: 72 | O134: 659 | P134: 180 | Q134: N
B135: 12 | C135: 18,746 | D135: 4,125 | E135: 6,467 | F135: 1,515 | G135: 4,184 | H135: 892 | I135: 4,214 | J135: 926 | K135: 2,310 | L135: 433 | M135: 585 | N135: 150 | O135: 986 | P135: 208 | Q135: D
A137: 2013 | B137: 1 | C137: =E137+G137+I137+K137+M137+O137 -> 6,851 | D137: 1,398 | E137: 2,119 | F137: 451 | G137: 1,744 | H137: 359 | I137: 1,649 | J137: 313 | K137: 813 | L137: 158 | M137: 200 | N137: 42 | O137: 327 | P137: 75 | Q137: J | R137: 2013
B138: 2 | C138: 11,085 | D138: 2,545 | E138: 2,795 | F138: 714 | G138: 3,117 | H138: 731 | I138: 2,799 | J138: 593 | K138: 1,493 | L138: 311 | M138: 342 | N138: 73 | O138: 539 | P138: 124 | Q138: F
B139: 3 | C139: 10,810 | D139: 2,841 | E139: 4,199 | F139: 1,142 | G139: 2,391 | H139: 603 | I139: 2,257 | J139: 582 | K139: 1,304 | L139: 350 | M139: 251 | N139: 61 | O139: 410 | P139: 103 | Q139: M
B140: 4 | C140: 16,644 | D140: 5,080 | E140: 2,700 | F140: 885 | G140: 5,283 | H140: 1,685 | I140: 4,850 | J140: 1,367 | K140: 2,437 | L140: 699 | M140: 527 | N140: 171 | O140: 846 | P140: 272 | Q140: A
B141: 5 | C141: 16,470 | D141: 5,512 | E141: 4,034 | F141: 1,442 | G141: 4,766 | H141: 1,595 | I141: 4,289 | J141: 1,356 | K141: 2,188 | L141: 701 | M141: 459 | N141: 161 | O141: 734 | P141: 256 | Q141: M
B142: 6 | C142: 22,400 | D142: 7,434 | E142: 4,400 | F142: 1,449 | G142: 7,056 | H142: 2,408 | I142: 5,976 | J142: 1,903 | K142: 3,208 | L142: 1,033 | M142: 611 | N142: 214 | O142: 1,149 | P142: 427 | Q142: J
B143: 7 | C143: 10,202 | D143: 2,960 | E143: 2,981 | F143: 884 | G143: 2,803 | H143: 821 | I143: 2,531 | J143: 702 | K143: 1,172 | L143: 334 | M143: 277 | N143: 83 | O143: 437 | P143: 136 | Q143: J
B144: 8 | C144: 6,365 | D144: 1,949 | E144: 1,200 | F144: 426 | G144: 2,086 | H144: 647 | I144: 1,717 | J144: 497 | K144: 900 | L144: 235 | M144: 170 | N144: 58 | O144: 292 | P144: 86 | Q144: A
B145: 9 | C145: 4,101 | D145: 1,243 | E145: 779 | F145: 226 | G145: 1,273 | H145: 407 | I145: 1,155 | J145: 330 | K145: 618 | L145: 189 | M145: 91 | N145: 21 | O145: 185 | P145: 71 | Q145: S
B146: 10 | C146: 4,716 | D146: 1,518 | E146: 553 | F146: 183 | G146: 1,494 | H146: 525 | I146: 1,500 | J146: 466 | K146: 816 | L146: 227 | M146: 127 | N146: 32 | O146: 226 | P146: 85 | Q146: O
B147: 11 | C147: 3,987 | D147: 1,317 | E147: 608 | F147: 227 | G147: 1,106 | H147: 395 | I147: 1,293 | J147: 359 | K147: 633 | L147: 208 | M147: 135 | N147: 48 | O147: 212 | P147: 80 | Q147: N
B148: 12 | C148: 3,736 | D148: 1,283 | E148: 903 | F148: 313 | G148: 857 | H148: 301 | I148: 990 | J148: 349 | K148: 639 | L148: 205 | M148: 119 | N148: 37 | O148: 229 | P148: 79 | Q148: D
A150: 2014 | B150: 1 | C150: =E150+G150+I150+K150+M150+O150 -> 1,639 | D150: 557 | E150: 387 | F150: 137 | G150: 374 | H150: 132 | I150: 487 | J150: 180 | K150: 260 | L150: 68 | M150: 40 | N150: 7 | O150: 91 | P150: 33 | Q150: J | R150: 2014
B151: 2 | C151: 1,775 | D151: 756 | E151: 490 | F151: 209 | G151: 438 | H151: 196 | I151: 467 | J151: 201 | K151: 247 | L151: 88 | M151: 55 | N151: 24 | O151: 79 | P151: 37 | Q151: F
B152: 3 | C152: 1,825 | D152: 856 | E152: 587 | F152: 263 | G152: 460 | H152: 233 | I152: 419 | J152: 198 | K152: 257 | L152: 110 | M152: 34 | N152: 13 | O152: 68 | P152: 39 | Q152: M
B153: 4 | C153: 3,394 | D153: 1,922 | E153: 802 | F153: 370 | G153: 1,017 | H153: 617 | I153: 811 | J153: 473 | K153: 455 | L153: 261 | M153: 98 | N153: 64 | O153: 212 | P153: 137 | Q153: A
B154: 5 | C154: 4,974 | D154: 3,249 | E154: 681 | F154: 378 | G154: 1,591 | H154: 1,063 | I154: 1,371 | J154: 903 | K154: 718 | L154: 493 | M154: 204 | N154: 134 | O154: 408 | P154: 279 | Q154: M
B155: 6 | C155: 7,878 | D155: 5,257 | E155: 852 | F155: 526 | G155: 2,492 | H155: 1,682 | I155: 2,192 | J155: 1,438 | K155: 1,286 | L155: 882 | M155: 301 | N155: 218 | O155: 754 | P155: 511 | Q155: J
A156: 2014 | B156: 7 | C156: 7,984 | D156: 5,345 | E156: 936 | F156: 604 | G156: 2,628 | H156: 1,761 | I156: 2,070 | J156: 1,380 | K156: 1,295 | L156: 871 | M156: 318 | N156: 213 | O156: 738 | P156: 515 | Q156: J | R156: 2014
B157: 8 | C157: 8,507 | D157: 5,941 | E157: 844 | F157: 579 | G157: 2,717 | H157: 1,907 | I157: 2,384 | J157: 1,642 | K157: 1,426 | L157: 1,019 | M157: 291 | N157: 207 | O157: 845 | P157: 586 | Q157: A
B158: 9 | C158: 8,022 | D158: 5,728 | E158: 885 | F158: 642 | G158: 2,614 | H158: 1,849 | I158: 2,281 | J158: 1,625 | K158: 1,178 | L158: 854 | M158: 316 | N158: 215 | O158: 747 | P158: 542 | Q158: S
B159: 10 | C159: 11,736 | D159: 8,904 | E159: 1,230 | F159: 921 | G159: 3,943 | H159: 3,023 | I159: 3,150 | J159: 2,419 | K159: 1,639 | L159: 1,209 | M159: 751 | N159: 567 | O159: 1,023 | P159: 765 | Q159: O
B160: 11 | C160: 12,603 | D160: 9,730 | E160: 1,276 | F160: 986 | G160: 4,253 | H160: 3,302 | I160: 3,287 | J160: 2,522 | K160: 1,628 | L160: 1,261 | M160: 900 | N160: 705 | O160: 1,259 | P160: 955 | Q160: N
B161: 12 | C161: 13,360 | D161: 10,497 | E161: 1,270 | F161: 1,003 | G161: 4,395 | H161: 3,474 | I161: 3,442 | J161: 2,728 | K161: 1,832 | L161: 1,433 | M161: 1,086 | N161: 839 | O161: 1,336 | P161: 1,020 | Q161: D
A163: 2015 | B163: 1 | C163: =E163+G163+I163+K163+M163+O163 -> 7,802 | D163: 6,181 | E163: 816 | F163: 637 | G163: 2,562 | H163: 2,077 | I163: 2,080 | J163: 1,625 | K163: 1,057 | L163: 830 | M163: 595 | N163: 475 | O163: 691 | P163: 537 | Q163: J | R163: 2015
B164: 2 | C164: 11,032 | D164: 9,127 | E164: 1,011 | F164: 824 | G164: 3,977 | H164: 3,333 | I164: 3,050 | J164: 2,524 | K164: 1,459 | L164: 1,198 | M164: 848 | N164: 691 | O164: 687 | P164: 557 | Q164: F
B165: 3 | C165: 11,130 | D165: 9,252 | E165: 1,105 | F165: 915 | G165: 3,897 | H165: 3,270 | I165: 3,038 | J165: 2,523 | K165: 1,537 | L165: 1,256 | M165: 812 | N165: 686 | O165: 740 | P165: 602 | Q165: M
B166: 4 | C166: 18,789 | D166: 16,223 | E166: 1,845 | F166: 1,560 | G166: 7,020 | H166: 6,119 | I166: 4,955 | J166: 4,244 | K166: 2,512 | L166: 2,175 | M166: 1,295 | N166: 1,131 | O166: 1,161 | P166: 994 | Q166: A
B167: 5 | C167: 18,800 | D167: 16,426 | E167: 1,750 | F167: 1,528 | G167: 6,813 | H167: 5,979 | I167: 5,064 | J167: 4,447 | K167: 2,475 | L167: 2,144 | M167: 1,429 | N167: 1,240 | O167: 1,269 | P167: 1,089 | Q167: M
B168: 6 | C168: 23,312 | D168: 20,692 | E168: 2,145 | F168: 1,892 | G168: 8,512 | H168: 7,595 | I168: 6,015 | J168: 5,318 | K168: 3,179 | L168: 2,826 | M168: 1,774 | N168: 1,571 | O168: 1,688 | P168: 1,490 | Q168: J
B169: 7 | C169: 12,940 | D169: 11,453 | E169: 1,338 | F169: 1,192 | G169: 4,616 | H169: 4,096 | I169: 3,469 | J169: 3,078 | K169: 1,738 | L169: 1,518 | M169: 917 | N169: 814 | O169: 863 | P169: 755 | Q169: J
B170: 8 | C170: 7,951 | D170: 7,051 | E170: 807 | F170: 731 | G170: 2,821 | H170: 2,493 | I170: 2,163 | J170: 1,926 | K170: 1,085 | L170: 942 | M170: 588 | N170: 523 | O170: 487 | P170: 435 | Q170: A
B171: 9 | C171: 5,624 | D171: 5,061 | E171: 642 | F171: 576 | G171: 1,928 | H171: 1,764 | I171: 1,532 | J171: 1,368 | K171: 774 | L171: 686 | M171: 428 | N171: 371 | O171: 320 | P171: 296 | Q171: S
B172: 10 | C172: 5,984 | D172: 5,490 | E172: 670 | F172: 623 | G172: 2,132 | H172: 1,964 | I172: 1,658 | J172: 1,515 | K172: 743 | L172: 680 | M172: 420 | N172: 387 | O172: 360 | P172: 321 | Q172: O
B173: 11 | C173: 9,316 | D173: 8,739 | E173: 941 | F173: 870 | G173: 3,384 | H173: 3,194 | I173: 2,480 | J173: 2,342 | K173: 1,251 | L173: 1,153 | M173: 645 | N173: 601 | O173: 615 | P173: 579 | Q173: N
B174: 12 | C174: 12,817 | D174: 12,062 | E174: 1,440 | F174: 1,349 | G174: 4,563 | H174: 4,304 | I174: 3,423 | J174: 3,235 | K174: 1,655 | L174: 1,548 | M174: 834 | N174: 781 | O174: 901 | P174: 846 | Q174: D
A176: 2016 | B176: 1 | C176: 7,807 | D176: 7,359 | E176: 1,082 | F176: 1,009 | G176: 2,879 | H176: 2,730 | I176: 1,998 | J176: 1,882 | K176: 957 | L176: 904 | M176: 472 | N176: 438 | O176: 420 | P176: 396 | Q176: J | R176: 2016
B177: 2 | C177: 6,329 | D177: 6,025 | E177: 790 | F177: 754 | G177: 2,379 | H177: 2,279 | I177: 1,625 | J177: 1,555 | K177: 794 | L177: 745 | M177: 409 | N177: 380 | O177: 333 | P177: 312 | Q177: F
B178: 3 | C178: 7,447 | D178: 7,202 | E178: 1,304 | F178: 1,256 | G178: 2,739 | H178: 2,663 | I178: 1,735 | J178: 1,677 | K178: 842 | L178: 811 | M178: 441 | N178: 427 | O178: 385 | P178: 369 | Q178: M
B179: 4 | C179: =E179+G179+I179+K179+M179+O179 -> 7,617 | D179: 7,438 | E179: 1,463 | F179: 1,430 | G179: 2,782 | H179: 2,721 | I179: 1,746 | J179: 1,708 | K179: 784 | L179: 759 | M179: 434 | N179: 426 | O179: 408 | P179: 395 | Q179: A
B180: 5 | C180: 3,494 | D180: 3,421 | E180: 876 | F180: 856 | G180: 1,187 | H180: 1,166 | I180: 731 | J180: 716 | K180: 359 | L180: 350 | M180: 175 | N180: 171 | O180: 166 | P180: 164 | Q180: M
B181: 6 | C181: 3,512 | D181: 3,468 | E181: 439 | F181: 434 | G181: 1,401 | H181: 1,380 | I181: 951 | J181: 939 | K181: 374 | L181: 371 | M181: 183 | N181: 182 | O181: 165 | P181: 161 | Q181: J
B182: 73) | C182: 913 | D182: 907 | E182: 89 | F182: 88 | G182: 393 | H182: 391 | I182: 239 | J182: 237 | K182: 92 | L182: 91 | M182: 63 | N182: 62 | O182: 38 | P182: 37 | Q182: J
A183: 합계 | C183: 872,093 | D183: =F183+H183+J183+L183+N183+P183 -> 295,009 | E183: 109,743 | F183: 41,217 | G183: 228,842 | H183: 97,263 | I183: 241,365 | J183: 76,707 | K183: 146,656 | L183: 40,351 | M183: 51,266 | N183: 17,531 | O183: 94,220 | P183: 21,940 | Q183: Total
A185: 1) 대출취급일 기준
A186: 2) DTI = 당해 모기지론의 매월 원리금상환액 / 월 소득액 * 100
A187: 3) 평균 DTI(Debt to Income) : 33.8% ('16.7월말 기준)
A189: ※ 자료 : 공사가 금융기관으로부터 양수한 자산

Sheet 11. 대출기간별 대출금액 및 잔액 현황
A1: 11. 대출기간별 대출금액 및 잔액 현황 Bogeumjari(Mortgage) Loan Origination and Outstanding by Loan Terms
A3: 단위 : 억원 | L3: Hundred million won
A4: 연월중1) | C4: 합계 Total | E4: 10년 | G4: 15년 | I4: 20년 | K4: 30년
E5: 10 Years | G5: 15 Years | I5: 20 Years | K5: 30 Years
A6: During | C6: 대출금액 | D6: 대출잔액 | E6: 대출금액 | F6: 대출잔액 | G6: 대출금액 | H6: 대출잔액 | I6: 대출금액 | J6: 대출잔액 | K6: 대출금액 | L6: 대출잔액
C7: Origination | D7: Outstanding | E7: Origination | F7: Outstanding | G7: Origination | H7: Outstanding | I7: Origination | J7: Outstanding | K7: Origination | L7: Outstanding
A8: 2004 | C8: =E8+G8+I8 -> 33,315 | D8: =F8+H8+J8 -> 372 | E8: =SUM(E22:E31) -> 811 | F8: 0 | G8: 3,294 | H8: 32 | I8: 29,210 | J8: 340 | K8: 0 | L8: 0
A9: 2005 | C9: =E9+G9+I9 -> 42,304 | D9: =F9+H9+J9 -> 608 | E9: =SUM(E33:E44) -> 857 | F9: 0 | G9: 4,403 | H9: 44 | I9: 37,044 | J9: 564 | K9: 0 | L9: 0
A10: 2006 | C10: =E10+G10+I10+K10 -> 13,761 | D10: 178 | E10: =SUM(E46:E57) -> 935 | F10: 1 | G10: 3,211 | H10: 31 | I10: 7,262 | J10: 116 | K10: 2,353 | L10: 30
A11: 2007 | C11: 35,684 | D11: 367 | E11: =SUM(E59:E70) -> 5,406 | F11: 19 | G11: 13,950 | H11: 109 | I11: 9,092 | J11: 116 | K11: 7,237 | L11: 122
A12: 2008 | C12: 41,919 | D12: 386 | E12: =SUM(E72:E83) -> 7,295 | F12: 28 | G12: 17,075 | H12: 131 | I12: 8,837 | J12: 89 | K12: 8,712 | L12: 137
A13: 2009 | C13: 59,100 | D13: 847 | E13: =SUM(E85:E96) -> 7,627 | F13: 67 | G13: 28,293 | H13: 326 | I13: 12,117 | J13: 208 | K13: 11,062 | L13: 246
A14: 2010 | C14: 57,879 | D14: 2,938 | E14: =SUM(E98:E109) -> 7,113 | F14: 215 | G14: 25,975 | H14: 1,233 | I14: 10,852 | J14: 537 | K14: 13,938 | L14: 953
A15: 2011 | C15: 93,504 | D15: 10,685 | E15: =SUM(E111:E122) -> 38,663 | F15: 5,079 | G15: 26,666 | H15: 2,652 | I15: 12,377 | J15: 1,240 | K15: 15,798 | L15: 1,714
A16: 2012 | C16: 110,950 | D16: 21,227 | E16: =SUM(E124:E135) -> 53,024 | F16: 9,901 | G16: 27,071 | H16: 5,249 | I16: 13,577 | J16: 2,833 | K16: 17,277 | L16: 3,244
A17: 2013 | C17: 117,367 | D17: 35,081 | E17: =+SUM(E137:E148) -> 48,153 | F17: =+SUM(F137:F148) -> 13,443 | G17: 33,314 | H17: 10,642 | I17: 16,242 | J17: 5,491 | K17: 19,658 | L17: 5,506
A18: 2014 | C18: 83,697 | D18: =F18+H18+J18+L18 -> 58,742 | E18: =+SUM(E150:E161) -> 13,909 | F18: =+SUM(F150:F161) -> 8,461 | G18: 22,332 | H18: 15,285 | I18: 18,590 | J18: 13,671 | K18: 28,867 | L18: 21,325
A19: 2015 | C19: 145,496 | D19: =F19+H19+J19+L19 -> 127,758 | E19: =+SUM(E163:E174) -> 26,882 | F19: =+SUM(F163:F174) -> 21,959 | G19: 40,089 | H19: 34,663 | I19: 26,778 | J19: 23,990 | K19: 51,746 | L19: 47,146
A20: 2016 | C20: 37,119 | D20: =F20+H20+J20+L20 -> 35,820 | E20: =+SUM(E176:E182) -> 6,225 | F20: 5,815 | G20: 7,817 | H20: 7,498 | I20: 7,105 | J20: 6,910 | K20: 15,972 | L20: 15,596
A22: 2004 | B22: 3 | C22: =E22+G22+I22+K22 -> 351 | D22: 3 | E22: 2 | F22: 0 | G22: 41 | H22: 0 | I22: 308 | J22: 3 | K22: 0 | L22: 0
B23: 4 | C23: 3,611 | D23: 30 | E23: 79 | F23: 0 | G23: 466 | H23: 3 | I23: 3,066 | J23: 27 | K23: 0 | L23: 0
B24: 5 | C24: 4,558 | D24: 43 | E24: 108 | F24: 0 | G24: 497 | H24: 4 | I24: 3,953 | J24: 40 | K24: 0 | L24: 0
B25: 6 | C25: 3,944 | D25: 42 | E25: 93 | F25: 0 | G25: 424 | H25: 5 | I25: 3,428 | J25: 37 | K25: 0 | L25: 0
B26: 7 | C26: 3,380 | D26: 31 | E26: 95 | F26: 0 | G26: 346 | H26: 3 | I26: 2,940 | J26: 28 | K26: 0 | L26: 0
B27: 8 | C27: 3,282 | D27: 33 | E27: 94 | F27: 0 | G27: 276 | H27: 2 | I27: 2,913 | J27: 31 | K27: 0 | L27: 0
B28: 9 | C28: 2,891 | D28: 33 | E28: 75 | F28: 0 | G28: 269 | H28: 3 | I28: 2,547 | J28: 29 | K28: 0 | L28: 0
B29: 10 | C29: 3,446 | D29: 40 | E29: 76 | F29: 0 | G29: 283 | H29: 3 | I29: 3,087 | J29: 38 | K29: 0 | L29: 0
B30: 11 | C30: 3,566 | D30: 52 | E30: 88 | F30: 0 | G30: 318 | H30: 4 | I30: 3,160 | J30: 48 | K30: 0 | L30: 0
B31: 12 | C31: 4,286 | D31: 65 | E31: 103 | F31: 0 | G31: 375 | H31: 5 | I31: 3,808 | J31: 59 | K31: 0 | L31: 0
A33: 2005 | B33: 1 | C33: =E33+G33+I33+K33 -> 3,443 | D33: 60 | E33: 77 | F33: 0 | G33: 335 | H33: 5 | I33: 3,032 | J33: 56 | K33: 0 | L33: 0
B34: 2 | C34: 4,840 | D34: 75 | E34: 107 | F34: 0 | G34: 540 | H34: 6 | I34: 4,193 | J34: 69 | K34: 0 | L34: 0
B35: 3 | C35: 6,923 | D35: 98 | E35: 166 | F35: 0 | G35: 753 | H35: 7 | I35: 6,005 | J35: 91 | K35: 0 | L35: 0
B36: 4 | C36: 5,707 | D36: 74 | E36: 117 | F36: 0 | G36: 596 | H36: 6 | I36: 4,994 | J36: 68 | K36: 0 | L36: 0
B37: 5 | C37: 3,927 | D37: 46 | E37: 69 | F37: 0 | G37: 402 | H37: 3 | I37: 3,457 | J37: 43 | K37: 0 | L37: 0
B38: 6 | C38: 3,713 | D38: 60 | E38: 84 | F38: 0 | G38: 374 | H38: 5 | I38: 3,254 | J38: 55 | K38: 0 | L38: 0
B39: 7 | C39: 3,087 | D39: 48 | E39: 57 | F39: 0 | G39: 308 | H39: 2 | I39: 2,722 | J39: 46 | K39: 0 | L39: 0
B40: 8 | C40: 3,165 | D40: 35 | E40: 53 | F40: 0 | G40: 319 | H40: 2 | I40: 2,794 | J40: 33 | K40: 0 | L40: 0
B41: 9 | C41: 2,649 | D41: 40 | E41: 51 | F41: 0 | G41: 284 | H41: 3 | I41: 2,314 | J41: 37 | K41: 0 | L41: 0
B42: 10 | C42: 1,928 | D42: 28 | E42: 38 | F42: 0 | G42: 209 | H42: 2 | I42: 1,682 | J42: 25 | K42: 0 | L42: 0
B43: 11 | C43: 1,436 | D43: 25 | E43: 15 | F43: 0 | G43: 159 | H43: 2 | I43: 1,262 | J43: 23 | K43: 0 | L43: 0
B44: 12 | C44: 1,485 | D44: 19 | E44: 25 | F44: 0 | G44: 124 | H44: 1 | I44: 1,336 | J44: 18 | K44: 0 | L44: 0
A46: 2006 | B46: 1 | C46: =E46+G46+I46+K46 -> 656 | D46: 15 | E46: 11 | F46: 0 | G46: 48 | H46: 0 | I46: 598 | J46: 14 | K46: 0 | L46: 0
B47: 2 | C47: 1,005 | D47: 16 | E47: 13 | F47: 0 | G47: 78 | H47: 0 | I47: 822 | J47: 14 | K47: 91 | L47: 1
B48: 3 | C48: 1,010 | D48: 16 | E48: 15 | F48: 0 | G48: 82 | H48: 2 | I48: 759 | J48: 10 | K48: 155 | L48: 3
B49: 4 | C49: 881 | D49: 12 | E49: 21 | F49: 0 | G49: 84 | H49: 1 | I49: 626 | J49: 10 | K49: 150 | L49: 1
B50: 5 | C50: 736 | D50: 8 | E50: 39 | F50: 0 | G50: 102 | H50: 0 | I50: 460 | J50: 6 | K50: 135 | L50: 1
B51: 6 | C51: 811 | D51: 17 | E51: 56 | F51: 0 | G51: 170 | H51: 2 | I51: 424 | J51: 9 | K51: 161 | L51: 6
B52: 7 | C52: 1,276 | D52: 10 | E52: 143 | F52: 0 | G52: 357 | H52: 3 | I52: 571 | J52: 5 | K52: 206 | L52: 2
B53: 8 | C53: 1,379 | D53: 16 | E53: 157 | F53: 0 | G53: 442 | H53: 5 | I53: 557 | J53: 8 | K53: 223 | L53: 3
B54: 9 | C54: 1,861 | D54: 24 | E54: 185 | F54: 0 | G54: 592 | H54: 8 | I54: 728 | J54: 14 | K54: 355 | L54: 1
B55: 10 | C55: 1,245 | D55: 15 | E55: 86 | F55: 0 | G55: 390 | H55: 3 | I55: 530 | J55: 8 | K55: 240 | L55: 4
B56: 11 | C56: 1,207 | D56: 17 | E56: 64 | F56: 1 | G56: 322 | H56: 3 | I56: 545 | J56: 10 | K56: 275 | L56: 4
B57: 12 | C57: 1,694 | D57: 14 | E57: 145 | F57: 0 | G57: 544 | H57: 2 | I57: 642 | J57: 8 | K57: 363 | L57: 3
A59: 2007 | B59: 1 | C59: =E59+G59+I59+K59 -> 2,408 | D59: 24 | E59: 345 | F59: 1 | G59: 984 | H59: 8 | I59: 709 | J59: 8 | K59: 370 | L59: 7
B60: 2 | C60: 2,762 | D60: 35 | E60: 361 | F60: 2 | G60: 1,222 | H60: 13 | I60: 735 | J60: 15 | K60: 444 | L60: 6
B61: 3 | C61: 2,496 | D61: 25 | E61: 319 | F61: 1 | G61: 1,042 | H61: 9 | I61: 680 | J61: 7 | K61: 454 | L61: 9
B62: 4 | C62: 2,415 | D62: 29 | E62: 260 | F62: 1 | G62: 962 | H62: 7 | I62: 696 | J62: 8 | K62: 497 | L62: 13
B63: 5 | C63: 2,489 | D63: 36 | E63: 324 | F63: 4 | G63: 908 | H63: 9 | I63: 709 | J63: 12 | K63: 548 | L63: 10
B64: 6 | C64: 2,711 | D64: 27 | E64: 425 | F64: 1 | G64: 1,063 | H64: 8 | I64: 653 | J64: 7 | K64: 570 | L64: 10
B65: 7 | C65: 3,588 | D65: 43 | E65: 635 | F65: 3 | G65: 1,329 | H65: 11 | I65: 901 | J65: 16 | K65: 722 | L65: 12
B66: 8 | C66: 3,198 | D66: 19 | E66: 475 | F66: 1 | G66: 1,289 | H66: 8 | I66: 751 | J66: 4 | K66: 684 | L66: 7
B67: 9 | C67: 2,482 | D67: 16 | E67: 371 | F67: 0 | G67: 984 | H67: 5 | I67: 629 | J67: 8 | K67: 498 | L67: 2
B68: 10 | C68: 3,407 | D68: 29 | E68: 532 | F68: 1 | G68: 1,278 | H68: 10 | I68: 787 | J68: 7 | K68: 810 | L68: 12
B69: 11 | C69: 3,244 | D69: 39 | E69: 519 | F69: 1 | G69: 1,182 | H69: 13 | I69: 795 | J69: 13 | K69: 748 | L69: 12
B70: 12 | C70: 4,483 | D70: 45 | E70: 840 | F70: 4 | G70: 1,707 | H70: 8 | I70: 1,046 | J70: 12 | K70: 890 | L70: 21
A72: 2008 | B72: 1 | C72: =E72+G72+I72+K72 -> 5,863 | D72: 38 | E72: 1,156 | F72: 2 | G72: 2,417 | H72: 13 | I72: 1,239 | J72: 11 | K72: 1,051 | L72: 12
B73: 2 | C73: 4,947 | D73: 33 | E73: 824 | F73: 2 | G73: 2,093 | H73: 14 | I73: 1,121 | J73: 6 | K73: 909 | L73: 9
B74: 3 | C74: 3,891 | D74: 36 | E74: 589 | F74: 4 | G74: 1,611 | H74: 14 | I74: 862 | J74: 10 | K74: 829 | L74: 8
B75: 4 | C75: 5,071 | D75: 56 | E75: 749 | F75: 3 | G75: 2,117 | H75: 18 | I75: 1,118 | J75: 11 | K75: 1,087 | L75: 24
B76: 5 | C76: 4,062 | D76: 45 | E76: 530 | F76: 3 | G76: 1,666 | H76: 12 | I76: 882 | J76: 11 | K76: 985 | L76: 18
B77: 6 | C77: 3,726 | D77: 44 | E77: 555 | F77: 4 | G77: 1,465 | H77: 17 | I77: 856 | J77: 10 | K77: 850 | L77: 14
B78: 7 | C78: 4,208 | D78: 35 | E78: 843 | F78: 4 | G78: 1,597 | H78: 11 | I78: 841 | J78: 7 | K78: 928 | L78: 13
B79: 8 | C79: 4,297 | D79: 36 | E79: 896 | F79: 1 | G79: 1,750 | H79: 13 | I79: 784 | J79: 9 | K79: 867 | L79: 13
B80: 9 | C80: 2,748 | D80: 33 | E80: 622 | F80: 2 | G80: 1,053 | H80: 7 | I80: 506 | J80: 8 | K80: 567 | L80: 15
B81: 10 | C81: 1,836 | D81: 16 | E81: 346 | F81: 1 | G81: 760 | H81: 7 | I81: 357 | J81: 4 | K81: 373 | L81: 4
B82: 11 | C82: 835 | D82: 8 | E82: 119 | F82: 0 | G82: 373 | H82: 2 | I82: 176 | J82: 2 | K82: 167 | L82: 4
B83: 12 | C83: 435 | D83: 6 | E83: 67 | F83: 0 | G83: 172 | H83: 3 | I83: 97 | J83: 0 | K83: 99 | L83: 2
A85: 2009 | B85: 1 | C85: =E85+G85+I85+K85 -> 351 | D85: 2 | E85: 52 | F85: 0 | G85: 120 | H85: 0 | I85: 86 | J85: 2 | K85: 92 | L85: 0
B86: 2 | C86: 933 | D86: 18 | E86: 91 | F86: 0 | G86: 335 | H86: 3 | I86: 231 | J86: 3 | K86: 276 | L86: 12
B87: 3 | C87: 2,976 | D87: 34 | E87: 117 | F87: 1 | G87: 1,381 | H87: 15 | I87: 711 | J87: 9 | K87: 767 | L87: 10
B88: 4 | C88: 4,551 | D88: 69 | E88: 98 | F88: 1 | G88: 2,317 | H88: 22 | I88: 1,102 | J88: 20 | K88: 1,034 | L88: 27
B89: 5 | C89: 4,359 | D89: 79 | E89: 126 | F89: 1 | G89: 2,175 | H89: 37 | I89: 1,096 | J89: 17 | K89: 961 | L89: 24
B90: 6 | C90: 4,845 | D90: 69 | E90: 305 | F90: 4 | G90: 2,445 | H90: 30 | I90: 1,092 | J90: 17 | K90: 1,003 | L90: 19
B91: 7 | C91: 4,509 | D91: 48 | E91: 471 | F91: 2 | G91: 2,115 | H91: 23 | I91: 1,000 | J91: 16 | K91: 922 | L91: 7
B92: 8 | C92: 4,848 | D92: 68 | E92: 630 | F92: 6 | G92: 2,398 | H92: 24 | I92: 959 | J92: 16 | K92: 861 | L92: 22
B93: 9 | C93: 6,591 | D93: 99 | E93: 1,036 | F93: 6 | G93: 3,287 | H93: 36 | I93: 1,193 | J93: 19 | K93: 1,076 | L93: 39
B94: 10 | C94: 9,478 | D94: 121 | E94: 1,761 | F94: 16 | G94: 4,529 | H94: 46 | I94: 1,715 | J94: 32 | K94: 1,473 | L94: 28
B95: 11 | C95: 8,775 | D95: 130 | E95: 1,730 | F95: 17 | G95: 4,037 | H95: 53 | I95: 1,549 | J95: 31 | K95: 1,459 | L95: 29
B96: 12 | C96: 6,883 | D96: 109 | E96: 1,210 | F96: 14 | G96: 3,153 | H96: 39 | I96: 1,383 | J96: 26 | K96: 1,137 | L96: 31
A98: 2010 | B98: 1 | C98: =E98+G98+I98+K98 -> 3,768 | D98: 54 | E98: 691 | F98: 10 | G98: 1,701 | H98: 18 | I98: 744 | J98: 16 | K98: 632 | L98: 10
B99: 2 | C99: 3,904 | D99: 71 | E99: 716 | F99: 11 | G99: 1,871 | H99: 26 | I99: 713 | J99: 16 | K99: 604 | L99: 18
B100: 3 | C100: 3,293 | D100: 93 | E100: 522 | F100: 7 | G100: 1,501 | H100: 39 | I100: 680 | J100: 25 | K100: 590 | L100: 22
B101: 4 | C101: 2,631 | D101: 112 | E101: 253 | F101: 4 | G101: 1,344 | H101: 60 | I101: 540 | J101: 30 | K101: 494 | L101: 17
B102: 5 | C102: 2,339 | D102: 117 | E102: 157 | F102: 4 | G102: 1,248 | H102: 65 | I102: 488 | J102: 19 | K102: 445 | L102: 28
B103: 6 | C103: 3,671 | D103: 264 | E103: 171 | F103: 4 | G103: 1,942 | H103: 137 | I103: 684 | J103: 50 | K103: 874 | L103: 73
B104: 7 | C104: 9,792 | D104: 597 | E104: 599 | F104: 16 | G104: 4,492 | H104: 268 | I104: 1,845 | J104: 99 | K104: 2,855 | L104: 215
B105: 8 | C105: 8,864 | D105: 517 | E105: 773 | F105: 19 | G105: 4,079 | H105: 236 | I105: 1,563 | J105: 76 | K105: 2,449 | L105: 185
B106: 9 | C106: 5,043 | D106: 263 | E106: 649 | F106: 20 | G106: 2,187 | H106: 101 | I106: 866 | J106: 34 | K106: 1,341 | L106: 107
B107: 10 | C107: 4,338 | D107: 243 | E107: 634 | F107: 24 | G107: 1,711 | H107: 83 | I107: 864 | J107: 44 | K107: 1,129 | L107: 92
B108: 11 | C108: 4,717 | D108: 273 | E108: 877 | F108: 40 | G108: 1,756 | H108: 80 | I108: 855 | J108: 61 | K108: 1,229 | L108: 92
B109: 12 | C109: 5,518 | D109: 333 | E109: 1,071 | F109: 55 | G109: 2,143 | H109: 118 | I109: 1,009 | J109: 66 | K109: 1,296 | L109: 94
A111: 2011 | B111: 1 | C111: =E111+G111+I111+K111 -> 4,454 | D111: 238 | E111: 949 | F111: 46 | G111: 1,761 | H111: 76 | I111: 751 | J111: 48 | K111: 993 | L111: 69
B112: 2 | C112: 5,953 | D112: 323 | E112: 1,571 | F112: 64 | G112: 2,151 | H112: 104 | I112: 930 | J112: 47 | K112: 1,301 | L112: 108
B113: 3 | C113: 7,742 | D113: 515 | E113: 2,696 | F113: 175 | G113: 2,544 | H113: 160 | I113: 1,111 | J113: 65 | K113: 1,391 | L113: 114
B114: 4 | C114: 7,909 | D114: 558 | E114: 3,085 | F114: 218 | G114: 2,422 | H114: 141 | I114: 1,056 | J114: 81 | K114: 1,346 | L114: 118
B115: 5 | C115: 6,571 | D115: 572 | E115: 2,799 | F115: 277 | G115: 1,815 | H115: 135 | I115: 855 | J115: 74 | K115: 1,101 | L115: 86
B116: 6 | C116: 6,017 | D116: 517 | E116: 2,714 | F116: 261 | G116: 1,482 | H116: 115 | I116: 789 | J116: 52 | K116: 1,032 | L116: 89
B117: 7 | C117: 6,222 | D117: 702 | E117: 2,583 | F117: 330 | G117: 1,696 | H117: 176 | I117: 931 | J117: 99 | K117: 1,011 | L117: 98
B118: 8 | C118: 6,088 | D118: 699 | E118: 2,683 | F118: 357 | G118: 1,534 | H118: 158 | I118: 792 | J118: 71 | K118: 1,078 | L118: 113
B119: 9 | C119: 9,633 | D119: 1,432 | E119: 4,609 | F119: 745 | G119: 2,402 | H119: 333 | I119: 1,223 | J119: 158 | K119: 1,400 | L119: 197
B120: 10 | C120: 11,331 | D120: 1,967 | E120: 5,537 | F120: 1,083 | G120: 2,892 | H120: 453 | I120: 1,228 | J120: 185 | K120: 1,673 | L120: 246
B121: 11 | C121: 10,188 | D121: 1,686 | E121: 4,791 | F121: 885 | G121: 2,669 | H121: 399 | I121: 1,186 | J121: 158 | K121: 1,542 | L121: 245
B122: 12 | C122: 11,397 | D122: 1,476 | E122: 4,646 | F122: 638 | G122: 3,298 | H122: 403 | I122: 1,524 | J122: 202 | K122: 1,930 | L122: 233
A124: 2012 | B124: 1 | C124: =E124+G124+I124+K124 -> 2,665 | D124: 341 | E124: 1,153 | F124: 147 | G124: 613 | H124: 61 | I124: 302 | J124: 38 | K124: 598 | L124: 95
B125: 2 | C125: 7,393 | D125: 1,020 | E125: 3,452 | F125: 469 | G125: 1,753 | H125: 248 | I125: 940 | J125: 128 | K125: 1,247 | L125: 175
B126: 3 | C126: 9,605 | D126: 1,443 | E126: 4,688 | F126: 704 | G126: 2,327 | H126: 352 | I126: 1,185 | J126: 184 | K126: 1,404 | L126: 203
B127: 4 | C127: 7,795 | D127: 1,146 | E127: 3,813 | F127: 568 | G127: 1,835 | H127: 263 | I127: 951 | J127: 132 | K127: 1,195 | L127: 183
B128: 5 | C128: 9,506 | D128: 1,575 | E128: 4,694 | F128: 798 | G128: 2,202 | H128: 335 | I128: 1,109 | J128: 209 | K128: 1,501 | L128: 233
B129: 6 | C129: 9,148 | D129: 1,687 | E129: 4,490 | F129: 795 | G129: 2,138 | H129: 401 | I129: 1,085 | J129: 230 | K129: 1,434 | L129: 260
B130: 7 | C130: 8,754 | D130: 1,745 | E130: 4,344 | F130: 860 | G130: 1,952 | H130: 399 | I130: 1,071 | J130: 211 | K130: 1,388 | L130: 275
B131: 8 | C131: 7,886 | D131: 1,676 | E131: 3,659 | F131: 791 | G131: 1,991 | H131: 392 | I131: 991 | J131: 228 | K131: 1,245 | L131: 265
B132: 9 | C132: 6,517 | D132: 1,512 | E132: 3,102 | F132: 682 | G132: 1,520 | H132: 368 | I132: 850 | J132: 196 | K132: 1,045 | L132: 266
B133: 10 | C133: 9,410 | D133: 2,041 | E133: 4,507 | F133: 925 | G133: 2,264 | H133: 521 | I133: 1,173 | J133: 282 | K133: 1,466 | L133: 312
B134: 11 | C134: 13,525 | D134: 2,917 | E134: 6,554 | F134: 1,417 | G134: 3,342 | H134: 718 | I134: 1,551 | J134: 370 | K134: 2,077 | L134: 412
B135: 12 | C135: 18,746 | D135: 4,125 | E135: 8,567 | F135: 1,745 | G135: 5,134 | H135: 1,191 | I135: 2,369 | J135: 625 | K135: 2,675 | L135: 564
A137: 2013 | B137: 1 | C137: =E137+G137+I137+K137 -> 6,851 | D137: 1,398 | E137: 3,348 | F137: 685 | G137: 1,622 | H137: 293 | I137: 850 | J137: 210 | K137: 1,031 | L137: 211
B138: 2 | C138: 11,085 | D138: 2,545 | E138: 5,096 | F138: 1,124 | G138: 2,947 | H138: 683 | I138: 1,395 | J138: 370 | K138: 1,648 | L138: 369
B139: 3 | C139: 10,810 | D139: 2,841 | E139: 4,849 | F139: 1,265 | G139: 3,047 | H139: 814 | I139: 1,334 | J139: 382 | K139: 1,580 | L139: 381
B140: 4 | C140: 16,644 | D140: 5,080 | E140: 8,080 | F140: 2,344 | G140: 4,646 | H140: 1,510 | I140: 1,823 | J140: 625 | K140: 2,095 | L140: 600
B141: 5 | C141: 16,470 | D141: 5,512 | E141: 7,873 | F141: 2,511 | G141: 4,595 | H141: 1,677 | I141: 1,920 | J141: 679 | K141: 2,082 | L141: 644
B142: 6 | C142: 22,400 | D142: 7,434 | E142: 8,986 | F142: 2,726 | G142: 6,902 | H142: 2,500 | I142: 3,013 | J142: 1,122 | K142: 3,498 | L142: 1,088
B143: 7 | C143: 10,202 | D143: 2,960 | E143: 3,717 | F143: 1,040 | G143: 3,052 | H143: 983 | I143: 1,475 | J143: 456 | K143: 1,958 | L143: 482
B144: 8 | C144: 6,365 | D144: 1,949 | E144: 1,994 | F144: 550 | G144: 1,899 | H144: 631 | I144: 1,105 | J144: 401 | K144: 1,367 | L144: 367
B145: 9 | C145: 4,101 | D145: 1,244 | E145: 1,152 | F145: 308 | G145: 1,143 | H145: 339 | I145: 786 | J145: 296 | K145: 1,020 | L145: 302
B146: 10 | C146: 4,716 | D146: 1,518 | E146: 1,292 | F146: 382 | G146: 1,287 | H146: 450 | I146: 898 | J146: 325 | K146: 1,239 | L146: 360
B147: 11 | C147: 3,987 | D147: 1,317 | E147: 940 | F147: 273 | G147: 1,134 | H147: 388 | I147: 800 | J147: 290 | K147: 1,114 | L147: 366
B148: 12 | C148: 3,736 | D148: 1,283 | E148: 826 | F148: 237 | G148: 1,041 | H148: 375 | I148: 843 | J148: 334 | K148: 1,026 | L148: 337
A150: 2014 | B150: 1 | C150: =E150+G150+I150+K150 -> 1,639 | D150: 557 | E150: 385 | F150: 121 | G150: 432 | H150: 156 | I150: 285 | J150: 112 | K150: 536 | L150: 169
B151: 2 | C151: 1,775 | D151: 756 | E151: 336 | F151: 121 | G151: 419 | H151: 181 | I151: 382 | J151: 182 | K151: 639 | L151: 272
B152: 3 | C152: 1,825 | D152: 856 | E152: 303 | F152: 115 | G152: 457 | H152: 219 | I152: 395 | J152: 195 | K152: 670 | L152: 327
B153: 4 | C153: 3,394 | D153: 1,922 | E153: 476 | F153: 213 | G153: 830 | H153: 470 | I153: 751 | J153: 455 | K153: 1,338 | L153: 784
B154: 5 | C154: 4,974 | D154: 3,249 | E154: 668 | F154: 343 | G154: 1,266 | H154: 797 | I154: 1,140 | J154: 781 | K154: 1,900 | L154: 1,328
B155: 6 | C155: 7,878 | D155: 5,257 | E155: 1,149 | F155: 649 | G155: 2,084 | H155: 1,362 | I155: 1,921 | J155: 1,345 | K155: 2,724 | L155: 1,901
A156: 2014 | B156: 7 | C156: 7,984 | D156: 5,345 | E156: 1,202 | F156: 697 | G156: 2,043 | H156: 1,352 | I156: 1,868 | J156: 1,314 | K156: 2,871 | L156: 1,982
B157: 8 | C157: 8,508 | D157: 5,941 | E157: 1,373 | F157: 831 | G157: 2,386 | H157: 1,594 | I157: 1,964 | J157: 1,445 | K157: 2,785 | L157: 2,071
B158: 9 | C158: 8,022 | D158: 5,728 | E158: 1,402 | F158: 865 | G158: 2,215 | H158: 1,549 | I158: 1,877 | J158: 1,399 | K158: 2,528 | L158: 1,915
B159: 10 | C159: 11,736 | D159: 8,904 | E159: 1,987 | F159: 1,284 | G159: 3,166 | H159: 2,310 | I159: 2,628 | J159: 2,093 | K159: 3,955 | L159: 3,217
B160: 11 | C160: 12,603 | D160: 9,730 | E160: 2,137 | F160: 1,454 | G160: 3,448 | H160: 2,578 | I160: 2,647 | J160: 2,107 | K160: 4,372 | L160: 3,590
B161: 12 | C161: 13,360 | D161: 10,497 | E161: 2,492 | F161: 1,768 | G161: 3,587 | H161: 2,718 | I161: 2,731 | J161: 2,242 | K161: 4,550 | L161: 3,769
A163: 2015 | B163: 1 | C163: =E163+G163+I163+K163 -> 7,802 | D163: 6,181 | E163: 1,528 | F163: 1,075 | G163: 2,133 | H163: 1,656 | I163: 1,432 | J163: 1,191 | K163: 2,709 | L163: 2,259
B164: 2 | C164: 11,032 | D164: 9,127 | E164: 2,147 | F164: 1,603 | G164: 3,416 | H164: 2,783 | I164: 1,797 | J164: 1,540 | K164: 3,671 | L164: 3,201
B165: 3 | C165: =E165+G165+I165+K165 -> 11,130 | D165: =F165+H165+J165+L165 -> 9,252 | E165: 2,300 | F165: 1,756 | G165: 3,540 | H165: 2,922 | I165: 1,933 | J165: 1,633 | K165: 3,358 | L165: 2,941
B166: 4 | C166: =E166+G166+I166+K166 -> 18,789 | D166: 16,223 | E166: 4,182 | F166: 3,403 | G166: 5,983 | H166: 5,152 | I166: 3,196 | J166: 2,825 | K166: 5,428 | L166: 4,843
B167: 5 | C167: 18,800 | D167: 16,426 | E167: 4,087 | F167: 3,350 | G167: 5,764 | H167: 5,014 | I167: 3,234 | J167: 2,896 | K167: 5,715 | L167: 5,167
B168: 6 | C168: 23,312 | D168: 20,692 | E168: 4,464 | F168: 3,729 | G168: 6,679 | H168: 5,862 | I168: 4,133 | J168: 3,742 | K168: 8,035 | L168: 7,359
B169: 7 | C169: 12,940 | D169: 11,453 | E169: 2,234 | F169: 1,870 | G169: 3,463 | H169: 3,031 | I169: 2,491 | J169: 2,221 | K169: 4,752 | L169: 4,332
B170: 8 | C170: 7,951 | D170: 7,051 | E170: 1,250 | F170: 1,044 | G170: 1,921 | H170: 1,670 | I170: 1,542 | J170: 1,384 | K170: 3,238 | L170: 2,954
B171: 9 | C171: 5,624 | D171: 5,061 | E171: 858 | F171: 731 | G171: 1,307 | H171: 1,149 | I171: 1,127 | J171: 1,022 | K171: 2,333 | L171: 2,159
B172: 10 | C172: 5,984 | D172: 5,490 | E172: 804 | F172: 690 | G172: 1,257 | H172: 1,121 | I172: 1,294 | J172: 1,203 | K172: 2,629 | L172: 2,477
B173: 11 | C173: 9,316 | D173: 8,739 | E173: 1,266 | F173: 1,134 | G173: 2,016 | H173: 1,876 | I173: 2,019 | J173: 1,894 | K173: 4,015 | L173: 3,835
B174: 12 | C174: 12,817 | D174: 12,062 | E174: 1,763 | F174: 1,575 | G174: 2,609 | H174: 2,428 | I174: 2,582 | J174: 2,440 | K174: 5,862 | L174: 5,620
A176: 2016 | B176: 1 | C176: 7,807 | D176: 7,359 | E176: 1,207 | F176: 1,085 | G176: 1,587 | H176: 1,471 | I176: 1,435 | J176: 1,369 | K176: 3,579 | L176: 3,434
B177: 2 | C177: 6,329 | D177: 6,025 | E177: 1,021 | F177: 921 | G177: 1,284 | H177: 1,214 | I177: 1,210 | J177: 1,166 | K177: 2,815 | L177: 2,725
B178: 3 | C178: 7,447 | D178: 7,202 | E178: 1,354 | F178: 1,269 | G178: 1,679 | H178: 1,617 | I178: 1,439 | J178: 1,402 | K178: 2,974 | L178: 2,914
B179: 4 | C179: 7,617 | D179: 7,438 | E179: 1,345 | F179: 1,288 | G179: 1,724 | H179: 1,677 | I179: 1,479 | J179: 1,452 | K179: 3,068 | L179: 3,021
B180: 5 | C180: 3,494 | D180: 3,421 | E180: 621 | F180: 595 | G180: 772 | H180: 756 | I180: 620 | J180: 609 | K180: 1,480 | L180: 1,461
B181: 6 | C181: 3,512 | D181: 3,468 | E181: 528 | F181: 512 | G181: 627 | H181: 619 | I181: 732 | J181: 723 | K181: 1,625 | L181: 1,613
B182: 7 | C182: 913 | D182: 907 | E182: 149 | F182: 146 | G182: 144 | H182: 143 | I182: 190 | J182: 189 | K182: 430 | L182: 428
A183: 합계 | C183: =E183+G183+I183+K183 -> 872,093 | D183: 295,009 | E183: 216,899 | F183: 64,989 | G183: 253,489 | H183: 77,894 | I183: 209,085 | J183: 56,107 | K183: 192,620 | L183: 96,019
A185: 1) 대출취급일 기준
A187: ※ 자료 : 공사가 금융기관으로부터 양수한 자산

Sheet 12. 주택유형별 대출금액 및 잔액 현황
A1: 12. 주택유형별 대출금액 및 잔액 현황 Bogeumjari(Mortgage) Loan Origination and Outstanding by Housing Type
A3: 단위 : 억원 | L3: Hundred million won
A4: 연월중1) | C4: 합계 Total | E4: 다세대 주택 | G4: 단독주택 | I4: 아파트 | K4: 연립주택
E5: Multifamily housing | G5: Single detached house | I5: Apartment | K5: Row house
A6: During | C6: 대출금액 | D6: 대출잔액 | E6: 대출금액 | F6: 대출잔액 | G6: 대출금액 | H6: 대출잔액 | I6: 대출금액 | J6: 대출잔액 | K6: 대출금액 | L6: 대출잔액
C7: Origination | D7: Outstanding | E7: Origination | F7: Outstanding | G7: Origination | H7: Outstanding | I7: Origination | J7: Outstanding | K7: Origination | L7: Outstanding
A8: 2004 | C8: =E8+G8+I8+K8 -> 33,315 | D8: =F8+H8+J8+L8 -> 372 | E8: =SUM(E22:E31) -> 469 | F8: 15 | G8: 438 | H8: 16 | I8: 32,124 | J8: 335 | K8: 284 | L8: 6
A9: 2005 | C9: =E9+G9+I9+K9 -> 42,304 | D9: 3,048 | E9: =SUM(E33:E44) -> 407 | F9: 19 | G9: 363 | H9: 14 | I9: 41,142 | J9: 571 | K9: 392 | L9: 6
A10: 2006 | C10: 13,761 | D10: 178 | E10: =SUM(E46:E57) -> 200 | F10: 8 | G10: 96 | H10: 1 | I10: 13,335 | J10: 168 | K10: 130 | L10: 2
A11: 2007 | C11: 35,684 | D11: 367 | E11: =SUM(E59:E70) -> 323 | F11: 9 | G11: 124 | H11: 4 | I11: 34,987 | J11: 350 | K11: 251 | L11: 4
A12: 2008 | C12: 41,919 | D12: 386 | E12: =SUM(E72:E83) -> 429 | F12: 7 | G12: 99 | H12: 4 | I12: 41,185 | J12: 371 | K12: 205 | L12: 4
A13: 2009 | C13: 59,100 | D13: 847 | E13: =SUM(E85:E96) -> 415 | F13: 12 | G13: 105 | H13: 4 | I13: 58,230 | J13: 827 | K13: 350 | L13: 4
A14: 2010 | C14: 57,879 | D14: 2,938 | E14: =SUM(E98:E109) -> 326 | F14: 34 | G14: 138 | H14: 16 | I14: 57,077 | J14: 2,863 | K14: 337 | L14: 25
A15: 2011 | C15: 93,504 | D15: 10,685 | E15: =SUM(E111:E122) -> 755 | F15: 127 | G15: 273 | H15: 54 | I15: 92,104 | J15: 10,458 | K15: 372 | L15: 47
A16: 2012 | C16: 110,950 | D16: 21,227 | E16: =SUM(E124:E135) -> 1,130 | F16: 313 | G16: 421 | H16: 116 | I16: 109,007 | J16: 20,712 | K16: 391 | L16: 86
A17: 2013 | C17: 117,367 | D17: 35,081 | E17: =+SUM(E137:E148) -> 1,090 | F17: 464 | G17: 451 | H17: 181 | I17: 115,425 | J17: 34,309 | K17: 401 | L17: 127
A18: 2014 | C18: 83,697 | D18: 58,742 | E18: =+SUM(E150:E161) -> 3,107 | F18: =+SUM(F150:F161) -> 2,419 | G18: 349 | H18: 251 | I18: 79,490 | J18: 55,497 | K18: 751 | L18: 576
A19: 2015 | C19: 145,496 | D19: 127,757 | E19: =+SUM(E163:E174) -> 3,502 | F19: =+SUM(F163:F174) -> 3,183 | G19: 939 | H19: 836 | I19: 139,944 | J19: 122,754 | K19: 1,111 | L19: =+SUM(L163:L174) -> 984
A20: 2016 | C20: 37,119 | D20: 35,820 | E20: =+SUM(E176:E182) -> 1,225 | F20: =+SUM(F176:F182) -> 1,198 | G20: 299 | H20: 290 | I20: 35,219 | J20: 33,966 | K20: 377 | L20: 365
A22: 2004 | B22: 3 | C22: =E22+G22+I22+K22 -> 351 | D22: 3 | E22: 6 | F22: 0 | G22: 1 | H22: 0 | I22: 342 | J22: 3 | K22: 2 | L22: 0
B23: 4 | C23: 3,611 | D23: 30 | E23: 44 | F23: 1 | G23: 48 | H23: 2 | I23: 3,483 | J23: 27 | K23: 36 | L23: 0
B24: 5 | C24: 4,558 | D24: 43 | E24: 80 | F24: 1 | G24: 77 | H24: 2 | I24: 4,362 | J24: 40 | K24: 40 | L24: 1
B25: 6 | C25: 3,944 | D25: 42 | E25: 73 | F25: 2 | G25: 44 | H25: 2 | I25: 3,793 | J25: 37 | K25: 34 | L25: 1
B26: 7 | C26: 3,380 | D26: 31 | E26: 48 | F26: 3 | G26: 56 | H26: 3 | I26: 3,242 | J26: 25 | K26: 35 | L26: 0
B27: 8 | C27: 3,282 | D27: 33 | E27: 43 | F27: 2 | G27: 47 | H27: 1 | I27: 3,151 | J27: 30 | K27: 42 | L27: 1
B28: 9 | C28: 2,891 | D28: 33 | E28: 46 | F28: 2 | G28: 38 | H28: 2 | I28: 2,790 | J28: 28 | K28: 18 | L28: 1
B29: 10 | C29: 3,446 | D29: 40 | E29: 36 | F29: 1 | G29: 52 | H29: 2 | I29: 3,334 | J29: 36 | K29: 25 | L29: 1
B30: 11 | C30: 3,566 | D30: 52 | E30: 50 | F30: 2 | G30: 38 | H30: 1 | I30: 3,457 | J30: 48 | K30: 21 | L30: 0
B31: 12 | C31: 4,286 | D31: 65 | E31: 44 | F31: 2 | G31: 37 | H31: 1 | I31: 4,172 | J31: 60 | K31: 33 | L31: 2
A33: 2005 | B33: 1 | C33: =E33+G33+I33+K33 -> 3,443 | D33: 60 | E33: 37 | F33: 2 | G33: 29 | H33: 1 | I33: 3,354 | J33: 56 | K33: 24 | L33: 1
B34: 2 | C34: 4,840 | D34: 75 | E34: 33 | F34: 1 | G34: 44 | H34: 2 | I34: 4,719 | J34: 71 | K34: 44 | L34: 0
B35: 3 | C35: 6,923 | D35: 98 | E35: 51 | F35: 2 | G35: 45 | H35: 1 | I35: 6,771 | J35: 93 | K35: 57 | L35: 1
B36: 4 | C36: 5,707 | D36: 74 | E36: 55 | F36: 2 | G36: 38 | H36: 0 | I36: 5,571 | J36: 71 | K36: 43 | L36: 1
B37: 5 | C37: 3,927 | D37: 46 | E37: 44 | F37: 1 | G37: 35 | H37: 2 | I37: 3,811 | J37: 42 | K37: 38 | L37: 1
B38: 6 | C38: 3,713 | D38: 60 | E38: 48 | F38: 3 | G38: 40 | H38: 1 | I38: 3,593 | J38: 54 | K38: 32 | L38: 1
B39: 7 | C39: 3,087 | D39: 48 | E39: 26 | F39: 1 | G39: 24 | H39: 0 | I39: 2,997 | J39: 47 | K39: 40 | L39: 0
B40: 8 | C40: 3,165 | D40: 35 | E40: 27 | F40: 0 | G40: 22 | H40: 1 | I40: 3,080 | J40: 34 | K40: 35 | L40: 0
B41: 9 | C41: 2,649 | D41: 40 | E41: 29 | F41: 2 | G41: 23 | H41: 1 | I41: 2,567 | J41: 36 | K41: 31 | L41: 1
B42: 10 | C42: 1,928 | D42: 28 | E42: 22 | F42: 2 | G42: 22 | H42: 1 | I42: 1,861 | J42: 25 | K42: 22 | L42: 0
B43: 11 | C43: 1,436 | D43: 25 | E43: 19 | F43: 1 | G43: 21 | H43: 1 | I43: 1,378 | J43: 23 | K43: 19 | L43: 0
B44: 12 | C44: 1,485 | D44: 19 | E44: 16 | F44: 1 | G44: 20 | H44: 1 | I44: 1,440 | J44: 18 | K44: 8 | L44: 0
A46: 2006 | B46: 1 | C46: =E46+G46+I46+K46 -> 656 | D46: 15 | E46: 12 | F46: 0 | G46: 7 | H46: 0 | I46: 634 | J46: 14 | K46: 3 | L46: 0
B47: 2 | C47: 1,005 | D47: 16 | E47: 12 | F47: 1 | G47: 11 | H47: 0 | I47: 978 | J47: 14 | K47: 3 | L47: 0
B48: 3 | C48: 1,010 | D48: 16 | E48: 22 | F48: 1 | G48: 8 | H48: 0 | I48: 969 | J48: 15 | K48: 11 | L48: 0
B49: 4 | C49: 881 | D49: 12 | E49: 23 | F49: 1 | G49: 9 | H49: 0 | I49: 840 | J49: 11 | K49: 10 | L49: 0
B50: 5 | C50: 736 | D50: 8 | E50: 18 | F50: 1 | G50: 7 | H50: 0 | I50: 701 | J50: 6 | K50: 9 | L50: 0
B51: 6 | C51: 811 | D51: 17 | E51: 17 | F51: 0 | G51: 5 | H51: 0 | I51: 782 | J51: 17 | K51: 7 | L51: 0
B52: 7 | C52: 1,276 | D52: 10 | E52: 16 | F52: 0 | G52: 10 | H52: 0 | I52: 1,241 | J52: 10 | K52: 9 | L52: 0
B53: 8 | C53: 1,379 | D53: 16 | E53: 22 | F53: 1 | G53: 8 | H53: 0 | I53: 1,337 | J53: 15 | K53: 13 | L53: 1
B54: 9 | C54: 1,861 | D54: 24 | E54: 23 | F54: 2 | G54: 7 | H54: 0 | I54: 1,814 | J54: 22 | K54: 16 | L54: 0
B55: 10 | C55: 1,245 | D55: 15 | E55: 11 | F55: 0 | G55: 2 | H55: 0 | I55: 1,218 | J55: 15 | K55: 14 | L55: 0
B56: 11 | C56: 1,207 | D56: 17 | E56: 14 | F56: 1 | G56: 10 | H56: 0 | I56: 1,170 | J56: 16 | K56: 13 | L56: 0
B57: 12 | C57: 1,694 | D57: 14 | E57: 11 | F57: 0 | G57: 11 | H57: 0 | I57: 1,652 | J57: 13 | K57: 21 | L57: 0
A59: 2007 | B59: 1 | C59: =E59+G59+I59+K59 -> 2,408 | D59: 24 | E59: 22 | F59: 1 | G59: 9 | H59: 0 | I59: 2,345 | J59: 23 | K59: 32 | L59: 0
B60: 2 | C60: 2,762 | D60: 35 | E60: 37 | F60: 1 | G60: 18 | H60: 0 | I60: 2,682 | J60: 35 | K60: 25 | L60: 0
B61: 3 | C61: 2,496 | D61: 25 | E61: 22 | F61: 1 | G61: 17 | H61: 0 | I61: 2,436 | J61: 23 | K61: 20 | L61: 0
B62: 4 | C62: 2,415 | D62: 29 | E62: 23 | F62: 1 | G62: 8 | H62: 0 | I62: 2,363 | J62: 27 | K62: 22 | L62: 1
B63: 5 | C63: 2,489 | D63: 36 | E63: 25 | F63: 2 | G63: 15 | H63: 1 | I63: 2,437 | J63: 33 | K63: 13 | L63: 0
B64: 6 | C64: 2,711 | D64: 27 | E64: 31 | F64: 1 | G64: 12 | H64: 0 | I64: 2,644 | J64: 25 | K64: 23 | L64: 0
B65: 7 | C65: 3,588 | D65: 43 | E65: 28 | F65: 0 | G65: 17 | H65: 1 | I65: 3,525 | J65: 41 | K65: 18 | L65: 1
B66: 8 | C66: 3,198 | D66: 19 | E66: 23 | F66: 0 | G66: 8 | H66: 0 | I66: 3,146 | J66: 18 | K66: 21 | L66: 1
B67: 9 | C67: 2,482 | D67: 16 | E67: 20 | F67: 0 | G67: 1 | H67: 0 | I67: 2,450 | J67: 15 | K67: 11 | L67: 0
B68: 10 | C68: 3,407 | D68: 29 | E68: 28 | F68: 2 | G68: 7 | H68: 0 | I68: 3,364 | J68: 26 | K68: 8 | L68: 0
B69: 11 | C69: 3,244 | D69: 39 | E69: 24 | F69: 0 | G69: 6 | H69: 1 | I69: 3,192 | J69: 38 | K69: 21 | L69: 0
B70: 12 | C70: 4,483 | D70: 45 | E70: 39 | F70: 0 | G70: 6 | H70: 0 | I70: 4,402 | J70: 44 | K70: 36 | L70: 0
A72: 2008 | B72: 1 | C72: =E72+G72+I72+K72 -> 5,863 | D72: 38 | E72: 49 | F72: 0 | G72: 12 | H72: 0 | I72: 5,767 | J72: 36 | K72: 34 | L72: 1
B73: 2 | C73: 4,947 | D73: 33 | E73: 49 | F73: 0 | G73: 16 | H73: 1 | I73: 4,848 | J73: 31 | K73: 35 | L73: 1
B74: 3 | C74: 3,891 | D74: 36 | E74: 62 | F74: 1 | G74: 7 | H74: 0 | I74: 3,804 | J74: 35 | K74: 18 | L74: 0
B75: 4 | C75: 5,071 | D75: 56 | E75: 67 | F75: 0 | G75: 14 | H75: 0 | I75: 4,970 | J75: 56 | K75: 21 | L75: 0
B76: 5 | C76: 4,062 | D76: 45 | E76: 46 | F76: 2 | G76: 6 | H76: 0 | I76: 3,994 | J76: 41 | K76: 16 | L76: 1
B77: 6 | C77: 3,726 | D77: 44 | E77: 25 | F77: 0 | G77: 11 | H77: 2 | I77: 3,671 | J77: 43 | K77: 19 | L77: 0
B78: 7 | C78: 4,208 | D78: 35 | E78: 43 | F78: 0 | G78: 10 | H78: 0 | I78: 4,129 | J78: 35 | K78: 26 | L78: 0
B79: 8 | C79: 4,297 | D79: 36 | E79: 37 | F79: 1 | G79: 12 | H79: 0 | I79: 4,234 | J79: 36 | K79: 14 | L79: 0
B80: 9 | C80: 2,748 | D80: 33 | E80: 16 | F80: 1 | G80: 5 | H80: 0 | I80: 2,713 | J80: 32 | K80: 13 | L80: 0
B81: 10 | C81: 1,836 | D81: 16 | E81: 22 | F81: 0 | G81: 3 | H81: 0 | I81: 1,807 | J81: 15 | K81: 4 | L81: 0
B82: 11 | C82: 835 | D82: 8 | E82: 11 | F82: 0 | G82: 1 | H82: 0 | I82: 818 | J82: 8 | K82: 5 | L82: 0
B83: 12 | C83: 435 | D83: 6 | E83: 2 | F83: 1 | G83: 2 | H83: 0 | I83: 431 | J83: 5 | K83: 0 | L83: 0
A85: 2009 | B85: 1 | C85: =E85+G85+I85+K85 -> 351 | D85: 2 | E85: 2 | F85: 1 | G85: 0 | H85: 0 | I85: 348 | J85: 2 | K85: 0 | L85: 0
B86: 2 | E86: 5 | F86: 1 | G86: 1 | H86: 0 | I86: 928 | J86: 17 | K86: . | L86: .
B87: 3 | C87: 2,976 | D87: 34 | E87: 14 | F87: 0 | G87: 4 | H87: 0 | I87: 2,942 | J87: 34 | K87: 16 | L87: 0
B88: 4 | C88: 4,551 | D88: 69 | E88: 21 | F88: 0 | G88: 8 | H88: 0 | I88: 4,494 | J88: 68 | K88: 28 | L88: 1
B89: 5 | C89: 4,359 | D89: 79 | E89: 19 | F89: 1 | G89: 8 | H89: 0 | I89: 4,310 | J89: 78 | K89: 22 | L89: 0
B90: 6 | C90: 4,845 | D90: 69 | E90: 26 | F90: 0 | G90: 11 | H90: 0 | I90: 4,782 | J90: 69 | K90: 26 | L90: 0
B91: 7 | C91: 4,509 | D91: 48 | E91: 20 | F91: 0 | G91: 14 | H91: 0 | I91: 4,451 | J91: 47 | K91: 24 | L91: 0
B92: 8 | C92: 4,848 | D92: 68 | E92: 40 | F92: 1 | G92: 6 | H92: 1 | I92: 4,777 | J92: 65 | K92: 25 | L92: 1
B93: 9 | C93: 6,591 | D93: 99 | E93: 50 | F93: 1 | G93: 15 | H93: 0 | I93: 6,492 | J93: 97 | K93: 34 | L93: 0
B94: 10 | C94: 9,478 | D94: 121 | E94: 84 | F94: 1 | G94: 9 | H94: 0 | I94: 9,330 | J94: 119 | K94: 56 | L94: 1
B95: 11 | C95: 8,775 | D95: 130 | E95: 75 | F95: 4 | G95: 20 | H95: 0 | I95: 8,616 | J95: 125 | K95: 63 | L95: 1
B96: 12 | C96: 6,883 | D96: 109 | E96: 59 | F96: 1 | G96: 10 | H96: 1 | I96: 6,759 | J96: 106 | K96: 56 | L96: 1
A98: 2010 | B98: 1 | C98: =E98+G98+I98+K98 -> 3,768 | D98: 54 | E98: 17 | F98: 0 | G98: 9 | H98: 0 | I98: 3,717 | J98: 53 | K98: 25 | L98: 0
B99: 2 | C99: 3,904 | D99: 71 | E99: 28 | F99: 2 | G99: 7 | H99: 1 | I99: 3,850 | J99: 65 | K99: 18 | L99: 3
B100: 3 | C100: 3,293 | D100: 93 | E100: 27 | F100: 2 | G100: 8 | H100: 0 | I100: 3,242 | J100: 90 | K100: 15 | L100: 2
B101: 4 | C101: 2,631 | D101: 112 | E101: 15 | F101: 0 | G101: 2 | H101: 0 | I101: 2,606 | J101: 111 | K101: 8 | L101: 1
B102: 5 | C102: 2,339 | D102: 117 | E102: 12 | F102: 1 | G102: 10 | H102: 0 | I102: 2,303 | J102: 116 | K102: 14 | L102: 0
B103: 6 | C103: 3,671 | D103: 264 | E103: 9 | F103: 1 | G103: 5 | H103: 0 | I103: 3,634 | J103: 262 | K103: 22 | L103: 1
B104: 7 | C104: 9,792 | D104: 597 | E104: 58 | F104: 9 | G104: 36 | H104: 8 | I104: 9,612 | J104: 570 | K104: 86 | L104: 9
B105: 8 | C105: 8,864 | D105: 517 | E105: 42 | F105: 4 | G105: 15 | H105: 2 | I105: 8,764 | J105: 507 | K105: 42 | L105: 3
B106: 9 | C106: 5,043 | D106: 263 | E106: 19 | F106: 2 | G106: 15 | H106: 1 | I106: 4,977 | J106: 259 | K106: 32 | L106: 1
B107: 10 | C107: 4,338 | D107: 243 | E107: 33 | F107: 5 | G107: 13 | H107: 1 | I107: 4,271 | J107: 235 | K107: 21 | L107: 2
B108: 11 | C108: 4,717 | D108: 273 | E108: 36 | F108: 4 | G108: 8 | H108: 1 | I108: 4,651 | J108: 268 | K108: 22 | L108: 0
B109: 12 | C109: 5,518 | D109: 333 | E109: 28 | F109: 4 | G109: 10 | H109: 1 | I109: 5,451 | J109: 325 | K109: 30 | L109: 3
A111: 2011 | B111: 1 | C111: =E111+G111+I111+K111 -> 4,454 | D111: 238 | E111: 26 | F111: 3 | G111: 18 | H111: 1 | I111: 4,397 | J111: 234 | K111: 13 | L111: 1
B112: 2 | C112: 5,953 | D112: 323 | E112: 38 | F112: 5 | G112: 6 | H112: 1 | I112: 5,883 | J112: 313 | K112: 26 | L112: 3
B113: 3 | C113: 7,742 | D113: 515 | E113: 53 | F113: 5 | G113: 19 | H113: 3 | I113: 7,645 | J113: 503 | K113: 26 | L113: 4
B114: 4 | C114: 7,909 | D114: 558 | E114: 57 | F114: 8 | G114: 21 | H114: 5 | I114: 7,798 | J114: 542 | K114: 32 | L114: 3
B115: 5 | C115: 6,571 | D115: 572 | E115: 53 | F115: 7 | G115: 10 | H115: 3 | I115: 6,478 | J115: 559 | K115: 30 | L115: 3
B116: 6 | C116: 6,017 | D116: 517 | E116: 43 | F116: 6 | G116: 13 | H116: 3 | I116: 5,943 | J116: 505 | K116: 18 | L116: 3
B117: 7 | C117: 6,222 | D117: 702 | E117: 57 | F117: 12 | G117: 28 | H117: 4 | I117: 6,104 | J117: 682 | K117: 33 | L117: 3
B118: 8 | C118: 6,088 | D118: 699 | E118: 61 | F118: 9 | G118: 23 | H118: 3 | I118: 5,983 | J118: 684 | K118: 21 | L118: 3
B119: 9 | C119: 9,633 | D119: 1,432 | E119: 97 | F119: 17 | G119: 36 | H119: 11 | I119: 9,437 | J119: 1,397 | K119: 63 | L119: 7
B120: 10 | C120: 11,331 | D120: 1,967 | E120: 94 | F120: 19 | G120: 38 | H120: 10 | I120: 11,158 | J120: 1,929 | K120: 40 | L120: 8
B121: 11 | C121: 10,188 | D121: 1,686 | E121: 96 | F121: 23 | G121: 29 | H121: 5 | I121: 10,029 | J121: 1,654 | K121: 35 | L121: 4
B122: 12 | C122: 11,397 | D122: 1,475 | E122: 79 | F122: 12 | G122: 34 | H122: 5 | I122: 11,249 | J122: 1,454 | K122: 35 | L122: 4
A124: 2012 | B124: 1 | C124: =E124+G124+I124+K124 -> 2,665 | D124: 341 | E124: 17 | F124: 2 | G124: 18 | H124: 3 | I124: 2,616 | J124: 335 | K124: 13 | L124: 0
B125: 2 | C125: 7,393 | D125: 1,020 | E125: 73 | F125: 12 | G125: 32 | H125: 10 | I125: 7,263 | J125: 991 | K125: 25 | L125: 6
B126: 3 | C126: 9,605 | D126: 1,443 | E126: 101 | F126: 19 | G126: 45 | H126: 9 | I126: 9,419 | J126: 1,410 | K126: 40 | L126: 5
B127: 4 | C127: 7,795 | D127: 1,146 | E127: 94 | F127: 23 | G127: 35 | H127: 8 | I127: 7,637 | J127: 1,106 | K127: 29 | L127: 9
B128: 5 | C128: 9,506 | D128: 1,575 | E128: 122 | F128: 36 | G128: 47 | H128: 13 | I128: 9,286 | J128: 1,518 | K128: 51 | L128: 7
B129: 6 | C129: 9,148 | D129: 1,687 | E129: 130 | F129: 41 | G129: 31 | H129: 11 | I129: 8,949 | J129: 1,626 | K129: 38 | L129: 9
B130: 7 | C130: 8,754 | D130: 1,745 | E130: 84 | F130: 25 | G130: 38 | H130: 9 | I130: 8,609 | J130: 1,704 | K130: 23 | L130: 6
B131: 8 | C131: 7,886 | D131: 1,675 | E131: 85 | F131: 26 | G131: 32 | H131: 10 | I131: 7,748 | J131: 1,634 | K131: 21 | L131: 5
B132: 9 | C132: 6,517 | D132: 1,512 | E132: 63 | F132: 28 | G132: 30 | H132: 10 | I132: 6,403 | J132: 1,470 | K132: 20 | L132: 5
B133: 10 | C133: 9,410 | D133: 2,041 | E133: 96 | F133: 23 | G133: 25 | H133: 4 | I133: 9,254 | J133: 2,009 | K133: 35 | L133: 4
B134: 11 | C134: 13,525 | D134: 2,917 | E134: 121 | F134: 31 | G134: 44 | H134: 12 | I134: 13,318 | J134: 2,859 | K134: 42 | L134: 14
B135: 12 | C135: 18,746 | D135: 4,125 | E135: 144 | F135: 46 | G135: 44 | H135: 14 | I135: 18,506 | J135: 4,049 | K135: 52 | L135: 15
A137: 2013 | B137: 1 | C137: =E137+G137+I137+K137 -> 6,851 | D137: 1,398 | E137: 75 | F137: 22 | G137: 39 | H137: 10 | I137: 6,702 | J137: 1,356 | K137: 35 | L137: 10
B138: 2 | C138: 11,085 | D138: 2,545 | E138: 103 | F138: 41 | G138: 43 | H138: 17 | I138: 10,888 | J138: 2,475 | K138: 50 | L138: 12
B139: 3 | C139: 10,810 | D139: 2,841 | E139: 112 | F139: 42 | G139: 44 | H139: 17 | I139: 10,610 | J139: 2,775 | K139: 44 | L139: 8
B140: 4 | C140: 16,644 | D140: 5,080 | E140: 169 | F140: 78 | G140: 49 | H140: 21 | I140: 16,372 | J140: 4,961 | K140: 55 | L140: 20
B141: 5 | C141: 16,470 | D141: 5,512 | E141: 174 | F141: 83 | G141: 44 | H141: 21 | I141: 16,197 | J141: 5,387 | K141: 55 | L141: 21
B142: 6 | C142: 22,400 | D142: 7,434 | E142: 164 | F142: 74 | G142: 53 | H142: 20 | I142: 22,131 | J142: 7,326 | K142: 52 | L142: 15
B143: 7 | C143: 10,202 | D143: 2,960 | E143: 106 | F143: 43 | G143: 65 | H143: 22 | I143: 9,981 | J143: 2,881 | K143: 50 | L143: 15
B144: 8 | C144: 6,365 | D144: 1,949 | E144: 65 | F144: 28 | G144: 40 | H144: 19 | I144: 6,234 | J144: 1,891 | K144: 27 | L144: 11
B145: 9 | C145: 4,101 | D145: 1,243 | E145: 35 | F145: 16 | G145: 24 | H145: 10 | I145: 4,033 | J145: 1,213 | K145: 9 | L145: 5
B146: 10 | C146: 4,716 | D146: 1,518 | E146: 30 | F146: 13 | G146: 17 | H146: 10 | I146: 4,662 | J146: 1,494 | K146: 6 | L146: 1
B147: 11 | C147: 3,987 | D147: 1,317 | E147: 23 | F147: 11 | G147: 15 | H147: 9 | I147: 3,942 | J147: 1,295 | K147: 7 | L147: 3
B148: 12 | C148: 3,736 | D148: 1,283 | E148: 34 | F148: 15 | G148: 17 | H148: 5 | I148: 3,673 | J148: 1,257 | K148: 12 | L148: 6
A150: 2014 | B150: 1 | C150: =E150+G150+I150+K150 -> 1,639 | D150: 557 | E150: 18 | F150: 9 | G150: 6 | H150: 4 | I150: 1,604 | J150: 540 | K150: 10 | L150: 4
B151: 2 | C151: 1,775 | D151: 756 | E151: 31 | F151: 22 | G151: 12 | H151: 8 | I151: 1,725 | J151: 721 | K151: 7 | L151: 6
B152: 3 | C152: 1,825 | D152: 856 | E152: 43 | F152: 28 | G152: 12 | H152: 8 | I152: 1,760 | J152: 815 | K152: 11 | L152: 4
B153: 4 | C153: 3,394 | D153: 1,922 | E153: 86 | F153: 62 | G153: 19 | H153: 12 | I153: 3,265 | J153: 1,834 | K153: 24 | L153: 14
B154: 5 | C154: 4,974 | D154: 3,249 | E154: 258 | F154: 193 | G154: 15 | H154: 10 | I154: 4,655 | J154: 3,011 | K154: 46 | L154: 35
B155: 6 | C155: 7,878 | D155: 5,257 | E155: 410 | F155: 313 | G155: 18 | H155: 9 | I155: 7,375 | J155: 4,874 | K155: 74 | L155: 61
A156: 2014 | B156: 7 | C156: 7,984 | D156: 5,345 | E156: 313 | F156: 238 | G156: 29 | H156: 20 | I156: 7,569 | J156: 5,035 | K156: 73 | L156: 52
B157: 8 | C157: 8,507 | D157: 5,941 | E157: 285 | F157: 227 | G157: 34 | H157: 25 | I157: 8,107 | J157: 5,621 | K157: 82 | L157: 68
B158: 9 | C158: 8,022 | D158: 5,728 | E158: 348 | F158: 268 | G158: 33 | H158: 25 | I158: 7,565 | J158: 5,377 | K158: 76 | L158: 57
B159: 10 | C159: 11,736 | D159: 8,904 | E159: 520 | F159: 412 | G159: 48 | H159: 38 | I159: 11,038 | J159: 8,344 | K159: 130 | L159: 111
B160: 11 | C160: 12,603 | D160: 9,730 | E160: 468 | F160: 379 | G160: 59 | H160: 42 | I160: 11,963 | J160: 9,224 | K160: 114 | L160: 85
B161: 12 | C161: 13,360 | D161: 10,497 | E161: 328 | F161: 267 | G161: 64 | H161: 49 | I161: 12,864 | J161: 10,101 | K161: 104 | L161: 80
A163: 2015 | B163: 1 | C163: =E163+G163+I163+K163 -> 7,802 | D163: 6,181 | E163: 101 | F163: 87 | G163: 47 | H163: 41 | I163: 7,606 | J163: 6,018 | K163: 48 | L163: 35
B164: 2 | C164: =E164+G164+I164+K164 -> 11,032 | D164: 9,127 | E164: 89 | F164: 77 | G164: 60 | H164: 48 | I164: 10,817 | J164: 8,946 | K164: 67 | L164: 56
B165: 3 | C165: =E165+G165+I165+K165 -> 11,130 | D165: 9,252 | E165: 146 | F165: 120 | G165: 55 | H165: 47 | I165: 10,857 | J165: 9,027 | K165: 71 | L165: 58
B166: 4 | C166: 18,789 | D166: 16,223 | E166: 248 | F166: 218 | G166: 118 | H166: 102 | I166: 18,318 | J166: 15,809 | K166: 105 | L166: 94
B167: 5 | C167: 18,800 | D167: 16,426 | E167: 404 | F167: 358 | G167: 122 | H167: 110 | I167: 18,140 | J167: 15,840 | K167: 134 | L167: 118
B168: 6 | C168: 23,312 | D168: 20,692 | E168: 695 | F168: 627 | G168: 135 | H168: 126 | I168: 22,295 | J168: 19,775 | K168: 187 | L168: 164
B169: 7 | C169: 12,940 | D169: 11,453 | E169: 300 | F169: 275 | G169: 91 | H169: 77 | I169: 12,446 | J169: 11,010 | K169: 103 | L169: 91
B170: 8 | C170: 7,951 | D170: 7,051 | E170: 148 | F170: 134 | G170: 57 | H170: 53 | I170: 7,674 | J170: 6,798 | K170: 73 | L170: 67
B171: 9 | C171: 5,624 | D171: 5,061 | E171: 124 | F171: 112 | G171: 64 | H171: 57 | I171: 5,403 | J171: 4,862 | K171: 33 | L171: 30
B172: 10 | C172: 5,984 | D172: 5,490 | E172: 224 | F172: 209 | G172: 33 | H172: 28 | I172: 5,674 | J172: 5,206 | K172: 52 | L172: 48
B173: 11 | C173: 9,316 | D173: 8,739 | E173: 524 | F173: 494 | G173: 62 | H173: 55 | I173: 8,634 | J173: 8,100 | K173: 97 | L173: 90
B174: 12 | C174: 12,817 | D174: 12,062 | E174: 498 | F174: 472 | G174: 97 | H174: 94 | I174: 12,082 | J174: 11,363 | K174: 140 | L174: 133
A176: 2016 | B176: 1 | C176: 7,807 | D176: 7,359 | E176: 175 | F176: 166 | G176: 74 | H176: 73 | I176: 7,493 | J176: 7,059 | K176: 65 | L176: 61
B177: 2 | C177: 6,329 | D177: 6,025 | E177: 103 | F177: 99 | G177: 52 | H177: 50 | I177: 6,130 | J177: 5,835 | K177: 45 | L177: 42
B178: 3 | C178: 7,447 | D178: 7,202 | E178: 145 | F178: 141 | G178: 74 | H178: 72 | I178: 7,146 | J178: 6,907 | K178: 82 | L178: 81
B179: 4 | C179: 7,617 | D179: 7,438 | E179: 130 | F179: 128 | G179: 62 | H179: 59 | I179: 7,337 | J179: 7,164 | K179: 88 | L179: 87
B180: 5 | C180: 3,494 | D180: 3,421 | E180: 98 | F180: 96 | G180: 19 | H180: 18 | I180: 3,339 | J180: 3,271 | K180: 38 | L180: 37
B181: 6 | C181: 3,512 | D181: 3,468 | E181: 418 | F181: 413 | G181: 17 | H181: 17 | I181: 3,027 | J181: 2,988 | K181: 50 | L181: 49
B182: 7 | C182: 913 | D182: 907 | E182: 155 | F182: 154 | G182: 2 | H182: 2 | I182: 747 | J182: 742 | K182: 9 | L182: 9
A183: 합계 | C183: =E183+G183+I183+K183 -> 872,093 | D183: 295,009 | E183: 13,376 | F183: 7,806 | G183: 4,096 | H183: 1,785 | I183: 849,269 | J183: 283,182 | K183: 5,352 | L183: 2,235
A185: 1) 대출취급일 기준
A187: ※ 자료 : 공사가 금융기관으로부터 양수한 자산

Sheet 13. 연령구간별 대출금액 및 잔액 현황
A1: 13. 연령구간별 대출금액 및 잔액 현황 | K1: Bogeumjari(Mortgage) Loan Origination and Outstanding by Age
A3: 단위 : 억원 | V3: Hundred million won
A4: 연월중1) | C4: 합계 Total | E4: 25세 미만 | G4: 25세 ~ 29세 | I4: 30세 ~ 34세 | K4: 35세 ~ 39세 | M4: 40세 ~ 44세 | O4: 45세 ~ 49세 | Q4: 50세 ~ 54세 | S4: 55세 이상 | U4: 연월중
E5: Less 25 | G5: 25 to 29 | I5: 30 to 34 | K5: 35 to 39 | M5: 40 to 44 | O5: 45 to 49 | Q5: 50 to 54 | S5: 55 or more
A6: During | C6: 대출금액 | D6: 대출잔액 | E6: 대출금액 | F6: 대출잔액 | G6: 대출금액 | H6: 대출잔액 | I6: 대출금액 | J6: 대출잔액 | K6: 대출금액 | L6: 대출잔액 | M6: 대출금액 | N6: 대출잔액 | O6: 대출금액 | P6: 대출잔액 | Q6: 대출금액 | R6: 대출잔액 | S6: 대출금액 | T6: 대출잔액 | U6: During
C7: Origination | D7: Outstanding | E7: Origination | F7: Outstanding | G7: Origination | H7: Outstanding | I7: Origination | J7: Outstanding | K7: Origination | L7: Outstanding | M7: Origination | N7: Outstanding | O7: Origination | P7: Outstanding | Q7: Origination | R7: Outstanding | S7: Origination | T7: Outstanding
A8: 2004 | C8: =E8+G8+I8+K8+M8+O8+Q8+S8 -> 33,315 | D8: =F8+H8+J8+L8+N8+P8+R8+T8 -> 372 | E8: =SUM(E22:E31) -> 504 | F8: 4 | G8: 3,342 | H8: 28 | I8: 8,858 | J8: 78 | K8: 8,451 | L8: 100 | M8: 6,411 | N8: 92 | O8: 3,280 | P8: 44 | Q8: 1,544 | R8: 19 | S8: 925 | T8: 9 | U8: 2004
A9: 2005 | C9: =E9+G9+I9+K9+M9+O9+Q9+S9 -> 42,304 | D9: 3,048 | E9: =SUM(E33:E44) -> 715 | F9: 17 | G9: 4,142 | H9: 50 | I9: 10,917 | J9: 142 | K9: 11,217 | L9: 163 | M9: 7,906 | N9: 124 | O9: 4,362 | P9: 72 | Q9: 1,902 | R9: 29 | S9: 1,144 | T9: 12 | U9: 2005
A10: 2006 | C10: 13,761 | D10: 1,102 | E10: =SUM(E46:E57) -> 295 | F10: 5 | G10: 1,951 | H10: 16 | I10: 4,289 | J10: 45 | K10: 3,723 | L10: 51 | M10: 2,004 | N10: 40 | O10: 935 | P10: 12 | Q10: 385 | R10: 5 | S10: 179 | T10: 5 | U10: 2006
A11: 2007 | C11: 35,684 | D11: 367 | E11: =SUM(E59:E70) -> 514 | F11: 6 | G11: 5,136 | H11: 35 | I11: 12,174 | J11: 85 | K11: 9,742 | L11: 127 | M11: 4,625 | N11: 74 | O11: 2,193 | P11: 30 | Q11: 864 | R11: 7 | S11: 436 | T11: 4 | U11: 2007
A12: 2008 | C12: 41,919 | D12: 386 | E12: =SUM(E72:E83) -> 445 | F12: 6 | G12: 5,282 | H12: 32 | I12: 12,862 | J12: 87 | K12: 11,719 | L12: 114 | M12: 6,131 | N12: 91 | O12: 3,223 | P12: 36 | Q12: 1,450 | R12: 13 | S12: 807 | T12: 6 | U12: 2008
A13: 2009 | C13: 59,100 | D13: 847 | E13: =SUM(E85:E96) -> 488 | F13: 16 | G13: 6,438 | H13: 65 | I13: 16,293 | J13: 173 | K13: 17,237 | L13: 271 | M13: 9,936 | N13: 193 | O13: 5,211 | P13: 75 | Q13: 2,448 | R13: 35 | S13: 1,047 | T13: 19 | U13: 2009
A14: 2010 | C14: 57,879 | D14: 2,938 | E14: =SUM(E98:E109) -> 400 | F14: 26 | G14: 4,845 | H14: 171 | I14: 13,668 | J14: 460 | K14: 16,671 | L14: 791 | M14: 10,949 | N14: 678 | O14: 6,106 | P14: 429 | Q14: 3,200 | R14: 247 | S14: 2,039 | T14: 135 | U14: 2010
A15: 2011 | C15: 93,504 | D15: 10,685 | E15: =SUM(E111:E122) -> 774 | F15: 120 | G15: 7,596 | H15: 658 | I15: 20,615 | J15: 1,655 | K15: 24,097 | L15: 2,551 | M15: 17,537 | N15: 2,211 | O15: 10,276 | P15: 1,479 | Q15: 6,384 | R15: 992 | S15: 6,226 | T15: 1,019 | U15: 2011
A16: 2012 | C16: 110,950 | D16: 21,227 | E16: =SUM(E124:E135) -> 981 | F16: 296 | G16: 8,659 | H16: 1,684 | I16: 23,256 | J16: 4,014 | K16: 26,574 | L16: 4,935 | M16: 21,607 | N16: 4,180 | O16: 13,142 | P16: 2,719 | Q16: 8,603 | R16: 1,766 | S16: 8,128 | T16: 1,634 | U16: 2012
A17: 2013 | C17: 117,367 | D17: 35,082 | E17: =+SUM(E137:E148) -> 1,073 | F17: 468 | G17: 8,042 | H17: 2,661 | I17: 25,187 | J17: 7,454 | K17: 28,681 | L17: 8,356 | M17: 23,762 | N17: 7,030 | O17: 13,665 | P17: 4,059 | Q17: 9,081 | R17: 2,744 | S17: 7,876 | T17: 2,309 | U17: 2013
A18: 2014 | C18: 83,697 | D18: 58,742 | E18: =+SUM(E150:E161) -> 388 | F18: =+SUM(F150:F161) -> 278 | G18: 7,654 | H18: 5,396 | I18: 28,602 | J18: 20,279 | K18: 21,247 | L18: 14,740 | M18: 13,335 | N18: 9,319 | O18: 6,267 | P18: 4,346 | Q18: 3,567 | R18: 2,515 | S18: 2,638 | T18: 1,869 | U18: 2014
A19: 2015 | C19: 145,496 | D19: 127,758 | E19: =+SUM(E163:E174) -> 539 | F19: =+SUM(F163:F174) -> 490 | G19: 9,387 | H19: 8,336 | I19: 39,579 | J19: 34,724 | K19: 39,476 | L19: 34,596 | M19: 29,210 | N19: 25,641 | O19: 14,397 | P19: 12,643 | Q19: 7,312 | R19: 6,388 | S19: 5,596 | T19: 4,939 | U19: 2015
A20: 2016 | C20: 37,119 | D20: 35,820 | E20: =+SUM(E176:E182) -> 139 | F20: =+SUM(F176:F182) -> 136 | G20: 2,277 | H20: 2,203 | I20: 9,871 | J20: 9,519 | K20: 10,808 | L20: 10,421 | M20: 6,999 | N20: 6,733 | O20: 3,747 | P20: 3,632 | Q20: 1,772 | R20: 1,715 | S20: 1,505 | T20: 1,461 | U20: 2016
A22: 2004 | B22: 3 | C22: =E22+G22+I22+K22+M22+O22+Q22+S22 -> 351 | D22: 3 | E22: 2 | F22: 0 | G22: 27 | H22: 0 | I22: 84 | J22: 2 | K22: 101 | L22: 1 | M22: 71 | N22: 0 | O22: 40 | P22: 0 | Q22: 18 | R22: 0 | S22: 7 | T22: 0 | U22: M | V22: 2004
B23: 4 | C23: 3,611 | D23: 30 | E23: 37 | F23: 0 | G23: 308 | H23: 1 | I23: 995 | J23: 8 | K23: 969 | L23: 10 | M23: 656 | N23: 7 | O23: 371 | P23: 3 | Q23: 178 | R23: 1 | S23: 97 | T23: 1 | U23: A
B24: 4 | C24: 4,558 | D24: 43 | E24: 65 | F24: 1 | G24: 437 | H24: 3 | I24: 1,238 | J24: 8 | K24: 1,168 | L24: 10 | M24: 886 | N24: 13 | O24: 435 | P24: 5 | Q24: 205 | R24: 2 | S24: 125 | T24: 0 | U24: M
B25: 6 | C25: 3,944 | D25: 42 | E25: 52 | F25: 0 | G25: 366 | H25: 2 | I25: 1,087 | J25: 9 | K25: 957 | L25: 11 | M25: 776 | N25: 12 | O25: 418 | P25: 5 | Q25: 186 | R25: 1 | S25: 102 | T25: 1 | U25: J
B26: 7 | C26: 3,380 | D26: 31 | E26: 49 | F26: 0 | G26: 333 | H26: 3 | I26: 890 | J26: 6 | K26: 826 | L26: 8 | M26: 669 | N26: 8 | O26: 316 | P26: 3 | Q26: 168 | R26: 2 | S26: 130 | T26: 1 | U26: J
B27: 8 | C27: 3,282 | D27: 33 | E27: 50 | F27: 0 | G27: 339 | H27: 2 | I27: 835 | J27: 7 | K27: 834 | L27: 8 | M27: 646 | N27: 10 | O27: 333 | P27: 3 | Q27: 148 | R27: 2 | S27: 98 | T27: 1 | U27: A
B28: 9 | C28: 2,891 | D28: 33 | E28: 49 | F28: 0 | G28: 331 | H28: 3 | I28: 730 | J28: 5 | K28: 742 | L28: 10 | M28: 554 | N28: 8 | O28: 263 | P28: 6 | Q28: 146 | R28: 1 | S28: 77 | T28: 0 | U28: S
B29: 10 | C29: 3,446 | D29: 40 | E29: 56 | F29: 0 | G29: 388 | H29: 3 | I29: 933 | J29: 9 | K29: 882 | L29: 12 | M29: 623 | N29: 8 | O29: 352 | P29: 5 | Q29: 137 | R29: 2 | S29: 75 | T29: 1 | U29: O
B30: 11 | C30: 3,566 | D30: 52 | E30: 77 | F30: 1 | G30: 387 | H30: 4 | I30: 916 | J30: 10 | K30: 901 | L30: 16 | M30: 702 | N30: 13 | O30: 332 | P30: 5 | Q30: 163 | R30: 2 | S30: 88 | T30: 0 | U30: N
B31: 12 | C31: 4,286 | D31: 65 | E31: 67 | F31: 1 | G31: 428 | H31: 7 | I31: 1,151 | J31: 15 | K31: 1,071 | L31: 14 | M31: 827 | N31: 13 | O31: 421 | P31: 8 | Q31: 195 | R31: 4 | S31: 127 | T31: 4 | U31: D
A33: 2005 | B33: 1 | C33: =E33+G33+I33+K33+M33+O33+Q33+S33 -> 3,443 | D33: 60 | E33: 44 | F33: 1 | G33: 236 | H33: 3 | I33: 809 | J33: 15 | K33: 937 | L33: 18 | M33: 711 | N33: 13 | O33: 390 | P33: 6 | Q33: 196 | R33: 3 | S33: 121 | T33: 1 | U33: J | V33: 2005
B34: 2 | C34: 4,840 | D34: 75 | E34: 53 | F34: 2 | G34: 365 | H34: 6 | I34: 1,107 | J34: 14 | K34: 1,377 | L34: 20 | M34: 1,025 | N34: 21 | O34: 540 | P34: 8 | Q34: 236 | R34: 3 | S34: 137 | T34: 1 | U34: F
B35: 3 | C35: 6,923 | D35: 98 | E35: 77 | F35: 3 | G35: 594 | H35: 5 | I35: 1,663 | J35: 24 | K35: 1,872 | L35: 28 | M35: 1,437 | N35: 19 | O35: 708 | P35: 11 | Q35: 355 | R35: 7 | S35: 216 | T35: 1 | U35: M
B36: 4 | C36: 5,707 | D36: 74 | E36: 88 | F36: 1 | G36: 514 | H36: 7 | I36: 1,504 | J36: 16 | K36: 1,536 | L36: 20 | M36: 1,105 | N36: 15 | O36: 598 | P36: 11 | Q36: 209 | R36: 4 | S36: 153 | T36: 1 | U36: A
B37: 5 | C37: 3,927 | D37: 46 | E37: 72 | F37: 3 | G37: 380 | H37: 5 | I37: 1,018 | J37: 9 | K37: 1,041 | L37: 10 | M37: 697 | N37: 8 | O37: 435 | P37: 8 | Q37: 184 | R37: 2 | S37: 101 | T37: 1 | U37: M
B38: 6 | C38: 3,713 | D38: 60 | E38: 51 | F38: 1 | G38: 372 | H38: 4 | I38: 948 | J38: 13 | K38: 1,024 | L38: 19 | M38: 677 | N38: 14 | O38: 355 | P38: 3 | Q38: 167 | R38: 3 | S38: 120 | T38: 1 | U38: J
B39: 7 | C39: 3,087 | D39: 48 | E39: 50 | F39: 1 | G39: 331 | H39: 8 | I39: 861 | J39: 12 | K39: 758 | L39: 10 | M39: 531 | N39: 7 | O39: 323 | P39: 5 | Q39: 149 | R39: 3 | S39: 84 | T39: 2 | U39: J
B40: 8 | C40: 3,165 | D40: 35 | E40: 59 | F40: 1 | G40: 354 | H40: 2 | I40: 865 | J40: 8 | K40: 838 | L40: 9 | M40: 515 | N40: 7 | O40: 322 | P40: 5 | Q40: 130 | R40: 1 | S40: 81 | T40: 1 | U40: A
B41: 9 | C41: 2,649 | D41: 40 | E41: 57 | F41: 0 | G41: 353 | H41: 2 | I41: 746 | J41: 13 | K41: 635 | L41: 10 | M41: 459 | N41: 8 | O41: 245 | P41: 5 | Q41: 101 | R41: 1 | S41: 55 | T41: 1 | U41: S
B42: 10 | C42: 1,928 | D42: 28 | E42: 59 | F42: 1 | G42: 253 | H42: 2 | I42: 565 | J42: 7 | K42: 480 | L42: 8 | M42: 289 | N42: 4 | O42: 176 | P42: 4 | Q42: 73 | R42: 1 | S42: 33 | T42: 1 | U42: O
B43: 11 | C43: 1,436 | D43: 25 | E43: 56 | F43: 1 | G43: 194 | H43: 3 | I43: 405 | J43: 6 | K43: 366 | L43: 8 | M43: 221 | N43: 4 | O43: 127 | P43: 1 | Q43: 43 | R43: 1 | S43: 24 | T43: 0 | U43: N
B44: 12 | C44: 1,485 | D44: 19 | E44: 48 | F44: 1 | G44: 196 | H44: 2 | I44: 425 | J44: 5 | K44: 355 | L44: 3 | M44: 240 | N44: 5 | O44: 142 | P44: 3 | Q44: 59 | R44: 1 | S44: 20 | T44: 0 | U44: D
A46: 2006 | B46: 1 | C46: =E46+G46+I46+K46+M46+O46+Q46+S46 -> 656 | D46: 15 | E46: 18 | F46: 0 | G46: 74 | H46: 1 | I46: 141 | J46: 2 | K46: 175 | L46: 3 | M46: 137 | N46: 5 | O46: 66 | P46: 1 | Q46: 33 | R46: 1 | S46: 13 | T46: 1 | U46: J | V46: 2006
B47: 2 | C47: 1,004 | D47: 16 | E47: 25 | F47: 0 | G47: 130 | H47: 2 | I47: 248 | J47: 4 | K47: 267 | L47: 6 | M47: 191 | N47: 3 | O47: 99 | P47: 1 | Q47: 30 | R47: 1 | S47: 14 | T47: 0 | U47: F
B48: 3 | C48: 1,010 | D48: 16 | E48: 21 | F48: 0 | G48: 121 | H48: 1 | I48: 302 | J48: 3 | K48: 271 | L48: 5 | M48: 165 | N48: 3 | O48: 74 | P48: 1 | Q48: 35 | R48: 1 | S48: 22 | T48: 2 | U48: M
B49: 4 | C49: 881 | D49: 12 | E49: 22 | F49: 0 | G49: 119 | H49: 1 | I49: 255 | J49: 2 | K49: 230 | L49: 5 | M49: 136 | N49: 2 | O49: 73 | P49: 1 | Q49: 33 | R49: 0 | S49: 13 | T49: 0 | U49: A
B50: 5 | C50: 736 | D50: 8 | E50: 21 | F50: 0 | G50: 102 | H50: 0 | I50: 210 | J50: 3 | K50: 177 | L50: 1 | M50: 128 | N50: 3 | O50: 61 | P50: 0 | Q50: 26 | R50: 1 | S50: 10 | T50: 0 | U50: M
B51: 6 | C51: 811 | D51: 17 | E51: 15 | F51: 1 | G51: 100 | H51: 2 | I51: 247 | J51: 2 | K51: 240 | L51: 5 | M51: 123 | N51: 5 | O51: 56 | P51: 2 | Q51: 20 | R51: 0 | S51: 10 | T51: 0 | U51: J
B52: 7 | C52: 1,276 | D52: 10 | E52: 22 | F52: 1 | G52: 159 | H52: 0 | I52: 410 | J52: 3 | K52: 358 | L52: 2 | M52: 185 | N52: 4 | O52: 91 | P52: 0 | Q52: 35 | R52: 0 | S52: 14 | T52: 0 | U52: J
B53: 8 | C53: 1,379 | D53: 16 | E53: 18 | F53: 0 | G53: 187 | H53: 1 | I53: 468 | J53: 5 | K53: 387 | L53: 4 | M53: 174 | N53: 3 | O53: 84 | P53: 2 | Q53: 45 | R53: 0 | S53: 17 | T53: 1 | U53: A
B54: 9 | C54: 1,861 | D54: 24 | E54: 34 | F54: 1 | G54: 307 | H54: 5 | I54: 619 | J54: 3 | K54: 491 | L54: 8 | M54: 236 | N54: 5 | O54: 111 | P54: 0 | Q54: 37 | R54: 0 | S54: 25 | T54: 1 | U54: S
B55: 10 | C55: 1,245 | D55: 15 | E55: 33 | F55: 0 | G55: 200 | H55: 1 | I55: 419 | J55: 5 | K55: 346 | L55: 4 | M55: 147 | N55: 2 | O55: 63 | P55: 2 | Q55: 24 | R55: 0 | S55: 14 | T55: 0 | U55: O
B56: 11 | C56: 1,207 | D56: 17 | E56: 37 | F56: 0 | G56: 192 | H56: 1 | I56: 389 | J56: 9 | K56: 324 | L56: 2 | M56: 163 | N56: 3 | O56: 68 | P56: 2 | Q56: 28 | R56: 1 | S56: 7 | T56: 0 | U56: N
B57: 12 | C57: 1,694 | D57: 14 | E57: 29 | F57: 0 | G57: 262 | H57: 0 | I57: 580 | J57: 4 | K57: 458 | L57: 5 | M57: 221 | N57: 2 | O57: 88 | P57: 1 | Q57: 37 | R57: 1 | S57: 18 | T57: 0 | U57: D
A59: 2007 | B59: 1 | C59: =E59+G59+I59+K59+M59+O59+Q59+S59 -> 2,408 | D59: 24 | E59: 27 | F59: 1 | G59: 247 | H59: 1 | I59: 786 | J59: 5 | K59: 748 | L59: 11 | M59: 348 | N59: 3 | O59: 172 | P59: 3 | Q59: 58 | R59: 0 | S59: 22 | T59: 0 | U59: J | V59: 2007
B60: 2 | C60: 2,762 | D60: 35 | E60: 26 | F60: 0 | G60: 311 | H60: 2 | I60: 944 | J60: 8 | K60: 834 | L60: 12 | M60: 395 | N60: 8 | O60: 168 | P60: 3 | Q60: 49 | R60: 2 | S60: 34 | T60: 0 | U60: F
B61: 3 | C61: 2,496 | D61: 25 | E61: 29 | F61: 0 | G61: 357 | H61: 3 | I61: 893 | J61: 6 | K61: 682 | L61: 9 | M61: 313 | N61: 4 | O61: 129 | P61: 2 | Q61: 77 | R61: 0 | S61: 16 | T61: 0 | U61: M
B62: 4 | C62: 2,415 | D62: 29 | E62: 36 | F62: 0 | G62: 382 | H62: 4 | I62: 833 | J62: 9 | K62: 639 | L62: 6 | M62: 275 | N62: 7 | O62: 161 | P62: 2 | Q62: 62 | R62: 1 | S62: 26 | T62: 1 | U62: A
B63: 5 | C63: 2,489 | D63: 36 | E63: 29 | F63: 1 | G63: 356 | H63: 3 | I63: 847 | J63: 9 | K63: 676 | L63: 10 | M63: 327 | N63: 8 | O63: 151 | P63: 4 | Q63: 74 | R63: 0 | S63: 29 | T63: 0 | U63: M
B64: 6 | C64: 2,711 | D64: 27 | E64: 44 | F64: 0 | G64: 392 | H64: 1 | I64: 897 | J64: 5 | K64: 760 | L64: 11 | M64: 339 | N64: 6 | O64: 175 | P64: 3 | Q64: 72 | R64: 0 | S64: 30 | T64: 0 | U64: J
B65: 7 | C65: 3,588 | D65: 43 | E65: 39 | F65: 1 | G65: 486 | H65: 3 | I65: 1,196 | J65: 9 | K65: 1,024 | L65: 14 | M65: 462 | N65: 12 | O65: 239 | P65: 4 | Q65: 100 | R65: 0 | S65: 42 | T65: 0 | U65: J
B66: 8 | C66: 3,198 | D66: 19 | E66: 42 | F66: 1 | G66: 503 | H66: 4 | I66: 1,161 | J66: 3 | K66: 840 | L66: 6 | M66: 392 | N66: 3 | O66: 161 | P66: 1 | Q66: 62 | R66: 0 | S66: 37 | T66: 0 | U66: A
B67: 9 | C67: 2,482 | D67: 16 | E67: 33 | F67: 1 | G67: 402 | H67: 2 | I67: 903 | J67: 5 | K67: 628 | L67: 6 | M67: 307 | N67: 1 | O67: 127 | P67: 1 | Q67: 49 | R67: 0 | S67: 33 | T67: 0 | U67: S
B68: 10 | C68: 3,407 | D68: 29 | E68: 71 | F68: 1 | G68: 560 | H68: 3 | I68: 1,235 | J68: 5 | K68: 841 | L68: 13 | M68: 385 | N68: 5 | O68: 190 | P68: 1 | Q68: 76 | R68: 1 | S68: 49 | T68: 1 | U68: O
B69: 11 | C69: 3,244 | D69: 39 | E69: 66 | F69: 1 | G69: 506 | H69: 2 | I69: 1,082 | J69: 12 | K69: 834 | L69: 11 | M69: 457 | N69: 10 | O69: 193 | P69: 2 | Q69: 62 | R69: 1 | S69: 44 | T69: 1 | U69: N
B70: 12 | C70: 4,483 | D70: 45 | E70: 71 | F70: 0 | G70: 632 | H70: 5 | I70: 1,398 | J70: 9 | K70: 1,237 | L70: 19 | M70: 623 | N70: 7 | O70: 326 | P70: 4 | Q70: 124 | R70: 1 | S70: 73 | T70: 0 | U70: D
A72: 2008 | B72: 1 | C72: =E72+G72+I72+K72+M72+O72+Q72+S72 -> 5,863 | D72: 38 | E72: 48 | F72: 0 | G72: 613 | H72: 3 | I72: 1,647 | J72: 7 | K72: 1,808 | L72: 9 | M72: 980 | N72: 12 | O72: 481 | P72: 3 | Q72: 184 | R72: 1 | S72: 101 | T72: 2 | U72: J | V72: 2008
B73: 2 | C73: 4,947 | D73: 33 | E73: 34 | F73: 0 | G73: 550 | H73: 2 | I73: 1,484 | J73: 10 | K73: 1,520 | L73: 8 | M73: 750 | N73: 7 | O73: 384 | P73: 2 | Q73: 151 | R73: 1 | S73: 75 | T73: 2 | U73: F
